Workbook

Sheet Notes
A1: CongAdaptiveMovingAverage.xlsm; Traders Tip spreadsheet created for the May 2023 Issue
A2: Coded beginning 2023-March-03 by Ronald McAllister (rpmac_xltt@sprynet.com)
A4: This Workbook demonstrates an EXCEL version of the ideas presented
A5: by Scott Cong, PhD in an article titled "An Adaptive Moving Average For Swing Trading",
A6: which originally appeared in the May 2023 issue of
A7: "Technical Analysis of Stocks and Commodities" magazine.
A9: Result Vs. Effort
A33: ERROR 9 (already fixed in this spreadsheet)
A34: On or about Jan 29, 2020 Yahoo Finance changed the format of the split factor expression used their historical data downloads.
A35: The Split expression went from using "/" as in "New Share Number/Old Share Number",
A36: to using ":" as in "New Share Number:Old Share Number".
A37: This caused the then current version of my VBA code to fail with a "Runtime Error '9': subscript out of range".
A39: Fix for this ERROR 9
A40: For T-Tip spreadsheets from September 2018 up to present:
A41: Selecting the Debug option takes one into the VBA at the code line which causes the failure:
A42: CellArray(C_A_RowNdx, C_A_ColNdx + 1) = SplitFactors(1)
A43: Two lines above the failing VBA line is a line that reads:
A44: SplitFactors = Split(CsvColumns(CsvColNdx), "/")
A45: Change the / to a :
A46: The corrected line should now read
A47: SplitFactors = Split(CsvColumns(CsvColNdx), ":")
A49: If you are fixing several spreadsheets and do not want to use the failure to find the fix location,
A50: you can use VBA’s FIND dialog (Ctrl F) to look for the substring
A51: SplitFactors =
A52: Do include one space and the equal sign in your FIND string
A53: Select the "Current Project" option
A54: There should only be one instance.
A56: T-Tip spreadsheets prior to the September 2018 spreadsheet do not hard fail.
A58: They just get weird results in the split columns of the Input Price Data tab (soft fail).
A59: These older spreadsheets used different data retrieval and formatting logic.
A61: To fix these older spreadsheets:
A62: In the VBA editor, use find (CTRL-F).
A63: Select the "Current Project" option, and search for the following:
A64: OtherChar:="/"
A65: You are looking for a hit in a line reading:
A66: Other:=True, OtherChar:="/", _
A67: This line is part of a multiline block of code starting with a line that reads:
A68: SplitRange.Offset(0, 1).Resize(SpRows, 1).TextToColumns
A69: Change the / to a : so that the line reads
A70: Other:=True, OtherChar:=":", _
A73: 2019-04-04 Finally came up with a mechanism to align the left location and overall length of the cursor scroll bar so that the left most and right most
A74: scroll bar thumb positions visually align reasonably well with the left and right ends of the price chart horizontal axis.
A75: Makes it a little easier to visually align the Thumb and thus the cursor with points of interest on the charts.
A77: Older:
B78: My sincere apologies to our Macintosh based readers: Neither MSXML nor WinHttpRequest are supported in your environment. So as it stands this version of the spreadsheet will not work for you.
B79: See "Why this approach does not work for Macintosh" below.
B80: I am investigating cURL as a non-Querytable based approach for the Macintosh environment.
A82: The new Yahoo Finance history download interface has changed rather radically. The biggest hurdle being a pseudo-security requirement of adding a
B83: crumb character string to any URL requesting any type of history download. That crumb must match up (by way of some sort of hash algorithm) with
B84: the Yahoo Finance cookie that must also be sent with any request to the new Yahoo History down load interface.
B86: A crumb value is returned, buried in the HTML for any of what I call the "entry level" Yahoo Finance web pages (no crumb security requirement for entry level pages).
B87: A crumb may come with other Yahoo Finance pages. A crumb may even accompany some of the secured pages as well. I have not checked.
B89: Entry level pages are the top level pages of the various Yahoo Finance dialogs and include: Quote Lookup, Stock Summary Quote, and any of the pages
B90: with links in the horizontal row with the "Summary" link on the quote summary page such as Options, Historical Data, and the rest.
B92: To date I have found no way to get at this crumb value using any native EXCEL capabilities.
B94: So this crumb requirement effectively shuts out any solution that attempts to exclusively use built-in facilities of EXCEL, which is to say a purely Querytables solution.
B96: The approach built for this Traders Tip spreadsheet uses WINHTTP calls to Load the InputPriceData worksheet.
B98: First I call to get the HTML text for the Yahoo Summary Quote page using the requested symbol. From this HTML text I extract the full company name,
B99: the market it trades, the market status and time stamp, and finally the associated crumb string. There is a bunch of other useful bits buried in this HTML
B100: text that do not necessarily appear on the web page your browser presents. Perhaps some day I will go after and build a worksheet with these other bits.
B102: Next I add the freshly extracted crumb string to the URLs I use in three separate WINHTTP calls to retrieve Price history, Split history, and Dividend history respectively.
B104: From there VBA code proceeds as in the past to fill in the cell formulas and formatting that make the "prettied up" InputPriceData sheet.
A106: Why this approach works for Windows:
B107: WINHTTP maintains a temporary computer memory cache where cookies are maintained for as long as the WINHTTP object is instantiated.
B108: WINHTTP updates this cache any time a "set cookie" header accompanies a web response.
B109: Subsequent WINHTTP calls automatically search this cache for cookies and add any "appropriate" cookies to the headers
B110: of any web requests that get sent out.
B111: This cookie handling automation means that even if the response to our WINHTTP call for the Summary web page includes a new version of
B112: the Yahoo Finance cookie, the imbedded Crumb value will always match the cookie newly installed in the cache!
A115: Why this approach does not work for Macintosh:
B116: For what it is worth, the Macintosh version of the MS Office suite of products do in fact maintain a special, shared amongst themselves only, cookie cache.
B117: They automate cookie handling into and from this cache JUST for the Office products and any Querytable activity they might originate.
B119: This cache is not tied to, nor shared with, any browser that might be installed on the MAC. And I have not found anything with HTTP capabilities similar to
B120: MSXML that can work with that Office product cookie cache.
B122: When working in the MAC EXCEL environment, I have not yet become conversant with a Mac based WINHTTP like capability.
B123: So l currently have no mechanism to replicate the non-Querytable data retrieval process I am using in Windows environments.
B124: A software product called CURL has been suggested as providing this capability in the MAC environment.
B125: A version of CURL is available for the Windows So some day I may explore its capabilities and how to access those capabilities from VBA.
A127: Calculation and Chart Worksheet Usage Comments:
C128: In General, Items in Bolded BLUE are items you may freely change to play what-if games.
C129: Be sure to have a backup copy of the spreadsheet before you alter anything else.
A131: Features carried forward from the June 2016 version of my T-Tips Template
A132: Added a pair of buttons near cell F12 that will allow the user to step the charting window forward or backward one bar for each click.
A133: I find this to be a good way to test my understanding of the author's ideas as I step through the evolution of the price behavior and the indicators.
B135: First: In the "Help! I would like to plot data" area.
B136: Added button to resolve #NA problems by locating the bar in the input data with a slightly more recent date than what the user actually requested.
B137: I find this particularly useful when I have a general idea of where I want to be date wise. Now I can pick a set of dates "out of the air".
B138: If either (or both) of my date specifications fall between dates that are available in the price history,
B139: this button will resolve them to the dates of the nearest, slightly more recent input bars.
B140: I can then refine my data interval search as necessary from there.
B141: Really great when working with Weekly or Monthly studies!
C142: 2016Jun11 - added logic to the "I would like to chart.." button to detect #N/A values and terminate
C143: gracefully with a message instead of blowing up in the charting logic.
B145: Second: In the "Price Chart Windowing Controls" area. (A11 and A12)
B146: When retrieving data for a new symbol or when changing from daily to weekly or monthly data, there was the possibility that the
B147: residual settings in A11 and A12 would fall outside of the number bars available on the input data tab after the new data retrieval.
B148: In certain combinations, this could create a serious error in the chart sizing logic and crash the spreadsheet.
B149: I have taken this opportunity to update the validity checking logic used in the chart sizing macros
B150: to adjust these values as necessary so that they fall within the boundaries of the newly retrieved input data.
A151: Features carried forward from the October 2015 Traders Tips Template
B152: Improved automation: changes to any of the following will automatically initiate calculations appropriate to reflect a change.
C153: Changing either of cells A11 (pan) or A12 (zoom) will automatically initiate the same chart sizing macros that the manual
C154: "Set Chart" button uses.

Sheet InputPriceData
A1: S&P/ASX 200 (^AXJO) -ASX (Daily)
M2: To retrieve data for symbols traded on non US Exchanges, | IJ2: 241.79
A3: Request Online Yahoo History for: | F3: Market State == > | G3: At close: | H3: 16:44:00 | I3: AEDT | M3: you will need to append the dot-suffix for the exchange to the symbol.
A4: Symbol | B4: ^AXJO | D4: Valid | I4: =OFFSET(I4,-2,0,1,1) -> 0 | M4: The following links provide a description of how to use the exchange suffix
A5: From | B5: 1959-08-11T19:24:26 | D5: Data | M5: along with a list of suffixes for the major world exchanges. | AD5: Trailing 12 Div return (Cur Close)
A6: To | B6: =NOW() -> 2023-03-15T13:06:40.460 | D6: Types | E6: =VLOOKUP(B7,D7:E10,2,FALSE) -> d | M6: https://help.yahoo.com/kb/finance/SLN2310.html
A7: Data Type | B7: Daily | D7: Daily | E7: d | M7: And
A8: Crumb | D8: Weekly | E8: w | M8: https://www.stockmarketeye.com/users-guide/ticker-symbols-and-data-providers/data-providers.html
A9: Available Data | D9: Monthly | E9: m
A10: Bar Count: | B10: 7731 | M10: You may search on “exchange suffixes” for additional discussions | AD10: =OFFSET(AC15,1,0,1,1)/OFFSET(N15,1,0,1,1) -> 0
A11: From: | B11: =IF(B10<=0,"",OFFSET(B15,B10,IF(HistReqDataType="v",1,0),1,1)) -> 1992-11-23 | W11: Trailing 12 Month Dividend Returns
A12: To: | B12: =IF(B10<=0,"",IF(HistReqDataType="v",OFFSET(B15,2,1,1,1),OFFSET(B15,1,0,1,1))) -> 2023-03-15 | E12: 31 | F12: Holiday (market closed) dates have been filtered out. | W12: Raw Close price on Dividend date | X12: Div Year and Month | Y12: Looking for year ago Div Year and Month | Z12: Year ago Div Date we found | AA12: row offset to year ago div Date | AB12: Same month flag | AC12: Trailing 12 Div Total | AD12: Trailing 12 Div return
Q13: Split History | S13: 0 | T13: Running | U13: Dividend History
B14: Raw Data Values | H14: Adjusted | I14: Price Adjust | J14: Vol Adjust | K14: Adjusted Values | P14: Last | Q14: Effective | R14: Shares | T14: Vol Adjust | V14: 0
A15: RelRow | B15: Date | C15: Open | D15: High | E15: Low | F15: Close | G15: Volume | H15: Close | I15: Factor | J15: Factor | K15: Open | L15: High | M15: Low | N15: Close | O15: Volume | P15: Trade | Q15: 45001 | R15: New | S15: Old | T15: 1 | U15: Date | V15: $ / Share
A16: 1 | B16: 2023-03-15 | C16: 7008.899902 | D16: 7068.899902 | E16: 7008.899902 | F16: 7068.899902 | G16: 0 | H16: 7068.899902 | I16: =IF(F16=0,1,H16/F16) -> 1 | J16: =INDEX(OFFSET($T$15,0,0,$S$13+1,1),MATCH(B16,OFFSET($Q$15,0,0,$S$13+1,1),-1)) -> 1 | K16: =ROUND($I16*C16,2) -> 7008.9 | L16: =ROUND($I16*D16,2) -> 7068.9 | M16: 7008.9 | N16: 7068.9 | O16: =G16*J16 -> 0
A17: 2 | B17: 2023-03-14 | C17: 7093.700195 | D17: 7094.5 | E17: 6950.600098 | F17: 7008.899902 | G17: 1068800 | H17: 7008.899902 | I17: =IF(F17=0,1,H17/F17) -> 1 | J17: =INDEX(OFFSET($T$15,0,0,$S$13+1,1),MATCH(B17,OFFSET($Q$15,0,0,$S$13+1,1),-1)) -> 1 | K17: =ROUND($I17*C17,2) -> 7093.7 | L17: =ROUND($I17*D17,2) -> 7094.5 | M17: =ROUND($I17*E17,2) -> 6950.6 | N17: =ROUND($I17*F17,2) -> 7008.9 | O17: =G17*J17 -> 1068800
A18: 3 | B18: 2023-03-13 | C18: 7151 | D18: 7151.399902 | E18: 7071.899902 | F18: 7108.799805 | G18: 673800 | H18: 7108.799805 | I18: 1 | J18: 1 | K18: 7151 | L18: 7151.4 | M18: 7071.9 | N18: 7108.8 | O18: 673800
A19: 4 | B19: 2023-03-10 | C19: 7289.100098 | D19: 7290.399902 | E19: 7134.5 | F19: 7144.700195 | G19: 721100 | H19: 7144.700195 | I19: 1 | J19: 1 | K19: 7289.1 | L19: 7290.4 | M19: 7134.5 | N19: 7144.7 | O19: 721100
A20: 5 | B20: 2023-03-09 | C20: 7292.200195 | D20: 7328.5 | E20: 7289.899902 | F20: 7311.100098 | G20: 619000 | H20: 7311.100098 | I20: 1 | J20: 1 | K20: 7292.2 | L20: 7328.5 | M20: 7289.9 | N20: 7311.1 | O20: 619000
A21: 6 | B21: 2023-03-08 | C21: 7347.700195 | D21: 7351.299805 | E21: 7288.700195 | F21: 7307.799805 | G21: 713300 | H21: 7307.799805 | I21: 1 | J21: 1 | K21: 7347.7 | L21: 7351.3 | M21: 7288.7 | N21: 7307.8 | O21: 713300
A22: 7 | B22: 2023-03-07 | C22: 7312 | D22: 7370.299805 | E22: 7302.899902 | F22: 7364.700195 | G22: 771100 | H22: 7364.700195 | I22: 1 | J22: 1 | K22: 7312 | L22: 7370.3 | M22: 7302.9 | N22: 7364.7 | O22: 771100
A23: 8 | B23: 2023-03-06 | C23: 7291.200195 | D23: 7343.899902 | E23: 7291.200195 | F23: 7328.600098 | G23: 591000 | H23: 7328.600098 | I23: 1 | J23: 1 | K23: 7291.2 | L23: 7343.9 | M23: 7291.2 | N23: 7328.6 | O23: 591000
A24: 9 | B24: 2023-03-03 | C24: 7263.299805 | D24: 7292.5 | E24: 7263 | F24: 7283.600098 | G24: 565400 | H24: 7283.600098 | I24: 1 | J24: 1 | K24: 7263.3 | L24: 7292.5 | M24: 7263 | N24: 7283.6 | O24: 565400
A25: 10 | B25: 2023-03-02 | C25: 7263 | D25: 7282.399902 | E25: 7242.200195 | F25: 7255.399902 | G25: 987100 | H25: 7255.399902 | I25: 1 | J25: 1 | K25: 7263 | L25: 7282.4 | M25: 7242.2 | N25: 7255.4 | O25: 987100
A26: 11 | B26: 2023-03-01 | C26: 7258.200195 | D26: 7271.399902 | E26: 7216.299805 | F26: 7251.600098 | G26: 668200 | H26: 7251.600098 | I26: 1 | J26: 1 | K26: 7258.2 | L26: 7271.4 | M26: 7216.3 | N26: 7251.6 | O26: 668200
A27: 12 | B27: 2023-02-28 | C27: 7234.399902 | D27: 7273.600098 | E27: 7233.5 | F27: 7258.399902 | G27: 1001900 | H27: 7258.399902 | I27: 1 | J27: 1 | K27: 7234.4 | L27: 7273.6 | M27: 7233.5 | N27: 7258.4 | O27: 1001900
A28: 13 | B28: 2023-02-27 | C28: 7280.799805 | D28: 7282.299805 | E28: 7193.399902 | F28: 7224.799805 | G28: 639600 | H28: 7224.799805 | I28: 1 | J28: 1 | K28: 7280.8 | L28: 7282.3 | M28: 7193.4 | N28: 7224.8 | O28: 639600
A29: 14 | B29: 2023-02-24 | C29: 7283.200195 | D29: 7315.5 | E29: 7278.700195 | F29: 7307 | G29: 719600 | H29: 7307 | I29: 1 | J29: 1 | K29: 7283.2 | L29: 7315.5 | M29: 7278.7 | N29: 7307 | O29: 719600
A30: 15 | B30: 2023-02-23 | C30: 7291.799805 | D30: 7306.5 | E30: 7283.399902 | F30: 7285.399902 | G30: 721200 | H30: 7285.399902 | I30: 1 | J30: 1 | K30: 7291.8 | L30: 7306.5 | M30: 7283.4 | N30: 7285.4 | O30: 721200
A31: 16 | B31: 2023-02-22 | C31: 7338.600098 | D31: 7338.600098 | E31: 7267.799805 | F31: 7314.5 | G31: 703400 | H31: 7314.5 | I31: 1 | J31: 1 | K31: 7338.6 | L31: 7338.6 | M31: 7267.8 | N31: 7314.5 | O31: 703400
A32: 17 | B32: 2023-02-21 | C32: 7336.5 | D32: 7340.799805 | E32: 7297 | F32: 7336.299805 | G32: 636000 | H32: 7336.299805 | I32: 1 | J32: 1 | K32: 7336.5 | L32: 7340.8 | M32: 7297 | N32: 7336.3 | O32: 636000
A33: 18 | B33: 2023-02-20 | C33: 7350.799805 | D33: 7357.5 | E33: 7331.299805 | F33: 7351.5 | G33: 606700 | H33: 7351.5 | I33: 1 | J33: 1 | K33: 7350.8 | L33: 7357.5 | M33: 7331.3 | N33: 7351.5 | O33: 606700
A34: 19 | B34: 2023-02-17 | C34: 7413.600098 | D34: 7413.600098 | E34: 7346.799805 | F34: 7346.799805 | G34: 801700 | H34: 7346.799805 | I34: 1 | J34: 1 | K34: 7413.6 | L34: 7413.6 | M34: 7346.8 | N34: 7346.8 | O34: 801700
A35: 20 | B35: 2023-02-16 | C35: 7356 | D35: 7422 | E35: 7351.399902 | F35: 7410.299805 | G35: 884200 | H35: 7410.299805 | I35: 1 | J35: 1 | K35: 7356 | L35: 7422 | M35: 7351.4 | N35: 7410.3 | O35: 884200
A36: 21 | B36: 2023-02-15 | C36: 7440.399902 | D36: 7440.399902 | E36: 7337 | F36: 7352.200195 | G36: 756500 | H36: 7352.200195 | I36: 1 | J36: 1 | K36: 7440.4 | L36: 7440.4 | M36: 7337 | N36: 7352.2 | O36: 756500
A37: 22 | B37: 2023-02-14 | C37: 7426.899902 | D37: 7476.600098 | E37: 7426 | F37: 7430.899902 | G37: 654900 | H37: 7430.899902 | I37: 1 | J37: 1 | K37: 7426.9 | L37: 7476.6 | M37: 7426 | N37: 7430.9 | O37: 654900
A38: 23 | B38: 2023-02-13 | C38: 7430.899902 | D38: 7430.899902 | E38: 7406 | F38: 7417.799805 | G38: 673500 | H38: 7417.799805 | I38: 1 | J38: 1 | K38: 7430.9 | L38: 7430.9 | M38: 7406 | N38: 7417.8 | O38: 673500
A39: 24 | B39: 2023-02-10 | C39: 7485.299805 | D39: 7486.899902 | E39: 7428.799805 | F39: 7433.700195 | G39: 556700 | H39: 7433.700195 | I39: 1 | J39: 1 | K39: 7485.3 | L39: 7486.9 | M39: 7428.8 | N39: 7433.7 | O39: 556700
A40: 25 | B40: 2023-02-09 | C40: 7521.399902 | D40: 7521.5 | E40: 7482 | F40: 7490.299805 | G40: 579900 | H40: 7490.299805 | I40: 1 | J40: 1 | K40: 7521.4 | L40: 7521.5 | M40: 7482 | N40: 7490.3 | O40: 579900
A41: 26 | B41: 2023-02-08 | C41: 7510.600098 | D41: 7534.899902 | E41: 7507.100098 | F41: 7530.100098 | G41: 660100 | H41: 7530.100098 | I41: 1 | J41: 1 | K41: 7510.6 | L41: 7534.9 | M41: 7507.1 | N41: 7530.1 | O41: 660100
A42: 27 | B42: 2023-02-07 | C42: 7534.299805 | D42: 7553.600098 | E42: 7495.200195 | F42: 7504.100098 | G42: 618500 | H42: 7504.100098 | I42: 1 | J42: 1 | K42: 7534.3 | L42: 7553.6 | M42: 7495.2 | N42: 7504.1 | O42: 618500
A43: 28 | B43: 2023-02-06 | C43: 7565.100098 | D43: 7567.700195 | E43: 7531.399902 | F43: 7539 | G43: 636000 | H43: 7539 | I43: 1 | J43: 1 | K43: 7565.1 | L43: 7567.7 | M43: 7531.4 | N43: 7539 | O43: 636000
A44: 29 | B44: 2023-02-03 | C44: 7497.299805 | D44: 7565 | E44: 7496.100098 | F44: 7558.100098 | G44: 981500 | H44: 7558.100098 | I44: 1 | J44: 1 | K44: 7497.3 | L44: 7565 | M44: 7496.1 | N44: 7558.1 | O44: 981500
A45: 30 | B45: 2023-02-02 | C45: 7505.799805 | D45: 7548.200195 | E45: 7505.299805 | F45: 7511.600098 | G45: 707400 | H45: 7511.600098 | I45: 1 | J45: 1 | K45: 7505.8 | L45: 7548.2 | M45: 7505.3 | N45: 7511.6 | O45: 707400
A46: 31 | B46: 2023-02-01 | C46: 7488.100098 | D46: 7537.700195 | E46: 7488.100098 | F46: 7501.700195 | G46: 692800 | H46: 7501.700195 | I46: 1 | J46: 1 | K46: 7488.1 | L46: 7537.7 | M46: 7488.1 | N46: 7501.7 | O46: 692800
A47: 32 | B47: 2023-01-31 | C47: 7483 | D47: 7516.799805 | E47: 7463.700195 | F47: 7476.700195 | G47: 888100 | H47: 7476.700195 | I47: 1 | J47: 1 | K47: 7483 | L47: 7516.8 | M47: 7463.7 | N47: 7476.7 | O47: 888100
A48: 33 | B48: 2023-01-30 | C48: 7490.600098 | D48: 7505.600098 | E48: 7474.299805 | F48: 7481.700195 | G48: 657200 | H48: 7481.700195 | I48: 1 | J48: 1 | K48: 7490.6 | L48: 7505.6 | M48: 7474.3 | N48: 7481.7 | O48: 657200
A49: 34 | B49: 2023-01-27 | C49: 7489.600098 | D49: 7508.5 | E49: 7483 | F49: 7493.799805 | G49: 705000 | H49: 7493.799805 | I49: 1 | J49: 1 | K49: 7489.6 | L49: 7508.5 | M49: 7483 | N49: 7493.8 | O49: 705000
A50: 35 | B50: 2023-01-25 | C50: 7488.399902 | D50: 7507.299805 | E50: 7453.100098 | F50: 7468.299805 | G50: 658200 | H50: 7468.299805 | I50: 1 | J50: 1 | K50: 7488.4 | L50: 7507.3 | M50: 7453.1 | N50: 7468.3 | O50: 658200
A51: 36 | B51: 2023-01-24 | C51: 7462.299805 | D51: 7497.799805 | E51: 7453.799805 | F51: 7490.399902 | G51: 612900 | H51: 7490.399902 | I51: 1 | J51: 1 | K51: 7462.3 | L51: 7497.8 | M51: 7453.8 | N51: 7490.4 | O51: 612900
A52: 37 | B52: 2023-01-23 | C52: 7451.299805 | D52: 7472.799805 | E52: 7434.5 | F52: 7457.299805 | G52: 565700 | H52: 7457.299805 | I52: 1 | J52: 1 | K52: 7451.3 | L52: 7472.8 | M52: 7434.5 | N52: 7457.3 | O52: 565700
A53: 38 | B53: 2023-01-20 | C53: 7437.899902 | D53: 7457.799805 | E53: 7427.299805 | F53: 7452.200195 | G53: 777300 | H53: 7452.200195 | I53: 1 | J53: 1 | K53: 7437.9 | L53: 7457.8 | M53: 7427.3 | N53: 7452.2 | O53: 777300
A54: 39 | B54: 2023-01-19 | C54: 7392.5 | D54: 7439.700195 | E54: 7380.100098 | F54: 7435.299805 | G54: 574600 | H54: 7435.299805 | I54: 1 | J54: 1 | K54: 7392.5 | L54: 7439.7 | M54: 7380.1 | N54: 7435.3 | O54: 574600
A55: 40 | B55: 2023-01-18 | C55: 7377.200195 | D55: 7410.799805 | E55: 7376.200195 | F55: 7393.399902 | G55: 642600 | H55: 7393.399902 | I55: 1 | J55: 1 | K55: 7377.2 | L55: 7410.8 | M55: 7376.2 | N55: 7393.4 | O55: 642600
A56: 41 | B56: 2023-01-17 | C56: 7370.799805 | D56: 7399.5 | E56: 7364.200195 | F56: 7386.299805 | G56: 574800 | H56: 7386.299805 | I56: 1 | J56: 1 | K56: 7370.8 | L56: 7399.5 | M56: 7364.2 | N56: 7386.3 | O56: 574800
A57: 42 | B57: 2023-01-16 | C57: 7328.100098 | D57: 7396 | E57: 7328.100098 | F57: 7388.200195 | G57: 497000 | H57: 7388.200195 | I57: 1 | J57: 1 | K57: 7328.1 | L57: 7396 | M57: 7328.1 | N57: 7388.2 | O57: 497000
A58: 43 | B58: 2023-01-13 | C58: 7281.600098 | D58: 7357.799805 | E58: 7281.600098 | F58: 7328.100098 | G58: 522900 | H58: 7328.100098 | I58: 1 | J58: 1 | K58: 7281.6 | L58: 7357.8 | M58: 7281.6 | N58: 7328.1 | O58: 522900
A59: 44 | B59: 2023-01-12 | C59: 7207.700195 | D59: 7288.700195 | E59: 7205.600098 | F59: 7280.399902 | G59: 571500 | H59: 7280.399902 | I59: 1 | J59: 1 | K59: 7207.7 | L59: 7288.7 | M59: 7205.6 | N59: 7280.4 | O59: 571500
A60: 45 | B60: 2023-01-11 | C60: 7148.100098 | D60: 7204 | E60: 7148.100098 | F60: 7195.299805 | G60: 518400 | H60: 7195.299805 | I60: 1 | J60: 1 | K60: 7148.1 | L60: 7204 | M60: 7148.1 | N60: 7195.3 | O60: 518400
A61: 46 | B61: 2023-01-10 | C61: 7143.100098 | D61: 7151.899902 | E61: 7124.899902 | F61: 7131 | G61: 519900 | H61: 7131 | I61: 1 | J61: 1 | K61: 7143.1 | L61: 7151.9 | M61: 7124.9 | N61: 7131 | O61: 519900
A62: 47 | B62: 2023-01-09 | C62: 7124.700195 | D62: 7186.200195 | E62: 7124.700195 | F62: 7151.299805 | G62: 512500 | H62: 7151.299805 | I62: 1 | J62: 1 | K62: 7124.7 | L62: 7186.2 | M62: 7124.7 | N62: 7151.3 | O62: 512500
A63: 48 | B63: 2023-01-06 | C63: 7082.799805 | D63: 7116.799805 | E63: 7062 | F63: 7109.600098 | G63: 528600 | H63: 7109.600098 | I63: 1 | J63: 1 | K63: 7082.8 | L63: 7116.8 | M63: 7062 | N63: 7109.6 | O63: 528600
A64: 49 | B64: 2023-01-05 | C64: 7059.799805 | D64: 7099.700195 | E64: 7053.799805 | F64: 7063.600098 | G64: 614900 | H64: 7063.600098 | I64: 1 | J64: 1 | K64: 7059.8 | L64: 7099.7 | M64: 7053.8 | N64: 7063.6 | O64: 614900
A65: 50 | B65: 2023-01-04 | C65: 6955.299805 | D65: 7059.200195 | E65: 6952.600098 | F65: 7059.200195 | G65: 544500 | H65: 7059.200195 | I65: 1 | J65: 1 | K65: 6955.3 | L65: 7059.2 | M65: 6952.6 | N65: 7059.2 | O65: 544500
A66: 51 | B66: 2023-01-03 | C66: 7046.299805 | D66: 7071.299805 | E66: 6905.299805 | F66: 6946.200195 | G66: 420300 | H66: 6946.200195 | I66: 1 | J66: 1 | K66: 7046.3 | L66: 7071.3 | M66: 6905.3 | N66: 6946.2 | O66: 420300
A67: 52 | B67: 2022-12-30 | C67: 7022.799805 | D67: 7073.399902 | E67: 7022.799805 | F67: 7038.700195 | G67: 430700 | H67: 7038.700195 | I67: 1 | J67: 1 | K67: 7022.8 | L67: 7073.4 | M67: 7022.8 | N67: 7038.7 | O67: 430700
A68: 53 | B68: 2022-12-29 | C68: 7074.100098 | D68: 7074.100098 | E68: 6993.799805 | F68: 7020.100098 | G68: 492200 | H68: 7020.100098 | I68: 1 | J68: 1 | K68: 7074.1 | L68: 7074.1 | M68: 6993.8 | N68: 7020.1 | O68: 492200
A69: 54 | B69: 2022-12-28 | C69: 7111.600098 | D69: 7124 | E69: 7069 | F69: 7086.399902 | G69: 427500 | H69: 7086.399902 | I69: 1 | J69: 1 | K69: 7111.6 | L69: 7124 | M69: 7069 | N69: 7086.4 | O69: 427500
A70: 55 | B70: 2022-12-23 | C70: 7152.5 | D70: 7152.5 | E70: 7062.899902 | F70: 7107.700195 | G70: 398000 | H70: 7107.700195 | I70: 1 | J70: 1 | K70: 7152.5 | L70: 7152.5 | M70: 7062.9 | N70: 7107.7 | O70: 398000
A71: 56 | B71: 2022-12-22 | C71: 7119.399902 | D71: 7167.200195 | E71: 7119 | F71: 7152.5 | G71: 593900 | H71: 7152.5 | I71: 1 | J71: 1 | K71: 7119.4 | L71: 7167.2 | M71: 7119 | N71: 7152.5 | O71: 593900
A72: 57 | B72: 2022-12-21 | C72: 7045 | D72: 7139.100098 | E72: 7043.799805 | F72: 7115.100098 | G72: 658500 | H72: 7115.100098 | I72: 1 | J72: 1 | K72: 7045 | L72: 7139.1 | M72: 7043.8 | N72: 7115.1 | O72: 658500
A73: 58 | B73: 2022-12-20 | C73: 7121 | D73: 7124.399902 | E73: 7019.5 | F73: 7024.299805 | G73: 681300 | H73: 7024.299805 | I73: 1 | J73: 1 | K73: 7121 | L73: 7124.4 | M73: 7019.5 | N73: 7024.3 | O73: 681300
A74: 59 | B74: 2022-12-19 | C74: 7144.399902 | D74: 7152.700195 | E74: 7123.100098 | F74: 7133.899902 | G74: 491300 | H74: 7133.899902 | I74: 1 | J74: 1 | K74: 7144.4 | L74: 7152.7 | M74: 7123.1 | N74: 7133.9 | O74: 491300
A75: 60 | B75: 2022-12-16 | C75: 7204.799805 | D75: 7204.799805 | E75: 7117.600098 | F75: 7148.700195 | G75: 1491200 | H75: 7148.700195 | I75: 1 | J75: 1 | K75: 7204.8 | L75: 7204.8 | M75: 7117.6 | N75: 7148.7 | O75: 1491200
A76: 61 | B76: 2022-12-15 | C76: 7242.100098 | D76: 7242.100098 | E76: 7202.600098 | F76: 7204.799805 | G76: 915600 | H76: 7204.799805 | I76: 1 | J76: 1 | K76: 7242.1 | L76: 7242.1 | M76: 7202.6 | N76: 7204.8 | O76: 915600
A77: 62 | B77: 2022-12-14 | C77: 7208.200195 | D77: 7253.5 | E77: 7205.799805 | F77: 7251.299805 | G77: 731000 | H77: 7251.299805 | I77: 1 | J77: 1 | K77: 7208.2 | L77: 7253.5 | M77: 7205.8 | N77: 7251.3 | O77: 731000
A78: 63 | B78: 2022-12-13 | C78: 7192.5 | D78: 7228.100098 | E78: 7190.200195 | F78: 7203.299805 | G78: 641300 | H78: 7203.299805 | I78: 1 | J78: 1 | K78: 7192.5 | L78: 7228.1 | M78: 7190.2 | N78: 7203.3 | O78: 641300
A79: 64 | B79: 2022-12-12 | C79: 7199.799805 | D79: 7201.299805 | E79: 7156.5 | F79: 7180.799805 | G79: 608400 | H79: 7180.799805 | I79: 1 | J79: 1 | K79: 7199.8 | L79: 7201.3 | M79: 7156.5 | N79: 7180.8 | O79: 608400
A80: 65 | B80: 2022-12-09 | C80: 7186.299805 | D80: 7217.799805 | E80: 7184.100098 | F80: 7213.200195 | G80: 716500 | H80: 7213.200195 | I80: 1 | J80: 1 | K80: 7186.3 | L80: 7217.8 | M80: 7184.1 | N80: 7213.2 | O80: 716500
A81: 66 | B81: 2022-12-08 | C81: 7225.399902 | D81: 7227.5 | E81: 7170 | F81: 7175.5 | G81: 833800 | H81: 7175.5 | I81: =IF(F81=0,1,H81/F81) -> 1 | J81: =INDEX(OFFSET($T$15,0,0,$S$13+1,1),MATCH(B81,OFFSET($Q$15,0,0,$S$13+1,1),-1)) -> 1 | K81: =ROUND($I81*C81,2) -> 7225.4 | L81: =ROUND($I81*D81,2) -> 7227.5 | M81: =ROUND($I81*E81,2) -> 7170 | N81: =ROUND($I81*F81,2) -> 7175.5 | O81: =G81*J81 -> 833800
A82: 67 | B82: 2022-12-07 | C82: 7289.899902 | D82: 7289.899902 | E82: 7220.600098 | F82: 7229.399902 | G82: 813400 | H82: 7229.399902 | I82: 1 | J82: 1 | K82: 7289.9 | L82: 7289.9 | M82: 7220.6 | N82: 7229.4 | O82: 813400
A83: 68 | B83: 2022-12-06 | C83: 7315.600098 | D83: 7321.100098 | E83: 7283 | F83: 7291.299805 | G83: 700900 | H83: 7291.299805 | I83: 1 | J83: 1 | K83: 7315.6 | L83: 7321.1 | M83: 7283 | N83: 7291.3 | O83: 700900
A84: 69 | B84: 2022-12-05 | C84: 7316.799805 | D84: 7351 | E84: 7303.899902 | F84: 7325.600098 | G84: 650300 | H84: 7325.600098 | I84: 1 | J84: 1 | K84: 7316.8 | L84: 7351 | M84: 7303.9 | N84: 7325.6 | O84: 650300
A85: 70 | B85: 2022-12-02 | C85: 7342.600098 | D85: 7349 | E85: 7292.799805 | F85: 7301.5 | G85: 716400 | H85: 7301.5 | I85: 1 | J85: 1 | K85: 7342.6 | L85: 7349 | M85: 7292.8 | N85: 7301.5 | O85: 716400
A86: 71 | B86: 2022-12-01 | C86: 7306 | D86: 7375.200195 | E86: 7305.700195 | F86: 7354.399902 | G86: 715000 | H86: 7354.399902 | I86: 1 | J86: 1 | K86: 7306 | L86: 7375.2 | M86: 7305.7 | N86: 7354.4 | O86: 715000
A87: 72 | B87: 2022-11-30 | C87: 7256.5 | D87: 7293.700195 | E87: 7222.299805 | F87: 7284.200195 | G87: 1846100 | H87: 7284.200195 | I87: 1 | J87: 1 | K87: 7256.5 | L87: 7293.7 | M87: 7222.3 | N87: 7284.2 | O87: 1846100
A88: 73 | B88: 2022-11-29 | C88: 7231.899902 | D88: 7253.600098 | E88: 7200.899902 | F88: 7253.299805 | G88: 680000 | H88: 7253.299805 | I88: 1 | J88: 1 | K88: 7231.9 | L88: 7253.6 | M88: 7200.9 | N88: 7253.3 | O88: 680000
A89: 74 | B89: 2022-11-28 | C89: 7247.399902 | D89: 7247.399902 | E89: 7216 | F89: 7229.100098 | G89: 699800 | H89: 7229.100098 | I89: 1 | J89: 1 | K89: 7247.4 | L89: 7247.4 | M89: 7216 | N89: 7229.1 | O89: 699800
A90: 75 | B90: 2022-11-25 | C90: 7239.399902 | D90: 7268.5 | E90: 7239.399902 | F90: 7259.5 | G90: 552100 | H90: 7259.5 | I90: 1 | J90: 1 | K90: 7239.4 | L90: 7268.5 | M90: 7239.4 | N90: 7259.5 | O90: 552100
A91: 76 | B91: 2022-11-24 | C91: 7231.799805 | D91: 7264.600098 | E91: 7231.799805 | F91: 7241.799805 | G91: 593800 | H91: 7241.799805 | I91: 1 | J91: 1 | K91: 7231.8 | L91: 7264.6 | M91: 7231.8 | N91: 7241.8 | O91: 593800
A92: 77 | B92: 2022-11-23 | C92: 7231.799805 | D92: 7250.700195 | E92: 7231.799805 | F92: 7247.399902 | G92: 68600 | H92: 7247.399902 | I92: 1 | J92: 1 | K92: 7231.8 | L92: 7250.7 | M92: 7231.8 | N92: 7247.4 | O92: 68600
A93: 78 | B93: 2022-11-22 | C93: 7139.299805 | D93: 7194.100098 | E93: 7139.299805 | F93: 7181.299805 | G93: 677000 | H93: 7181.299805 | I93: 1 | J93: 1 | K93: 7139.3 | L93: 7194.1 | M93: 7139.3 | N93: 7181.3 | O93: 677000
A94: 79 | B94: 2022-11-21 | C94: 7151.799805 | D94: 7174.399902 | E94: 7131.700195 | F94: 7139.299805 | G94: 598600 | H94: 7139.299805 | I94: 1 | J94: 1 | K94: 7151.8 | L94: 7174.4 | M94: 7131.7 | N94: 7139.3 | O94: 598600
A95: 80 | B95: 2022-11-18 | C95: 7138.299805 | D95: 7166.200195 | E95: 7137.700195 | F95: 7151.799805 | G95: 762700 | H95: 7151.799805 | I95: 1 | J95: 1 | K95: 7138.3 | L95: 7166.2 | M95: 7137.7 | N95: 7151.8 | O95: 762700
A96: 81 | B96: 2022-11-17 | C96: 7107.100098 | D96: 7146.899902 | E96: 7107 | F96: 7135.700195 | G96: 744900 | H96: 7135.700195 | I96: 1 | J96: 1 | K96: 7107.1 | L96: 7146.9 | M96: 7107 | N96: 7135.7 | O96: 744900
A97: 82 | B97: 2022-11-16 | C97: 7142.299805 | D97: 7142.5 | E97: 7102.899902 | F97: 7122.200195 | G97: 742800 | H97: 7122.200195 | I97: 1 | J97: 1 | K97: 7142.3 | L97: 7142.5 | M97: 7102.9 | N97: 7122.2 | O97: 742800
A98: 83 | B98: 2022-11-15 | C98: 7133.5 | D98: 7144 | E98: 7114.200195 | F98: 7141.600098 | G98: 937500 | H98: 7141.600098 | I98: 1 | J98: 1 | K98: 7133.5 | L98: 7144 | M98: 7114.2 | N98: 7141.6 | O98: 937500
A99: 84 | B99: 2022-11-14 | C99: 7183.200195 | D99: 7196.5 | E99: 7146.299805 | F99: 7146.299805 | G99: 978100 | H99: 7146.299805 | I99: 1 | J99: 1 | K99: 7183.2 | L99: 7196.5 | M99: 7146.3 | N99: 7146.3 | O99: 978100
A100: 85 | B100: 2022-11-11 | C100: 7000.100098 | D100: 7170.600098 | E100: 6997.799805 | F100: 7158 | G100: 1162600 | H100: 7158 | I100: 1 | J100: 1 | K100: 7000.1 | L100: 7170.6 | M100: 6997.8 | N100: 7158 | O100: 1162600
A101: 86 | B101: 2022-11-10 | C101: 6986 | D101: 6988.100098 | E101: 6954.5 | F101: 6964 | G101: 733000 | H101: 6964 | I101: 1 | J101: 1 | K101: 6986 | L101: 6988.1 | M101: 6954.5 | N101: 6964 | O101: 733000
A102: 87 | B102: 2022-11-09 | C102: 6969.299805 | D102: 7012.399902 | E102: 6967.899902 | F102: 6999.299805 | G102: 775500 | H102: 6999.299805 | I102: 1 | J102: 1 | K102: 6969.3 | L102: 7012.4 | M102: 6967.9 | N102: 6999.3 | O102: 775500
A103: 88 | B103: 2022-11-08 | C103: 6939.600098 | D103: 6968 | E103: 6939.600098 | F103: 6958.899902 | G103: 713000 | H103: 6958.899902 | I103: 1 | J103: 1 | K103: 6939.6 | L103: 6968 | M103: 6939.6 | N103: 6958.9 | O103: 713000
A104: 89 | B104: 2022-11-07 | C104: 6917.100098 | D104: 6943.399902 | E104: 6907.700195 | F104: 6933.700195 | G104: 688800 | H104: 6933.700195 | I104: 1 | J104: 1 | K104: 6917.1 | L104: 6943.4 | M104: 6907.7 | N104: 6933.7 | O104: 688800
A105: 90 | B105: 2022-11-04 | C105: 6860.600098 | D105: 6895 | E105: 6829.600098 | F105: 6892.5 | G105: 665500 | H105: 6892.5 | I105: 1 | J105: 1 | K105: 6860.6 | L105: 6895 | M105: 6829.6 | N105: 6892.5 | O105: 665500
A106: 91 | B106: 2022-11-03 | C106: 6953.100098 | D106: 6953.100098 | E106: 6823 | F106: 6857.899902 | G106: 694100 | H106: 6857.899902 | I106: 1 | J106: 1 | K106: 6953.1 | L106: 6953.1 | M106: 6823 | N106: 6857.9 | O106: 694100
A107: 92 | B107: 2022-11-02 | C107: 6980.799805 | D107: 7011.700195 | E107: 6978.799805 | F107: 6986.700195 | G107: 819400 | H107: 6986.700195 | I107: 1 | J107: 1 | K107: 6980.8 | L107: 7011.7 | M107: 6978.8 | N107: 6986.7 | O107: 819400
A108: 93 | B108: 2022-11-01 | C108: 6866.5 | D108: 6976.899902 | E108: 6858.200195 | F108: 6976.899902 | G108: 701300 | H108: 6976.899902 | I108: 1 | J108: 1 | K108: 6866.5 | L108: 6976.9 | M108: 6858.2 | N108: 6976.9 | O108: 701300
A109: 94 | B109: 2022-10-31 | C109: 6786.700195 | D109: 6869.200195 | E109: 6786.700195 | F109: 6863.5 | G109: 1019200 | H109: 6863.5 | I109: 1 | J109: 1 | K109: 6786.7 | L109: 6869.2 | M109: 6786.7 | N109: 6863.5 | O109: 1019200
A110: 95 | B110: 2022-10-28 | C110: 6827 | D110: 6827 | E110: 6776 | F110: 6785.700195 | G110: 784100 | H110: 6785.700195 | I110: 1 | J110: 1 | K110: 6827 | L110: 6827 | M110: 6776 | N110: 6785.7 | O110: 784100
A111: 96 | B111: 2022-10-27 | C111: 6829.600098 | D111: 6873.799805 | E111: 6824.299805 | F111: 6845.100098 | G111: 779800 | H111: 6845.100098 | I111: 1 | J111: 1 | K111: 6829.6 | L111: 6873.8 | M111: 6824.3 | N111: 6845.1 | O111: 779800
A112: 97 | B112: 2022-10-26 | C112: 6809 | D112: 6843.200195 | E112: 6800.799805 | F112: 6810.899902 | G112: 821000 | H112: 6810.899902 | I112: 1 | J112: 1 | K112: 6809 | L112: 6843.2 | M112: 6800.8 | N112: 6810.9 | O112: 821000
A113: 98 | B113: 2022-10-25 | C113: 6780.399902 | D113: 6831.299805 | E113: 6780.399902 | F113: 6798.600098 | G113: 751900 | H113: 6798.600098 | I113: 1 | J113: 1 | K113: 6780.4 | L113: 6831.3 | M113: 6780.4 | N113: 6798.6 | O113: 751900
A114: 99 | B114: 2022-10-24 | C114: 6716.5 | D114: 6823.299805 | E114: 6716.5 | F114: 6779.399902 | G114: 683000 | H114: 6779.399902 | I114: 1 | J114: 1 | K114: 6716.5 | L114: 6823.3 | M114: 6716.5 | N114: 6779.4 | O114: 683000
A115: 100 | B115: 2022-10-21 | C115: 6726.600098 | D115: 6726.600098 | E115: 6667.600098 | F115: 6676.799805 | G115: 741700 | H115: 6676.799805 | I115: 1 | J115: 1 | K115: 6726.6 | L115: 6726.6 | M115: 6667.6 | N115: 6676.8 | O115: 741700
A116: 101 | B116: 2022-10-20 | C116: 6783.299805 | D116: 6783.299805 | E116: 6702.100098 | F116: 6730.700195 | G116: 901000 | H116: 6730.700195 | I116: 1 | J116: 1 | K116: 6783.3 | L116: 6783.3 | M116: 6702.1 | N116: 6730.7 | O116: 901000
A117: 102 | B117: 2022-10-19 | C117: 6778.399902 | D117: 6822.200195 | E117: 6777.5 | F117: 6800.100098 | G117: 745600 | H117: 6800.100098 | I117: 1 | J117: 1 | K117: 6778.4 | L117: 6822.2 | M117: 6777.5 | N117: 6800.1 | O117: 745600
A118: 103 | B118: 2022-10-18 | C118: 6685.299805 | D118: 6790.700195 | E118: 6685.299805 | F118: 6779.200195 | G118: 833600 | H118: 6779.200195 | I118: 1 | J118: 1 | K118: 6685.3 | L118: 6790.7 | M118: 6685.3 | N118: 6779.2 | O118: 833600
A119: 104 | B119: 2022-10-17 | C119: 6758.899902 | D119: 6758.899902 | E119: 6645.200195 | F119: 6664.399902 | G119: 712300 | H119: 6664.399902 | I119: 1 | J119: 1 | K119: 6758.9 | L119: 6758.9 | M119: 6645.2 | N119: 6664.4 | O119: 712300
A120: 105 | B120: 2022-10-14 | C120: 6668.600098 | D120: 6772.600098 | E120: 6667.799805 | F120: 6758.799805 | G120: 663900 | H120: 6758.799805 | I120: 1 | J120: 1 | K120: 6668.6 | L120: 6772.6 | M120: 6667.8 | N120: 6758.8 | O120: 663900
A121: 106 | B121: 2022-10-13 | C121: 6641.899902 | D121: 6683.700195 | E121: 6638.899902 | F121: 6642.600098 | G121: 710100 | H121: 6642.600098 | I121: 1 | J121: 1 | K121: 6641.9 | L121: 6683.7 | M121: 6638.9 | N121: 6642.6 | O121: 710100
A122: 107 | B122: 2022-10-12 | C122: 6647.799805 | D122: 6672 | E122: 6633 | F122: 6647.5 | G122: 723700 | H122: 6647.5 | I122: 1 | J122: 1 | K122: 6647.8 | L122: 6672 | M122: 6633 | N122: 6647.5 | O122: 723700
A123: 108 | B123: 2022-10-11 | C123: 6685.5 | D123: 6712.5 | E123: 6645 | F123: 6645 | G123: 747400 | H123: 6645 | I123: 1 | J123: 1 | K123: 6685.5 | L123: 6712.5 | M123: 6645 | N123: 6645 | O123: 747400
A124: 109 | B124: 2022-10-10 | C124: 6750.299805 | D124: 6750.299805 | E124: 6646.799805 | F124: 6667.799805 | G124: 600800 | H124: 6667.799805 | I124: 1 | J124: 1 | K124: 6750.3 | L124: 6750.3 | M124: 6646.8 | N124: 6667.8 | O124: 600800
A125: 110 | B125: 2022-10-07 | C125: 6805.100098 | D125: 6806.399902 | E125: 6762.700195 | F125: 6762.799805 | G125: 689000 | H125: 6762.799805 | I125: 1 | J125: 1 | K125: 6805.1 | L125: 6806.4 | M125: 6762.7 | N125: 6762.8 | O125: 689000
A126: 111 | B126: 2022-10-06 | C126: 6815.600098 | D126: 6828.299805 | E126: 6787.399902 | F126: 6817.5 | G126: 810300 | H126: 6817.5 | I126: 1 | J126: 1 | K126: 6815.6 | L126: 6828.3 | M126: 6787.4 | N126: 6817.5 | O126: 810300
A127: 112 | B127: 2022-10-05 | C127: 6719.600098 | D127: 6819.700195 | E127: 6719.399902 | F127: 6815.700195 | G127: 1063300 | H127: 6815.700195 | I127: 1 | J127: 1 | K127: 6719.6 | L127: 6819.7 | M127: 6719.4 | N127: 6815.7 | O127: 1063300
A128: 113 | B128: 2022-10-04 | C128: 6486.5 | D128: 6699.299805 | E128: 6486.5 | F128: 6699.299805 | G128: 1010500 | H128: 6699.299805 | I128: 1 | J128: 1 | K128: 6486.5 | L128: 6699.3 | M128: 6486.5 | N128: 6699.3 | O128: 1010500
A129: 114 | B129: 2022-10-03 | C129: 6485.600098 | D129: 6503.5 | E129: 6411.899902 | F129: 6456.899902 | G129: 647000 | H129: 6456.899902 | I129: 1 | J129: 1 | K129: 6485.6 | L129: 6503.5 | M129: 6411.9 | N129: 6456.9 | O129: 647000
A130: 115 | B130: 2022-09-30 | C130: 6563.200195 | D130: 6563.200195 | E130: 6460.600098 | F130: 6474.200195 | G130: 1008100 | H130: 6474.200195 | I130: 1 | J130: 1 | K130: 6563.2 | L130: 6563.2 | M130: 6460.6 | N130: 6474.2 | O130: 1008100
A131: 116 | B131: 2022-09-29 | C131: 6488.399902 | D131: 6594.700195 | E131: 6488.399902 | F131: 6555 | G131: 846900 | H131: 6555 | I131: 1 | J131: 1 | K131: 6488.4 | L131: 6594.7 | M131: 6488.4 | N131: 6555 | O131: 846900
A132: 117 | B132: 2022-09-28 | C132: 6510.600098 | D132: 6516.5 | E132: 6433.100098 | F132: 6462 | G132: 973100 | H132: 6462 | I132: 1 | J132: 1 | K132: 6510.6 | L132: 6516.5 | M132: 6433.1 | N132: 6462 | O132: 973100
A133: 118 | B133: 2022-09-27 | C133: 6483 | D133: 6509.5 | E133: 6472.5 | F133: 6496.200195 | G133: 1006700 | H133: 6496.200195 | I133: 1 | J133: 1 | K133: 6483 | L133: 6509.5 | M133: 6472.5 | N133: 6496.2 | O133: 1006700
A134: 119 | B134: 2022-09-26 | C134: 6541.5 | D134: 6544.600098 | E134: 6435.600098 | F134: 6469.399902 | G134: 1093300 | H134: 6469.399902 | I134: 1 | J134: 1 | K134: 6541.5 | L134: 6544.6 | M134: 6435.6 | N134: 6469.4 | O134: 1093300
A135: 120 | B135: 2022-09-23 | C135: 6707.299805 | D135: 6709 | E135: 6544.899902 | F135: 6574.700195 | G135: 908200 | H135: 6574.700195 | I135: 1 | J135: 1 | K135: 6707.3 | L135: 6709 | M135: 6544.9 | N135: 6574.7 | O135: 908200
A136: 121 | B136: 2022-09-21 | C136: 6786.600098 | D136: 6786.600098 | E136: 6695 | F136: 6700.200195 | G136: 832400 | H136: 6700.200195 | I136: 1 | J136: 1 | K136: 6786.6 | L136: 6786.6 | M136: 6695 | N136: 6700.2 | O136: 832400
A137: 122 | B137: 2022-09-20 | C137: 6743.799805 | D137: 6808.299805 | E137: 6740.799805 | F137: 6806.399902 | G137: 667600 | H137: 6806.399902 | I137: 1 | J137: 1 | K137: 6743.8 | L137: 6808.3 | M137: 6740.8 | N137: 6806.4 | O137: 667600
A138: 123 | B138: 2022-09-19 | C138: 6738.299805 | D138: 6753.899902 | E138: 6714.700195 | F138: 6719.899902 | G138: 767500 | H138: 6719.899902 | I138: 1 | J138: 1 | K138: 6738.3 | L138: 6753.9 | M138: 6714.7 | N138: 6719.9 | O138: 767500
A139: 124 | B139: 2022-09-16 | C139: 6825.100098 | D139: 6825.700195 | E139: 6736.299805 | F139: 6739.100098 | G139: 1736200 | H139: 6739.100098 | I139: 1 | J139: 1 | K139: 6825.1 | L139: 6825.7 | M139: 6736.3 | N139: 6739.1 | O139: 1736200
A140: 125 | B140: 2022-09-15 | C140: 6831 | D140: 6878.100098 | E140: 6831 | F140: 6842.899902 | G140: 942000 | H140: 6842.899902 | I140: 1 | J140: 1 | K140: 6831 | L140: 6878.1 | M140: 6831 | N140: 6842.9 | O140: 942000
A141: 126 | B141: 2022-09-14 | C141: 7008.200195 | D141: 7008.200195 | E141: 6808.600098 | F141: 6828.600098 | G141: 1609400 | H141: 6828.600098 | I141: 1 | J141: 1 | K141: 7008.2 | L141: 7008.2 | M141: 6808.6 | N141: 6828.6 | O141: 1609400
A142: 127 | B142: 2022-09-13 | C142: 6974.700195 | D142: 7015.200195 | E142: 6974 | F142: 7009.700195 | G142: 784500 | H142: 7009.700195 | I142: 1 | J142: 1 | K142: 6974.7 | L142: 7015.2 | M142: 6974 | N142: 7009.7 | O142: 784500
A143: 128 | B143: 2022-09-12 | C143: 6923.899902 | D143: 6974.899902 | E143: 6922 | F143: 6964.5 | G143: 582100 | H143: 6964.5 | I143: 1 | J143: 1 | K143: 6923.9 | L143: 6974.9 | M143: 6922 | N143: 6964.5 | O143: 582100
A144: 129 | B144: 2022-09-09 | C144: 6858.799805 | D144: 6898.5 | E144: 6853.200195 | F144: 6894.200195 | G144: 809500 | H144: 6894.200195 | I144: 1 | J144: 1 | K144: 6858.8 | L144: 6898.5 | M144: 6853.2 | N144: 6894.2 | O144: 809500
A145: 130 | B145: 2022-09-08 | C145: 6731.600098 | D145: 6848.700195 | E145: 6731.600098 | F145: 6848.700195 | G145: 799100 | H145: 6848.700195 | I145: =IF(F145=0,1,H145/F145) -> 1 | J145: =INDEX(OFFSET($T$15,0,0,$S$13+1,1),MATCH(B145,OFFSET($Q$15,0,0,$S$13+1,1),-1)) -> 1 | K145: =ROUND($I145*C145,2) -> 6731.6 | L145: =ROUND($I145*D145,2) -> 6848.7 | M145: =ROUND($I145*E145,2) -> 6731.6 | N145: =ROUND($I145*F145,2) -> 6848.7 | O145: =G145*J145 -> 799100
A146: 131 | B146: 2022-09-07 | C146: 6820.100098 | D146: 6821.200195 | E146: 6719.600098 | F146: 6729.299805 | G146: 872600 | H146: 6729.299805 | I146: 1 | J146: 1 | K146: 6820.1 | L146: 6821.2 | M146: 6719.6 | N146: 6729.3 | O146: 872600
A147: 132 | B147: 2022-09-06 | C147: 6858 | D147: 6888.5 | E147: 6826.100098 | F147: 6826.5 | G147: 677200 | H147: 6826.5 | I147: 1 | J147: 1 | K147: 6858 | L147: 6888.5 | M147: 6826.1 | N147: 6826.5 | O147: 677200
A148: 133 | B148: 2022-09-05 | C148: 6828.700195 | D148: 6858 | E148: 6822.799805 | F148: 6852.200195 | G148: 563400 | H148: 6852.200195 | I148: 1 | J148: 1 | K148: 6828.7 | L148: 6858 | M148: 6822.8 | N148: 6852.2 | O148: 563400
A149: 134 | B149: 2022-09-02 | C149: 6827.100098 | D149: 6854.899902 | E149: 6820.5 | F149: 6828.700195 | G149: 632300 | H149: 6828.700195 | I149: 1 | J149: 1 | K149: 6827.1 | L149: 6854.9 | M149: 6820.5 | N149: 6828.7 | O149: 632300
A150: 135 | B150: 2022-09-01 | C150: 6924.899902 | D150: 6926.700195 | E150: 6836.5 | F150: 6845.600098 | G150: 825300 | H150: 6845.600098 | I150: 1 | J150: 1 | K150: 6924.9 | L150: 6926.7 | M150: 6836.5 | N150: 6845.6 | O150: 825300
A151: 136 | B151: 2022-08-31 | C151: 6971.399902 | D151: 6995 | E151: 6937.5 | F151: 6986.799805 | G151: 957000 | H151: 6986.799805 | I151: 1 | J151: 1 | K151: 6971.4 | L151: 6995 | M151: 6937.5 | N151: 6986.8 | O151: 957000
A152: 137 | B152: 2022-08-30 | C152: 6968.299805 | D152: 7020 | E152: 6967.600098 | F152: 6998.299805 | G152: 724000 | H152: 6998.299805 | I152: 1 | J152: 1 | K152: 6968.3 | L152: 7020 | M152: 6967.6 | N152: 6998.3 | O152: 724000
A153: 138 | B153: 2022-08-29 | C153: 7077.600098 | D153: 7079.100098 | E153: 6943.200195 | F153: 6965.5 | G153: 705300 | H153: 6965.5 | I153: 1 | J153: 1 | K153: 7077.6 | L153: 7079.1 | M153: 6943.2 | N153: 6965.5 | O153: 705300
A154: 139 | B154: 2022-08-26 | C154: 7060.799805 | D154: 7130 | E154: 7060.700195 | F154: 7104.100098 | G154: 658300 | H154: 7104.100098 | I154: 1 | J154: 1 | K154: 7060.8 | L154: 7130 | M154: 7060.7 | N154: 7104.1 | O154: 658300
A155: 140 | B155: 2022-08-25 | C155: 7000.5 | D155: 7057.700195 | E155: 6992 | F155: 7048.100098 | G155: 772200 | H155: 7048.100098 | I155: 1 | J155: 1 | K155: 7000.5 | L155: 7057.7 | M155: 6992 | N155: 7048.1 | O155: 772200
A156: 141 | B156: 2022-08-24 | C156: 6979.399902 | D156: 7013.700195 | E156: 6977.799805 | F156: 6998.100098 | G156: 754500 | H156: 6998.100098 | I156: 1 | J156: 1 | K156: 6979.4 | L156: 7013.7 | M156: 6977.8 | N156: 6998.1 | O156: 754500
A157: 142 | B157: 2022-08-23 | C157: 7049.5 | D157: 7049.5 | E157: 6961.799805 | F157: 6961.799805 | G157: 731400 | H157: 6961.799805 | I157: 1 | J157: 1 | K157: 7049.5 | L157: 7049.5 | M157: 6961.8 | N157: 6961.8 | O157: 731400
A158: 143 | B158: 2022-08-22 | C158: 7098.899902 | D158: 7098.899902 | E158: 7031.700195 | F158: 7046.899902 | G158: 658200 | H158: 7046.899902 | I158: 1 | J158: 1 | K158: 7098.9 | L158: 7098.9 | M158: 7031.7 | N158: 7046.9 | O158: 658200
A159: 144 | B159: 2022-08-19 | C159: 7115.600098 | D159: 7137.5 | E159: 7107.899902 | F159: 7114.5 | G159: 692200 | H159: 7114.5 | I159: 1 | J159: 1 | K159: 7115.6 | L159: 7137.5 | M159: 7107.9 | N159: 7114.5 | O159: 692200
A160: 145 | B160: 2022-08-18 | C160: 7118.700195 | D160: 7118.700195 | E160: 7081 | F160: 7112.799805 | G160: 739000 | H160: 7112.799805 | I160: 1 | J160: 1 | K160: 7118.7 | L160: 7118.7 | M160: 7081 | N160: 7112.8 | O160: 739000
A161: 146 | B161: 2022-08-17 | C161: 7122 | D161: 7130.5 | E161: 7082.899902 | F161: 7127.700195 | G161: 764000 | H161: 7127.700195 | I161: 1 | J161: 1 | K161: 7122 | L161: 7130.5 | M161: 7082.9 | N161: 7127.7 | O161: 764000
A162: 147 | B162: 2022-08-16 | C162: 7083 | D162: 7131.600098 | E162: 7083 | F162: 7105.399902 | G162: 663100 | H162: 7105.399902 | I162: 1 | J162: 1 | K162: 7083 | L162: 7131.6 | M162: 7083 | N162: 7105.4 | O162: 663100
A163: 148 | B163: 2022-08-15 | C163: 7041.299805 | D163: 7076 | E163: 7040.399902 | F163: 7064.299805 | G163: 585900 | H163: 7064.299805 | I163: 1 | J163: 1 | K163: 7041.3 | L163: 7076 | M163: 7040.4 | N163: 7064.3 | O163: 585900
A164: 149 | B164: 2022-08-12 | C164: 7065.899902 | D164: 7066.100098 | E164: 7012.100098 | F164: 7032.5 | G164: 647000 | H164: 7032.5 | I164: 1 | J164: 1 | K164: 7065.9 | L164: 7066.1 | M164: 7012.1 | N164: 7032.5 | O164: 647000
A165: 150 | B165: 2022-08-11 | C165: 7009.600098 | D165: 7077.100098 | E165: 7009.600098 | F165: 7071 | G165: 772600 | H165: 7071 | I165: 1 | J165: 1 | K165: 7009.6 | L165: 7077.1 | M165: 7009.6 | N165: 7071 | O165: 772600
A166: 151 | B166: 2022-08-10 | C166: 7029 | D166: 7029.700195 | E166: 6985.700195 | F166: 6992.700195 | G166: 698000 | H166: 6992.700195 | I166: 1 | J166: 1 | K166: 7029 | L166: 7029.7 | M166: 6985.7 | N166: 6992.7 | O166: 698000
A167: 152 | B167: 2022-08-09 | C167: 7012.799805 | D167: 7034.299805 | E167: 7012.799805 | F167: 7029.799805 | G167: 762600 | H167: 7029.799805 | I167: 1 | J167: 1 | K167: 7012.8 | L167: 7034.3 | M167: 7012.8 | N167: 7029.8 | O167: 762600
A168: 153 | B168: 2022-08-08 | C168: 7011.200195 | D168: 7025.899902 | E168: 6985.799805 | F168: 7020.600098 | G168: 687600 | H168: 7020.600098 | I168: 1 | J168: 1 | K168: 7011.2 | L168: 7025.9 | M168: 6985.8 | N168: 7020.6 | O168: 687600
A169: 154 | B169: 2022-08-05 | C169: 6972.399902 | D169: 7016.600098 | E169: 6969.600098 | F169: 7015.600098 | G169: 589200 | H169: 7015.600098 | I169: 1 | J169: 1 | K169: 6972.4 | L169: 7016.6 | M169: 6969.6 | N169: 7015.6 | O169: 589200
A170: 155 | B170: 2022-08-04 | C170: 6980.200195 | D170: 7021.100098 | E170: 6974.899902 | F170: 6974.899902 | G170: 704900 | H170: 6974.899902 | I170: 1 | J170: 1 | K170: 6980.2 | L170: 7021.1 | M170: 6974.9 | N170: 6974.9 | O170: 704900
A171: 156 | B171: 2022-08-03 | C171: 6988.200195 | D171: 6988.200195 | E171: 6918.200195 | F171: 6975.899902 | G171: 672500 | H171: 6975.899902 | I171: 1 | J171: 1 | K171: 6988.2 | L171: 6988.2 | M171: 6918.2 | N171: 6975.9 | O171: 672500
A172: 157 | B172: 2022-08-02 | C172: 6976.899902 | D172: 7003.799805 | E172: 6944.899902 | F172: 6998.100098 | G172: 625600 | H172: 6998.100098 | I172: 1 | J172: 1 | K172: 6976.9 | L172: 7003.8 | M172: 6944.9 | N172: 6998.1 | O172: 625600
A173: 158 | B173: 2022-08-01 | C173: 6951.299805 | D173: 6994.100098 | E173: 6947.299805 | F173: 6993 | G173: 668000 | H173: 6993 | I173: 1 | J173: 1 | K173: 6951.3 | L173: 6994.1 | M173: 6947.3 | N173: 6993 | O173: 668000
A174: 159 | B174: 2022-07-29 | C174: 6902.100098 | D174: 6973.600098 | E174: 6902.100098 | F174: 6945.200195 | G174: 919200 | H174: 6945.200195 | I174: 1 | J174: 1 | K174: 6902.1 | L174: 6973.6 | M174: 6902.1 | N174: 6945.2 | O174: 919200
A175: 160 | B175: 2022-07-28 | C175: 6833.200195 | D175: 6892.100098 | E175: 6833.200195 | F175: 6889.700195 | G175: 721200 | H175: 6889.700195 | I175: 1 | J175: 1 | K175: 6833.2 | L175: 6892.1 | M175: 6833.2 | N175: 6889.7 | O175: 721200
A176: 161 | B176: 2022-07-27 | C176: 6802.899902 | D176: 6833.399902 | E176: 6778.899902 | F176: 6823.200195 | G176: 626000 | H176: 6823.200195 | I176: 1 | J176: 1 | K176: 6802.9 | L176: 6833.4 | M176: 6778.9 | N176: 6823.2 | O176: 626000
A177: 162 | B177: 2022-07-26 | C177: 6801.799805 | D177: 6815 | E177: 6783.200195 | F177: 6807.299805 | G177: 619000 | H177: 6807.299805 | I177: 1 | J177: 1 | K177: 6801.8 | L177: 6815 | M177: 6783.2 | N177: 6807.3 | O177: 619000
A178: 163 | B178: 2022-07-25 | C178: 6788.899902 | D178: 6803 | E178: 6775.700195 | F178: 6789.899902 | G178: 594100 | H178: 6789.899902 | I178: 1 | J178: 1 | K178: 6788.9 | L178: 6803 | M178: 6775.7 | N178: 6789.9 | O178: 594100
A179: 164 | B179: 2022-07-22 | C179: 6790.899902 | D179: 6816.100098 | E179: 6758.5 | F179: 6791.5 | G179: 822100 | H179: 6791.5 | I179: 1 | J179: 1 | K179: 6790.9 | L179: 6816.1 | M179: 6758.5 | N179: 6791.5 | O179: 822100
A180: 165 | B180: 2022-07-21 | C180: 6764.399902 | D180: 6794.299805 | E180: 6743.899902 | F180: 6794.299805 | G180: 834500 | H180: 6794.299805 | I180: 1 | J180: 1 | K180: 6764.4 | L180: 6794.3 | M180: 6743.9 | N180: 6794.3 | O180: 834500
A181: 166 | B181: 2022-07-20 | C181: 6662 | D181: 6775.399902 | E181: 6661.799805 | F181: 6759.200195 | G181: 746000 | H181: 6759.200195 | I181: 1 | J181: 1 | K181: 6662 | L181: 6775.4 | M181: 6661.8 | N181: 6759.2 | O181: 746000
A182: 167 | B182: 2022-07-19 | C182: 6691.200195 | D182: 6696.100098 | E182: 6639.600098 | F182: 6649.600098 | G182: 659200 | H182: 6649.600098 | I182: 1 | J182: 1 | K182: 6691.2 | L182: 6696.1 | M182: 6639.6 | N182: 6649.6 | O182: 659200
A183: 168 | B183: 2022-07-18 | C183: 6613.5 | D183: 6687.100098 | E183: 6612.799805 | F183: 6687.100098 | G183: 528400 | H183: 6687.100098 | I183: 1 | J183: 1 | K183: 6613.5 | L183: 6687.1 | M183: 6612.8 | N183: 6687.1 | O183: 528400
A184: 169 | B184: 2022-07-15 | C184: 6622.100098 | D184: 6622.200195 | E184: 6537.200195 | F184: 6605.600098 | G184: 629800 | H184: 6605.600098 | I184: 1 | J184: 1 | K184: 6622.1 | L184: 6622.2 | M184: 6537.2 | N184: 6605.6 | O184: 629800
A185: 170 | B185: 2022-07-14 | C185: 6623 | D185: 6659.299805 | E185: 6611.700195 | F185: 6650.600098 | G185: 735800 | H185: 6650.600098 | I185: 1 | J185: 1 | K185: 6623 | L185: 6659.3 | M185: 6611.7 | N185: 6650.6 | O185: 735800
A186: 171 | B186: 2022-07-13 | C186: 6595.100098 | D186: 6621.600098 | E186: 6584.100098 | F186: 6621.600098 | G186: 673200 | H186: 6621.600098 | I186: 1 | J186: 1 | K186: 6595.1 | L186: 6621.6 | M186: 6584.1 | N186: 6621.6 | O186: 673200
A187: 172 | B187: 2022-07-12 | C187: 6612.399902 | D187: 6649.700195 | E187: 6601.899902 | F187: 6606.299805 | G187: 618600 | H187: 6606.299805 | I187: 1 | J187: 1 | K187: 6612.4 | L187: 6649.7 | M187: 6601.9 | N187: 6606.3 | O187: 618600
A188: 173 | B188: 2022-07-11 | C188: 6664.700195 | D188: 6674.399902 | E188: 6602.200195 | F188: 6602.200195 | G188: 551900 | H188: 6602.200195 | I188: 1 | J188: 1 | K188: 6664.7 | L188: 6674.4 | M188: 6602.2 | N188: 6602.2 | O188: 551900
A189: 174 | B189: 2022-07-08 | C189: 6671 | D189: 6715 | E189: 6671 | F189: 6678 | G189: 586400 | H189: 6678 | I189: 1 | J189: 1 | K189: 6671 | L189: 6715 | M189: 6671 | N189: 6678 | O189: 586400
A190: 175 | B190: 2022-07-07 | C190: 6607.600098 | D190: 6648 | E190: 6594.5 | F190: 6648 | G190: 700500 | H190: 6648 | I190: 1 | J190: 1 | K190: 6607.6 | L190: 6648 | M190: 6594.5 | N190: 6648 | O190: 700500
A191: 176 | B191: 2022-07-06 | C191: 6606.600098 | D191: 6651.600098 | E191: 6587.899902 | F191: 6594.5 | G191: 752400 | H191: 6594.5 | I191: 1 | J191: 1 | K191: 6606.6 | L191: 6651.6 | M191: 6587.9 | N191: 6594.5 | O191: 752400
A192: 177 | B192: 2022-07-05 | C192: 6618.700195 | D192: 6657 | E192: 6596.799805 | F192: 6629.299805 | G192: 532900 | H192: 6629.299805 | I192: 1 | J192: 1 | K192: 6618.7 | L192: 6657 | M192: 6596.8 | N192: 6629.3 | O192: 532900
A193: 178 | B193: 2022-07-04 | C193: 6545 | D193: 6659 | E193: 6544.5 | F193: 6612.600098 | G193: 574600 | H193: 6612.600098 | I193: 1 | J193: 1 | K193: 6545 | L193: 6659 | M193: 6544.5 | N193: 6612.6 | O193: 574600
A194: 179 | B194: 2022-07-01 | C194: 6567.299805 | D194: 6623.899902 | E194: 6539.899902 | F194: 6539.899902 | G194: 633400 | H194: 6539.899902 | I194: 1 | J194: 1 | K194: 6567.3 | L194: 6623.9 | M194: 6539.9 | N194: 6539.9 | O194: 633400
A195: 180 | B195: 2022-06-30 | C195: 6685.100098 | D195: 6685.100098 | E195: 6568.100098 | F195: 6568.100098 | G195: 880800 | H195: 6568.100098 | I195: 1 | J195: 1 | K195: 6685.1 | L195: 6685.1 | M195: 6568.1 | N195: 6568.1 | O195: 880800
A196: 181 | B196: 2022-06-29 | C196: 6748.100098 | D196: 6750.299805 | E196: 6666.399902 | F196: 6700.200195 | G196: 789100 | H196: 6700.200195 | I196: 1 | J196: 1 | K196: 6748.1 | L196: 6750.3 | M196: 6666.4 | N196: 6700.2 | O196: 789100
A197: 182 | B197: 2022-06-28 | C197: 6712.200195 | D197: 6763.600098 | E197: 6709 | F197: 6763.600098 | G197: 754500 | H197: 6763.600098 | I197: 1 | J197: 1 | K197: 6712.2 | L197: 6763.6 | M197: 6709 | N197: 6763.6 | O197: 754500
A198: 183 | B198: 2022-06-27 | C198: 6603.600098 | D198: 6716.100098 | E198: 6603.600098 | F198: 6706 | G198: 897200 | H198: 6706 | I198: 1 | J198: 1 | K198: 6603.6 | L198: 6716.1 | M198: 6603.6 | N198: 6706 | O198: 897200
A199: 184 | B199: 2022-06-24 | C199: 6517.700195 | D199: 6585.100098 | E199: 6501.600098 | F199: 6578.700195 | G199: 829300 | H199: 6578.700195 | I199: 1 | J199: 1 | K199: 6517.7 | L199: 6585.1 | M199: 6501.6 | N199: 6578.7 | O199: 829300
A200: 185 | B200: 2022-06-23 | C200: 6495.100098 | D200: 6551.799805 | E200: 6495 | F200: 6528.399902 | G200: 906100 | H200: 6528.399902 | I200: 1 | J200: 1 | K200: 6495.1 | L200: 6551.8 | M200: 6495 | N200: 6528.4 | O200: 906100
... 4300 more rows

Sheet CalculationsAndCharts
A1: CongAdaptiveMovingAverage.xlsm | D1: (CAMA)
A2: =InputPriceData!A1 -> S&P/ASX 200 (^AXJO) -ASX (Daily)
A4: User Charting Controls | E4: Click to Shift Chart One Bar:
A5: Data Control | C5: TRUE
A6: =InputPriceData!$B$10 -> 7731 | B6: Available Input Data Rows | E6: Earliest: | F6: =OFFSET(InputPriceData!B15,CalculationsAndCharts!A6,0,1,1) -> 1992-11-23
A7: =MAX(A33:A56896) -> 1250 | B7: Available Calculation Rows | E7: Latest: | F7: =OFFSET(InputPriceData!B15,1,0,1,1) -> 2023-03-15
A8: =MIN(AvailableInputRows-DataPanRows,A7) -> 1250 | B8: Logically Available for Calc / Plot | E8: $ Change: | F8: =G33-G34 -> -34.3
A10: Historical Price Windowing Specifications | F10: Click to Shift
A11: 67 | B11: Input Data Offset (Pan) | F11: Points to Plot
A12: 168 | B12: Data Points to Plot (Zoom)
B13: First: | C13: =OFFSET(B32,A12,0,1,1) -> 2022-04-08
B14: ="Last: " & IF(OFFSET(InputPriceData!P15,1+A11,0,1,1)="","",TEXT(OFFSET(InputPriceData!P15,1+A11,0,1,1),"H:MM AM/PM")) -> Last: | C14: =B33 -> 2022-12-06
A15: User Controls
E16: Look Back | F16: Alpha
E17: 20 | F17: =2/(E17+1) -> 0.09523809524
E18: 30 | F18: =2/(E18+1) -> 0.06451612903
E19: 40 | F19: =2/(E19+1) -> 0.0487804878
A25: Help! I would like to plot data
A26: From | B26: 2022-04-08 | C26: =OFFSET(InputPriceData!$A$15,MATCH(B26,OFFSET(InputPriceData!B15,1,0,InputPriceData!$B$10,1),0),0,1,1)-C27 -> 168 | E26: 3
A27: To | B27: 2022-12-06 | C27: =OFFSET(InputPriceData!$A$15,MATCH(B27,OFFSET(InputPriceData!$B$15,1,0,InputPriceData!$B$10,1),0),0,1,1)-1 -> 67 | E27: =$A$12-$E$26+1 -> 166
H28: Value @ Cursor => | I28: =OFFSET(A32,$E$27,0,1,1)&"(RR)" -> 166(RR) | J28: =OFFSET($B$32,E27,0,1,1) -> 2022-04-12 | K28: =TEXT(OFFSET(D32,$E$27,0,1,1),"#,##0.00")&"(o)" -> 7,474.60(o) | L28: =TEXT(OFFSET(E32,$E$27,0,1,1),"#,##0.00")&"(h)" -> 7,484.00(h) | M28: =TEXT(OFFSET(F32,$E$27,0,1,1),"#,##0.00")&"(l)" -> 7,430.80(l) | N28: =TEXT(OFFSET(G32,$E$27,0,1,1),"#,##0.00")&"(c)" -> 7,454.00(c) | O28: =TEXT(OFFSET(C32,$E$27,0,1,1),"#,##0.00,,""M""")&"(v)" -> 0.58M(v)
E29: Cursor ==> | BE29: Work Area For Chart Cursors
B30: =LogicallyAvailableRows -> 1250 | C30: <== Calculation Rel Row Limits ==> | H30: =B30-1 -> 1249 | I30: =$H$30-$E$17+1 -> 1230 | L30: =$E$17&" Period Look Back Calculations" -> 20 Period Look Back Calculations | S30: =$H$30-$E$18+1 -> 1220 | V30: =$E$18&" Period Look Back Calculations" -> 30 Period Look Back Calculations | AC30: =$H$30-$E$19+1 -> 1210 | AF30: =$E$19&" Period Look Back Calculations" -> 40 Period Look Back Calculations
A31: Rel Row | I31: ="Effort("&$E$17&")" -> Effort(20) | J31: ="Price Disp.("&$E$17&")" -> Price Disp.(20) | K31: ="P D "&$E$17&" Alpha" -> P D 20 Alpha | L31: ="Price Disp. CAMA("&$E$17& ")" -> Price Disp. CAMA(20) | M31: ="Max Range("&$E$17&")" -> Max Range(20) | N31: ="M R "&$E$17&" Alpha" -> M R 20 Alpha | O31: ="Max Range CAMA("&$E$17& ")" -> Max Range CAMA(20) | S31: ="Effort("&$E$18&")" -> Effort(30) | T31: ="Price Disp.("&$E$18&")" -> Price Disp.(30) | U31: ="P D "&$E$18&" Alpha" -> P D 30 Alpha | V31: ="Price Disp. CAMA{"&$E$18& "}" -> Price Disp. CAMA{30} | W31: ="Max Range("&$E$18&")" -> Max Range(30) | X31: ="M R "&$E$18&" Alpha" -> M R 30 Alpha | Y31: ="Max Range CAMA{"&$E$18& "}" -> Max Range CAMA{30} | AC31: ="Effort("&$E$19&")" -> Effort(40) | AD31: ="Price Disp.("&$E$19&")" -> Price Disp.(40) | AE31: ="P D "&$E$19&" Alpha" -> P D 40 Alpha | AF31: ="Price Disp. CAMA["&$E$19& "]" -> Price Disp. CAMA[40] | AG31: ="Max Range("&$E$19&")" -> Max Range(40) | AH31: ="M R "&$E$19&" Alpha" -> M R 40 Alpha | AI31: ="Max Range CAMA["&$E$19& "]" -> Max Range CAMA[40] | BC31: Used To Color Vol Bars
B32: Date | C32: Volume | D32: Open | E32: High | F32: Low | G32: Close | H32: True Range | P32: ="SMA("&$E$17&")" -> SMA(20) | Q32: ="EMA("&$E$17&")" -> EMA(20) | Z32: ="SMA{"&$E$18&"}" -> SMA{30} | AA32: ="EMA{"&$E$18&"}" -> EMA{30} | AJ32: ="SMA["&$E$19&"]" -> SMA[40] | AK32: ="EMA["&$E$19&"]" -> EMA[40] | BC32: Up Vol | BD32: Dn Vol | BE32: Volume Cursor | BF32: =MAX(OFFSET(C33,0,0,A12,1)) -> 1846100 | BG32: Price Chart Cursor | BI32: Indicator01Cursor | BK32: Indicator02Cursor | BM32: Indicator03Cursor | BO32: Indicator04Cursor | BQ32: Indicator05Cursor | BS32: Indicator06Cursor | BU32: Indicator07Cursor | BW32: Indicator08Cursor
A33: 1 | B33: =IF($A33>$A$8,"",OFFSET(InputPriceData!$B$15,$A33+$A$11,0,1,1)) -> 2022-12-06 | C33: =IF($A33>$A$8,"",OFFSET(InputPriceData!$G$15,CalculationsAndCharts!$A33+$A$11,IF($C$5,8,0),1,1)) -> 700900 | D33: =IF(A33>$A$8,"",OFFSET(InputPriceData!$C$15,CalculationsAndCharts!$A33+$A$11,IF($C$5,8,0),1,1)) -> 7315.6 | E33: =IF(A33>$A$8,"",OFFSET(InputPriceData!$D$15,CalculationsAndCharts!$A33+$A$11,IF($C$5,8,0),1,1)) -> 7321.1 | F33: =IF(A33>$A$8,"",OFFSET(InputPriceData!$E$15,CalculationsAndCharts!$A33+$A$11,IF($C$5,8,0),1,1)) -> 7283 | G33: =IF(A33>$A$8,"",OFFSET(InputPriceData!$F$15,CalculationsAndCharts!$A33+$A$11,IF($C$5,8,0),1,1)) -> 7291.3 | H33: =IF(A33>$H$30,NA(),MAX(E33-F33,ABS(E33-G34),ABS(F33-G34))) -> 42.6 | I33: =IF($A33>I$30,NA(),SUM(OFFSET($H33,0,0,$E$17,1))) -> 1138.3 | J33: =IF($A33>I$30,NA(),ABS($G33-OFFSET($G33,$E$17,0,1,1))) -> 332.4 | K33: =IF($A33>I$30,NA(),J33/I33) -> 0.2920144074 | L33: =IF($A33>I$30,NA(),IF($A33=I$30,$G33,K33*($G33-L34)+L34)) -> 7301.423943 | M33: =IF($A33>I$30,NA(),MAX(OFFSET($E33,0,0,$E$17,1))-MIN(OFFSET($F33,0,0,$E$17,1))) -> 420.7 | N33: =IF($A33>I$30,NA(),M33/I33) -> 0.3695862251 | O33: =IF($A33>I$30,NA(),IF($A33=I$30,$G33,N33*($G33-O34)+O34)) -> 7303.896818 | P33: =IF($A33>I$30,NA(),AVERAGE(OFFSET($G33,0,0,$E$17,1))) -> 7196.38 | Q33: =IF($A33>I$30,NA(),IF($A33=I$30,$G33,$F$17*($G33-Q34)+Q34)) -> 7188.654769 | S33: =IF($A33>S$30,NA(),SUM(OFFSET($H33,0,0,$E$18,1))) -> 1866.2 | T33: =IF($A33>S$30,NA(),ABS($G33-OFFSET($G33,$E$18,0,1,1))) -> 492.7 | U33: =IF($A33>S$30,NA(),T33/S33) -> 0.2640124317 | V33: =IF($A33>S$30,NA(),IF($A33=S$30,$G33,U33*($G33-V34)+V34)) -> 7292.992403 | W33: =IF($A33>S$30,NA(),MAX(OFFSET($E33,0,0,$E$18,1))-MIN(OFFSET($F33,0,0,$E$18,1))) -> 599.2 | X33: =IF($A33>S$30,NA(),W33/S33) -> 0.3210802701 | Y33: =IF($A33>S$30,NA(),IF($A33=S$30,$G33,X33*($G33-Y34)+Y34)) -> 7298.037332 | Z33: =IF($A33>S$30,NA(),AVERAGE(OFFSET($G33,0,0,$E$18,1))) -> 7094.646667 | AA33: =IF($A33>S$30,NA(),IF($A33=S$30,$G33,$F$18*($G33-AA34)+AA34)) -> 7120.007831 | AC33: =IF($A33>AC$30,NA(),SUM(OFFSET($H33,0,0,$E$19,1))) -> 2724.2 | AD33: =IF($A33>AC$30,NA(),ABS($G33-OFFSET($G33,$E$19,0,1,1))) -> 646.3 | AE33: =IF($A33>AC$30,NA(),AD33/AC33) -> 0.2372439615 | AF33: =IF($A33>AC$30,NA(),IF($A33=AC$30,$G33,AE33*($G33-AF34)+AF34)) -> 7272.238016 | AG33: =IF($A33>AC$30,NA(),MAX(OFFSET($E33,0,0,$E$19,1))-MIN(OFFSET($F33,0,0,$E$19,1))) -> 742.2 | AH33: =IF($A33>AC$30,NA(),AG33/AC33) -> 0.2724469569 | AI33: =IF($A33>AC$30,NA(),IF($A33=AC$30,$G33,AH33*($G33-AI34)+AI34)) -> 7289.598408 | AJ33: =IF($A33>AC$30,NA(),AVERAGE(OFFSET($G33,0,0,$E$19,1))) -> 7002.9375 | AK33: =IF($A33>AC$30,NA(),IF($A33=AC$30,$G33,$F$19*($G33-AK34)+AK34)) -> 7069.386169 | BC33: =IF(G33>=G34,C33,NA()) ->  | BD33: =IF(G33<G34,C33,NA()) -> 700900 | BE33: =$E$27 -> 166 | BF33: 0 | BG33: =$E$27 -> 166 | BH33: 6391.7775 | BI33: =$E$27 -> 166 | BJ33: -100 | BK33: =$E$27 -> 166 | BM33: =$E$27 -> 166 | BO33: =$E$27 -> 166 | BP33: 0 | BQ33: 166 | BS33: 166 | BT33: 0 | BU33: 166 | BV33: 0 | BW33: 166
A34: 2 | B34: =IF($A34>$A$8,"",OFFSET(InputPriceData!$B$15,$A34+$A$11,0,1,1)) -> 2022-12-05 | C34: =IF($A34>$A$8,"",OFFSET(InputPriceData!$G$15,CalculationsAndCharts!$A34+$A$11,IF($C$5,8,0),1,1)) -> 650300 | D34: =IF(A34>$A$8,"",OFFSET(InputPriceData!$C$15,CalculationsAndCharts!$A34+$A$11,IF($C$5,8,0),1,1)) -> 7316.8 | E34: =IF(A34>$A$8,"",OFFSET(InputPriceData!$D$15,CalculationsAndCharts!$A34+$A$11,IF($C$5,8,0),1,1)) -> 7351 | F34: =IF(A34>$A$8,"",OFFSET(InputPriceData!$E$15,CalculationsAndCharts!$A34+$A$11,IF($C$5,8,0),1,1)) -> 7303.9 | G34: =IF(A34>$A$8,"",OFFSET(InputPriceData!$F$15,CalculationsAndCharts!$A34+$A$11,IF($C$5,8,0),1,1)) -> 7325.6 | H34: =IF(A34>$H$30,NA(),MAX(E34-F34,ABS(E34-G35),ABS(F34-G35))) -> 49.5 | I34: =IF(A34>$I$30,NA(),SUM(OFFSET(H34,0,0,$E$17,1))) -> 1130 | J34: =IF(A34>$I$30,NA(),ABS(G34-OFFSET(G34,$E$17,0,1,1))) -> 391.9 | K34: =IF(A34>$I$30,NA(),J34/I34) -> 0.3468141593 | L34: =IF($A34>$I$30,NA(),IF($A34=$I$30,$G34,K34*($G34-L35)+L35)) -> 7305.599645 | M34: =IF(A34>$I$30,NA(),MAX(OFFSET(E34,0,0,$E$17,1))-MIN(OFFSET(F34,0,0,$E$17,1))) -> 435.6 | N34: =IF($A34>$I$30,NA(),M34/$I34) -> 0.3854867257 | O34: =IF($A34>$I$30,NA(),IF($A34=$I$30,$G34,N34*($G34-O35)+O35)) -> 7311.281825 | P34: 7179.76 | Q34: 7177.850007 | S34: 1875.5 | T34: 546.2 | U34: 0.2912290056 | V34: 7293.5995 | W34: 599.2 | X34: 0.3194881365 | Y34: 7301.223607 | Z34: 7078.223333 | AA34: 7108.194577 | AC34: 2749.1 | AD34: 657.8 | AE34: 0.2392783093 | AF34: 7266.309068 | AG34: 742.2 | AH34: 0.2699792659 | AI34: 7288.961213 | AJ34: 6986.78 | AK34: 7058.005972 | BC34: =IF(G34>=G35,C34,NA()) -> 650300 | BD34: =IF(G34<G35,C34,NA()) ->  | BE34: =$E$27 -> 166 | BF34: =CEILING(BF32,10^INT(LOG10(BF32))/8) -> 1875000 | BG34: =$E$27 -> 166 | BH34: 7640.0225 | BI34: =$E$27 -> 166 | BJ34: 0 | BK34: =$E$27 -> 166 | BL34: 0 | BM34: 166 | BN34: 0 | BO34: 166 | BP34: 100 | BQ34: 166 | BR34: 0 | BS34: 166 | BT34: 0 | BU34: 166 | BV34: 0 | BW34: 166 | BX34: 0
A35: 3 | B35: =IF(A35>$A$8,"",OFFSET(InputPriceData!B$15,$A35+$A$11,0,1,1)) -> 2022-12-02 | C35: =IF(A35>$A$8,"",OFFSET(InputPriceData!G$15,CalculationsAndCharts!$A35+$A$11,IF($C$5,8,0),1,1)) -> 716400 | D35: =IF(A35>$A$8,"",OFFSET(InputPriceData!C$15,CalculationsAndCharts!$A35+$A$11,IF($C$5,8,0),1,1)) -> 7342.6 | E35: =IF(A35>$A$8,"",OFFSET(InputPriceData!D$15,CalculationsAndCharts!$A35+$A$11,IF($C$5,8,0),1,1)) -> 7349 | F35: =IF(A35>$A$8,"",OFFSET(InputPriceData!E$15,CalculationsAndCharts!$A35+$A$11,IF($C$5,8,0),1,1)) -> 7292.8 | G35: =IF(A35>$A$8,"",OFFSET(InputPriceData!F$15,CalculationsAndCharts!$A35+$A$11,IF($C$5,8,0),1,1)) -> 7301.5 | H35: 61.6 | I35: 1131.4 | J35: 409 | K35: 0.3614990278 | L35: 7294.980299 | M35: 467.5 | N35: 0.4132048789 | O35: 7302.299974 | P35: 7160.165 | Q35: 7162.297376 | S35: 1972.5 | T35: 624.7 | U35: 0.3167046895 | V35: 7280.45072 | W35: 658.7 | X35: 0.3339416984 | Y35: 7289.779326 | Z35: 7060.016667 | AA35: 7093.2011 | AC35: 2815.6 | AD35: 538.7 | AE35: 0.191326893 | AF35: 7247.659628 | AG35: 742.2 | AH35: 0.2636027845 | AI35: 7275.411306 | AJ35: 6970.335 | AK35: 7044.283202 | BD35: 716400
A36: 4 | B36: =IF(A36>$A$8,"",OFFSET(InputPriceData!B$15,$A36+$A$11,0,1,1)) -> 2022-12-01 | C36: =IF(A36>$A$8,"",OFFSET(InputPriceData!G$15,CalculationsAndCharts!$A36+$A$11,IF($C$5,8,0),1,1)) -> 715000 | D36: =IF(A36>$A$8,"",OFFSET(InputPriceData!C$15,CalculationsAndCharts!$A36+$A$11,IF($C$5,8,0),1,1)) -> 7306 | E36: =IF(A36>$A$8,"",OFFSET(InputPriceData!D$15,CalculationsAndCharts!$A36+$A$11,IF($C$5,8,0),1,1)) -> 7375.2 | F36: =IF(A36>$A$8,"",OFFSET(InputPriceData!E$15,CalculationsAndCharts!$A36+$A$11,IF($C$5,8,0),1,1)) -> 7305.7 | G36: =IF(A36>$A$8,"",OFFSET(InputPriceData!F$15,CalculationsAndCharts!$A36+$A$11,IF($C$5,8,0),1,1)) -> 7354.4 | H36: 91 | I36: 1135.2 | J36: 496.5 | K36: 0.4373678647 | L36: 7291.289051 | M36: 545.6 | N36: 0.480620155 | O36: 7302.863294 | P36: 7139.715 | Q36: 7147.644469 | S36: 1974 | T36: 623.7 | U36: 0.3159574468 | V36: 7270.694462 | W36: 707.6 | X36: 0.3584599797 | Y36: 7283.902931 | Z36: 7039.193333 | AA36: 7078.835659 | AC36: 2808.8 | AD36: 536.9 | AE36: 0.1911492452 | AF36: 7234.92134 | AG36: 742.2 | AH36: 0.264240957 | AI36: 7266.072525 | AJ36: 6956.8675 | AK36: 7031.092597 | BC36: 715000
A37: 5 | B37: =IF(A37>$A$8,"",OFFSET(InputPriceData!B$15,$A37+$A$11,0,1,1)) -> 2022-11-30 | C37: =IF(A37>$A$8,"",OFFSET(InputPriceData!G$15,CalculationsAndCharts!$A37+$A$11,IF($C$5,8,0),1,1)) -> 1846100 | D37: =IF(A37>$A$8,"",OFFSET(InputPriceData!C$15,CalculationsAndCharts!$A37+$A$11,IF($C$5,8,0),1,1)) -> 7256.5 | E37: =IF(A37>$A$8,"",OFFSET(InputPriceData!D$15,CalculationsAndCharts!$A37+$A$11,IF($C$5,8,0),1,1)) -> 7293.7 | F37: =IF(A37>$A$8,"",OFFSET(InputPriceData!E$15,CalculationsAndCharts!$A37+$A$11,IF($C$5,8,0),1,1)) -> 7222.3 | G37: =IF(A37>$A$8,"",OFFSET(InputPriceData!F$15,CalculationsAndCharts!$A37+$A$11,IF($C$5,8,0),1,1)) -> 7284.2 | H37: 71.4 | I37: 1207.9 | J37: 297.5 | K37: 0.2462952231 | L37: 7242.229107 | M37: 470.7 | N37: 0.3896845765 | O37: 7255.172611 | P37: 7114.89 | Q37: 7125.880729 | S37: 1981 | T37: 484.1 | U37: 0.2443715295 | V37: 7232.031095 | W37: 626.1 | X37: 0.3160524987 | Y37: 7244.51275 | Z37: 7018.403333 | AA37: 7059.831221 | AC37: 2758.7 | AD37: 468.5 | AE37: 0.1698263675 | AF37: 7206.685901 | AG37: 660.7 | AH37: 0.2394968645 | AI37: 7234.350541 | AJ37: 6943.445 | AK37: 7014.51273 | BC37: 1846100
A38: 6 | B38: =IF(A38>$A$8,"",OFFSET(InputPriceData!B$15,$A38+$A$11,0,1,1)) -> 2022-11-29 | C38: =IF(A38>$A$8,"",OFFSET(InputPriceData!G$15,CalculationsAndCharts!$A38+$A$11,IF($C$5,8,0),1,1)) -> 680000 | D38: =IF(A38>$A$8,"",OFFSET(InputPriceData!C$15,CalculationsAndCharts!$A38+$A$11,IF($C$5,8,0),1,1)) -> 7231.9 | E38: =IF(A38>$A$8,"",OFFSET(InputPriceData!D$15,CalculationsAndCharts!$A38+$A$11,IF($C$5,8,0),1,1)) -> 7253.6 | F38: =IF(A38>$A$8,"",OFFSET(InputPriceData!E$15,CalculationsAndCharts!$A38+$A$11,IF($C$5,8,0),1,1)) -> 7200.9 | G38: =IF(A38>$A$8,"",OFFSET(InputPriceData!F$15,CalculationsAndCharts!$A38+$A$11,IF($C$5,8,0),1,1)) -> 7253.3 | H38: 52.7 | I38: 1171.3 | J38: 276.4 | K38: 0.2359771194 | L38: 7228.513883 | M38: 445.5 | N38: 0.3803466234 | O38: 7236.63871 | P38: 7100.015 | Q38: 7109.215542 | S38: 1954.3 | T38: 474.1 | U38: 0.2425932559 | V38: 7215.159582 | W38: 600.9 | X38: 0.3074758225 | Y38: 7226.173251 | Z38: 7002.266667 | AA38: 7044.357512 | AC38: 2807.7 | AD38: 554 | AE38: 0.1973145279 | AF38: 7190.829052 | AG38: 635.5 | AH38: 0.2263418456 | AI38: 7218.652 | AJ38: 6931.7325 | AK38: 7000.682613 | BC38: 680000
A39: 7 | B39: =IF(A39>$A$8,"",OFFSET(InputPriceData!B$15,$A39+$A$11,0,1,1)) -> 2022-11-28 | C39: =IF(A39>$A$8,"",OFFSET(InputPriceData!G$15,CalculationsAndCharts!$A39+$A$11,IF($C$5,8,0),1,1)) -> 699800 | D39: =IF(A39>$A$8,"",OFFSET(InputPriceData!C$15,CalculationsAndCharts!$A39+$A$11,IF($C$5,8,0),1,1)) -> 7247.4 | E39: =IF(A39>$A$8,"",OFFSET(InputPriceData!D$15,CalculationsAndCharts!$A39+$A$11,IF($C$5,8,0),1,1)) -> 7247.4 | F39: =IF(A39>$A$8,"",OFFSET(InputPriceData!E$15,CalculationsAndCharts!$A39+$A$11,IF($C$5,8,0),1,1)) -> 7216 | G39: =IF(A39>$A$8,"",OFFSET(InputPriceData!F$15,CalculationsAndCharts!$A39+$A$11,IF($C$5,8,0),1,1)) -> 7229.1 | H39: 43.5 | I39: 1237.3 | J39: 365.6 | K39: 0.2954820981 | L39: 7220.85841 | M39: 445.5 | N39: 0.3600581912 | O39: 7226.411919 | P39: 7086.195 | Q39: 7094.048757 | S39: 2027.9 | T39: 564.7 | U39: 0.2784654076 | V39: 7202.943414 | W39: 600.9 | X39: 0.2963163864 | Y39: 7214.129167 | Z39: 6986.463333 | AA39: 7029.947686 | AC39: 2997.4 | AD39: 772.2 | AE39: 0.2576232735 | AF39: 7175.47257 | AG39: 782 | AH39: 0.2608927737 | AI39: 7208.515363 | AJ39: 6917.8825 | AK39: 6987.727876 | BD39: 699800
A40: 8 | B40: =IF(A40>$A$8,"",OFFSET(InputPriceData!B$15,$A40+$A$11,0,1,1)) -> 2022-11-25 | C40: =IF(A40>$A$8,"",OFFSET(InputPriceData!G$15,CalculationsAndCharts!$A40+$A$11,IF($C$5,8,0),1,1)) -> 552100 | D40: =IF(A40>$A$8,"",OFFSET(InputPriceData!C$15,CalculationsAndCharts!$A40+$A$11,IF($C$5,8,0),1,1)) -> 7239.4 | E40: =IF(A40>$A$8,"",OFFSET(InputPriceData!D$15,CalculationsAndCharts!$A40+$A$11,IF($C$5,8,0),1,1)) -> 7268.5 | F40: =IF(A40>$A$8,"",OFFSET(InputPriceData!E$15,CalculationsAndCharts!$A40+$A$11,IF($C$5,8,0),1,1)) -> 7239.4 | G40: =IF(A40>$A$8,"",OFFSET(InputPriceData!F$15,CalculationsAndCharts!$A40+$A$11,IF($C$5,8,0),1,1)) -> 7259.5 | H40: 29.1 | I40: 1277.3 | J40: 473.8 | K40: 0.3709386988 | L40: 7217.401801 | M40: 481.8 | N40: 0.3772019103 | O40: 7224.899492 | P40: 7067.915 | Q40: 7079.832837 | S40: 2098.1 | T40: 500.7 | U40: 0.2386444879 | V40: 7192.848673 | W40: 623.3 | X40: 0.2970783089 | Y40: 7207.82505 | Z40: 6967.64 | AA40: 7016.213043 | AC40: 3045.5 | AD40: 785.3 | AE40: 0.2578558529 | AF40: 7156.862511 | AG40: 856.6 | AH40: 0.2812674438 | AI40: 7201.249322 | AJ40: 6898.5775 | AK40: 6975.349818 | BC40: =IF(G40>=G41,C40,NA()) -> 552100 | BD40: =IF(G40<G41,C40,NA()) -> 
A41: 9 | B41: =IF(A41>$A$8,"",OFFSET(InputPriceData!B$15,$A41+$A$11,0,1,1)) -> 2022-11-24 | C41: =IF(A41>$A$8,"",OFFSET(InputPriceData!G$15,CalculationsAndCharts!$A41+$A$11,IF($C$5,8,0),1,1)) -> 593800 | D41: =IF(A41>$A$8,"",OFFSET(InputPriceData!C$15,CalculationsAndCharts!$A41+$A$11,IF($C$5,8,0),1,1)) -> 7231.8 | E41: =IF(A41>$A$8,"",OFFSET(InputPriceData!D$15,CalculationsAndCharts!$A41+$A$11,IF($C$5,8,0),1,1)) -> 7264.6 | F41: =IF(A41>$A$8,"",OFFSET(InputPriceData!E$15,CalculationsAndCharts!$A41+$A$11,IF($C$5,8,0),1,1)) -> 7231.8 | G41: =IF(A41>$A$8,"",OFFSET(InputPriceData!F$15,CalculationsAndCharts!$A41+$A$11,IF($C$5,8,0),1,1)) -> 7241.8 | H41: 32.8 | I41: 1317.3 | J41: 396.7 | K41: 0.3011462841 | L41: 7192.577748 | M41: 488.6 | N41: 0.3709101951 | O41: 7203.943459 | P41: 7044.225 | Q41: 7060.920504 | S41: 2199 | T41: 599.2 | U41: 0.2724874943 | V41: 7171.957025 | W41: 619.4 | X41: 0.2816734879 | Y41: 7185.985481 | Z41: 6950.95 | AA41: 6999.434633 | AC41: 3119 | AD41: 686.8 | AE41: 0.2201987817 | AF41: 7121.201411 | AG41: 852.7 | AH41: 0.2733889067 | AI41: 7178.453612 | AJ41: 6878.945 | AK41: 6960.778014 | BD41: 593800
A42: 10 | B42: =IF(A42>$A$8,"",OFFSET(InputPriceData!B$15,$A42+$A$11,0,1,1)) -> 2022-11-23 | C42: =IF(A42>$A$8,"",OFFSET(InputPriceData!G$15,CalculationsAndCharts!$A42+$A$11,IF($C$5,8,0),1,1)) -> 68600 | D42: =IF(A42>$A$8,"",OFFSET(InputPriceData!C$15,CalculationsAndCharts!$A42+$A$11,IF($C$5,8,0),1,1)) -> 7231.8 | E42: =IF(A42>$A$8,"",OFFSET(InputPriceData!D$15,CalculationsAndCharts!$A42+$A$11,IF($C$5,8,0),1,1)) -> 7250.7 | F42: =IF(A42>$A$8,"",OFFSET(InputPriceData!E$15,CalculationsAndCharts!$A42+$A$11,IF($C$5,8,0),1,1)) -> 7231.8 | G42: =IF(A42>$A$8,"",OFFSET(InputPriceData!F$15,CalculationsAndCharts!$A42+$A$11,IF($C$5,8,0),1,1)) -> 7247.4 | H42: 69.4 | I42: 1347.4 | J42: 436.5 | K42: 0.323957251 | L42: 7171.36716 | M42: 474.7 | N42: 0.352308149 | O42: 7181.623311 | P42: 7024.39 | Q42: 7041.880557 | S42: 2211 | T42: 599.9 | U42: 0.2713251922 | V42: 7145.797561 | W42: 611.8 | X42: 0.2767073722 | Y42: 7164.099236 | Z42: 6930.976667 | AA42: 6982.71978 | AC42: 3218.9 | AD42: 785.4 | AE42: 0.2439963963 | AF42: 7087.147011 | AG42: 838.8 | AH42: 0.2605859144 | AI42: 7154.619404 | AJ42: 6861.775 | AK42: 6946.36663 | BC42: 68600
A43: 11 | B43: =IF(A43>$A$8,"",OFFSET(InputPriceData!B$15,$A43+$A$11,0,1,1)) -> 2022-11-22 | C43: =IF(A43>$A$8,"",OFFSET(InputPriceData!G$15,CalculationsAndCharts!$A43+$A$11,IF($C$5,8,0),1,1)) -> 677000 | D43: =IF(A43>$A$8,"",OFFSET(InputPriceData!C$15,CalculationsAndCharts!$A43+$A$11,IF($C$5,8,0),1,1)) -> 7139.3 | E43: =IF(A43>$A$8,"",OFFSET(InputPriceData!D$15,CalculationsAndCharts!$A43+$A$11,IF($C$5,8,0),1,1)) -> 7194.1 | F43: =IF(A43>$A$8,"",OFFSET(InputPriceData!E$15,CalculationsAndCharts!$A43+$A$11,IF($C$5,8,0),1,1)) -> 7139.3 | G43: =IF(A43>$A$8,"",OFFSET(InputPriceData!F$15,CalculationsAndCharts!$A43+$A$11,IF($C$5,8,0),1,1)) -> 7181.3 | H43: 54.8 | I43: 1322.6 | J43: 382.7 | K43: 0.2893543021 | L43: 7134.932497 | M43: 420.5 | N43: 0.3179343717 | O43: 7145.844471 | P43: 7002.565 | Q43: 7020.246931 | S43: 2180.6 | T43: 536.3 | U43: 0.245941484 | V43: 7107.965457 | W43: 563.5 | X43: 0.2584151151 | Y43: 7132.231173 | Z43: 6910.98 | AA43: 6964.465971 | AC43: 3232.9 | AD43: 685.1 | AE43: 0.2119149989 | AF43: 7035.426157 | AG43: 784.6 | AH43: 0.2426923196 | AI43: 7121.921465 | AJ43: 6842.14 | AK43: 6930.929021 | BC43: 677000
A44: 12 | B44: =IF(A44>$A$8,"",OFFSET(InputPriceData!B$15,$A44+$A$11,0,1,1)) -> 2022-11-21 | C44: =IF(A44>$A$8,"",OFFSET(InputPriceData!G$15,CalculationsAndCharts!$A44+$A$11,IF($C$5,8,0),1,1)) -> 598600 | D44: =IF(A44>$A$8,"",OFFSET(InputPriceData!C$15,CalculationsAndCharts!$A44+$A$11,IF($C$5,8,0),1,1)) -> 7151.8 | E44: =IF(A44>$A$8,"",OFFSET(InputPriceData!D$15,CalculationsAndCharts!$A44+$A$11,IF($C$5,8,0),1,1)) -> 7174.4 | F44: =IF(A44>$A$8,"",OFFSET(InputPriceData!E$15,CalculationsAndCharts!$A44+$A$11,IF($C$5,8,0),1,1)) -> 7131.7 | G44: =IF(A44>$A$8,"",OFFSET(InputPriceData!F$15,CalculationsAndCharts!$A44+$A$11,IF($C$5,8,0),1,1)) -> 7139.3 | H44: 42.7 | I44: 1319.7 | J44: 359.9 | K44: 0.2727134955 | L44: 7116.052996 | M44: 420.5 | N44: 0.3186330227 | O44: 7129.317423 | P44: 6983.43 | Q44: 7003.293977 | S44: 2193.3 | T44: 471.5 | U44: 0.2149728719 | V44: 7084.04688 | W44: 563.5 | X44: 0.2569187982 | Y44: 7115.132487 | Z44: 6893.103333 | AA44: 6949.5119 | AC44: 3218.2 | AD44: 669.9 | AE44: 0.2081598409 | AF44: 6996.200876 | AG44: 784.6 | AH44: 0.2438008825 | AI44: 7102.892588 | AJ44: 6825.0125 | AK44: 6918.089484 | BD44: 598600
A45: 13 | B45: =IF(A45>$A$8,"",OFFSET(InputPriceData!B$15,$A45+$A$11,0,1,1)) -> 2022-11-18 | C45: =IF(A45>$A$8,"",OFFSET(InputPriceData!G$15,CalculationsAndCharts!$A45+$A$11,IF($C$5,8,0),1,1)) -> 762700 | D45: =IF(A45>$A$8,"",OFFSET(InputPriceData!C$15,CalculationsAndCharts!$A45+$A$11,IF($C$5,8,0),1,1)) -> 7138.3 | E45: =IF(A45>$A$8,"",OFFSET(InputPriceData!D$15,CalculationsAndCharts!$A45+$A$11,IF($C$5,8,0),1,1)) -> 7166.2 | F45: =IF(A45>$A$8,"",OFFSET(InputPriceData!E$15,CalculationsAndCharts!$A45+$A$11,IF($C$5,8,0),1,1)) -> 7137.7 | G45: =IF(A45>$A$8,"",OFFSET(InputPriceData!F$15,CalculationsAndCharts!$A45+$A$11,IF($C$5,8,0),1,1)) -> 7151.8 | H45: 30.5 | I45: 1423.5 | J45: 475 | K45: 0.3336845803 | L45: 7107.335975 | M45: 480 | N45: 0.3371970495 | O45: 7124.649191 | P45: 6965.435 | Q45: 6988.977553 | S45: 2266.6 | T45: 389 | U45: 0.1716226948 | V45: 7068.916292 | W45: 563.5 | X45: 0.2486102532 | Y45: 7106.77662 | Z45: 6877.386667 | AA45: 6936.423066 | AC45: 3314.6 | AD45: 577.1 | AE45: 0.1741084897 | AF45: 6958.582816 | AG45: 784.6 | AH45: 0.236710312 | AI45: 7091.154728 | AJ45: 6808.265 | AK45: 6906.745355 | BC45: =IF(G45>=G46,C45,NA()) -> 762700 | BD45: =IF(G45<G46,C45,NA()) -> 
A46: 14 | B46: =IF(A46>$A$8,"",OFFSET(InputPriceData!B$15,$A46+$A$11,0,1,1)) -> 2022-11-17 | C46: =IF(A46>$A$8,"",OFFSET(InputPriceData!G$15,CalculationsAndCharts!$A46+$A$11,IF($C$5,8,0),1,1)) -> 744900 | D46: =IF(A46>$A$8,"",OFFSET(InputPriceData!C$15,CalculationsAndCharts!$A46+$A$11,IF($C$5,8,0),1,1)) -> 7107.1 | E46: =IF(A46>$A$8,"",OFFSET(InputPriceData!D$15,CalculationsAndCharts!$A46+$A$11,IF($C$5,8,0),1,1)) -> 7146.9 | F46: =IF(A46>$A$8,"",OFFSET(InputPriceData!E$15,CalculationsAndCharts!$A46+$A$11,IF($C$5,8,0),1,1)) -> 7107 | G46: =IF(A46>$A$8,"",OFFSET(InputPriceData!F$15,CalculationsAndCharts!$A46+$A$11,IF($C$5,8,0),1,1)) -> 7135.7 | H46: 39.9 | I46: 1456.1 | J46: 405 | K46: 0.2781402376 | L46: 7085.068804 | M46: 528.9 | N46: 0.3632305474 | O46: 7110.836379 | P46: 6941.685 | Q46: 6971.838348 | S46: 2290.9 | T46: 318.2 | U46: 0.1388973766 | V46: 7051.744497 | W46: 563.5 | X46: 0.2459731983 | Y46: 7091.879858 | Z46: 6864.42 | AA46: 6921.569484 | AC46: 3448.2 | AD46: 435.5 | AE46: 0.1262977786 | AF46: 6917.850164 | AG46: 784.6 | AH46: 0.2275390059 | AI46: 7072.347503 | AJ46: 6793.8375 | AK46: 6894.17845 | BC46: 744900
A47: 15 | B47: =IF(A47>$A$8,"",OFFSET(InputPriceData!B$15,$A47+$A$11,0,1,1)) -> 2022-11-16 | C47: =IF(A47>$A$8,"",OFFSET(InputPriceData!G$15,CalculationsAndCharts!$A47+$A$11,IF($C$5,8,0),1,1)) -> 742800 | D47: =IF(A47>$A$8,"",OFFSET(InputPriceData!C$15,CalculationsAndCharts!$A47+$A$11,IF($C$5,8,0),1,1)) -> 7142.3 | E47: =IF(A47>$A$8,"",OFFSET(InputPriceData!D$15,CalculationsAndCharts!$A47+$A$11,IF($C$5,8,0),1,1)) -> 7142.5 | F47: =IF(A47>$A$8,"",OFFSET(InputPriceData!E$15,CalculationsAndCharts!$A47+$A$11,IF($C$5,8,0),1,1)) -> 7102.9 | G47: =IF(A47>$A$8,"",OFFSET(InputPriceData!F$15,CalculationsAndCharts!$A47+$A$11,IF($C$5,8,0),1,1)) -> 7122.2 | H47: 39.6 | I47: 1514.2 | J47: 322.1 | K47: 0.2127195879 | L47: 7065.560065 | M47: 528.9 | N47: 0.3492933562 | O47: 7096.653496 | P47: 6921.435 | Q47: 6954.589753 | S47: 2291.9 | T47: 306.5 | U47: 0.1337318382 | V47: 7038.202326 | W47: 563.5 | X47: 0.2458658755 | Y47: 7077.585166 | Z47: 6853.813333 | AA47: 6906.801863 | AC47: 3519.7 | AD47: 315.8 | AE47: 0.08972355598 | AF47: 6886.358942 | AG47: 784.6 | AH47: 0.2229167259 | AI47: 7053.686154 | AJ47: 6782.95 | AK47: 6881.792729 | BD47: 742800
A48: 16 | B48: =IF(A48>$A$8,"",OFFSET(InputPriceData!B$15,$A48+$A$11,0,1,1)) -> 2022-11-15 | C48: =IF(A48>$A$8,"",OFFSET(InputPriceData!G$15,CalculationsAndCharts!$A48+$A$11,IF($C$5,8,0),1,1)) -> 937500 | D48: =IF(A48>$A$8,"",OFFSET(InputPriceData!C$15,CalculationsAndCharts!$A48+$A$11,IF($C$5,8,0),1,1)) -> 7133.5 | E48: =IF(A48>$A$8,"",OFFSET(InputPriceData!D$15,CalculationsAndCharts!$A48+$A$11,IF($C$5,8,0),1,1)) -> 7144 | F48: =IF(A48>$A$8,"",OFFSET(InputPriceData!E$15,CalculationsAndCharts!$A48+$A$11,IF($C$5,8,0),1,1)) -> 7114.2 | G48: =IF(A48>$A$8,"",OFFSET(InputPriceData!F$15,CalculationsAndCharts!$A48+$A$11,IF($C$5,8,0),1,1)) -> 7141.6 | H48: 32.1 | I48: 1519.3 | J48: 362.4 | K48: 0.2385309024 | L48: 7050.256213 | M48: 528.9 | N48: 0.3481208451 | O48: 7082.940366 | P48: 6905.33 | Q48: 6936.94657 | S48: 2372.7 | T48: 442.3 | U48: 0.1864121044 | V48: 7025.235021 | W48: 563.5 | X48: 0.2374931513 | Y48: 7063.039657 | Z48: 6843.596667 | AA48: 6891.946819 | AC48: 3568.5 | AD48: 421.7 | AE48: 0.1181729018 | AF48: 6863.112709 | AG48: 784.6 | AH48: 0.219868292 | AI48: 7034.032041 | AJ48: 6775.055 | AK48: 6869.464151 | BD48: 937500
A49: 17 | B49: =IF(A49>$A$8,"",OFFSET(InputPriceData!B$15,$A49+$A$11,0,1,1)) -> 2022-11-14 | C49: =IF(A49>$A$8,"",OFFSET(InputPriceData!G$15,CalculationsAndCharts!$A49+$A$11,IF($C$5,8,0),1,1)) -> 978100 | D49: =IF(A49>$A$8,"",OFFSET(InputPriceData!C$15,CalculationsAndCharts!$A49+$A$11,IF($C$5,8,0),1,1)) -> 7183.2 | E49: =IF(A49>$A$8,"",OFFSET(InputPriceData!D$15,CalculationsAndCharts!$A49+$A$11,IF($C$5,8,0),1,1)) -> 7196.5 | F49: =IF(A49>$A$8,"",OFFSET(InputPriceData!E$15,CalculationsAndCharts!$A49+$A$11,IF($C$5,8,0),1,1)) -> 7146.3 | G49: =IF(A49>$A$8,"",OFFSET(InputPriceData!F$15,CalculationsAndCharts!$A49+$A$11,IF($C$5,8,0),1,1)) -> 7146.3 | H49: 50.2 | I49: 1613.5 | J49: 481.9 | K49: 0.298667493 | L49: 7021.642686 | M49: 528.9 | N49: 0.3277967152 | O49: 7051.614558 | P49: 6887.21 | Q49: 6915.404103 | S49: 2583 | T49: 689.4 | U49: 0.2668989547 | V49: 6998.573071 | W49: 710 | X49: 0.2748741773 | Y49: 7038.570967 | Z49: 6828.853333 | AA49: 6874.729358 | AC49: 3575.6 | AD49: 407.2 | AE49: 0.1138829847 | AF49: 6825.792863 | AG49: 784.6 | AH49: 0.2194317038 | AI49: 7003.715643 | AJ49: 6764.5125 | AK49: 6855.508467 | BD49: 978100
A50: 18 | B50: =IF(A50>$A$8,"",OFFSET(InputPriceData!B$15,$A50+$A$11,0,1,1)) -> 2022-11-11 | C50: =IF(A50>$A$8,"",OFFSET(InputPriceData!G$15,CalculationsAndCharts!$A50+$A$11,IF($C$5,8,0),1,1)) -> 1162600 | D50: =IF(A50>$A$8,"",OFFSET(InputPriceData!C$15,CalculationsAndCharts!$A50+$A$11,IF($C$5,8,0),1,1)) -> 7000.1 | E50: =IF(A50>$A$8,"",OFFSET(InputPriceData!D$15,CalculationsAndCharts!$A50+$A$11,IF($C$5,8,0),1,1)) -> 7170.6 | F50: =IF(A50>$A$8,"",OFFSET(InputPriceData!E$15,CalculationsAndCharts!$A50+$A$11,IF($C$5,8,0),1,1)) -> 6997.8 | G50: =IF(A50>$A$8,"",OFFSET(InputPriceData!F$15,CalculationsAndCharts!$A50+$A$11,IF($C$5,8,0),1,1)) -> 7158 | H50: 206.6 | I50: 1677 | J50: 399.2 | K50: 0.2380441264 | L50: 6968.556473 | M50: 525.4 | N50: 0.3132975552 | O50: 7005.441656 | P50: 6863.115 | Q50: 6891.099272 | S50: 2624.4 | T50: 683.8 | U50: 0.2605547935 | V50: 6944.790358 | W50: 758.7 | X50: 0.2890946502 | Y50: 6997.734014 | Z50: 6805.873333 | AA50: 6856.000348 | AC50: 3632 | AD50: 315.1 | AE50: 0.08675660793 | AF50: 6784.601566 | AG50: 758.7 | AH50: 0.2088931718 | AI50: 6963.632631 | AJ50: 6754.3325 | AK50: 6840.596081 | BC50: 1162600
A51: 19 | B51: =IF(A51>$A$8,"",OFFSET(InputPriceData!B$15,$A51+$A$11,0,1,1)) -> 2022-11-10 | C51: =IF(A51>$A$8,"",OFFSET(InputPriceData!G$15,CalculationsAndCharts!$A51+$A$11,IF($C$5,8,0),1,1)) -> 733000 | D51: =IF(A51>$A$8,"",OFFSET(InputPriceData!C$15,CalculationsAndCharts!$A51+$A$11,IF($C$5,8,0),1,1)) -> 6986 | E51: =IF(A51>$A$8,"",OFFSET(InputPriceData!D$15,CalculationsAndCharts!$A51+$A$11,IF($C$5,8,0),1,1)) -> 6988.1 | F51: =IF(A51>$A$8,"",OFFSET(InputPriceData!E$15,CalculationsAndCharts!$A51+$A$11,IF($C$5,8,0),1,1)) -> 6954.5 | G51: =IF(A51>$A$8,"",OFFSET(InputPriceData!F$15,CalculationsAndCharts!$A51+$A$11,IF($C$5,8,0),1,1)) -> 6964 | H51: 44.8 | I51: 1600.4 | J51: 321.4 | K51: 0.2008247938 | L51: 6909.372049 | M51: 367.2 | N51: 0.2294426393 | O51: 6935.839229 | P51: 6843.155 | Q51: 6863.004458 | S51: 2520.4 | T51: 409 | U51: 0.1622758292 | V51: 6869.662689 | W51: 600.5 | X51: 0.2382558324 | Y51: 6932.560726 | Z51: 6783.08 | AA51: 6835.172786 | AC51: 3474.9 | AD51: 135.4 | AE51: 0.03896515008 | AF51: 6749.129334 | AG51: 600.5 | AH51: 0.1728107284 | AI51: 6912.30958 | AJ51: 6746.455 | AK51: 6824.318957 | BD51: 733000
A52: 20 | B52: =IF(A52>$A$8,"",OFFSET(InputPriceData!B$15,$A52+$A$11,0,1,1)) -> 2022-11-09 | C52: =IF(A52>$A$8,"",OFFSET(InputPriceData!G$15,CalculationsAndCharts!$A52+$A$11,IF($C$5,8,0),1,1)) -> 775500 | D52: =IF(A52>$A$8,"",OFFSET(InputPriceData!C$15,CalculationsAndCharts!$A52+$A$11,IF($C$5,8,0),1,1)) -> 6969.3 | E52: =IF(A52>$A$8,"",OFFSET(InputPriceData!D$15,CalculationsAndCharts!$A52+$A$11,IF($C$5,8,0),1,1)) -> 7012.4 | F52: =IF(A52>$A$8,"",OFFSET(InputPriceData!E$15,CalculationsAndCharts!$A52+$A$11,IF($C$5,8,0),1,1)) -> 6967.9 | G52: =IF(A52>$A$8,"",OFFSET(InputPriceData!F$15,CalculationsAndCharts!$A52+$A$11,IF($C$5,8,0),1,1)) -> 6999.3 | H52: 53.5 | I52: 1600.4 | J52: 351.8 | K52: 0.219820045 | L52: 6895.644588 | M52: 373.5 | N52: 0.2333791552 | O52: 6927.454024 | P52: 6827.085 | Q52: 6852.373349 | S52: 2608.3 | T52: 537.3 | U52: 0.2059962428 | V52: 6851.388577 | W52: 600.5 | X52: 0.2302265844 | Y52: 6922.727253 | Z52: 6769.446667 | AA52: 6826.28815 | AC52: 3631.2 | AD52: 10.4 | AE52: 0.002864066975 | AF52: 6740.417404 | AG52: 600.5 | AH52: 0.1653723287 | AI52: 6901.510771 | AJ52: 6743.07 | AK52: 6817.155826 | BC52: 775500
A53: 21 | B53: =IF(A53>$A$8,"",OFFSET(InputPriceData!B$15,$A53+$A$11,0,1,1)) -> 2022-11-08 | C53: =IF(A53>$A$8,"",OFFSET(InputPriceData!G$15,CalculationsAndCharts!$A53+$A$11,IF($C$5,8,0),1,1)) -> 713000 | D53: =IF(A53>$A$8,"",OFFSET(InputPriceData!C$15,CalculationsAndCharts!$A53+$A$11,IF($C$5,8,0),1,1)) -> 6939.6 | E53: =IF(A53>$A$8,"",OFFSET(InputPriceData!D$15,CalculationsAndCharts!$A53+$A$11,IF($C$5,8,0),1,1)) -> 6968 | F53: =IF(A53>$A$8,"",OFFSET(InputPriceData!E$15,CalculationsAndCharts!$A53+$A$11,IF($C$5,8,0),1,1)) -> 6939.6 | G53: =IF(A53>$A$8,"",OFFSET(InputPriceData!F$15,CalculationsAndCharts!$A53+$A$11,IF($C$5,8,0),1,1)) -> 6958.9 | H53: 34.3 | I53: 1585.9 | J53: 313.9 | K53: 0.1979317738 | L53: 6866.439099 | M53: 378.7 | N53: 0.2387918532 | O53: 6905.582256 | P53: 6809.495 | Q53: 6836.907385 | S53: 2638.2 | T53: 462.7 | U53: 0.175384732 | V53: 6813.014455 | W53: 599.8 | X53: 0.2273519824 | Y53: 6899.825602 | Z53: 6751.536667 | AA53: 6814.356299 | AC53: 3628.4 | AD53: 5.6 | AE53: 0.001543380002 | AF53: 6739.673817 | AG53: 603.3 | AH53: 0.1662716349 | AI53: 6882.134907 | AJ53: 6743.33 | AK53: 6807.815099 | BC53: 713000
A54: 22 | B54: =IF(A54>$A$8,"",OFFSET(InputPriceData!B$15,$A54+$A$11,0,1,1)) -> 2022-11-07 | C54: =IF(A54>$A$8,"",OFFSET(InputPriceData!G$15,CalculationsAndCharts!$A54+$A$11,IF($C$5,8,0),1,1)) -> 688800 | D54: =IF(A54>$A$8,"",OFFSET(InputPriceData!C$15,CalculationsAndCharts!$A54+$A$11,IF($C$5,8,0),1,1)) -> 6917.1 | E54: =IF(A54>$A$8,"",OFFSET(InputPriceData!D$15,CalculationsAndCharts!$A54+$A$11,IF($C$5,8,0),1,1)) -> 6943.4 | F54: =IF(A54>$A$8,"",OFFSET(InputPriceData!E$15,CalculationsAndCharts!$A54+$A$11,IF($C$5,8,0),1,1)) -> 6907.7 | G54: =IF(A54>$A$8,"",OFFSET(InputPriceData!F$15,CalculationsAndCharts!$A54+$A$11,IF($C$5,8,0),1,1)) -> 6933.7 | H54: 50.9 | I54: 1619.1 | J54: 265.9 | K54: 0.1642270397 | L54: 6843.6219 | M54: 378.7 | N54: 0.233895374 | O54: 6888.85642 | P54: 6793.8 | Q54: 6824.066058 | S54: 2644 | T54: 464.3 | U54: 0.1756051437 | V54: 6781.986534 | W54: 599.8 | X54: 0.2268532526 | Y54: 6882.442938 | Z54: 6736.113333 | AA54: 6804.387767 | AC54: 3674.8 | AD54: 39.5 | AE54: 0.01074888429 | AF54: 6739.334945 | AG54: 603.3 | AH54: 0.1641721998 | AI54: 6866.825535 | AJ54: 6743.47 | AK54: 6800.067156 | BC54: 688800
A55: 23 | B55: =IF(A55>$A$8,"",OFFSET(InputPriceData!B$15,$A55+$A$11,0,1,1)) -> 2022-11-04 | C55: =IF(A55>$A$8,"",OFFSET(InputPriceData!G$15,CalculationsAndCharts!$A55+$A$11,IF($C$5,8,0),1,1)) -> 665500 | D55: =IF(A55>$A$8,"",OFFSET(InputPriceData!C$15,CalculationsAndCharts!$A55+$A$11,IF($C$5,8,0),1,1)) -> 6860.6 | E55: =IF(A55>$A$8,"",OFFSET(InputPriceData!D$15,CalculationsAndCharts!$A55+$A$11,IF($C$5,8,0),1,1)) -> 6895 | F55: =IF(A55>$A$8,"",OFFSET(InputPriceData!E$15,CalculationsAndCharts!$A55+$A$11,IF($C$5,8,0),1,1)) -> 6829.6 | G55: =IF(A55>$A$8,"",OFFSET(InputPriceData!F$15,CalculationsAndCharts!$A55+$A$11,IF($C$5,8,0),1,1)) -> 6892.5 | H55: 65.4 | I55: 1684.2 | J55: 129.7 | K55: 0.07700985631 | L55: 6825.921806 | M55: 378.7 | N55: 0.2248545303 | O55: 6875.165463 | P55: 6780.505 | Q55: 6812.525643 | S55: 2732.2 | T55: 317.8 | U55: 0.1163165215 | V55: 6749.669902 | W55: 599.8 | X55: 0.219530049 | Y55: 6867.40332 | Z55: 6720.636667 | AA55: 6795.469682 | AC55: 3673.7 | AD55: 43.8 | AE55: 0.01192258486 | AF55: 6737.223037 | AG55: 603.3 | AH55: 0.1642213572 | AI55: 6853.69014 | AJ55: 6742.4825 | AK55: 6793.214189 | BC55: 665500
A56: 24 | B56: =IF(A56>$A$8,"",OFFSET(InputPriceData!B$15,$A56+$A$11,0,1,1)) -> 2022-11-03 | C56: =IF(A56>$A$8,"",OFFSET(InputPriceData!G$15,CalculationsAndCharts!$A56+$A$11,IF($C$5,8,0),1,1)) -> 694100 | D56: =IF(A56>$A$8,"",OFFSET(InputPriceData!C$15,CalculationsAndCharts!$A56+$A$11,IF($C$5,8,0),1,1)) -> 6953.1 | E56: =IF(A56>$A$8,"",OFFSET(InputPriceData!D$15,CalculationsAndCharts!$A56+$A$11,IF($C$5,8,0),1,1)) -> 6953.1 | F56: =IF(A56>$A$8,"",OFFSET(InputPriceData!E$15,CalculationsAndCharts!$A56+$A$11,IF($C$5,8,0),1,1)) -> 6823 | G56: =IF(A56>$A$8,"",OFFSET(InputPriceData!F$15,CalculationsAndCharts!$A56+$A$11,IF($C$5,8,0),1,1)) -> 6857.9 | H56: 163.7 | I56: 1673.6 | J56: 40.4 | K56: 0.02413957935 | L56: 6820.366842 | M56: 378.7 | N56: 0.2262786807 | O56: 6870.137053 | P56: 6774.02 | Q56: 6804.107289 | S56: 2830.9 | T56: 157.7 | U56: 0.05570666572 | V56: 6730.869618 | W56: 599.8 | X56: 0.2118760818 | Y56: 6860.344143 | Z56: 6710.043333 | AA56: 6788.777936 | AC56: 3727.7 | AD56: 128.6 | AE56: 0.03449848432 | AF56: 6735.349395 | AG56: 603.3 | AH56: 0.1618424229 | AI56: 6846.064427 | AJ56: 6741.3875 | AK56: 6788.122609 | BD56: 694100
A57: 25 | B57: =IF(A57>$A$8,"",OFFSET(InputPriceData!B$15,$A57+$A$11,0,1,1)) -> 2022-11-02 | C57: =IF(A57>$A$8,"",OFFSET(InputPriceData!G$15,CalculationsAndCharts!$A57+$A$11,IF($C$5,8,0),1,1)) -> 819400 | D57: =IF(A57>$A$8,"",OFFSET(InputPriceData!C$15,CalculationsAndCharts!$A57+$A$11,IF($C$5,8,0),1,1)) -> 6980.8 | E57: =IF(A57>$A$8,"",OFFSET(InputPriceData!D$15,CalculationsAndCharts!$A57+$A$11,IF($C$5,8,0),1,1)) -> 7011.7 | F57: =IF(A57>$A$8,"",OFFSET(InputPriceData!E$15,CalculationsAndCharts!$A57+$A$11,IF($C$5,8,0),1,1)) -> 6978.8 | G57: =IF(A57>$A$8,"",OFFSET(InputPriceData!F$15,CalculationsAndCharts!$A57+$A$11,IF($C$5,8,0),1,1)) -> 6986.7 | H57: 34.8 | I57: 1550.8 | J57: 171 | K57: 0.1102656693 | L57: 6819.438395 | M57: 378.7 | N57: 0.2441965437 | O57: 6873.71584 | P57: 6772 | Q57: 6798.444899 | S57: 2778.6 | T57: 180.3 | U57: 0.06488879292 | V57: 6723.375719 | W57: 599.8 | X57: 0.2158641042 | Y57: 6861.001217 | Z57: 6704.786667 | AA57: 6784.010898 | AC57: 3670.9 | AD57: 160.2 | AE57: 0.04364052412 | AF57: 6730.970521 | AG57: 603.3 | AH57: 0.164346618 | AI57: 6843.77906 | AJ57: 6738.1725 | AK57: 6784.544281 | BC57: 819400
A58: 26 | B58: =IF(A58>$A$8,"",OFFSET(InputPriceData!B$15,$A58+$A$11,0,1,1)) -> 2022-11-01 | C58: =IF(A58>$A$8,"",OFFSET(InputPriceData!G$15,CalculationsAndCharts!$A58+$A$11,IF($C$5,8,0),1,1)) -> 701300 | D58: =IF(A58>$A$8,"",OFFSET(InputPriceData!C$15,CalculationsAndCharts!$A58+$A$11,IF($C$5,8,0),1,1)) -> 6866.5 | E58: =IF(A58>$A$8,"",OFFSET(InputPriceData!D$15,CalculationsAndCharts!$A58+$A$11,IF($C$5,8,0),1,1)) -> 6976.9 | F58: =IF(A58>$A$8,"",OFFSET(InputPriceData!E$15,CalculationsAndCharts!$A58+$A$11,IF($C$5,8,0),1,1)) -> 6858.2 | G58: =IF(A58>$A$8,"",OFFSET(InputPriceData!F$15,CalculationsAndCharts!$A58+$A$11,IF($C$5,8,0),1,1)) -> 6976.9 | H58: 118.7 | I58: 1636.4 | J58: 277.6 | K58: 0.1696406747 | L58: 6798.709496 | M58: 343.9 | N58: 0.210156441 | O58: 6837.211189 | P58: 6763.45 | Q58: 6778.628572 | S58: 2832.2 | T58: 257 | U58: 0.09074217922 | V58: 6705.103246 | W58: 565 | X58: 0.1994915613 | Y58: 6826.397706 | Z58: 6698.776667 | AA58: 6770.032339 | AC58: 3698.5 | AD58: 124.7 | AE58: 0.0337163715 | AF58: 6719.301092 | AG58: 603.3 | AH58: 0.1631201839 | AI58: 6815.671027 | AJ58: 6734.1675 | AK58: 6774.177321 | BC58: 701300
A59: 27 | B59: =IF(A59>$A$8,"",OFFSET(InputPriceData!B$15,$A59+$A$11,0,1,1)) -> 2022-10-31 | C59: =IF(A59>$A$8,"",OFFSET(InputPriceData!G$15,CalculationsAndCharts!$A59+$A$11,IF($C$5,8,0),1,1)) -> 1019200 | D59: =IF(A59>$A$8,"",OFFSET(InputPriceData!C$15,CalculationsAndCharts!$A59+$A$11,IF($C$5,8,0),1,1)) -> 6786.7 | E59: =IF(A59>$A$8,"",OFFSET(InputPriceData!D$15,CalculationsAndCharts!$A59+$A$11,IF($C$5,8,0),1,1)) -> 6869.2 | F59: =IF(A59>$A$8,"",OFFSET(InputPriceData!E$15,CalculationsAndCharts!$A59+$A$11,IF($C$5,8,0),1,1)) -> 6786.7 | G59: =IF(A59>$A$8,"",OFFSET(InputPriceData!F$15,CalculationsAndCharts!$A59+$A$11,IF($C$5,8,0),1,1)) -> 6863.5 | H59: 83.5 | I59: 1760.1 | J59: 406.6 | K59: 0.2310096017 | L59: 6762.305549 | M59: 387.3 | N59: 0.2200443157 | O59: 6800.043698 | P59: 6749.57 | Q59: 6757.757896 | S59: 2752.7 | T59: 124.4 | U59: 0.04519199332 | V59: 6677.978453 | W59: 461.9 | X59: 0.1677988884 | Y59: 6788.891621 | Z59: 6690.21 | AA59: 6755.765604 | AC59: 3615 | AD59: 34.8 | AE59: 0.009626556017 | AF59: 6710.312737 | AG59: 603.3 | AH59: 0.1668879668 | AI59: 6784.245128 | AJ59: 6731.05 | AK59: 6763.781287 | BC59: 1019200
A60: 28 | B60: =IF(A60>$A$8,"",OFFSET(InputPriceData!B$15,$A60+$A$11,0,1,1)) -> 2022-10-28 | C60: =IF(A60>$A$8,"",OFFSET(InputPriceData!G$15,CalculationsAndCharts!$A60+$A$11,IF($C$5,8,0),1,1)) -> 784100 | D60: =IF(A60>$A$8,"",OFFSET(InputPriceData!C$15,CalculationsAndCharts!$A60+$A$11,IF($C$5,8,0),1,1)) -> 6827 | E60: =IF(A60>$A$8,"",OFFSET(InputPriceData!D$15,CalculationsAndCharts!$A60+$A$11,IF($C$5,8,0),1,1)) -> 6827 | F60: =IF(A60>$A$8,"",OFFSET(InputPriceData!E$15,CalculationsAndCharts!$A60+$A$11,IF($C$5,8,0),1,1)) -> 6776 | G60: =IF(A60>$A$8,"",OFFSET(InputPriceData!F$15,CalculationsAndCharts!$A60+$A$11,IF($C$5,8,0),1,1)) -> 6785.7 | H60: 69.1 | I60: 1768.2 | J60: 311.5 | K60: 0.1761678543 | L60: 6731.906092 | M60: 461.9 | N60: 0.2612261056 | O60: 6782.141144 | P60: 6729.24 | Q60: 6746.627148 | S60: 2775.8 | T60: 57.2 | U60: 0.02060667195 | V60: 6669.197537 | W60: 461.9 | X60: 0.1664024786 | Y60: 6773.848138 | Z60: 6686.063333 | AA60: 6748.335645 | AC60: 3565.9 | AD60: 59.9 | AE60: 0.01679800331 | AF60: 6708.823737 | AG60: 603.3 | AH60: 0.1691858998 | AI60: 6768.368891 | AJ60: 6730.18 | AK60: 6758.667507 | BD60: 784100
A61: 29 | B61: =IF(A61>$A$8,"",OFFSET(InputPriceData!B$15,$A61+$A$11,0,1,1)) -> 2022-10-27 | C61: =IF(A61>$A$8,"",OFFSET(InputPriceData!G$15,CalculationsAndCharts!$A61+$A$11,IF($C$5,8,0),1,1)) -> 779800 | D61: =IF(A61>$A$8,"",OFFSET(InputPriceData!C$15,CalculationsAndCharts!$A61+$A$11,IF($C$5,8,0),1,1)) -> 6829.6 | E61: =IF(A61>$A$8,"",OFFSET(InputPriceData!D$15,CalculationsAndCharts!$A61+$A$11,IF($C$5,8,0),1,1)) -> 6873.8 | F61: =IF(A61>$A$8,"",OFFSET(InputPriceData!E$15,CalculationsAndCharts!$A61+$A$11,IF($C$5,8,0),1,1)) -> 6824.3 | G61: =IF(A61>$A$8,"",OFFSET(InputPriceData!F$15,CalculationsAndCharts!$A61+$A$11,IF($C$5,8,0),1,1)) -> 6845.1 | H61: 62.9 | I61: 1801.7 | J61: 290.1 | K61: 0.1610145973 | L61: 6720.40283 | M61: 461.9 | N61: 0.2563689848 | O61: 6780.882754 | P61: 6713.665 | Q61: 6742.514216 | S61: 2756.2 | T61: 16.5 | U61: 0.005986503157 | V61: 6666.746298 | W61: 466.2 | X61: 0.1691459255 | Y61: 6771.482273 | Z61: 6687.97 | AA61: 6745.758793 | AC61: 3647.1 | AD61: 141.7 | AE61: 0.03885278715 | AF61: 6707.510307 | AG61: 603.3 | AH61: 0.1654191001 | AI61: 6764.839607 | AJ61: 6731.6775 | AK61: 6757.281225 | BC61: 779800
A62: 30 | B62: =IF(A62>$A$8,"",OFFSET(InputPriceData!B$15,$A62+$A$11,0,1,1)) -> 2022-10-26 | C62: =IF(A62>$A$8,"",OFFSET(InputPriceData!G$15,CalculationsAndCharts!$A62+$A$11,IF($C$5,8,0),1,1)) -> 821000 | D62: =IF(A62>$A$8,"",OFFSET(InputPriceData!C$15,CalculationsAndCharts!$A62+$A$11,IF($C$5,8,0),1,1)) -> 6809 | E62: =IF(A62>$A$8,"",OFFSET(InputPriceData!D$15,CalculationsAndCharts!$A62+$A$11,IF($C$5,8,0),1,1)) -> 6843.2 | F62: =IF(A62>$A$8,"",OFFSET(InputPriceData!E$15,CalculationsAndCharts!$A62+$A$11,IF($C$5,8,0),1,1)) -> 6800.8 | G62: =IF(A62>$A$8,"",OFFSET(InputPriceData!F$15,CalculationsAndCharts!$A62+$A$11,IF($C$5,8,0),1,1)) -> 6810.9 | H62: 44.6 | I62: 1871.5 | J62: 348.9 | K62: 0.1864279989 | L62: 6696.471467 | M62: 431.3 | N62: 0.2304568528 | O62: 6758.743669 | P62: 6699.16 | Q62: 6731.715712 | S62: 2894.4 | T62: 198.8 | U62: 0.068684356 | V62: 6665.672152 | W62: 596.3 | X62: 0.2060185185 | Y62: 6756.495119 | Z62: 6687.42 | AA62: 6738.907675 | AC62: 3645 | AD62: 187.4 | AE62: 0.05141289438 | AF62: 6701.948471 | AG62: 603.3 | AH62: 0.1655144033 | AI62: 6748.9315 | AJ62: 6735.22 | AK62: 6752.777698 | BC62: 821000
A63: 31 | B63: =IF(A63>$A$8,"",OFFSET(InputPriceData!B$15,$A63+$A$11,0,1,1)) -> 2022-10-25 | C63: =IF(A63>$A$8,"",OFFSET(InputPriceData!G$15,CalculationsAndCharts!$A63+$A$11,IF($C$5,8,0),1,1)) -> 751900 | D63: =IF(A63>$A$8,"",OFFSET(InputPriceData!C$15,CalculationsAndCharts!$A63+$A$11,IF($C$5,8,0),1,1)) -> 6780.4 | E63: =IF(A63>$A$8,"",OFFSET(InputPriceData!D$15,CalculationsAndCharts!$A63+$A$11,IF($C$5,8,0),1,1)) -> 6831.3 | F63: =IF(A63>$A$8,"",OFFSET(InputPriceData!E$15,CalculationsAndCharts!$A63+$A$11,IF($C$5,8,0),1,1)) -> 6780.4 | G63: =IF(A63>$A$8,"",OFFSET(InputPriceData!F$15,CalculationsAndCharts!$A63+$A$11,IF($C$5,8,0),1,1)) -> 6798.6 | H63: 51.9 | I63: 1910.3 | J63: 302.4 | K63: 0.1582997435 | L63: 6670.250453 | M63: 419.4 | N63: 0.2195466681 | O63: 6743.124293 | P63: 6681.715 | Q63: 6723.380524 | S63: 2900.5 | T63: 165.9 | U63: 0.05719703499 | V63: 6654.961625 | W63: 603.3 | X63: 0.2079986209 | Y63: 6742.3784 | Z63: 6694.046667 | AA63: 6733.942687 | AC63: 3654.9 | AD63: 166.9 | AE63: 0.04566472407 | AF63: 6696.043358 | AG63: 608.1 | AH63: 0.1663793811 | AI63: 6736.64048 | AJ63: 6739.905 | AK63: 6749.797067 | BC63: 751900
A64: 32 | B64: =IF(A64>$A$8,"",OFFSET(InputPriceData!B$15,$A64+$A$11,0,1,1)) -> 2022-10-24 | C64: =IF(A64>$A$8,"",OFFSET(InputPriceData!G$15,CalculationsAndCharts!$A64+$A$11,IF($C$5,8,0),1,1)) -> 683000 | D64: =IF(A64>$A$8,"",OFFSET(InputPriceData!C$15,CalculationsAndCharts!$A64+$A$11,IF($C$5,8,0),1,1)) -> 6716.5 | E64: =IF(A64>$A$8,"",OFFSET(InputPriceData!D$15,CalculationsAndCharts!$A64+$A$11,IF($C$5,8,0),1,1)) -> 6823.3 | F64: =IF(A64>$A$8,"",OFFSET(InputPriceData!E$15,CalculationsAndCharts!$A64+$A$11,IF($C$5,8,0),1,1)) -> 6716.5 | G64: =IF(A64>$A$8,"",OFFSET(InputPriceData!F$15,CalculationsAndCharts!$A64+$A$11,IF($C$5,8,0),1,1)) -> 6779.4 | H64: 146.5 | I64: 1898.5 | J64: 310 | K64: 0.1632868054 | L64: 6646.111574 | M64: 416.4 | N64: 0.2193310508 | O64: 6727.518611 | P64: 6666.595 | Q64: 6715.462685 | S64: 2929.3 | T64: 114.8 | U64: 0.03919025023 | V64: 6646.247515 | W64: 603.3 | X64: 0.2059536408 | Y64: 6727.613255 | Z64: 6699.576667 | AA64: 6729.483562 | AC64: 3763.9 | AD64: 324.7 | AE64: 0.08626690401 | AF64: 6691.136047 | AG64: 667.2 | AH64: 0.1772629453 | AI64: 6724.274199 | AJ64: 6744.0775 | AK64: 6747.294352 | BC64: 683000
A65: 33 | B65: =IF(A65>$A$8,"",OFFSET(InputPriceData!B$15,$A65+$A$11,0,1,1)) -> 2022-10-21 | C65: =IF(A65>$A$8,"",OFFSET(InputPriceData!G$15,CalculationsAndCharts!$A65+$A$11,IF($C$5,8,0),1,1)) -> 741700 | D65: =IF(A65>$A$8,"",OFFSET(InputPriceData!C$15,CalculationsAndCharts!$A65+$A$11,IF($C$5,8,0),1,1)) -> 6726.6 | E65: =IF(A65>$A$8,"",OFFSET(InputPriceData!D$15,CalculationsAndCharts!$A65+$A$11,IF($C$5,8,0),1,1)) -> 6726.6 | F65: =IF(A65>$A$8,"",OFFSET(InputPriceData!E$15,CalculationsAndCharts!$A65+$A$11,IF($C$5,8,0),1,1)) -> 6667.6 | G65: =IF(A65>$A$8,"",OFFSET(InputPriceData!F$15,CalculationsAndCharts!$A65+$A$11,IF($C$5,8,0),1,1)) -> 6676.8 | H65: 63.1 | I65: 1891.1 | J65: 102.1 | K65: 0.05398974142 | L65: 6620.099984 | M65: 416.4 | N65: 0.2201893078 | O65: 6712.942394 | P65: 6651.095 | Q65: 6708.732441 | S65: 2832.6 | T65: 171.9 | U65: 0.06068629528 | V65: 6640.816389 | W65: 603.3 | X65: 0.2129845372 | Y65: 6714.181208 | Z65: 6703.403333 | AA65: 6726.04105 | AC65: 3699.3 | AD65: 371.3 | AE65: 0.1003703403 | AF65: 6682.802915 | AG65: 718.1 | AH65: 0.1941178061 | AI65: 6712.397061 | AJ65: 6752.195 | AK65: 6745.647909 | BD65: 741700
A66: 34 | B66: =IF(A66>$A$8,"",OFFSET(InputPriceData!B$15,$A66+$A$11,0,1,1)) -> 2022-10-20 | C66: =IF(A66>$A$8,"",OFFSET(InputPriceData!G$15,CalculationsAndCharts!$A66+$A$11,IF($C$5,8,0),1,1)) -> 901000 | D66: =IF(A66>$A$8,"",OFFSET(InputPriceData!C$15,CalculationsAndCharts!$A66+$A$11,IF($C$5,8,0),1,1)) -> 6783.3 | E66: =IF(A66>$A$8,"",OFFSET(InputPriceData!D$15,CalculationsAndCharts!$A66+$A$11,IF($C$5,8,0),1,1)) -> 6783.3 | F66: =IF(A66>$A$8,"",OFFSET(InputPriceData!E$15,CalculationsAndCharts!$A66+$A$11,IF($C$5,8,0),1,1)) -> 6702.1 | G66: =IF(A66>$A$8,"",OFFSET(InputPriceData!F$15,CalculationsAndCharts!$A66+$A$11,IF($C$5,8,0),1,1)) -> 6730.7 | H66: 98 | I66: 1992.1 | J66: 30.5 | K66: 0.01531047638 | L66: 6616.864058 | M66: 416.4 | N66: 0.2090256513 | O66: 6723.147651 | P66: 6645.99 | Q66: 6712.09375 | S66: 2888.9 | T66: 1.4 | U66: 0.0004846135207 | V66: 6638.491593 | W66: 603.3 | X66: 0.2088338122 | Y66: 6724.297425 | Z66: 6709.133333 | AA66: 6729.436984 | AC66: 3701.9 | AD66: 267.4 | AE66: 0.07223317756 | AF66: 6683.472652 | AG66: 718.1 | AH66: 0.193981469 | AI66: 6720.971544 | AJ66: 6761.4775 | AK66: 6749.178571 | BD66: 901000
A67: 35 | B67: =IF(A67>$A$8,"",OFFSET(InputPriceData!B$15,$A67+$A$11,0,1,1)) -> 2022-10-19 | C67: =IF(A67>$A$8,"",OFFSET(InputPriceData!G$15,CalculationsAndCharts!$A67+$A$11,IF($C$5,8,0),1,1)) -> 745600 | D67: =IF(A67>$A$8,"",OFFSET(InputPriceData!C$15,CalculationsAndCharts!$A67+$A$11,IF($C$5,8,0),1,1)) -> 6778.4 | E67: =IF(A67>$A$8,"",OFFSET(InputPriceData!D$15,CalculationsAndCharts!$A67+$A$11,IF($C$5,8,0),1,1)) -> 6822.2 | F67: =IF(A67>$A$8,"",OFFSET(InputPriceData!E$15,CalculationsAndCharts!$A67+$A$11,IF($C$5,8,0),1,1)) -> 6777.5 | G67: =IF(A67>$A$8,"",OFFSET(InputPriceData!F$15,CalculationsAndCharts!$A67+$A$11,IF($C$5,8,0),1,1)) -> 6800.1 | H67: 44.7 | I67: 2005.5 | J67: 6.3 | K67: 0.003141361257 | L67: 6615.094076 | M67: 416.4 | N67: 0.2076290202 | O67: 6721.151841 | P67: 6644.465 | Q67: 6710.135198 | S67: 2897.8 | T67: 26.4 | U67: 0.009110359583 | V67: 6638.446886 | W67: 603.3 | X67: 0.2081924218 | Y67: 6722.607421 | Z67: 6709.086667 | AA67: 6729.349879 | AC67: 3655.8 | AD67: 161.7 | AE67: 0.04423108485 | AF67: 6679.79567 | AG67: 718.1 | AH67: 0.1964275945 | AI67: 6718.630233 | AJ67: 6768.1625 | AK67: 6750.12619 | BC67: 745600
A68: 36 | B68: =IF(A68>$A$8,"",OFFSET(InputPriceData!B$15,$A68+$A$11,0,1,1)) -> 2022-10-18 | C68: =IF(A68>$A$8,"",OFFSET(InputPriceData!G$15,CalculationsAndCharts!$A68+$A$11,IF($C$5,8,0),1,1)) -> 833600 | D68: =IF(A68>$A$8,"",OFFSET(InputPriceData!C$15,CalculationsAndCharts!$A68+$A$11,IF($C$5,8,0),1,1)) -> 6685.3 | E68: =IF(A68>$A$8,"",OFFSET(InputPriceData!D$15,CalculationsAndCharts!$A68+$A$11,IF($C$5,8,0),1,1)) -> 6790.7 | F68: =IF(A68>$A$8,"",OFFSET(InputPriceData!E$15,CalculationsAndCharts!$A68+$A$11,IF($C$5,8,0),1,1)) -> 6685.3 | G68: =IF(A68>$A$8,"",OFFSET(InputPriceData!F$15,CalculationsAndCharts!$A68+$A$11,IF($C$5,8,0),1,1)) -> 6779.2 | H68: 126.3 | I68: 2049.2 | J68: 59.3 | K68: 0.02893812219 | L68: 6614.511074 | M68: 416.4 | N68: 0.2032012493 | O68: 6700.464652 | P68: 6644.78 | Q68: 6700.665219 | S68: 2915.5 | T68: 73 | U68: 0.02503858686 | V68: 6636.960628 | W68: 603.3 | X68: 0.2069284857 | Y68: 6702.232056 | Z68: 6709.966667 | AA68: 6724.470561 | AC68: 3698.8 | AD68: 267.7 | AE68: 0.07237482427 | AF68: 6674.228225 | AG68: 718.1 | AH68: 0.1941440467 | AI68: 6698.715524 | AJ68: 6772.205 | AK68: 6747.563431 | BC68: 833600
A69: 37 | B69: =IF(A69>$A$8,"",OFFSET(InputPriceData!B$15,$A69+$A$11,0,1,1)) -> 2022-10-17 | C69: =IF(A69>$A$8,"",OFFSET(InputPriceData!G$15,CalculationsAndCharts!$A69+$A$11,IF($C$5,8,0),1,1)) -> 712300 | D69: =IF(A69>$A$8,"",OFFSET(InputPriceData!C$15,CalculationsAndCharts!$A69+$A$11,IF($C$5,8,0),1,1)) -> 6758.9 | E69: =IF(A69>$A$8,"",OFFSET(InputPriceData!D$15,CalculationsAndCharts!$A69+$A$11,IF($C$5,8,0),1,1)) -> 6758.9 | F69: =IF(A69>$A$8,"",OFFSET(InputPriceData!E$15,CalculationsAndCharts!$A69+$A$11,IF($C$5,8,0),1,1)) -> 6645.2 | G69: =IF(A69>$A$8,"",OFFSET(InputPriceData!F$15,CalculationsAndCharts!$A69+$A$11,IF($C$5,8,0),1,1)) -> 6664.4 | H69: 113.7 | I69: 1962.1 | J69: 74.7 | K69: 0.03807145405 | L69: 6609.603263 | M69: 416.4 | N69: 0.2122215993 | O69: 6680.385402 | P69: 6641.815 | Q69: 6692.3984 | S69: 2824.4 | T69: 164.3 | U69: 0.05817164708 | V69: 6633.307691 | W69: 603.3 | X69: 0.2136028891 | Y69: 6682.149555 | Z69: 6712.4 | AA69: 6720.696117 | AC69: 3655.3 | AD69: 450.1 | AE69: 0.1231362679 | AF69: 6666.038156 | AG69: 718.1 | AH69: 0.1964544634 | AI69: 6679.32548 | AJ69: 6778.8975 | AK69: 6745.941042 | BD69: 712300
A70: 38 | B70: =IF(A70>$A$8,"",OFFSET(InputPriceData!B$15,$A70+$A$11,0,1,1)) -> 2022-10-14 | C70: =IF(A70>$A$8,"",OFFSET(InputPriceData!G$15,CalculationsAndCharts!$A70+$A$11,IF($C$5,8,0),1,1)) -> 663900 | D70: =IF(A70>$A$8,"",OFFSET(InputPriceData!C$15,CalculationsAndCharts!$A70+$A$11,IF($C$5,8,0),1,1)) -> 6668.6 | E70: =IF(A70>$A$8,"",OFFSET(InputPriceData!D$15,CalculationsAndCharts!$A70+$A$11,IF($C$5,8,0),1,1)) -> 6772.6 | F70: =IF(A70>$A$8,"",OFFSET(InputPriceData!E$15,CalculationsAndCharts!$A70+$A$11,IF($C$5,8,0),1,1)) -> 6667.8 | G70: =IF(A70>$A$8,"",OFFSET(InputPriceData!F$15,CalculationsAndCharts!$A70+$A$11,IF($C$5,8,0),1,1)) -> 6758.8 | H70: 130 | I70: 1955 | J70: 84.1 | K70: 0.04301790281 | L70: 6607.434504 | M70: 416.4 | N70: 0.2129923274 | O70: 6684.691749 | P70: 6645.55 | Q70: 6695.3456 | S70: 2745.1 | T70: 86.8 | U70: 0.03161997741 | V70: 6631.387287 | W70: 603.3 | X70: 0.2197734144 | Y70: 6686.970727 | Z70: 6717.876667 | AA70: 6724.578608 | AC70: 3571.2 | AD70: 354 | AE70: 0.09912634409 | AF70: 6666.268199 | AG70: 725.6 | AH70: 0.2031810036 | AI70: 6682.97453 | AJ70: 6790.15 | AK70: 6750.122634 | BC70: 663900
A71: 39 | B71: =IF(A71>$A$8,"",OFFSET(InputPriceData!B$15,$A71+$A$11,0,1,1)) -> 2022-10-13 | C71: =IF(A71>$A$8,"",OFFSET(InputPriceData!G$15,CalculationsAndCharts!$A71+$A$11,IF($C$5,8,0),1,1)) -> 710100 | D71: =IF(A71>$A$8,"",OFFSET(InputPriceData!C$15,CalculationsAndCharts!$A71+$A$11,IF($C$5,8,0),1,1)) -> 6641.9 | E71: =IF(A71>$A$8,"",OFFSET(InputPriceData!D$15,CalculationsAndCharts!$A71+$A$11,IF($C$5,8,0),1,1)) -> 6683.7 | F71: =IF(A71>$A$8,"",OFFSET(InputPriceData!E$15,CalculationsAndCharts!$A71+$A$11,IF($C$5,8,0),1,1)) -> 6638.9 | G71: =IF(A71>$A$8,"",OFFSET(InputPriceData!F$15,CalculationsAndCharts!$A71+$A$11,IF($C$5,8,0),1,1)) -> 6642.6 | H71: 44.8 | I71: 1874.5 | J71: 186 | K71: 0.09922646039 | L71: 6600.630378 | M71: 466.2 | N71: 0.2487063217 | O71: 6664.635415 | P71: 6649.755 | Q71: 6688.666189 | S71: 2765.4 | T71: 344.2 | U71: 0.1244666233 | V71: 6627.22695 | W71: 603.3 | X71: 0.2181601215 | Y71: 6666.737932 | Z71: 6720.77 | AA71: 6722.218511 | AC71: 3487.9 | AD71: 485.1 | AE71: 0.1390808223 | AF71: 6656.086595 | AG71: 725.6 | AH71: 0.2080334872 | AI71: 6663.639781 | AJ71: 6799 | AK71: 6749.677641 | BD71: 710100
A72: 40 | B72: =IF(A72>$A$8,"",OFFSET(InputPriceData!B$15,$A72+$A$11,0,1,1)) -> 2022-10-12 | C72: =IF(A72>$A$8,"",OFFSET(InputPriceData!G$15,CalculationsAndCharts!$A72+$A$11,IF($C$5,8,0),1,1)) -> 723700 | D72: =IF(A72>$A$8,"",OFFSET(InputPriceData!C$15,CalculationsAndCharts!$A72+$A$11,IF($C$5,8,0),1,1)) -> 6647.8 | E72: =IF(A72>$A$8,"",OFFSET(InputPriceData!D$15,CalculationsAndCharts!$A72+$A$11,IF($C$5,8,0),1,1)) -> 6672 | F72: =IF(A72>$A$8,"",OFFSET(InputPriceData!E$15,CalculationsAndCharts!$A72+$A$11,IF($C$5,8,0),1,1)) -> 6633 | G72: =IF(A72>$A$8,"",OFFSET(InputPriceData!F$15,CalculationsAndCharts!$A72+$A$11,IF($C$5,8,0),1,1)) -> 6647.5 | H72: 39 | I72: 2030.8 | J72: 362.2 | K72: 0.1783533583 | L72: 6596.007133 | M72: 596.3 | N72: 0.2936281268 | O72: 6671.929962 | P72: 6659.055 | Q72: 6693.515262 | S72: 2781.4 | T72: 350.8 | U72: 0.1261235349 | V72: 6625.041503 | W72: 603.3 | X72: 0.2169051557 | Y72: 6673.473243 | Z72: 6732.243333 | AA72: 6727.709443 | AC72: 3490.7 | AD72: 457.9 | AE72: 0.1311771278 | AF72: 6658.265344 | AG72: 725.6 | AH72: 0.207866617 | AI72: 6669.166503 | AJ72: 6811.1275 | AK72: 6755.168802 | BC72: 723700
A73: 41 | B73: =IF(A73>$A$8,"",OFFSET(InputPriceData!B$15,$A73+$A$11,0,1,1)) -> 2022-10-11 | C73: =IF(A73>$A$8,"",OFFSET(InputPriceData!G$15,CalculationsAndCharts!$A73+$A$11,IF($C$5,8,0),1,1)) -> 747400 | D73: =IF(A73>$A$8,"",OFFSET(InputPriceData!C$15,CalculationsAndCharts!$A73+$A$11,IF($C$5,8,0),1,1)) -> 6685.5 | E73: =IF(A73>$A$8,"",OFFSET(InputPriceData!D$15,CalculationsAndCharts!$A73+$A$11,IF($C$5,8,0),1,1)) -> 6712.5 | F73: =IF(A73>$A$8,"",OFFSET(InputPriceData!E$15,CalculationsAndCharts!$A73+$A$11,IF($C$5,8,0),1,1)) -> 6645 | G73: =IF(A73>$A$8,"",OFFSET(InputPriceData!F$15,CalculationsAndCharts!$A73+$A$11,IF($C$5,8,0),1,1)) -> 6645 | H73: 67.5 | I73: 2042.5 | J73: 319.5 | K73: 0.1564259486 | L73: 6584.829669 | M73: 603.3 | N73: 0.295373317 | O73: 6682.085129 | P73: 6677.165 | Q73: 6698.358973 | S73: 2796.9 | T73: 320.5 | U73: 0.1145911545 | V73: 6621.800146 | W73: 608.1 | X73: 0.2174192856 | Y73: 6680.667429 | Z73: 6743.936667 | AA73: 6733.241129 | AC73: 3519 | AD73: 419.3 | AE73: 0.1191531685 | AF73: 6659.890724 | AG73: 725.6 | AH73: 0.2061949417 | AI73: 6674.852089 | AJ73: 6822.575 | AK73: 6760.690279 | BD73: 747400
A74: 42 | B74: =IF(A74>$A$8,"",OFFSET(InputPriceData!B$15,$A74+$A$11,0,1,1)) -> 2022-10-10 | C74: =IF(A74>$A$8,"",OFFSET(InputPriceData!G$15,CalculationsAndCharts!$A74+$A$11,IF($C$5,8,0),1,1)) -> 600800 | D74: =IF(A74>$A$8,"",OFFSET(InputPriceData!C$15,CalculationsAndCharts!$A74+$A$11,IF($C$5,8,0),1,1)) -> 6750.3 | E74: =IF(A74>$A$8,"",OFFSET(InputPriceData!D$15,CalculationsAndCharts!$A74+$A$11,IF($C$5,8,0),1,1)) -> 6750.3 | F74: =IF(A74>$A$8,"",OFFSET(InputPriceData!E$15,CalculationsAndCharts!$A74+$A$11,IF($C$5,8,0),1,1)) -> 6646.8 | G74: =IF(A74>$A$8,"",OFFSET(InputPriceData!F$15,CalculationsAndCharts!$A74+$A$11,IF($C$5,8,0),1,1)) -> 6667.8 | H74: 116 | I74: 2055.7 | J74: 226.4 | K74: 0.1101328015 | L74: 6573.672141 | M74: 603.3 | N74: 0.2934766746 | O74: 6697.630889 | P74: 6693.14 | Q74: 6703.975707 | S74: 2890.3 | T74: 436.3 | U74: 0.1509531883 | V74: 6618.797581 | W74: 667.2 | X74: 0.2308410892 | Y74: 6690.576678 | Z74: 6754.62 | AA74: 6739.326724 | AC74: 3495 | AD74: 364.7 | AE74: 0.1043490701 | AF74: 6661.905009 | AG74: 725.6 | AH74: 0.2076108727 | AI74: 6682.606323 | AJ74: 6833.0575 | AK74: 6766.623114 | BD74: 600800
A75: 43 | B75: =IF(A75>$A$8,"",OFFSET(InputPriceData!B$15,$A75+$A$11,0,1,1)) -> 2022-10-07 | C75: =IF(A75>$A$8,"",OFFSET(InputPriceData!G$15,CalculationsAndCharts!$A75+$A$11,IF($C$5,8,0),1,1)) -> 689000 | D75: =IF(A75>$A$8,"",OFFSET(InputPriceData!C$15,CalculationsAndCharts!$A75+$A$11,IF($C$5,8,0),1,1)) -> 6805.1 | E75: =IF(A75>$A$8,"",OFFSET(InputPriceData!D$15,CalculationsAndCharts!$A75+$A$11,IF($C$5,8,0),1,1)) -> 6806.4 | F75: =IF(A75>$A$8,"",OFFSET(InputPriceData!E$15,CalculationsAndCharts!$A75+$A$11,IF($C$5,8,0),1,1)) -> 6762.7 | G75: =IF(A75>$A$8,"",OFFSET(InputPriceData!F$15,CalculationsAndCharts!$A75+$A$11,IF($C$5,8,0),1,1)) -> 6762.8 | H75: 54.8 | I75: 1989.5 | J75: 85.9 | K75: 0.04317667756 | L75: 6562.022577 | M75: 603.3 | N75: 0.3032420206 | O75: 6710.022086 | P75: 6704.46 | Q75: 6707.783677 | S75: 2856.2 | T75: 285.3 | U75: 0.09988796303 | V75: 6610.085374 | W75: 718.1 | X75: 0.2514179679 | Y75: 6697.412447 | Z75: 6769.163333 | AA75: 6744.259602 | AC75: 3437.9 | AD75: 308.2 | AE75: 0.08964775008 | AF75: 6661.218205 | AG75: 725.6 | AH75: 0.2110590768 | AI75: 6686.485672 | AJ75: 6842.175 | AK75: 6771.690966 | BD75: 689000
A76: 44 | B76: =IF(A76>$A$8,"",OFFSET(InputPriceData!B$15,$A76+$A$11,0,1,1)) -> 2022-10-06 | C76: =IF(A76>$A$8,"",OFFSET(InputPriceData!G$15,CalculationsAndCharts!$A76+$A$11,IF($C$5,8,0),1,1)) -> 810300 | D76: =IF(A76>$A$8,"",OFFSET(InputPriceData!C$15,CalculationsAndCharts!$A76+$A$11,IF($C$5,8,0),1,1)) -> 6815.6 | E76: =IF(A76>$A$8,"",OFFSET(InputPriceData!D$15,CalculationsAndCharts!$A76+$A$11,IF($C$5,8,0),1,1)) -> 6828.3 | F76: =IF(A76>$A$8,"",OFFSET(InputPriceData!E$15,CalculationsAndCharts!$A76+$A$11,IF($C$5,8,0),1,1)) -> 6787.4 | G76: =IF(A76>$A$8,"",OFFSET(InputPriceData!F$15,CalculationsAndCharts!$A76+$A$11,IF($C$5,8,0),1,1)) -> 6817.5 | H76: 40.9 | I76: 2054.1 | J76: 88.2 | K76: 0.04293851322 | L76: 6552.96249 | M76: 603.3 | N76: 0.2937052724 | O76: 6687.052157 | P76: 6708.755 | Q76: 6701.992485 | S76: 2867.1 | T76: 180.6 | U76: 0.06299047818 | V76: 6593.138203 | W76: 718.1 | X76: 0.2504621394 | Y76: 6675.451453 | Z76: 6778.673333 | AA76: 6742.980954 | AC76: 3467.5 | AD76: 175.2 | AE76: 0.05052631579 | AF76: 6651.214847 | AG76: 725.6 | AH76: 0.2092573901 | AI76: 6666.069908 | AJ76: 6849.88 | AK76: 6772.146913 | BC76: 810300
A77: 45 | B77: =IF(A77>$A$8,"",OFFSET(InputPriceData!B$15,$A77+$A$11,0,1,1)) -> 2022-10-05 | C77: =IF(A77>$A$8,"",OFFSET(InputPriceData!G$15,CalculationsAndCharts!$A77+$A$11,IF($C$5,8,0),1,1)) -> 1063300 | D77: =IF(A77>$A$8,"",OFFSET(InputPriceData!C$15,CalculationsAndCharts!$A77+$A$11,IF($C$5,8,0),1,1)) -> 6719.6 | E77: =IF(A77>$A$8,"",OFFSET(InputPriceData!D$15,CalculationsAndCharts!$A77+$A$11,IF($C$5,8,0),1,1)) -> 6819.7 | F77: =IF(A77>$A$8,"",OFFSET(InputPriceData!E$15,CalculationsAndCharts!$A77+$A$11,IF($C$5,8,0),1,1)) -> 6719.4 | G77: =IF(A77>$A$8,"",OFFSET(InputPriceData!F$15,CalculationsAndCharts!$A77+$A$11,IF($C$5,8,0),1,1)) -> 6815.7 | H77: 120.4 | I77: 2120.1 | J77: 10.8 | K77: 0.005094099335 | L77: 6541.094029 | M77: 603.3 | N77: 0.284562049 | O77: 6632.806787 | P77: 6704.345 | Q77: 6689.833799 | S77: 2878.1 | T77: 146.1 | U77: 0.05076265592 | V77: 6578.055478 | W77: 718.1 | X77: 0.2495048817 | Y77: 6627.985161 | Z77: 6784.693333 | AA77: 6737.841709 | AC77: 3470.7 | AD77: 214.1 | AE77: 0.06168784395 | AF77: 6642.36597 | AG77: 725.6 | AH77: 0.2090644539 | AI77: 6625.996355 | AJ77: 6854.26 | AK77: 6769.821114 | BC77: 1063300
A78: 46 | B78: =IF(A78>$A$8,"",OFFSET(InputPriceData!B$15,$A78+$A$11,0,1,1)) -> 2022-10-04 | C78: =IF(A78>$A$8,"",OFFSET(InputPriceData!G$15,CalculationsAndCharts!$A78+$A$11,IF($C$5,8,0),1,1)) -> 1010500 | D78: =IF(A78>$A$8,"",OFFSET(InputPriceData!C$15,CalculationsAndCharts!$A78+$A$11,IF($C$5,8,0),1,1)) -> 6486.5 | E78: =IF(A78>$A$8,"",OFFSET(InputPriceData!D$15,CalculationsAndCharts!$A78+$A$11,IF($C$5,8,0),1,1)) -> 6699.3 | F78: =IF(A78>$A$8,"",OFFSET(InputPriceData!E$15,CalculationsAndCharts!$A78+$A$11,IF($C$5,8,0),1,1)) -> 6486.5 | G78: =IF(A78>$A$8,"",OFFSET(InputPriceData!F$15,CalculationsAndCharts!$A78+$A$11,IF($C$5,8,0),1,1)) -> 6699.3 | H78: 242.4 | I78: 2062.1 | J78: 152.9 | K78: 0.0741477135 | L78: 6539.687996 | M78: 603.3 | N78: 0.2925658309 | O78: 6560.061879 | P78: 6704.885 | Q78: 6676.584725 | S78: 2845.4 | T78: 347.6 | U78: 0.1221620862 | V78: 6565.346889 | W78: 718.1 | X78: 0.2523722499 | Y78: 6565.578668 | Z78: 6789.563333 | AA78: 6732.472172 | AC78: 3371.8 | AD78: 321.3 | AE78: 0.09529034937 | AF78: 6630.970399 | AG78: 725.6 | AH78: 0.2151966309 | AI78: 6575.852839 | AJ78: 6859.6125 | AK78: 6767.46835 | BC78: 1010500
A79: 47 | B79: =IF(A79>$A$8,"",OFFSET(InputPriceData!B$15,$A79+$A$11,0,1,1)) -> 2022-10-03 | C79: =IF(A79>$A$8,"",OFFSET(InputPriceData!G$15,CalculationsAndCharts!$A79+$A$11,IF($C$5,8,0),1,1)) -> 647000 | D79: =IF(A79>$A$8,"",OFFSET(InputPriceData!C$15,CalculationsAndCharts!$A79+$A$11,IF($C$5,8,0),1,1)) -> 6485.6 | E79: =IF(A79>$A$8,"",OFFSET(InputPriceData!D$15,CalculationsAndCharts!$A79+$A$11,IF($C$5,8,0),1,1)) -> 6503.5 | F79: =IF(A79>$A$8,"",OFFSET(InputPriceData!E$15,CalculationsAndCharts!$A79+$A$11,IF($C$5,8,0),1,1)) -> 6411.9 | G79: =IF(A79>$A$8,"",OFFSET(InputPriceData!F$15,CalculationsAndCharts!$A79+$A$11,IF($C$5,8,0),1,1)) -> 6456.9 | H79: 91.6 | I79: 1854.9 | J79: 371.8 | K79: 0.2004420723 | L79: 6526.905326 | M79: 603.3 | N79: 0.325246644 | O79: 6502.478689 | P79: 6712.53 | Q79: 6674.193643 | S79: 2685.8 | T79: 657.6 | U79: 0.2448432497 | V79: 6546.705644 | W79: 718.1 | X79: 0.2673691265 | Y79: 6520.439153 | Z79: 6801.15 | AA79: 6734.759908 | AC79: 3169.5 | AD79: 558.7 | AE79: 0.1762738602 | AF79: 6623.773447 | AG79: 725.6 | AH79: 0.2289320082 | AI79: 6542.003069 | AJ79: 6867.645 | AK79: 6770.964163 | BD79: 647000
A80: 48 | B80: =IF(A80>$A$8,"",OFFSET(InputPriceData!B$15,$A80+$A$11,0,1,1)) -> 2022-09-30 | C80: =IF(A80>$A$8,"",OFFSET(InputPriceData!G$15,CalculationsAndCharts!$A80+$A$11,IF($C$5,8,0),1,1)) -> 1008100 | D80: =IF(A80>$A$8,"",OFFSET(InputPriceData!C$15,CalculationsAndCharts!$A80+$A$11,IF($C$5,8,0),1,1)) -> 6563.2 | E80: =IF(A80>$A$8,"",OFFSET(InputPriceData!D$15,CalculationsAndCharts!$A80+$A$11,IF($C$5,8,0),1,1)) -> 6563.2 | F80: =IF(A80>$A$8,"",OFFSET(InputPriceData!E$15,CalculationsAndCharts!$A80+$A$11,IF($C$5,8,0),1,1)) -> 6460.6 | G80: =IF(A80>$A$8,"",OFFSET(InputPriceData!F$15,CalculationsAndCharts!$A80+$A$11,IF($C$5,8,0),1,1)) -> 6474.2 | H80: 102.6 | I80: 1797.7 | J80: 371.4 | K80: 0.2065973188 | L80: 6544.455039 | M80: 582.1 | N80: 0.3238026367 | O80: 6524.448666 | P80: 6731.12 | Q80: 6697.066659 | S80: 2623.8 | T80: 638.6 | U80: 0.2433874533 | V80: 6575.823183 | W80: 704.4 | X80: 0.2684655843 | Y80: 6543.627376 | Z80: 6823.07 | AA80: 6753.92266 | AC80: 3124.9 | AD80: 500.7 | AE80: 0.1602291273 | AF80: 6659.483649 | AG80: 704.4 | AH80: 0.2254152133 | AI80: 6567.270383 | AJ80: 6881.6125 | AK80: 6787.070018 | BD80: 1008100
A81: 49 | B81: =IF(A81>$A$8,"",OFFSET(InputPriceData!B$15,$A81+$A$11,0,1,1)) -> 2022-09-29 | C81: =IF(A81>$A$8,"",OFFSET(InputPriceData!G$15,CalculationsAndCharts!$A81+$A$11,IF($C$5,8,0),1,1)) -> 846900 | D81: =IF(A81>$A$8,"",OFFSET(InputPriceData!C$15,CalculationsAndCharts!$A81+$A$11,IF($C$5,8,0),1,1)) -> 6488.4 | E81: =IF(A81>$A$8,"",OFFSET(InputPriceData!D$15,CalculationsAndCharts!$A81+$A$11,IF($C$5,8,0),1,1)) -> 6594.7 | F81: =IF(A81>$A$8,"",OFFSET(InputPriceData!E$15,CalculationsAndCharts!$A81+$A$11,IF($C$5,8,0),1,1)) -> 6488.4 | G81: =IF(A81>$A$8,"",OFFSET(InputPriceData!F$15,CalculationsAndCharts!$A81+$A$11,IF($C$5,8,0),1,1)) -> 6555 | H81: 132.7 | I81: 1845.4 | J81: 431.8 | K81: 0.2339872114 | L81: 6562.749032 | M81: 582.1 | N81: 0.3154329685 | O81: 6548.510651 | P81: 6749.69 | Q81: 6720.526307 | S81: 2567.9 | T81: 572.7 | U81: 0.2230227034 | V81: 6608.513373 | W81: 704.4 | X81: 0.2743097473 | Y81: 6569.106507 | Z81: 6844.356667 | AA81: 6773.213878 | AC81: 3068.5 | AD81: 420.9 | AE81: 0.1371679974 | AF81: 6694.835956 | AG81: 704.4 | AH81: 0.2295584162 | AI81: 6594.355191 | AJ81: 6894.13 | AK81: 6803.114634 | BC81: 846900
A82: 50 | B82: =IF(A82>$A$8,"",OFFSET(InputPriceData!B$15,$A82+$A$11,0,1,1)) -> 2022-09-28 | C82: =IF(A82>$A$8,"",OFFSET(InputPriceData!G$15,CalculationsAndCharts!$A82+$A$11,IF($C$5,8,0),1,1)) -> 973100 | D82: =IF(A82>$A$8,"",OFFSET(InputPriceData!C$15,CalculationsAndCharts!$A82+$A$11,IF($C$5,8,0),1,1)) -> 6510.6 | E82: =IF(A82>$A$8,"",OFFSET(InputPriceData!D$15,CalculationsAndCharts!$A82+$A$11,IF($C$5,8,0),1,1)) -> 6516.5 | F82: =IF(A82>$A$8,"",OFFSET(InputPriceData!E$15,CalculationsAndCharts!$A82+$A$11,IF($C$5,8,0),1,1)) -> 6433.1 | G82: =IF(A82>$A$8,"",OFFSET(InputPriceData!F$15,CalculationsAndCharts!$A82+$A$11,IF($C$5,8,0),1,1)) -> 6462 | H82: 83.4 | I82: 1773.5 | J82: 536.3 | K82: 0.3023963913 | L82: 6565.11606 | M82: 582.1 | N82: 0.3282210319 | O82: 6545.520506 | P82: 6771.28 | Q82: 6737.950129 | S82: 2482.8 | T82: 643.4 | U82: 0.2591429032 | V82: 6623.873792 | W82: 704.4 | X82: 0.2837119381 | Y82: 6574.438743 | Z82: 6863.446667 | AA82: 6788.263111 | AC82: 3015.7 | AD82: 536.1 | AE82: 0.177769672 | AF82: 6717.06626 | AG82: 704.4 | AH82: 0.2335776105 | AI82: 6606.081343 | AJ82: 6904.6525 | AK82: 6815.838461 | BD82: 973100
A83: 51 | B83: =IF(A83>$A$8,"",OFFSET(InputPriceData!B$15,$A83+$A$11,0,1,1)) -> 2022-09-27 | C83: =IF(A83>$A$8,"",OFFSET(InputPriceData!G$15,CalculationsAndCharts!$A83+$A$11,IF($C$5,8,0),1,1)) -> 1006700 | D83: =IF(A83>$A$8,"",OFFSET(InputPriceData!C$15,CalculationsAndCharts!$A83+$A$11,IF($C$5,8,0),1,1)) -> 6483 | E83: =IF(A83>$A$8,"",OFFSET(InputPriceData!D$15,CalculationsAndCharts!$A83+$A$11,IF($C$5,8,0),1,1)) -> 6509.5 | F83: =IF(A83>$A$8,"",OFFSET(InputPriceData!E$15,CalculationsAndCharts!$A83+$A$11,IF($C$5,8,0),1,1)) -> 6472.5 | G83: =IF(A83>$A$8,"",OFFSET(InputPriceData!F$15,CalculationsAndCharts!$A83+$A$11,IF($C$5,8,0),1,1)) -> 6496.2 | H83: 40.1 | I83: 1744.6 | J83: 469.3 | K83: 0.2690014903 | L83: 6609.814689 | M83: 584.4 | N83: 0.3349764989 | O83: 6586.32736 | P83: 6798.095 | Q83: 6766.99751 | S83: 2466.7 | T83: 568.1 | U83: 0.2303076985 | V83: 6680.495298 | W83: 701.9 | X83: 0.2845502088 | Y83: 6618.974197 | Z83: 6884.893333 | AA83: 6810.764015 | AC83: 2991.2 | AD83: 496.8 | AE83: 0.1660871891 | AF83: 6772.212663 | AG83: 701.9 | AH83: 0.234654988 | AI83: 6649.992085 | AJ83: 6918.055 | AK83: 6833.984024 | BC83: 1006700
A84: 52 | B84: =IF(A84>$A$8,"",OFFSET(InputPriceData!B$15,$A84+$A$11,0,1,1)) -> 2022-09-26 | C84: =IF(A84>$A$8,"",OFFSET(InputPriceData!G$15,CalculationsAndCharts!$A84+$A$11,IF($C$5,8,0),1,1)) -> 1093300 | D84: =IF(A84>$A$8,"",OFFSET(InputPriceData!C$15,CalculationsAndCharts!$A84+$A$11,IF($C$5,8,0),1,1)) -> 6541.5 | E84: =IF(A84>$A$8,"",OFFSET(InputPriceData!D$15,CalculationsAndCharts!$A84+$A$11,IF($C$5,8,0),1,1)) -> 6544.6 | F84: =IF(A84>$A$8,"",OFFSET(InputPriceData!E$15,CalculationsAndCharts!$A84+$A$11,IF($C$5,8,0),1,1)) -> 6435.6 | G84: =IF(A84>$A$8,"",OFFSET(InputPriceData!F$15,CalculationsAndCharts!$A84+$A$11,IF($C$5,8,0),1,1)) -> 6469.4 | H84: 139.1 | I84: 1865.4 | J84: 634.7 | K84: 0.3402487402 | L84: 6651.623968 | M84: 643.5 | N84: 0.3449662271 | O84: 6631.725075 | P84: 6821.56 | Q84: 6795.502512 | S84: 2470.1 | T84: 563.1 | U84: 0.2279664791 | V84: 6735.640225 | W84: 701.9 | X84: 0.2841585361 | Y84: 6667.804211 | Z84: 6903.83 | AA84: 6832.458085 | AC84: 3000 | AD84: 475.8 | AE84: 0.1586 | AF84: 6827.185038 | AG84: 701.9 | AH84: 0.2339666667 | AI84: 6697.14478 | AJ84: 6930.475 | AK84: 6851.306281 | BD84: 1093300
A85: 53 | B85: =IF(A85>$A$8,"",OFFSET(InputPriceData!B$15,$A85+$A$11,0,1,1)) -> 2022-09-23 | C85: =IF(A85>$A$8,"",OFFSET(InputPriceData!G$15,CalculationsAndCharts!$A85+$A$11,IF($C$5,8,0),1,1)) -> 908200 | D85: =IF(A85>$A$8,"",OFFSET(InputPriceData!C$15,CalculationsAndCharts!$A85+$A$11,IF($C$5,8,0),1,1)) -> 6707.3 | E85: =IF(A85>$A$8,"",OFFSET(InputPriceData!D$15,CalculationsAndCharts!$A85+$A$11,IF($C$5,8,0),1,1)) -> 6709 | F85: =IF(A85>$A$8,"",OFFSET(InputPriceData!E$15,CalculationsAndCharts!$A85+$A$11,IF($C$5,8,0),1,1)) -> 6544.9 | G85: =IF(A85>$A$8,"",OFFSET(InputPriceData!F$15,CalculationsAndCharts!$A85+$A$11,IF($C$5,8,0),1,1)) -> 6574.7 | H85: 164.1 | I85: 1808.2 | J85: 473.4 | K85: 0.2618073222 | L85: 6745.601015 | M85: 585.1 | N85: 0.3235814622 | O85: 6717.211764 | P85: 6853.295 | Q85: 6829.829092 | S85: 2389.9 | T85: 496.3 | U85: 0.2076655927 | V85: 6814.255784 | W85: 592.6 | X85: 0.2479601657 | Y85: 6746.562223 | Z85: 6922.6 | AA85: 6857.496574 | AC85: 2944.8 | AD85: 315 | AE85: 0.1069682152 | AF85: 6894.625859 | AG85: 592.6 | AH85: 0.2012360772 | AI85: 6766.704007 | AJ85: 6942.37 | AK85: 6870.891219 | BD85: 908200
A86: 54 | B86: =IF(A86>$A$8,"",OFFSET(InputPriceData!B$15,$A86+$A$11,0,1,1)) -> 2022-09-21 | C86: =IF(A86>$A$8,"",OFFSET(InputPriceData!G$15,CalculationsAndCharts!$A86+$A$11,IF($C$5,8,0),1,1)) -> 832400 | D86: =IF(A86>$A$8,"",OFFSET(InputPriceData!C$15,CalculationsAndCharts!$A86+$A$11,IF($C$5,8,0),1,1)) -> 6786.6 | E86: =IF(A86>$A$8,"",OFFSET(InputPriceData!D$15,CalculationsAndCharts!$A86+$A$11,IF($C$5,8,0),1,1)) -> 6786.6 | F86: =IF(A86>$A$8,"",OFFSET(InputPriceData!E$15,CalculationsAndCharts!$A86+$A$11,IF($C$5,8,0),1,1)) -> 6695 | G86: =IF(A86>$A$8,"",OFFSET(InputPriceData!F$15,CalculationsAndCharts!$A86+$A$11,IF($C$5,8,0),1,1)) -> 6700.2 | H86: 111.4 | I86: 1709.8 | J86: 297.9 | K86: 0.1742309042 | L86: 6806.212748 | M86: 435 | N86: 0.2544157211 | O86: 6785.385776 | P86: 6876.965 | Q86: 6856.684786 | S86: 2310.2 | T86: 292.5 | U86: 0.1266124145 | V86: 6877.041766 | W86: 442.5 | X86: 0.1915418578 | Y86: 6803.228085 | Z86: 6939.143333 | AA86: 6876.999785 | AC86: 2849.6 | AD86: 123 | AE86: 0.04316395284 | AF86: 6932.94689 | AG86: 442.5 | AH86: 0.1552849523 | AI86: 6815.076414 | AJ86: 6950.245 | AK86: 6886.080512 | BD86: 832400
A87: 55 | B87: =IF(A87>$A$8,"",OFFSET(InputPriceData!B$15,$A87+$A$11,0,1,1)) -> 2022-09-20 | C87: =IF(A87>$A$8,"",OFFSET(InputPriceData!G$15,CalculationsAndCharts!$A87+$A$11,IF($C$5,8,0),1,1)) -> 667600 | D87: =IF(A87>$A$8,"",OFFSET(InputPriceData!C$15,CalculationsAndCharts!$A87+$A$11,IF($C$5,8,0),1,1)) -> 6743.8 | E87: =IF(A87>$A$8,"",OFFSET(InputPriceData!D$15,CalculationsAndCharts!$A87+$A$11,IF($C$5,8,0),1,1)) -> 6808.3 | F87: =IF(A87>$A$8,"",OFFSET(InputPriceData!E$15,CalculationsAndCharts!$A87+$A$11,IF($C$5,8,0),1,1)) -> 6740.8 | G87: =IF(A87>$A$8,"",OFFSET(InputPriceData!F$15,CalculationsAndCharts!$A87+$A$11,IF($C$5,8,0),1,1)) -> 6806.4 | H87: 88.4 | I87: 1650.3 | J87: 155.4 | K87: 0.09416469733 | L87: 6828.580619 | M87: 415.3 | N87: 0.2516512149 | O87: 6814.453718 | P87: 6891.86 | Q87: 6873.156868 | S87: 2242.9 | T87: 223.4 | U87: 0.0996031923 | V87: 6902.677994 | W87: 422.8 | X87: 0.1885059521 | Y87: 6827.637747 | Z87: 6948.893333 | AA87: 6889.192874 | AC87: 2792.7 | AD87: 0.9 | AE87: 0.0003222687722 | AF87: 6943.446364 | AG87: 422.8 | AH87: 0.1513947076 | AI87: 6836.194279 | AJ87: 6953.32 | AK87: 6895.612846 | BC87: 667600
A88: 56 | B88: =IF(A88>$A$8,"",OFFSET(InputPriceData!B$15,$A88+$A$11,0,1,1)) -> 2022-09-19 | C88: =IF(A88>$A$8,"",OFFSET(InputPriceData!G$15,CalculationsAndCharts!$A88+$A$11,IF($C$5,8,0),1,1)) -> 767500 | D88: =IF(A88>$A$8,"",OFFSET(InputPriceData!C$15,CalculationsAndCharts!$A88+$A$11,IF($C$5,8,0),1,1)) -> 6738.3 | E88: =IF(A88>$A$8,"",OFFSET(InputPriceData!D$15,CalculationsAndCharts!$A88+$A$11,IF($C$5,8,0),1,1)) -> 6753.9 | F88: =IF(A88>$A$8,"",OFFSET(InputPriceData!E$15,CalculationsAndCharts!$A88+$A$11,IF($C$5,8,0),1,1)) -> 6714.7 | G88: =IF(A88>$A$8,"",OFFSET(InputPriceData!F$15,CalculationsAndCharts!$A88+$A$11,IF($C$5,8,0),1,1)) -> 6719.9 | H88: 39.2 | I88: 1649.6 | J88: 327 | K88: 0.1982298739 | L88: 6830.886371 | M88: 415.3 | N88: 0.2517580019 | O88: 6817.161984 | P88: 6899.63 | Q88: 6880.183907 | S88: 2176 | T88: 300.7 | U88: 0.1381893382 | V88: 6913.328404 | W88: 422.8 | X88: 0.1943014706 | Y88: 6832.571169 | Z88: 6956.34 | AA88: 6894.902728 | AC88: 2736.1 | AD88: 70 | AE88: 0.02558386024 | AF88: 6943.490544 | AG88: 422.8 | AH88: 0.1545265158 | AI88: 6841.509702 | AJ88: 6953.3425 | AK88: 6900.187864 | BD88: 767500
A89: 57 | B89: =IF(A89>$A$8,"",OFFSET(InputPriceData!B$15,$A89+$A$11,0,1,1)) -> 2022-09-16 | C89: =IF(A89>$A$8,"",OFFSET(InputPriceData!G$15,CalculationsAndCharts!$A89+$A$11,IF($C$5,8,0),1,1)) -> 1736200 | D89: =IF(A89>$A$8,"",OFFSET(InputPriceData!C$15,CalculationsAndCharts!$A89+$A$11,IF($C$5,8,0),1,1)) -> 6825.1 | E89: =IF(A89>$A$8,"",OFFSET(InputPriceData!D$15,CalculationsAndCharts!$A89+$A$11,IF($C$5,8,0),1,1)) -> 6825.7 | F89: =IF(A89>$A$8,"",OFFSET(InputPriceData!E$15,CalculationsAndCharts!$A89+$A$11,IF($C$5,8,0),1,1)) -> 6736.3 | G89: =IF(A89>$A$8,"",OFFSET(InputPriceData!F$15,CalculationsAndCharts!$A89+$A$11,IF($C$5,8,0),1,1)) -> 6739.1 | H89: 106.6 | I89: 1693.2 | J89: 375.4 | K89: 0.2217103709 | L89: 6858.326672 | M89: 410.4 | N89: 0.2423812899 | O89: 6849.887336 | P89: 6915.98 | Q89: 6897.055897 | S89: 2176.9 | T89: 276.5 | U89: 0.1270154807 | V89: 6944.344199 | W89: 417.9 | X89: 0.1919702329 | Y89: 6859.742837 | Z89: 6966.363333 | AA89: 6906.971881 | AC89: 2724.2 | AD89: 52.4 | AE89: 0.01923500477 | AF89: 6949.361043 | AG89: 417.9 | AH89: 0.1534028339 | AI89: 6863.73621 | AJ89: 6955.0925 | AK89: 6909.433395 | BD89: 1736200
A90: 58 | B90: =IF(A90>$A$8,"",OFFSET(InputPriceData!B$15,$A90+$A$11,0,1,1)) -> 2022-09-15 | C90: =IF(A90>$A$8,"",OFFSET(InputPriceData!G$15,CalculationsAndCharts!$A90+$A$11,IF($C$5,8,0),1,1)) -> 942000 | D90: =IF(A90>$A$8,"",OFFSET(InputPriceData!C$15,CalculationsAndCharts!$A90+$A$11,IF($C$5,8,0),1,1)) -> 6831 | E90: =IF(A90>$A$8,"",OFFSET(InputPriceData!D$15,CalculationsAndCharts!$A90+$A$11,IF($C$5,8,0),1,1)) -> 6878.1 | F90: =IF(A90>$A$8,"",OFFSET(InputPriceData!E$15,CalculationsAndCharts!$A90+$A$11,IF($C$5,8,0),1,1)) -> 6831 | G90: =IF(A90>$A$8,"",OFFSET(InputPriceData!F$15,CalculationsAndCharts!$A90+$A$11,IF($C$5,8,0),1,1)) -> 6842.9 | H90: 49.5 | I90: 1616.2 | J90: 269.9 | K90: 0.1669966588 | L90: 6892.290622 | M90: 417.9 | N90: 0.258569484 | O90: 6885.330993 | P90: 6934.75 | Q90: 6913.682834 | S90: 2117.3 | T90: 132 | U90: 0.06234355075 | V90: 6974.206345 | W90: 417.9 | X90: 0.1973740141 | Y90: 6888.404942 | Z90: 6975.58 | AA90: 6918.549252 | AC90: 2675.2 | AD90: 48.6 | AE90: 0.01816686603 | AF90: 6953.484735 | AG90: 417.9 | AH90: 0.1562126196 | AI90: 6886.320207 | AJ90: 6956.4025 | AK90: 6918.168441 | BC90: 942000
A91: 59 | B91: =IF(A91>$A$8,"",OFFSET(InputPriceData!B$15,$A91+$A$11,0,1,1)) -> 2022-09-14 | C91: =IF(A91>$A$8,"",OFFSET(InputPriceData!G$15,CalculationsAndCharts!$A91+$A$11,IF($C$5,8,0),1,1)) -> 1609400 | D91: =IF(A91>$A$8,"",OFFSET(InputPriceData!C$15,CalculationsAndCharts!$A91+$A$11,IF($C$5,8,0),1,1)) -> 7008.2 | E91: =IF(A91>$A$8,"",OFFSET(InputPriceData!D$15,CalculationsAndCharts!$A91+$A$11,IF($C$5,8,0),1,1)) -> 7008.2 | F91: =IF(A91>$A$8,"",OFFSET(InputPriceData!E$15,CalculationsAndCharts!$A91+$A$11,IF($C$5,8,0),1,1)) -> 6808.6 | G91: =IF(A91>$A$8,"",OFFSET(InputPriceData!F$15,CalculationsAndCharts!$A91+$A$11,IF($C$5,8,0),1,1)) -> 6828.6 | H91: 201.1 | I91: 1613.4 | J91: 299.1 | K91: 0.1853849015 | L91: 6902.192226 | M91: 417.9 | N91: 0.2590182224 | O91: 6900.128549 | P91: 6948.245 | Q91: 6921.133659 | S91: 2114 | T91: 147.3 | U91: 0.06967833491 | V91: 6982.936732 | W91: 417.9 | X91: 0.1976821192 | Y91: 6899.595077 | Z91: 6979.98 | AA91: 6923.766442 | AC91: 2676.1 | AD91: 69.4 | AE91: 0.02593326109 | AF91: 6955.530885 | AG91: 417.9 | AH91: 0.1561600837 | AI91: 6894.358707 | AJ91: 6955.1875 | AK91: 6922.028361 | BD91: 1609400
A92: 60 | B92: =IF(A92>$A$8,"",OFFSET(InputPriceData!B$15,$A92+$A$11,0,1,1)) -> 2022-09-13 | C92: =IF(A92>$A$8,"",OFFSET(InputPriceData!G$15,CalculationsAndCharts!$A92+$A$11,IF($C$5,8,0),1,1)) -> 784500 | D92: =IF(A92>$A$8,"",OFFSET(InputPriceData!C$15,CalculationsAndCharts!$A92+$A$11,IF($C$5,8,0),1,1)) -> 6974.7 | E92: =IF(A92>$A$8,"",OFFSET(InputPriceData!D$15,CalculationsAndCharts!$A92+$A$11,IF($C$5,8,0),1,1)) -> 7015.2 | F92: =IF(A92>$A$8,"",OFFSET(InputPriceData!E$15,CalculationsAndCharts!$A92+$A$11,IF($C$5,8,0),1,1)) -> 6974 | G92: =IF(A92>$A$8,"",OFFSET(InputPriceData!F$15,CalculationsAndCharts!$A92+$A$11,IF($C$5,8,0),1,1)) -> 7009.7 | H92: 50.7 | I92: 1459.9 | J92: 95.7 | K92: 0.0655524351 | L92: 6918.939874 | M92: 417.9 | N92: 0.286252483 | O92: 6925.13213 | P92: 6963.2 | Q92: 6930.874044 | S92: 1992.8 | T92: 11.6 | U92: 0.00582095544 | V92: 6994.496095 | W92: 417.9 | X92: 0.2097049378 | Y92: 6917.087467 | Z92: 6984.89 | AA92: 6930.329645 | AC92: 2600.8 | AD92: 360.1 | AE92: 0.1384573977 | AF92: 6958.910255 | AG92: 475.7 | AH92: 0.1829052599 | AI92: 6906.52794 | AJ92: 6953.4525 | AK92: 6926.819559 | BC92: 784500
A93: 61 | B93: =IF(A93>$A$8,"",OFFSET(InputPriceData!B$15,$A93+$A$11,0,1,1)) -> 2022-09-12 | C93: =IF(A93>$A$8,"",OFFSET(InputPriceData!G$15,CalculationsAndCharts!$A93+$A$11,IF($C$5,8,0),1,1)) -> 582100 | D93: =IF(A93>$A$8,"",OFFSET(InputPriceData!C$15,CalculationsAndCharts!$A93+$A$11,IF($C$5,8,0),1,1)) -> 6923.9 | E93: =IF(A93>$A$8,"",OFFSET(InputPriceData!D$15,CalculationsAndCharts!$A93+$A$11,IF($C$5,8,0),1,1)) -> 6974.9 | F93: =IF(A93>$A$8,"",OFFSET(InputPriceData!E$15,CalculationsAndCharts!$A93+$A$11,IF($C$5,8,0),1,1)) -> 6922 | G93: =IF(A93>$A$8,"",OFFSET(InputPriceData!F$15,CalculationsAndCharts!$A93+$A$11,IF($C$5,8,0),1,1)) -> 6964.5 | H93: 80.7 | I93: 1476.5 | J93: 99.8 | K93: 0.06759227904 | L93: 6912.57296 | M93: 417.9 | N93: 0.2830342025 | O93: 6891.215706 | P93: 6967.985 | Q93: 6922.576575 | S93: 2001 | T93: 28.5 | U93: 0.01424287856 | V93: 6994.407076 | W93: 417.9 | X93: 0.2088455772 | Y93: 6892.512714 | Z93: 6984.503333 | AA93: 6924.855827 | AC93: 2606.6 | AD93: 277.4 | AE93: 0.1064221591 | AF93: 6950.747901 | AG93: 497.9 | AH93: 0.1910151155 | AI93: 6883.433051 | AJ93: 6944.45 | AK93: 6922.56928 | BC93: 582100
A94: 62 | B94: =IF(A94>$A$8,"",OFFSET(InputPriceData!B$15,$A94+$A$11,0,1,1)) -> 2022-09-09 | C94: =IF(A94>$A$8,"",OFFSET(InputPriceData!G$15,CalculationsAndCharts!$A94+$A$11,IF($C$5,8,0),1,1)) -> 809500 | D94: =IF(A94>$A$8,"",OFFSET(InputPriceData!C$15,CalculationsAndCharts!$A94+$A$11,IF($C$5,8,0),1,1)) -> 6858.8 | E94: =IF(A94>$A$8,"",OFFSET(InputPriceData!D$15,CalculationsAndCharts!$A94+$A$11,IF($C$5,8,0),1,1)) -> 6898.5 | F94: =IF(A94>$A$8,"",OFFSET(InputPriceData!E$15,CalculationsAndCharts!$A94+$A$11,IF($C$5,8,0),1,1)) -> 6853.2 | G94: =IF(A94>$A$8,"",OFFSET(InputPriceData!F$15,CalculationsAndCharts!$A94+$A$11,IF($C$5,8,0),1,1)) -> 6894.2 | H94: 49.8 | I94: 1439.3 | J94: 138.3 | K94: 0.09608837629 | L94: 6908.808655 | M94: 417.9 | N94: 0.2903494754 | O94: 6862.28551 | P94: 6972.975 | Q94: 6918.163582 | S94: 1969.2 | T94: 51 | U94: 0.02589884217 | V94: 6994.839194 | W94: 417.9 | X94: 0.2122181597 | Y94: 6873.509817 | Z94: 6985.453333 | AA94: 6922.121746 | AC94: 2607.4 | AD94: 288.6 | AE94: 0.1106849735 | AF94: 6949.110071 | AG94: 524.7 | AH94: 0.2012349467 | AI94: 6864.291764 | AJ94: 6937.515 | AK94: 6920.418987 | BC94: 809500
A95: 63 | B95: =IF(A95>$A$8,"",OFFSET(InputPriceData!B$15,$A95+$A$11,0,1,1)) -> 2022-09-08 | C95: =IF(A95>$A$8,"",OFFSET(InputPriceData!G$15,CalculationsAndCharts!$A95+$A$11,IF($C$5,8,0),1,1)) -> 799100 | D95: =IF(A95>$A$8,"",OFFSET(InputPriceData!C$15,CalculationsAndCharts!$A95+$A$11,IF($C$5,8,0),1,1)) -> 6731.6 | E95: =IF(A95>$A$8,"",OFFSET(InputPriceData!D$15,CalculationsAndCharts!$A95+$A$11,IF($C$5,8,0),1,1)) -> 6848.7 | F95: =IF(A95>$A$8,"",OFFSET(InputPriceData!E$15,CalculationsAndCharts!$A95+$A$11,IF($C$5,8,0),1,1)) -> 6731.6 | G95: =IF(A95>$A$8,"",OFFSET(InputPriceData!F$15,CalculationsAndCharts!$A95+$A$11,IF($C$5,8,0),1,1)) -> 6848.7 | H95: 119.4 | I95: 1448.4 | J95: 222.3 | K95: 0.1534797017 | L95: 6910.361597 | M95: 417.9 | N95: 0.2885252693 | O95: 6849.227878 | P95: 6979.89 | Q95: 6920.686065 | S95: 2003.3 | T95: 41 | U95: 0.02046623072 | V95: 6997.514931 | W95: 417.9 | X95: 0.2086058004 | Y95: 6867.936152 | Z95: 6987.153333 | AA95: 6924.047384 | AC95: 2671 | AD95: 198.1 | AE95: 0.07416697866 | AF95: 6955.94423 | AG95: 600.3 | AH95: 0.2247472857 | AI95: 6856.756904 | AJ95: 6930.3 | AK95: 6921.76355 | BC95: 799100
A96: 64 | B96: =IF(A96>$A$8,"",OFFSET(InputPriceData!B$15,$A96+$A$11,0,1,1)) -> 2022-09-07 | C96: =IF(A96>$A$8,"",OFFSET(InputPriceData!G$15,CalculationsAndCharts!$A96+$A$11,IF($C$5,8,0),1,1)) -> 872600 | D96: =IF(A96>$A$8,"",OFFSET(InputPriceData!C$15,CalculationsAndCharts!$A96+$A$11,IF($C$5,8,0),1,1)) -> 6820.1 | E96: =IF(A96>$A$8,"",OFFSET(InputPriceData!D$15,CalculationsAndCharts!$A96+$A$11,IF($C$5,8,0),1,1)) -> 6821.2 | F96: =IF(A96>$A$8,"",OFFSET(InputPriceData!E$15,CalculationsAndCharts!$A96+$A$11,IF($C$5,8,0),1,1)) -> 6719.6 | G96: =IF(A96>$A$8,"",OFFSET(InputPriceData!F$15,CalculationsAndCharts!$A96+$A$11,IF($C$5,8,0),1,1)) -> 6729.3 | H96: 106.9 | I96: 1413.4 | J96: 263.4 | K96: 0.186359134 | L96: 6921.54125 | M96: 417.9 | N96: 0.2956700156 | O96: 6849.441948 | P96: 6991.005 | Q96: 6928.263545 | S96: 1952.8 | T96: 93.9 | U96: 0.04808480131 | V96: 7000.624247 | W96: 417.9 | X96: 0.2140004097 | Y96: 6873.006662 | Z96: 6988.52 | AA96: 6929.243755 | AC96: 2599.2 | AD96: 107.7 | AE96: 0.04143582641 | AF96: 6964.535391 | AG96: 600.3 | AH96: 0.2309556787 | AI96: 6859.092616 | AJ96: 6925.3475 | AK96: 6925.510399 | BD96: 872600
A97: 65 | B97: =IF(A97>$A$8,"",OFFSET(InputPriceData!B$15,$A97+$A$11,0,1,1)) -> 2022-09-06 | C97: =IF(A97>$A$8,"",OFFSET(InputPriceData!G$15,CalculationsAndCharts!$A97+$A$11,IF($C$5,8,0),1,1)) -> 677200 | D97: =IF(A97>$A$8,"",OFFSET(InputPriceData!C$15,CalculationsAndCharts!$A97+$A$11,IF($C$5,8,0),1,1)) -> 6858 | E97: =IF(A97>$A$8,"",OFFSET(InputPriceData!D$15,CalculationsAndCharts!$A97+$A$11,IF($C$5,8,0),1,1)) -> 6888.5 | F97: =IF(A97>$A$8,"",OFFSET(InputPriceData!E$15,CalculationsAndCharts!$A97+$A$11,IF($C$5,8,0),1,1)) -> 6826.1 | G97: =IF(A97>$A$8,"",OFFSET(InputPriceData!F$15,CalculationsAndCharts!$A97+$A$11,IF($C$5,8,0),1,1)) -> 6826.5 | H97: 62.4 | I97: 1350.6 | J97: 203.3 | K97: 0.1505256923 | L97: 6965.572855 | M97: 317 | N97: 0.234710499 | O97: 6899.876223 | P97: =IF($A97>I$30,NA(),AVERAGE(OFFSET($G97,0,0,$E$17,1))) -> 7004.175 | Q97: =IF($A97>I$30,NA(),IF($A97=I$30,$G97,$F$17*($G97-Q98)+Q98)) -> 6949.207076 | S97: =IF($A97>S$30,NA(),SUM(OFFSET($H97,0,0,$E$18,1))) -> 1900.4 | T97: =IF($A97>S$30,NA(),ABS($G97-OFFSET($G97,$E$18,0,1,1))) -> 19.2 | U97: =IF($A97>S$30,NA(),T97/S97) -> 0.01010313618 | V97: =IF($A97>S$30,NA(),IF($A97=S$30,$G97,U97*($G97-V98)+V98)) -> 7014.329851 | W97: =IF($A97>S$30,NA(),MAX(OFFSET($E97,0,0,$E$18,1))-MIN(OFFSET($F97,0,0,$E$18,1))) -> 358.6 | X97: =IF($A97>S$30,NA(),W97/S97) -> 0.1886971164 | Y97: =IF($A97>S$30,NA(),IF($A97=S$30,$G97,X97*($G97-Y98)+Y98)) -> 6912.132999 | Z97: =IF($A97>S$30,NA(),AVERAGE(OFFSET($G97,0,0,$E$18,1))) -> 6991.65 | AA97: =IF($A97>S$30,NA(),IF($A97=S$30,$G97,$F$18*($G97-AA98)+AA98)) -> 6943.03298 | AC97: =IF($A97>AC$30,NA(),SUM(OFFSET($H97,0,0,$E$19,1))) -> 2529.8 | AD97: =IF($A97>AC$30,NA(),ABS($G97-OFFSET($G97,$E$19,0,1,1))) -> 220.2 | AE97: =IF($A97>AC$30,NA(),AD97/AC97) -> 0.08704245395 | AF97: =IF($A97>AC$30,NA(),IF($A97=AC$30,$G97,AE97*($G97-AF98)+AF98)) -> 6974.703904 | AG97: =IF($A97>AC$30,NA(),MAX(OFFSET($E97,0,0,$E$19,1))-MIN(OFFSET($F97,0,0,$E$19,1))) -> 600.3 | AH97: =IF($A97>AC$30,NA(),AG97/AC97) -> 0.2372914855 | AI97: =IF($A97>AC$30,NA(),IF($A97=AC$30,$G97,AH97*($G97-AI98)+AI98)) -> 6898.071309 | AJ97: =IF($A97>AC$30,NA(),AVERAGE(OFFSET($G97,0,0,$E$19,1))) -> 6922.655 | AK97: =IF($A97>AC$30,NA(),IF($A97=AC$30,$G97,$F$19*($G97-AK98)+AK98)) -> 6935.572471 | BD97: 677200
A98: 66 | B98: =IF(A98>$A$8,"",OFFSET(InputPriceData!B$15,$A98+$A$11,0,1,1)) -> 2022-09-05 | C98: =IF(A98>$A$8,"",OFFSET(InputPriceData!G$15,CalculationsAndCharts!$A98+$A$11,IF($C$5,8,0),1,1)) -> 563400 | D98: =IF(A98>$A$8,"",OFFSET(InputPriceData!C$15,CalculationsAndCharts!$A98+$A$11,IF($C$5,8,0),1,1)) -> 6828.7 | E98: =IF(A98>$A$8,"",OFFSET(InputPriceData!D$15,CalculationsAndCharts!$A98+$A$11,IF($C$5,8,0),1,1)) -> 6858 | F98: =IF(A98>$A$8,"",OFFSET(InputPriceData!E$15,CalculationsAndCharts!$A98+$A$11,IF($C$5,8,0),1,1)) -> 6822.8 | G98: =IF(A98>$A$8,"",OFFSET(InputPriceData!F$15,CalculationsAndCharts!$A98+$A$11,IF($C$5,8,0),1,1)) -> 6852.2 | H98: =IF(A98>$H$30,NA(),MAX(E98-F98,ABS(E98-G99),ABS(F98-G99))) -> 35.2 | I98: =IF(A98>$I$30,NA(),SUM(OFFSET(H98,0,0,$E$17,1))) -> 1309.7 | J98: =IF(A98>$I$30,NA(),ABS(G98-OFFSET(G98,$E$17,0,1,1))) -> 168.4 | K98: =IF(A98>$I$30,NA(),J98/I98) -> 0.1285790639 | L98: =IF($A98>$I$30,NA(),IF($A98=$I$30,$G98,K98*($G98-L99)+L99)) -> 6990.216376 | M98: =IF(A98>$I$30,NA(),MAX(OFFSET(E98,0,0,$E$17,1))-MIN(OFFSET(F98,0,0,$E$17,1))) -> 317 | N98: =IF($A98>$I$30,NA(),M98/$I98) -> 0.2420401619 | O98: =IF($A98>$I$30,NA(),IF($A98=$I$30,$G98,N98*($G98-O99)+O99)) -> 6922.380347 | P98: 7014.34 | Q98: 6962.123611 | S98: 1869.8 | T98: 62.3 | U98: 0.03331907156 | V98: 7016.24689 | W98: 358.6 | X98: 0.1917852177 | Y98: 6932.049975 | Z98: 6991.01 | AA98: 6951.069737 | AC98: 2515.2 | AD98: 250 | AE98: 0.0993956743 | AF98: 6988.83384 | AG98: 600.3 | AH98: 0.2386688931 | AI98: 6920.33835 | AJ98: 6917.15 | AK98: 6941.165931 | BC98: 563400
A99: 67 | B99: =IF(A99>$A$8,"",OFFSET(InputPriceData!B$15,$A99+$A$11,0,1,1)) -> 2022-09-02 | C99: =IF(A99>$A$8,"",OFFSET(InputPriceData!G$15,CalculationsAndCharts!$A99+$A$11,IF($C$5,8,0),1,1)) -> 632300 | D99: =IF(A99>$A$8,"",OFFSET(InputPriceData!C$15,CalculationsAndCharts!$A99+$A$11,IF($C$5,8,0),1,1)) -> 6827.1 | E99: =IF(A99>$A$8,"",OFFSET(InputPriceData!D$15,CalculationsAndCharts!$A99+$A$11,IF($C$5,8,0),1,1)) -> 6854.9 | F99: =IF(A99>$A$8,"",OFFSET(InputPriceData!E$15,CalculationsAndCharts!$A99+$A$11,IF($C$5,8,0),1,1)) -> 6820.5 | G99: =IF(A99>$A$8,"",OFFSET(InputPriceData!F$15,CalculationsAndCharts!$A99+$A$11,IF($C$5,8,0),1,1)) -> 6828.7 | H99: 34.4 | I99: 1314.6 | J99: 186.9 | K99: 0.142172524 | L99: 7010.580835 | M99: 317 | N99: 0.2411379887 | O99: 6944.791116 | P99: 7022.76 | Q99: 6973.694517 | S99: 1861.9 | T99: 37.2 | U99: 0.01997959074 | V99: 7021.901175 | W99: 361.8 | X99: 0.1943176325 | Y99: 6950.997964 | Z99: 6988.933333 | AA99: 6957.88834 | AC99: 2555.8 | AD99: 150.7 | AE99: 0.05896392519 | AF99: 7003.913506 | AG99: 600.3 | AH99: 0.2348775335 | AI99: 6941.69897 | AJ99: 6910.9 | AK99: 6945.728286 | BD99: 632300
A100: 68 | B100: =IF(A100>$A$8,"",OFFSET(InputPriceData!B$15,$A100+$A$11,0,1,1)) -> 2022-09-01 | C100: =IF(A100>$A$8,"",OFFSET(InputPriceData!G$15,CalculationsAndCharts!$A100+$A$11,IF($C$5,8,0),1,1)) -> 825300 | D100: =IF(A100>$A$8,"",OFFSET(InputPriceData!C$15,CalculationsAndCharts!$A100+$A$11,IF($C$5,8,0),1,1)) -> 6924.9 | E100: =IF(A100>$A$8,"",OFFSET(InputPriceData!D$15,CalculationsAndCharts!$A100+$A$11,IF($C$5,8,0),1,1)) -> 6926.7 | F100: =IF(A100>$A$8,"",OFFSET(InputPriceData!E$15,CalculationsAndCharts!$A100+$A$11,IF($C$5,8,0),1,1)) -> 6836.5 | G100: =IF(A100>$A$8,"",OFFSET(InputPriceData!F$15,CalculationsAndCharts!$A100+$A$11,IF($C$5,8,0),1,1)) -> 6845.6 | H100: 150.3 | I100: 1327.2 | J100: 129.3 | K100: 0.09742314647 | L100: 7040.724959 | M100: 301 | N100: 0.2267932489 | O100: 6981.680534 | P100: 7032.105 | Q100: 6988.957098 | S100: 1885.1 | T100: 51.3 | U100: 0.02721341043 | V100: 7025.839951 | W100: 379 | X100: 0.2010503422 | Y100: 6980.494266 | Z100: 6987.693333 | AA100: 6966.797881 | AC100: 2588.4 | AD100: 197.6 | AE100: 0.07634059651 | AF100: 7014.892125 | AG100: 600.3 | AH100: 0.2319193324 | AI100: 6976.387429 | AJ100: 6907.1325 | AK100: 6951.729737 | BD100: 825300
A101: 69 | B101: =IF(A101>$A$8,"",OFFSET(InputPriceData!B$15,$A101+$A$11,0,1,1)) -> 2022-08-31 | C101: =IF(A101>$A$8,"",OFFSET(InputPriceData!G$15,CalculationsAndCharts!$A101+$A$11,IF($C$5,8,0),1,1)) -> 957000 | D101: =IF(A101>$A$8,"",OFFSET(InputPriceData!C$15,CalculationsAndCharts!$A101+$A$11,IF($C$5,8,0),1,1)) -> 6971.4 | E101: =IF(A101>$A$8,"",OFFSET(InputPriceData!D$15,CalculationsAndCharts!$A101+$A$11,IF($C$5,8,0),1,1)) -> 6995 | F101: =IF(A101>$A$8,"",OFFSET(InputPriceData!E$15,CalculationsAndCharts!$A101+$A$11,IF($C$5,8,0),1,1)) -> 6937.5 | G101: =IF(A101>$A$8,"",OFFSET(InputPriceData!F$15,CalculationsAndCharts!$A101+$A$11,IF($C$5,8,0),1,1)) -> 6986.8 | H101: 60.8 | I101: 1223.1 | J101: 10.9 | K101: 0.008911781539 | L101: 7061.786531 | M101: 200 | N101: 0.1635189273 | O101: 7021.595015 | P101: 7038.57 | Q101: 7004.047319 | S101: 1785.2 | T101: 227.6 | U101: 0.1274927179 | V101: 7030.882109 | W101: 393.6 | X101: 0.2204794981 | Y101: 7014.439507 | Z101: 6985.983333 | AA101: 6975.156355 | AC101: 2491.6 | AD101: 392.3 | AE101: 0.1574490287 | AF101: 7028.884146 | AG101: 600.3 | AH101: 0.2409295232 | AI101: 7015.878247 | AJ101: 6902.1925 | AK101: 6957.172287 | BD101: 957000
A102: 70 | B102: =IF(A102>$A$8,"",OFFSET(InputPriceData!B$15,$A102+$A$11,0,1,1)) -> 2022-08-30 | C102: =IF(A102>$A$8,"",OFFSET(InputPriceData!G$15,CalculationsAndCharts!$A102+$A$11,IF($C$5,8,0),1,1)) -> 724000 | D102: =IF(A102>$A$8,"",OFFSET(InputPriceData!C$15,CalculationsAndCharts!$A102+$A$11,IF($C$5,8,0),1,1)) -> 6968.3 | E102: =IF(A102>$A$8,"",OFFSET(InputPriceData!D$15,CalculationsAndCharts!$A102+$A$11,IF($C$5,8,0),1,1)) -> 7020 | F102: =IF(A102>$A$8,"",OFFSET(InputPriceData!E$15,CalculationsAndCharts!$A102+$A$11,IF($C$5,8,0),1,1)) -> 6967.6 | G102: =IF(A102>$A$8,"",OFFSET(InputPriceData!F$15,CalculationsAndCharts!$A102+$A$11,IF($C$5,8,0),1,1)) -> 6998.3 | H102: 54.5 | I102: 1242.2 | J102: 0.2 | K102: 0.0001610046691 | L102: 7062.460804 | M102: 219.3 | N102: 0.1765416197 | O102: 7028.396895 | P102: 7038.025 | Q102: 7005.862826 | S102: 1850.2 | T102: 348.7 | U102: 0.1884661118 | V102: 7037.323485 | W102: 475.7 | X102: 0.2571073397 | Y102: 7022.257062 | Z102: 6978.396667 | AA102: 6974.353345 | AC102: 2494.5 | AD102: 369 | AE102: 0.147925436 | AF102: 7036.748486 | AG102: 600.3 | AH102: 0.2406494287 | AI102: 7025.107703 | AJ102: 6892.385 | AK102: 6955.652917 | BC102: 724000
A103: 71 | B103: =IF(A103>$A$8,"",OFFSET(InputPriceData!B$15,$A103+$A$11,0,1,1)) -> 2022-08-29 | C103: =IF(A103>$A$8,"",OFFSET(InputPriceData!G$15,CalculationsAndCharts!$A103+$A$11,IF($C$5,8,0),1,1)) -> 705300 | D103: =IF(A103>$A$8,"",OFFSET(InputPriceData!C$15,CalculationsAndCharts!$A103+$A$11,IF($C$5,8,0),1,1)) -> 7077.6 | E103: =IF(A103>$A$8,"",OFFSET(InputPriceData!D$15,CalculationsAndCharts!$A103+$A$11,IF($C$5,8,0),1,1)) -> 7079.1 | F103: =IF(A103>$A$8,"",OFFSET(InputPriceData!E$15,CalculationsAndCharts!$A103+$A$11,IF($C$5,8,0),1,1)) -> 6943.2 | G103: =IF(A103>$A$8,"",OFFSET(InputPriceData!F$15,CalculationsAndCharts!$A103+$A$11,IF($C$5,8,0),1,1)) -> 6965.5 | H103: 160.9 | I103: 1246.6 | J103: 27.5 | K103: 0.02206000321 | L103: 7062.471136 | M103: 219.3 | N103: 0.1759184983 | O103: 7034.849382 | P103: 7038.015 | Q103: 7006.658913 | S103: 1852.2 | T103: 278.4 | U103: 0.1503077421 | V103: 7046.386082 | W103: 497.9 | X103: 0.2688154627 | Y103: 7030.54835 | Z103: 6966.773333 | AA103: 6972.701852 | AC103: 2500.2 | AD103: 352.9 | AE103: 0.1411487081 | AF103: 7043.423382 | AG103: 600.3 | AH103: 0.2401007919 | AI103: 7033.603461 | AJ103: 6883.16 | AK103: 6953.465888 | BD103: 705300
A104: 72 | B104: =IF(A104>$A$8,"",OFFSET(InputPriceData!B$15,$A104+$A$11,0,1,1)) -> 2022-08-26 | C104: =IF(A104>$A$8,"",OFFSET(InputPriceData!G$15,CalculationsAndCharts!$A104+$A$11,IF($C$5,8,0),1,1)) -> 658300 | D104: =IF(A104>$A$8,"",OFFSET(InputPriceData!C$15,CalculationsAndCharts!$A104+$A$11,IF($C$5,8,0),1,1)) -> 7060.8 | E104: =IF(A104>$A$8,"",OFFSET(InputPriceData!D$15,CalculationsAndCharts!$A104+$A$11,IF($C$5,8,0),1,1)) -> 7130 | F104: =IF(A104>$A$8,"",OFFSET(InputPriceData!E$15,CalculationsAndCharts!$A104+$A$11,IF($C$5,8,0),1,1)) -> 7060.7 | G104: =IF(A104>$A$8,"",OFFSET(InputPriceData!F$15,CalculationsAndCharts!$A104+$A$11,IF($C$5,8,0),1,1)) -> 7104.1 | H104: 81.9 | I104: 1134.6 | J104: 158.9 | K104: 0.1400493566 | L104: 7064.658574 | M104: 219.3 | N104: 0.1932839767 | O104: 7049.653548 | P104: 7039.39 | Q104: 7010.99143 | S104: 1772.8 | T104: 498.5 | U104: 0.2811935921 | V104: 7060.694562 | W104: 524.7 | X104: 0.2959724729 | Y104: 7054.462972 | Z104: 6957.493333 | AA104: 6973.198531 | AC104: 2458.4 | AD104: 564.2 | AE104: 0.229498861 | AF104: 7056.229773 | AG104: 600.3 | AH104: 0.2441832086 | AI104: 7055.121703 | AJ104: 6874.3375 | AK104: 6952.848754 | BC104: 658300
A105: 73 | B105: =IF(A105>$A$8,"",OFFSET(InputPriceData!B$15,$A105+$A$11,0,1,1)) -> 2022-08-25 | C105: =IF(A105>$A$8,"",OFFSET(InputPriceData!G$15,CalculationsAndCharts!$A105+$A$11,IF($C$5,8,0),1,1)) -> 772200 | D105: =IF(A105>$A$8,"",OFFSET(InputPriceData!C$15,CalculationsAndCharts!$A105+$A$11,IF($C$5,8,0),1,1)) -> 7000.5 | E105: =IF(A105>$A$8,"",OFFSET(InputPriceData!D$15,CalculationsAndCharts!$A105+$A$11,IF($C$5,8,0),1,1)) -> 7057.7 | F105: =IF(A105>$A$8,"",OFFSET(InputPriceData!E$15,CalculationsAndCharts!$A105+$A$11,IF($C$5,8,0),1,1)) -> 6992 | G105: =IF(A105>$A$8,"",OFFSET(InputPriceData!F$15,CalculationsAndCharts!$A105+$A$11,IF($C$5,8,0),1,1)) -> 7048.1 | H105: 65.7 | I105: 1136.6 | J105: 158.4 | K105: 0.1393630125 | L105: 7058.235245 | M105: 235.4 | N105: 0.2071089213 | O105: 7036.608527 | P105: 7031.445 | Q105: 7001.190528 | S105: 1804.3 | T105: 397.5 | U105: 0.2203070443 | V105: 7043.714565 | W105: 600.3 | X105: 0.3327052042 | Y105: 7033.595615 | Z105: 6940.876667 | AA105: 6964.170843 | AC105: 2460.5 | AD105: 480 | AE105: 0.1950823003 | AF105: 7041.971309 | AG105: 600.3 | AH105: 0.2439748019 | AI105: 7039.298188 | AJ105: 6860.2325 | AK105: 6945.092279 | BC105: 772200
A106: 74 | B106: =IF(A106>$A$8,"",OFFSET(InputPriceData!B$15,$A106+$A$11,0,1,1)) -> 2022-08-24 | C106: =IF(A106>$A$8,"",OFFSET(InputPriceData!G$15,CalculationsAndCharts!$A106+$A$11,IF($C$5,8,0),1,1)) -> 754500 | D106: =IF(A106>$A$8,"",OFFSET(InputPriceData!C$15,CalculationsAndCharts!$A106+$A$11,IF($C$5,8,0),1,1)) -> 6979.4 | E106: =IF(A106>$A$8,"",OFFSET(InputPriceData!D$15,CalculationsAndCharts!$A106+$A$11,IF($C$5,8,0),1,1)) -> 7013.7 | F106: =IF(A106>$A$8,"",OFFSET(InputPriceData!E$15,CalculationsAndCharts!$A106+$A$11,IF($C$5,8,0),1,1)) -> 6977.8 | G106: =IF(A106>$A$8,"",OFFSET(InputPriceData!F$15,CalculationsAndCharts!$A106+$A$11,IF($C$5,8,0),1,1)) -> 6998.1 | H106: 51.9 | I106: 1139.8 | J106: 174.9 | K106: 0.1534479733 | L106: 7059.876445 | M106: 304.3 | N106: 0.2669766626 | O106: 7033.606871 | P106: 7023.525 | Q106: 6996.252689 | S106: 1786.2 | T106: 376.5 | U106: 0.2107826671 | V106: 7042.475433 | W106: 600.3 | X106: 0.3360765872 | Y106: 7026.363902 | Z106: 6927.626667 | AA106: 6958.382626 | AC106: 2526.9 | AD106: 297.9 | AE106: 0.1178914876 | AF106: 7040.48594 | AG106: 600.3 | AH106: 0.2375638134 | AI106: 7036.45778 | AJ106: 6848.2325 | AK106: 6939.809832 | BC106: 754500
A107: 75 | B107: =IF(A107>$A$8,"",OFFSET(InputPriceData!B$15,$A107+$A$11,0,1,1)) -> 2022-08-23 | C107: =IF(A107>$A$8,"",OFFSET(InputPriceData!G$15,CalculationsAndCharts!$A107+$A$11,IF($C$5,8,0),1,1)) -> 731400 | D107: =IF(A107>$A$8,"",OFFSET(InputPriceData!C$15,CalculationsAndCharts!$A107+$A$11,IF($C$5,8,0),1,1)) -> 7049.5 | E107: =IF(A107>$A$8,"",OFFSET(InputPriceData!D$15,CalculationsAndCharts!$A107+$A$11,IF($C$5,8,0),1,1)) -> 7049.5 | F107: =IF(A107>$A$8,"",OFFSET(InputPriceData!E$15,CalculationsAndCharts!$A107+$A$11,IF($C$5,8,0),1,1)) -> 6961.8 | G107: =IF(A107>$A$8,"",OFFSET(InputPriceData!F$15,CalculationsAndCharts!$A107+$A$11,IF($C$5,8,0),1,1)) -> 6961.8 | H107: 87.7 | I107: 1142.4 | J107: 154.5 | K107: 0.1352415966 | L107: 7071.074186 | M107: 358.6 | N107: 0.3139005602 | O107: 7046.538937 | P107: 7014.78 | Q107: 6996.058235 | S107: 1771.8 | T107: 355.5 | U107: 0.2006434135 | V107: 7054.327139 | W107: 600.3 | X107: 0.3388079919 | Y107: 7040.671028 | Z107: 6915.076667 | AA107: 6955.643497 | AC107: 2572.2 | AD107: 198.2 | AE107: 0.07705466138 | AF107: 7046.15071 | AG107: 600.3 | AH107: 0.233379986 | AI107: 7048.409496 | AJ107: 6840.785 | AK107: 6936.820593 | BD107: 731400
A108: 76 | B108: =IF(A108>$A$8,"",OFFSET(InputPriceData!B$15,$A108+$A$11,0,1,1)) -> 2022-08-22 | C108: =IF(A108>$A$8,"",OFFSET(InputPriceData!G$15,CalculationsAndCharts!$A108+$A$11,IF($C$5,8,0),1,1)) -> 658200 | D108: =IF(A108>$A$8,"",OFFSET(InputPriceData!C$15,CalculationsAndCharts!$A108+$A$11,IF($C$5,8,0),1,1)) -> 7098.9 | E108: =IF(A108>$A$8,"",OFFSET(InputPriceData!D$15,CalculationsAndCharts!$A108+$A$11,IF($C$5,8,0),1,1)) -> 7098.9 | F108: =IF(A108>$A$8,"",OFFSET(InputPriceData!E$15,CalculationsAndCharts!$A108+$A$11,IF($C$5,8,0),1,1)) -> 7031.7 | G108: =IF(A108>$A$8,"",OFFSET(InputPriceData!F$15,CalculationsAndCharts!$A108+$A$11,IF($C$5,8,0),1,1)) -> 7046.9 | H108: 82.8 | I108: 1086.5 | J108: 257 | K108: 0.2365393465 | L108: 7088.163833 | M108: 358.6 | N108: 0.3300506213 | O108: 7085.308244 | P108: 7007.055 | Q108: 6999.664365 | S108: 1731.9 | T108: 444.7 | U108: 0.2567700214 | V108: 7077.552019 | W108: 600.3 | X108: 0.3466135458 | Y108: 7081.086117 | Z108: 6903.226667 | AA108: 6955.21891 | AC108: 2542.1 | AD108: 340.9 | AE108: 0.1341017269 | AF108: 7053.192964 | AG108: 600.3 | AH108: 0.2361433461 | AI108: 7074.775782 | AJ108: 6835.83 | AK108: 6935.539598 | BD108: 658200
A109: 77 | B109: =IF(A109>$A$8,"",OFFSET(InputPriceData!B$15,$A109+$A$11,0,1,1)) -> 2022-08-19 | C109: =IF(A109>$A$8,"",OFFSET(InputPriceData!G$15,CalculationsAndCharts!$A109+$A$11,IF($C$5,8,0),1,1)) -> 692200 | D109: =IF(A109>$A$8,"",OFFSET(InputPriceData!C$15,CalculationsAndCharts!$A109+$A$11,IF($C$5,8,0),1,1)) -> 7115.6 | E109: =IF(A109>$A$8,"",OFFSET(InputPriceData!D$15,CalculationsAndCharts!$A109+$A$11,IF($C$5,8,0),1,1)) -> 7137.5 | F109: =IF(A109>$A$8,"",OFFSET(InputPriceData!E$15,CalculationsAndCharts!$A109+$A$11,IF($C$5,8,0),1,1)) -> 7107.9 | G109: =IF(A109>$A$8,"",OFFSET(InputPriceData!F$15,CalculationsAndCharts!$A109+$A$11,IF($C$5,8,0),1,1)) -> 7114.5 | H109: 29.6 | I109: 1031 | J109: 323 | K109: 0.3132880698 | L109: 7100.948408 | M109: 361.8 | N109: 0.3509214355 | O109: 7104.230069 | P109: 6994.205 | Q109: 6994.692193 | S109: 1724.9 | T109: 436.5 | U109: 0.2530581483 | V109: 7088.141635 | W109: 600.3 | X109: 0.3480201751 | Y109: 7099.221436 | Z109: 6888.403333 | AA109: 6948.896076 | AC109: 2596.7 | AD109: 535.8 | AE109: 0.2063388146 | AF109: 7054.167556 | AG109: 600.3 | AH109: 0.2311780337 | AI109: 7083.393473 | AJ109: 6827.3075 | AK109: 6929.828808 | BC109: =IF(G109>=G110,C109,NA()) -> 692200 | BD109: =IF(G109<G110,C109,NA()) -> 
A110: 78 | B110: =IF(A110>$A$8,"",OFFSET(InputPriceData!B$15,$A110+$A$11,0,1,1)) -> 2022-08-18 | C110: =IF(A110>$A$8,"",OFFSET(InputPriceData!G$15,CalculationsAndCharts!$A110+$A$11,IF($C$5,8,0),1,1)) -> 739000 | D110: =IF(A110>$A$8,"",OFFSET(InputPriceData!C$15,CalculationsAndCharts!$A110+$A$11,IF($C$5,8,0),1,1)) -> 7118.7 | E110: =IF(A110>$A$8,"",OFFSET(InputPriceData!D$15,CalculationsAndCharts!$A110+$A$11,IF($C$5,8,0),1,1)) -> 7118.7 | F110: =IF(A110>$A$8,"",OFFSET(InputPriceData!E$15,CalculationsAndCharts!$A110+$A$11,IF($C$5,8,0),1,1)) -> 7081 | G110: =IF(A110>$A$8,"",OFFSET(InputPriceData!F$15,CalculationsAndCharts!$A110+$A$11,IF($C$5,8,0),1,1)) -> 7112.8 | H110: 46.7 | I110: 1059 | J110: 318.5 | K110: 0.3007554297 | L110: 7094.765973 | M110: 373.1 | N110: 0.3523135033 | O110: 7098.677676 | P110: 6978.055 | Q110: 6982.080844 | S110: 1762.3 | T110: 464.8 | U110: 0.2637462407 | V110: 7079.211624 | W110: 594.4 | X110: 0.3372865006 | Y110: 7091.065894 | Z110: 6873.853333 | AA110: 6937.475116 | AC110: 2650.6 | AD110: 584.4 | AE110: 0.2204783823 | AF110: 7038.482116 | AG110: 630 | AH110: 0.2376820343 | AI110: 7074.040013 | AJ110: 6813.9125 | AK110: 6920.35849 | BD110: 739000
A111: 79 | B111: =IF(A111>$A$8,"",OFFSET(InputPriceData!B$15,$A111+$A$11,0,1,1)) -> 2022-08-17 | C111: =IF(A111>$A$8,"",OFFSET(InputPriceData!G$15,CalculationsAndCharts!$A111+$A$11,IF($C$5,8,0),1,1)) -> 764000 | D111: =IF(A111>$A$8,"",OFFSET(InputPriceData!C$15,CalculationsAndCharts!$A111+$A$11,IF($C$5,8,0),1,1)) -> 7122 | E111: =IF(A111>$A$8,"",OFFSET(InputPriceData!D$15,CalculationsAndCharts!$A111+$A$11,IF($C$5,8,0),1,1)) -> 7130.5 | F111: =IF(A111>$A$8,"",OFFSET(InputPriceData!E$15,CalculationsAndCharts!$A111+$A$11,IF($C$5,8,0),1,1)) -> 7082.9 | G111: =IF(A111>$A$8,"",OFFSET(InputPriceData!F$15,CalculationsAndCharts!$A111+$A$11,IF($C$5,8,0),1,1)) -> 7127.7 | H111: 47.6 | I111: 1062.7 | J111: 368.5 | K111: 0.3467582573 | L111: 7087.009271 | M111: 387.7 | N111: 0.3648254446 | O111: 7090.995741 | P111: 6962.13 | Q111: 6968.320933 | S111: 1769.1 | T111: 533.2 | U111: 0.3013961902 | V111: 7067.179348 | W111: 594.4 | X111: 0.3359900514 | Y111: 7080.004372 | Z111: 6858.36 | AA111: 6925.383745 | AC111: 2660.7 | AD111: 619.2 | AE111: 0.2327207126 | AF111: 7017.46219 | AG111: 636.6 | AH111: 0.239260345 | AI111: 7061.955092 | AJ111: 6799.3025 | AK111: 6910.489695 | BC111: 764000
A112: 80 | B112: =IF(A112>$A$8,"",OFFSET(InputPriceData!B$15,$A112+$A$11,0,1,1)) -> 2022-08-16 | C112: =IF(A112>$A$8,"",OFFSET(InputPriceData!G$15,CalculationsAndCharts!$A112+$A$11,IF($C$5,8,0),1,1)) -> 663100 | D112: =IF(A112>$A$8,"",OFFSET(InputPriceData!C$15,CalculationsAndCharts!$A112+$A$11,IF($C$5,8,0),1,1)) -> 7083 | E112: =IF(A112>$A$8,"",OFFSET(InputPriceData!D$15,CalculationsAndCharts!$A112+$A$11,IF($C$5,8,0),1,1)) -> 7131.6 | F112: =IF(A112>$A$8,"",OFFSET(InputPriceData!E$15,CalculationsAndCharts!$A112+$A$11,IF($C$5,8,0),1,1)) -> 7083 | G112: =IF(A112>$A$8,"",OFFSET(InputPriceData!F$15,CalculationsAndCharts!$A112+$A$11,IF($C$5,8,0),1,1)) -> 7105.4 | H112: 67.3 | I112: 1140.9 | J112: 455.8 | K112: 0.3995091594 | L112: 7065.40954 | M112: 469.8 | N112: 0.4117801735 | O112: 7069.913902 | P112: 6943.705 | Q112: 6951.544189 | S112: 1785.2 | T112: 476.1 | U112: 0.2666928075 | V112: 7041.069136 | W112: 594.4 | X112: 0.3329598924 | Y112: 7055.87031 | Z112: 6840.586667 | AA112: 6911.4309 | AC112: 2677.7 | AD112: 581.6 | AE112: 0.2172013295 | AF112: 6984.026357 | AG112: 638.4 | AH112: 0.2384135639 | AI112: 7041.277651 | AJ112: 6783.8225 | AK112: 6899.350705 | BC112: 663100
A113: 81 | B113: =IF(A113>$A$8,"",OFFSET(InputPriceData!B$15,$A113+$A$11,0,1,1)) -> 2022-08-15 | C113: =IF(A113>$A$8,"",OFFSET(InputPriceData!G$15,CalculationsAndCharts!$A113+$A$11,IF($C$5,8,0),1,1)) -> 585900 | D113: =IF(A113>$A$8,"",OFFSET(InputPriceData!C$15,CalculationsAndCharts!$A113+$A$11,IF($C$5,8,0),1,1)) -> 7041.3 | E113: =IF(A113>$A$8,"",OFFSET(InputPriceData!D$15,CalculationsAndCharts!$A113+$A$11,IF($C$5,8,0),1,1)) -> 7076 | F113: =IF(A113>$A$8,"",OFFSET(InputPriceData!E$15,CalculationsAndCharts!$A113+$A$11,IF($C$5,8,0),1,1)) -> 7040.4 | G113: =IF(A113>$A$8,"",OFFSET(InputPriceData!F$15,CalculationsAndCharts!$A113+$A$11,IF($C$5,8,0),1,1)) -> 7064.3 | H113: 43.5 | I113: 1130.1 | J113: 377.2 | K113: 0.3337757721 | L113: 7038.803713 | M113: 437.5 | N113: 0.387133882 | O113: 7045.072047 | P113: 6920.915 | Q113: 6935.348841 | S113: 1778.1 | T113: 451.7 | U113: 0.2540352061 | V113: 7017.672968 | W113: 539.9 | X113: 0.3036387155 | Y113: 7031.147059 | Z113: 6824.716667 | AA113: 6898.05372 | AC113: 2714.7 | AD113: 630.9 | AE113: 0.2324013703 | AF113: 6950.349094 | AG113: 628.4 | AH113: 0.2314804582 | AI113: 7021.204239 | AJ113: 6769.2825 | AK113: 6888.784074 | BC113: 585900
A114: 82 | B114: =IF(A114>$A$8,"",OFFSET(InputPriceData!B$15,$A114+$A$11,0,1,1)) -> 2022-08-12 | C114: =IF(A114>$A$8,"",OFFSET(InputPriceData!G$15,CalculationsAndCharts!$A114+$A$11,IF($C$5,8,0),1,1)) -> 647000 | D114: =IF(A114>$A$8,"",OFFSET(InputPriceData!C$15,CalculationsAndCharts!$A114+$A$11,IF($C$5,8,0),1,1)) -> 7065.9 | E114: =IF(A114>$A$8,"",OFFSET(InputPriceData!D$15,CalculationsAndCharts!$A114+$A$11,IF($C$5,8,0),1,1)) -> 7066.1 | F114: =IF(A114>$A$8,"",OFFSET(InputPriceData!E$15,CalculationsAndCharts!$A114+$A$11,IF($C$5,8,0),1,1)) -> 7012.1 | G114: =IF(A114>$A$8,"",OFFSET(InputPriceData!F$15,CalculationsAndCharts!$A114+$A$11,IF($C$5,8,0),1,1)) -> 7032.5 | H114: 58.9 | I114: 1168.1 | J114: 426.9 | K114: 0.3654652855 | L114: 7026.030171 | M114: 464.3 | N114: 0.3974830922 | O114: 7032.926178 | P114: 6902.055 | Q114: 6921.775035 | S114: 1853.7 | T114: 492.6 | U114: 0.2657387927 | V114: 7001.794326 | W114: 539.9 | X114: 0.2912553272 | Y114: 7016.691178 | Z114: 6809.66 | AA114: 6886.58846 | AC114: 2757.6 | AD114: 557.7 | AE114: 0.2022410792 | AF114: 6915.848841 | AG114: 670.1 | AH114: 0.2430011604 | AI114: 7008.223663 | AJ114: 6753.51 | AK114: 6879.783258 | BD114: 647000
A115: 83 | B115: =IF(A115>$A$8,"",OFFSET(InputPriceData!B$15,$A115+$A$11,0,1,1)) -> 2022-08-11 | C115: =IF(A115>$A$8,"",OFFSET(InputPriceData!G$15,CalculationsAndCharts!$A115+$A$11,IF($C$5,8,0),1,1)) -> 772600 | D115: =IF(A115>$A$8,"",OFFSET(InputPriceData!C$15,CalculationsAndCharts!$A115+$A$11,IF($C$5,8,0),1,1)) -> 7009.6 | E115: =IF(A115>$A$8,"",OFFSET(InputPriceData!D$15,CalculationsAndCharts!$A115+$A$11,IF($C$5,8,0),1,1)) -> 7077.1 | F115: =IF(A115>$A$8,"",OFFSET(InputPriceData!E$15,CalculationsAndCharts!$A115+$A$11,IF($C$5,8,0),1,1)) -> 7009.6 | G115: =IF(A115>$A$8,"",OFFSET(InputPriceData!F$15,CalculationsAndCharts!$A115+$A$11,IF($C$5,8,0),1,1)) -> 7071 | H115: 84.4 | I115: 1222.6 | J115: 420.4 | K115: 0.3438573532 | L115: 7022.303822 | M115: 539.9 | N115: 0.4415998691 | O115: 7033.207329 | P115: 6880.71 | Q115: 6910.119775 | S115: 1878.8 | T115: 502.9 | U115: 0.2676708537 | V115: 6990.681538 | W115: 539.9 | X115: 0.2873642751 | Y115: 7010.194615 | Z115: 6793.24 | AA115: 6876.525595 | AC115: 2879.4 | AD115: 479.9 | AE115: 0.1666666667 | AF115: 6886.276428 | AG115: 670.1 | AH115: 0.2327220949 | AI115: 7000.430814 | AJ115: 6739.5675 | AK115: 6871.95163 | BC115: 772600
A116: 84 | B116: =IF(A116>$A$8,"",OFFSET(InputPriceData!B$15,$A116+$A$11,0,1,1)) -> 2022-08-10 | C116: =IF(A116>$A$8,"",OFFSET(InputPriceData!G$15,CalculationsAndCharts!$A116+$A$11,IF($C$5,8,0),1,1)) -> 698000 | D116: =IF(A116>$A$8,"",OFFSET(InputPriceData!C$15,CalculationsAndCharts!$A116+$A$11,IF($C$5,8,0),1,1)) -> 7029 | E116: =IF(A116>$A$8,"",OFFSET(InputPriceData!D$15,CalculationsAndCharts!$A116+$A$11,IF($C$5,8,0),1,1)) -> 7029.7 | F116: =IF(A116>$A$8,"",OFFSET(InputPriceData!E$15,CalculationsAndCharts!$A116+$A$11,IF($C$5,8,0),1,1)) -> 6985.7 | G116: =IF(A116>$A$8,"",OFFSET(InputPriceData!F$15,CalculationsAndCharts!$A116+$A$11,IF($C$5,8,0),1,1)) -> 6992.7 | H116: 44.1 | I116: 1185.8 | J116: 371.1 | K116: 0.3129532805 | L116: 6996.78416 | M116: 497.1 | N116: 0.4192106595 | O116: 7003.319731 | P116: 6859.69 | Q116: 6893.185015 | S116: 1926.5 | T116: 292.5 | U116: 0.1518297431 | V116: 6961.324641 | W116: 497.1 | X116: 0.2580327018 | Y116: 6985.675363 | Z116: 6776.476667 | AA116: 6863.113567 | AC116: 2882.7 | AD116: 391.7 | AE116: 0.1358795574 | AF116: 6849.331714 | AG116: 627.3 | AH116: 0.217608492 | AI116: 6979.026563 | AJ116: 6727.57 | AK116: 6861.744021 | BD116: 698000
A117: 85 | B117: =IF(A117>$A$8,"",OFFSET(InputPriceData!B$15,$A117+$A$11,0,1,1)) -> 2022-08-09 | C117: =IF(A117>$A$8,"",OFFSET(InputPriceData!G$15,CalculationsAndCharts!$A117+$A$11,IF($C$5,8,0),1,1)) -> 762600 | D117: =IF(A117>$A$8,"",OFFSET(InputPriceData!C$15,CalculationsAndCharts!$A117+$A$11,IF($C$5,8,0),1,1)) -> 7012.8 | E117: =IF(A117>$A$8,"",OFFSET(InputPriceData!D$15,CalculationsAndCharts!$A117+$A$11,IF($C$5,8,0),1,1)) -> 7034.3 | F117: =IF(A117>$A$8,"",OFFSET(InputPriceData!E$15,CalculationsAndCharts!$A117+$A$11,IF($C$5,8,0),1,1)) -> 7012.8 | G117: =IF(A117>$A$8,"",OFFSET(InputPriceData!F$15,CalculationsAndCharts!$A117+$A$11,IF($C$5,8,0),1,1)) -> 7029.8 | H117: 21.5 | I117: 1179.2 | J117: 423.5 | K117: 0.359141791 | L117: 6998.644516 | M117: 497.1 | N117: 0.4215569878 | O117: 7010.984997 | P117: 6841.135 | Q117: 6882.709753 | S117: 1979.6 | T117: 266.2 | U117: 0.1344716104 | V117: 6955.708183 | W117: 497.1 | X117: 0.2511113356 | Y117: 6983.232417 | Z117: 6766.726667 | AA117: 6854.176571 | AC117: 2934.9 | AD117: 343.8 | AE117: 0.117141981 | AF117: 6826.787612 | AG117: 627.3 | AH117: 0.2137381171 | AI117: 6975.223536 | AJ117: 6717.7775 | AK117: 6855.02833 | BC117: 762600
A118: 86 | B118: =IF(A118>$A$8,"",OFFSET(InputPriceData!B$15,$A118+$A$11,0,1,1)) -> 2022-08-08 | C118: =IF(A118>$A$8,"",OFFSET(InputPriceData!G$15,CalculationsAndCharts!$A118+$A$11,IF($C$5,8,0),1,1)) -> 687600 | D118: =IF(A118>$A$8,"",OFFSET(InputPriceData!C$15,CalculationsAndCharts!$A118+$A$11,IF($C$5,8,0),1,1)) -> 7011.2 | E118: =IF(A118>$A$8,"",OFFSET(InputPriceData!D$15,CalculationsAndCharts!$A118+$A$11,IF($C$5,8,0),1,1)) -> 7025.9 | F118: =IF(A118>$A$8,"",OFFSET(InputPriceData!E$15,CalculationsAndCharts!$A118+$A$11,IF($C$5,8,0),1,1)) -> 6985.8 | G118: =IF(A118>$A$8,"",OFFSET(InputPriceData!F$15,CalculationsAndCharts!$A118+$A$11,IF($C$5,8,0),1,1)) -> 7020.6 | H118: 40.1 | I118: 1205.5 | J118: 418.4 | K118: 0.3470759021 | L118: 6981.184747 | M118: 488.7 | N118: 0.4053919535 | O118: 6997.273022 | P118: 6819.96 | Q118: 6867.226569 | S118: 2015.7 | T118: 314.6 | U118: 0.1560748127 | V118: 6944.197011 | W118: 488.7 | X118: 0.2424467927 | Y118: 6967.617749 | Z118: 6757.853333 | AA118: 6842.064611 | AC118: 3279.3 | AD118: 88.6 | AE118: 0.02701796115 | AF118: 6799.850922 | AG118: 618.9 | AH118: 0.188729302 | AI118: 6960.387422 | AJ118: 6709.1825 | AK118: 6846.06568 | BC118: 687600
A119: 87 | B119: =IF(A119>$A$8,"",OFFSET(InputPriceData!B$15,$A119+$A$11,0,1,1)) -> 2022-08-05 | C119: =IF(A119>$A$8,"",OFFSET(InputPriceData!G$15,CalculationsAndCharts!$A119+$A$11,IF($C$5,8,0),1,1)) -> 589200 | D119: =IF(A119>$A$8,"",OFFSET(InputPriceData!C$15,CalculationsAndCharts!$A119+$A$11,IF($C$5,8,0),1,1)) -> 6972.4 | E119: =IF(A119>$A$8,"",OFFSET(InputPriceData!D$15,CalculationsAndCharts!$A119+$A$11,IF($C$5,8,0),1,1)) -> 7016.6 | F119: =IF(A119>$A$8,"",OFFSET(InputPriceData!E$15,CalculationsAndCharts!$A119+$A$11,IF($C$5,8,0),1,1)) -> 6969.6 | G119: =IF(A119>$A$8,"",OFFSET(InputPriceData!F$15,CalculationsAndCharts!$A119+$A$11,IF($C$5,8,0),1,1)) -> 7015.6 | H119: 47 | I119: 1241.2 | J119: 337.6 | K119: 0.2719948437 | L119: 6960.232718 | M119: 483.9 | N119: 0.3898646471 | O119: 6981.369152 | P119: 6799.04 | Q119: 6851.081998 | S119: 2113 | T119: 436.9 | U119: 0.206767629 | V119: 6930.067107 | W119: 483.9 | X119: 0.229010885 | Y119: 6950.661347 | Z119: 6747.366667 | AA119: 6829.751825 | AC119: 3332 | AD119: 4.1 | AE119: 0.001230492197 | AF119: 6793.721117 | AG119: 614.1 | AH119: 0.1843037215 | AI119: 6946.379918 | AJ119: 6706.9675 | AK119: 6837.115202 | BC119: 589200
A120: 88 | B120: =IF(A120>$A$8,"",OFFSET(InputPriceData!B$15,$A120+$A$11,0,1,1)) -> 2022-08-04 | C120: =IF(A120>$A$8,"",OFFSET(InputPriceData!G$15,CalculationsAndCharts!$A120+$A$11,IF($C$5,8,0),1,1)) -> 704900 | D120: =IF(A120>$A$8,"",OFFSET(InputPriceData!C$15,CalculationsAndCharts!$A120+$A$11,IF($C$5,8,0),1,1)) -> 6980.2 | E120: =IF(A120>$A$8,"",OFFSET(InputPriceData!D$15,CalculationsAndCharts!$A120+$A$11,IF($C$5,8,0),1,1)) -> 7021.1 | F120: =IF(A120>$A$8,"",OFFSET(InputPriceData!E$15,CalculationsAndCharts!$A120+$A$11,IF($C$5,8,0),1,1)) -> 6974.9 | G120: =IF(A120>$A$8,"",OFFSET(InputPriceData!F$15,CalculationsAndCharts!$A120+$A$11,IF($C$5,8,0),1,1)) -> 6974.9 | H120: 46.2 | I120: 1261.2 | J120: 326.9 | K120: 0.2591975896 | L120: 6939.546579 | M120: 483.9 | N120: 0.3836822074 | O120: 6959.496304 | P120: 6782.16 | Q120: 6833.764313 | S120: 2149.5 | T120: 446.5 | U120: 0.2077227262 | V120: 6907.771707 | W120: 519.5 | X120: 0.2416841126 | Y120: 6931.372283 | Z120: 6732.803333 | AA120: 6816.93471 | AC120: 3386.4 | AD120: 146.2 | AE120: 0.04317269076 | AF120: 6793.44776 | AG120: 704.5 | AH120: 0.2080380345 | AI120: 6930.739882 | AJ120: 6707.07 | AK120: 6827.962136 | BD120: 704900
A121: 89 | B121: =IF(A121>$A$8,"",OFFSET(InputPriceData!B$15,$A121+$A$11,0,1,1)) -> 2022-08-03 | C121: =IF(A121>$A$8,"",OFFSET(InputPriceData!G$15,CalculationsAndCharts!$A121+$A$11,IF($C$5,8,0),1,1)) -> 672500 | D121: =IF(A121>$A$8,"",OFFSET(InputPriceData!C$15,CalculationsAndCharts!$A121+$A$11,IF($C$5,8,0),1,1)) -> 6988.2 | E121: =IF(A121>$A$8,"",OFFSET(InputPriceData!D$15,CalculationsAndCharts!$A121+$A$11,IF($C$5,8,0),1,1)) -> 6988.2 | F121: =IF(A121>$A$8,"",OFFSET(InputPriceData!E$15,CalculationsAndCharts!$A121+$A$11,IF($C$5,8,0),1,1)) -> 6918.2 | G121: =IF(A121>$A$8,"",OFFSET(InputPriceData!F$15,CalculationsAndCharts!$A121+$A$11,IF($C$5,8,0),1,1)) -> 6975.9 | H121: 79.9 | I121: 1268.5 | J121: 381.4 | K121: 0.3006700828 | L121: 6927.176855 | M121: 466.6 | N121: 0.3678360268 | O121: 6949.906894 | P121: 6765.815 | Q121: 6818.907925 | S121: 2160.1 | T121: 467.4 | U121: 0.2163788713 | V121: 6890.171717 | W121: 508.8 | X121: 0.2355446507 | Y121: 6917.499492 | Z121: 6717.92 | AA121: 6806.040552 | AC121: 3406.6 | AD121: 119.8 | AE121: 0.03516702871 | AF121: 6785.260513 | AG121: 755.1 | AH121: 0.2216579581 | AI121: 6919.139598 | AJ121: 6710.725 | AK121: 6820.42686 | BD121: 672500
A122: 90 | B122: =IF(A122>$A$8,"",OFFSET(InputPriceData!B$15,$A122+$A$11,0,1,1)) -> 2022-08-02 | C122: =IF(A122>$A$8,"",OFFSET(InputPriceData!G$15,CalculationsAndCharts!$A122+$A$11,IF($C$5,8,0),1,1)) -> 625600 | D122: =IF(A122>$A$8,"",OFFSET(InputPriceData!C$15,CalculationsAndCharts!$A122+$A$11,IF($C$5,8,0),1,1)) -> 6976.9 | E122: =IF(A122>$A$8,"",OFFSET(InputPriceData!D$15,CalculationsAndCharts!$A122+$A$11,IF($C$5,8,0),1,1)) -> 7003.8 | F122: =IF(A122>$A$8,"",OFFSET(InputPriceData!E$15,CalculationsAndCharts!$A122+$A$11,IF($C$5,8,0),1,1)) -> 6944.9 | G122: =IF(A122>$A$8,"",OFFSET(InputPriceData!F$15,CalculationsAndCharts!$A122+$A$11,IF($C$5,8,0),1,1)) -> 6998.1 | H122: 58.9 | I122: 1252.3 | J122: 368.8 | K122: 0.2944981235 | L122: 6906.228814 | M122: 466.6 | N122: 0.3725944263 | O122: 6934.782335 | P122: 6746.745 | Q122: 6802.382443 | S122: 2144.8 | T122: 474.3 | U122: 0.2211395002 | V122: 6866.499832 | W122: 510.6 | X122: 0.2380641552 | Y122: 6899.505076 | Z122: 6702.34 | AA122: 6794.326107 | AC122: 3453.5 | AD122: 208.2 | AE122: 0.0602866657 | AF122: 6778.311928 | AG122: 802 | AH122: 0.2322281743 | AI122: 6902.975245 | AJ122: 6713.72 | AK122: 6812.453879 | BC122: 625600
A123: 91 | B123: =IF(A123>$A$8,"",OFFSET(InputPriceData!B$15,$A123+$A$11,0,1,1)) -> 2022-08-01 | C123: =IF(A123>$A$8,"",OFFSET(InputPriceData!G$15,CalculationsAndCharts!$A123+$A$11,IF($C$5,8,0),1,1)) -> 668000 | D123: =IF(A123>$A$8,"",OFFSET(InputPriceData!C$15,CalculationsAndCharts!$A123+$A$11,IF($C$5,8,0),1,1)) -> 6951.3 | E123: =IF(A123>$A$8,"",OFFSET(InputPriceData!D$15,CalculationsAndCharts!$A123+$A$11,IF($C$5,8,0),1,1)) -> 6994.1 | F123: =IF(A123>$A$8,"",OFFSET(InputPriceData!E$15,CalculationsAndCharts!$A123+$A$11,IF($C$5,8,0),1,1)) -> 6947.3 | G123: =IF(A123>$A$8,"",OFFSET(InputPriceData!F$15,CalculationsAndCharts!$A123+$A$11,IF($C$5,8,0),1,1)) -> 6993 | H123: 48.9 | I123: 1253.6 | J123: 380.4 | K123: 0.3034460753 | L123: 6867.878963 | M123: 456.9 | N123: 0.3644703255 | O123: 6897.180168 | P123: 6728.305 | Q123: 6781.780595 | S123: 2190.2 | T123: 559.6 | U123: 0.2555017807 | V123: 6829.134995 | W123: 545.4 | X123: 0.2490183545 | Y123: 6868.699441 | Z123: 6686.53 | AA123: 6780.272735 | AC123: 3438.2 | AD123: 245.8 | AE123: 0.0714908964 | AF123: 6764.211574 | AG123: 824.3 | AH123: 0.2397475423 | AI123: 6874.202832 | AJ123: 6718.925 | AK123: 6802.933565 | BC123: 668000
A124: 92 | B124: =IF(A124>$A$8,"",OFFSET(InputPriceData!B$15,$A124+$A$11,0,1,1)) -> 2022-07-29 | C124: =IF(A124>$A$8,"",OFFSET(InputPriceData!G$15,CalculationsAndCharts!$A124+$A$11,IF($C$5,8,0),1,1)) -> 919200 | D124: =IF(A124>$A$8,"",OFFSET(InputPriceData!C$15,CalculationsAndCharts!$A124+$A$11,IF($C$5,8,0),1,1)) -> 6902.1 | E124: =IF(A124>$A$8,"",OFFSET(InputPriceData!D$15,CalculationsAndCharts!$A124+$A$11,IF($C$5,8,0),1,1)) -> 6973.6 | F124: =IF(A124>$A$8,"",OFFSET(InputPriceData!E$15,CalculationsAndCharts!$A124+$A$11,IF($C$5,8,0),1,1)) -> 6902.1 | G124: =IF(A124>$A$8,"",OFFSET(InputPriceData!F$15,CalculationsAndCharts!$A124+$A$11,IF($C$5,8,0),1,1)) -> 6945.2 | H124: 83.9 | I124: 1323.8 | J124: 405.3 | K124: 0.3061640731 | L124: 6813.371356 | M124: 436.4 | N124: 0.3296570479 | O124: 6842.228391 | P124: 6709.285 | Q124: 6759.546974 | S124: 2227.7 | T124: 470.4 | U124: 0.2111594919 | V124: 6772.898728 | W124: 566.6 | X124: 0.2543430444 | Y124: 6827.482561 | Z124: 6667.876667 | AA124: 6765.601889 | AC124: 3468 | AD124: 230.7 | AE124: 0.06652249135 | AF124: 6746.595926 | AG124: 847.6 | AH124: 0.2444059977 | AI124: 6836.739844 | AJ124: 6725.07 | AK124: 6793.186568 | BC124: 919200
A125: 93 | B125: =IF(A125>$A$8,"",OFFSET(InputPriceData!B$15,$A125+$A$11,0,1,1)) -> 2022-07-28 | C125: =IF(A125>$A$8,"",OFFSET(InputPriceData!G$15,CalculationsAndCharts!$A125+$A$11,IF($C$5,8,0),1,1)) -> 721200 | D125: =IF(A125>$A$8,"",OFFSET(InputPriceData!C$15,CalculationsAndCharts!$A125+$A$11,IF($C$5,8,0),1,1)) -> 6833.2 | E125: =IF(A125>$A$8,"",OFFSET(InputPriceData!D$15,CalculationsAndCharts!$A125+$A$11,IF($C$5,8,0),1,1)) -> 6892.1 | F125: =IF(A125>$A$8,"",OFFSET(InputPriceData!E$15,CalculationsAndCharts!$A125+$A$11,IF($C$5,8,0),1,1)) -> 6833.2 | G125: =IF(A125>$A$8,"",OFFSET(InputPriceData!F$15,CalculationsAndCharts!$A125+$A$11,IF($C$5,8,0),1,1)) -> 6889.7 | H125: 68.9 | I125: 1323.9 | J125: 321.6 | K125: 0.2429186494 | L125: 6755.200263 | M125: 354.9 | N125: 0.2680716066 | O125: 6791.589659 | P125: 6689.02 | Q125: 6740.00455 | S125: 2324.5 | T125: 298.6 | U125: 0.1284577328 | V125: 6726.776541 | W125: 485.1 | X125: 0.2086900409 | Y125: 6787.329228 | Z125: 6652.196667 | AA125: 6753.215813 | AC125: 3467.6 | AD125: 344.3 | AE125: 0.09929057561 | AF125: 6732.442786 | AG125: 847.6 | AH125: 0.2444341908 | AI125: 6801.657098 | AJ125: 6730.8375 | AK125: 6785.391008 | BC125: 721200
A126: 94 | B126: =IF(A126>$A$8,"",OFFSET(InputPriceData!B$15,$A126+$A$11,0,1,1)) -> 2022-07-27 | C126: =IF(A126>$A$8,"",OFFSET(InputPriceData!G$15,CalculationsAndCharts!$A126+$A$11,IF($C$5,8,0),1,1)) -> 626000 | D126: =IF(A126>$A$8,"",OFFSET(InputPriceData!C$15,CalculationsAndCharts!$A126+$A$11,IF($C$5,8,0),1,1)) -> 6802.9 | E126: =IF(A126>$A$8,"",OFFSET(InputPriceData!D$15,CalculationsAndCharts!$A126+$A$11,IF($C$5,8,0),1,1)) -> 6833.4 | F126: =IF(A126>$A$8,"",OFFSET(InputPriceData!E$15,CalculationsAndCharts!$A126+$A$11,IF($C$5,8,0),1,1)) -> 6778.9 | G126: =IF(A126>$A$8,"",OFFSET(InputPriceData!F$15,CalculationsAndCharts!$A126+$A$11,IF($C$5,8,0),1,1)) -> 6823.2 | H126: 54.5 | I126: 1387.1 | J126: 123 | K126: 0.08867421239 | L126: 6712.044406 | M126: 296.2 | N126: 0.2135390383 | O126: 6755.656367 | P126: 6672.94 | Q126: 6724.247134 | S126: 2343.3 | T126: 222.2 | U126: 0.09482353945 | V126: 6702.763044 | W126: 426.4 | X126: 0.1819656041 | Y126: 6760.331261 | Z126: 6642.243333 | AA126: 6743.80311 | AC126: 3432.5 | AD126: 388 | AE126: 0.1130371449 | AF126: 6715.107385 | AG126: 847.6 | AH126: 0.2469337218 | AI126: 6773.174211 | AJ126: 6739.445 | AK126: 6780.041829 | BC126: 626000
A127: 95 | B127: =IF(A127>$A$8,"",OFFSET(InputPriceData!B$15,$A127+$A$11,0,1,1)) -> 2022-07-26 | C127: =IF(A127>$A$8,"",OFFSET(InputPriceData!G$15,CalculationsAndCharts!$A127+$A$11,IF($C$5,8,0),1,1)) -> 619000 | D127: =IF(A127>$A$8,"",OFFSET(InputPriceData!C$15,CalculationsAndCharts!$A127+$A$11,IF($C$5,8,0),1,1)) -> 6801.8 | E127: =IF(A127>$A$8,"",OFFSET(InputPriceData!D$15,CalculationsAndCharts!$A127+$A$11,IF($C$5,8,0),1,1)) -> 6815 | F127: =IF(A127>$A$8,"",OFFSET(InputPriceData!E$15,CalculationsAndCharts!$A127+$A$11,IF($C$5,8,0),1,1)) -> 6783.2 | G127: =IF(A127>$A$8,"",OFFSET(InputPriceData!F$15,CalculationsAndCharts!$A127+$A$11,IF($C$5,8,0),1,1)) -> 6807.3 | H127: 31.8 | I127: 1429.8 | J127: 43.7 | K127: 0.0305637152 | L127: 6701.228696 | M127: 278.9 | N127: 0.1950622465 | O127: 6737.316992 | P127: 6666.79 | Q127: 6713.831043 | S127: 2385.1 | T127: 121.3 | U127: 0.0508574064 | V127: 6690.146434 | W127: 409.1 | X127: 0.1715232066 | Y127: 6746.346583 | Z127: 6634.836667 | AA127: 6738.327463 | AC127: 3455.2 | AD127: 479.3 | AE127: 0.1387184533 | AF127: 6701.331746 | AG127: 881.4 | AH127: 0.2550937717 | AI127: 6756.770536 | AJ127: 6749.145 | AK127: 6777.828589 | BC127: 619000
A128: 96 | B128: =IF(A128>$A$8,"",OFFSET(InputPriceData!B$15,$A128+$A$11,0,1,1)) -> 2022-07-25 | C128: =IF(A128>$A$8,"",OFFSET(InputPriceData!G$15,CalculationsAndCharts!$A128+$A$11,IF($C$5,8,0),1,1)) -> 594100 | D128: =IF(A128>$A$8,"",OFFSET(InputPriceData!C$15,CalculationsAndCharts!$A128+$A$11,IF($C$5,8,0),1,1)) -> 6788.9 | E128: =IF(A128>$A$8,"",OFFSET(InputPriceData!D$15,CalculationsAndCharts!$A128+$A$11,IF($C$5,8,0),1,1)) -> 6803 | F128: =IF(A128>$A$8,"",OFFSET(InputPriceData!E$15,CalculationsAndCharts!$A128+$A$11,IF($C$5,8,0),1,1)) -> 6775.7 | G128: =IF(A128>$A$8,"",OFFSET(InputPriceData!F$15,CalculationsAndCharts!$A128+$A$11,IF($C$5,8,0),1,1)) -> 6789.9 | H128: 27.3 | I128: 1455.6 | J128: 83.9 | K128: 0.05763946139 | L128: 6697.884554 | M128: 278.9 | N128: 0.1916048365 | O128: 6720.357864 | P128: 6664.605 | Q128: 6703.992206 | S128: 2719.2 | T128: 142.1 | U128: 0.05225801706 | V128: 6683.869056 | W128: 435.1 | X128: 0.1600102971 | Y128: 6733.727128 | Z128: 6630.793333 | AA128: 6733.570736 | AC128: 3527.3 | AD128: 392.8 | AE128: 0.1113599637 | AF128: 6684.264444 | AG128: 881.4 | AH128: 0.2498795112 | AI128: 6739.466678 | AJ128: 6761.1275 | AK128: 6776.317235 | BD128: 594100
A129: 97 | B129: =IF(A129>$A$8,"",OFFSET(InputPriceData!B$15,$A129+$A$11,0,1,1)) -> 2022-07-22 | C129: =IF(A129>$A$8,"",OFFSET(InputPriceData!G$15,CalculationsAndCharts!$A129+$A$11,IF($C$5,8,0),1,1)) -> 822100 | D129: =IF(A129>$A$8,"",OFFSET(InputPriceData!C$15,CalculationsAndCharts!$A129+$A$11,IF($C$5,8,0),1,1)) -> 6790.9 | E129: =IF(A129>$A$8,"",OFFSET(InputPriceData!D$15,CalculationsAndCharts!$A129+$A$11,IF($C$5,8,0),1,1)) -> 6816.1 | F129: =IF(A129>$A$8,"",OFFSET(InputPriceData!E$15,CalculationsAndCharts!$A129+$A$11,IF($C$5,8,0),1,1)) -> 6758.5 | G129: =IF(A129>$A$8,"",OFFSET(InputPriceData!F$15,CalculationsAndCharts!$A129+$A$11,IF($C$5,8,0),1,1)) -> 6791.5 | H129: 57.6 | I129: 1565.7 | J129: 212.8 | K129: 0.1359136488 | L129: 6692.256431 | M129: 278.9 | N129: 0.1781311873 | O129: 6703.875072 | P129: 6660.41 | Q129: 6694.94928 | S129: 2784.7 | T129: 228.2 | U129: 0.08194778612 | V129: 6678.022563 | W129: 599.2 | X129: 0.215175782 | Y129: 6723.026713 | Z129: 6635.53 | AA129: 6729.685959 | AC129: 3590.8 | AD129: 314.4 | AE129: 0.08755709034 | AF129: 6671.026719 | AG129: 881.4 | AH129: 0.2454606216 | AI129: 6722.666372 | AJ129: 6770.9475 | AK129: 6775.620683 | BD129: 822100
A130: 98 | B130: =IF(A130>$A$8,"",OFFSET(InputPriceData!B$15,$A130+$A$11,0,1,1)) -> 2022-07-21 | C130: =IF(A130>$A$8,"",OFFSET(InputPriceData!G$15,CalculationsAndCharts!$A130+$A$11,IF($C$5,8,0),1,1)) -> 834500 | D130: =IF(A130>$A$8,"",OFFSET(InputPriceData!C$15,CalculationsAndCharts!$A130+$A$11,IF($C$5,8,0),1,1)) -> 6764.4 | E130: =IF(A130>$A$8,"",OFFSET(InputPriceData!D$15,CalculationsAndCharts!$A130+$A$11,IF($C$5,8,0),1,1)) -> 6794.3 | F130: =IF(A130>$A$8,"",OFFSET(InputPriceData!E$15,CalculationsAndCharts!$A130+$A$11,IF($C$5,8,0),1,1)) -> 6743.9 | G130: =IF(A130>$A$8,"",OFFSET(InputPriceData!F$15,CalculationsAndCharts!$A130+$A$11,IF($C$5,8,0),1,1)) -> 6794.3 | H130: 50.4 | I130: 1591.6 | J130: 265.9 | K130: 0.1670645891 | L130: 6676.646237 | M130: 292.7 | N130: 0.1839029907 | O130: 6684.883315 | P130: 6649.77 | Q130: 6684.786046 | S130: 2828.5 | T130: 326.8 | U130: 0.1155382712 | V130: 6667.893265 | W130: 704.5 | X130: 0.2490719463 | Y130: 6704.253346 | Z130: 6643.136667 | AA130: 6725.422922 | AC130: 3608.7 | AD130: 360.9 | AE130: 0.1000083132 | AF130: 6659.466226 | AG130: 881.4 | AH130: 0.2442430792 | AI130: 6700.273976 | AJ130: 6778.8075 | AK130: 6774.806359 | BC130: 834500
A131: 99 | B131: =IF(A131>$A$8,"",OFFSET(InputPriceData!B$15,$A131+$A$11,0,1,1)) -> 2022-07-20 | C131: =IF(A131>$A$8,"",OFFSET(InputPriceData!G$15,CalculationsAndCharts!$A131+$A$11,IF($C$5,8,0),1,1)) -> 746000 | D131: =IF(A131>$A$8,"",OFFSET(InputPriceData!C$15,CalculationsAndCharts!$A131+$A$11,IF($C$5,8,0),1,1)) -> 6662 | E131: =IF(A131>$A$8,"",OFFSET(InputPriceData!D$15,CalculationsAndCharts!$A131+$A$11,IF($C$5,8,0),1,1)) -> 6775.4 | F131: =IF(A131>$A$8,"",OFFSET(InputPriceData!E$15,CalculationsAndCharts!$A131+$A$11,IF($C$5,8,0),1,1)) -> 6661.8 | G131: =IF(A131>$A$8,"",OFFSET(InputPriceData!F$15,CalculationsAndCharts!$A131+$A$11,IF($C$5,8,0),1,1)) -> 6759.2 | H131: 125.8 | I131: 1598 | J131: 250.7 | K131: 0.1568836045 | L131: 6653.048036 | M131: 280.4 | N131: 0.1754693367 | O131: 6660.226864 | P131: 6636.475 | Q131: 6673.258262 | S131: 2844.5 | T131: 336.5 | U131: 0.1182984707 | V131: 6651.380605 | W131: 755.1 | X131: 0.265459659 | Y131: 6674.386177 | Z131: 6654.03 | AA131: 6720.672778 | AC131: 3648.1 | AD131: 369.6 | AE131: 0.1013130123 | AF131: 6644.483312 | AG131: 881.4 | AH131: 0.2416052192 | AI131: 6669.886949 | AJ131: 6787.83 | AK131: 6773.806685 | BC131: 746000
A132: 100 | B132: =IF(A132>$A$8,"",OFFSET(InputPriceData!B$15,$A132+$A$11,0,1,1)) -> 2022-07-19 | C132: =IF(A132>$A$8,"",OFFSET(InputPriceData!G$15,CalculationsAndCharts!$A132+$A$11,IF($C$5,8,0),1,1)) -> 659200 | D132: =IF(A132>$A$8,"",OFFSET(InputPriceData!C$15,CalculationsAndCharts!$A132+$A$11,IF($C$5,8,0),1,1)) -> 6691.2 | E132: =IF(A132>$A$8,"",OFFSET(InputPriceData!D$15,CalculationsAndCharts!$A132+$A$11,IF($C$5,8,0),1,1)) -> 6696.1 | F132: =IF(A132>$A$8,"",OFFSET(InputPriceData!E$15,CalculationsAndCharts!$A132+$A$11,IF($C$5,8,0),1,1)) -> 6639.6 | G132: =IF(A132>$A$8,"",OFFSET(InputPriceData!F$15,CalculationsAndCharts!$A132+$A$11,IF($C$5,8,0),1,1)) -> 6649.6 | H132: 56.5 | I132: 1536.8 | J132: 125.8 | K132: 0.08185840708 | L132: 6633.295718 | M132: 270.4 | N132: 0.175950026 | O132: 6639.164275 | P132: 6623.94 | Q132: 6664.211763 | S132: 2845.5 | T132: 556.7 | U132: 0.1956422421 | V132: 6636.914406 | W132: 802 | X132: 0.2818485328 | Y132: 6643.734833 | Z132: 6665.246667 | AA132: 6718.015729 | AC132: 3574.1 | AD132: 499.3 | AE132: 0.1396995048 | AF132: 6631.550786 | AG132: 881.4 | AH132: 0.2466075376 | AI132: 6641.43409 | AJ132: 6797.07 | AK132: 6774.555746 | BD132: 659200
A133: 101 | B133: =IF(A133>$A$8,"",OFFSET(InputPriceData!B$15,$A133+$A$11,0,1,1)) -> 2022-07-18 | C133: =IF(A133>$A$8,"",OFFSET(InputPriceData!G$15,CalculationsAndCharts!$A133+$A$11,IF($C$5,8,0),1,1)) -> 528400 | D133: =IF(A133>$A$8,"",OFFSET(InputPriceData!C$15,CalculationsAndCharts!$A133+$A$11,IF($C$5,8,0),1,1)) -> 6613.5 | E133: =IF(A133>$A$8,"",OFFSET(InputPriceData!D$15,CalculationsAndCharts!$A133+$A$11,IF($C$5,8,0),1,1)) -> 6687.1 | F133: =IF(A133>$A$8,"",OFFSET(InputPriceData!E$15,CalculationsAndCharts!$A133+$A$11,IF($C$5,8,0),1,1)) -> 6612.8 | G133: =IF(A133>$A$8,"",OFFSET(InputPriceData!F$15,CalculationsAndCharts!$A133+$A$11,IF($C$5,8,0),1,1)) -> 6687.1 | H133: 81.5 | I133: 1584.6 | J133: 253.7 | K133: 0.1601034962 | L133: 6631.842083 | M133: 314.9 | N133: 0.1987252303 | O133: 6636.936054 | P133: 6617.65 | Q133: 6665.749843 | S133: 2832.6 | T133: 551.7 | U133: 0.1947680576 | V133: 6633.828916 | W133: 824.3 | X133: 0.2910047306 | Y133: 6641.432966 | Z133: 6683.803333 | AA133: 6722.734055 | AC133: 3577.8 | AD133: 458.5 | AE133: 0.1281513779 | AF133: 6628.619872 | AG133: 881.4 | AH133: 0.2463525071 | AI133: 6638.761148 | AJ133: 6809.5525 | AK133: 6780.963732 | BC133: 528400
A134: 102 | B134: =IF(A134>$A$8,"",OFFSET(InputPriceData!B$15,$A134+$A$11,0,1,1)) -> 2022-07-15 | C134: =IF(A134>$A$8,"",OFFSET(InputPriceData!G$15,CalculationsAndCharts!$A134+$A$11,IF($C$5,8,0),1,1)) -> 629800 | D134: =IF(A134>$A$8,"",OFFSET(InputPriceData!C$15,CalculationsAndCharts!$A134+$A$11,IF($C$5,8,0),1,1)) -> 6622.1 | E134: =IF(A134>$A$8,"",OFFSET(InputPriceData!D$15,CalculationsAndCharts!$A134+$A$11,IF($C$5,8,0),1,1)) -> 6622.2 | F134: =IF(A134>$A$8,"",OFFSET(InputPriceData!E$15,CalculationsAndCharts!$A134+$A$11,IF($C$5,8,0),1,1)) -> 6537.2 | G134: =IF(A134>$A$8,"",OFFSET(InputPriceData!F$15,CalculationsAndCharts!$A134+$A$11,IF($C$5,8,0),1,1)) -> 6605.6 | H134: 113.4 | I134: 1589.5 | J134: 130.8 | K134: 0.08229002831 | L134: 6621.30866 | M134: 356.6 | N134: 0.224347279 | O134: 6624.494826 | P134: 6604.965 | Q134: 6663.502458 | S134: 2829.8 | T134: 570.3 | U134: 0.2015336773 | V134: 6620.943801 | W134: 847.6 | X134: 0.2995264683 | Y134: 6622.689085 | Z134: 6702.193333 | AA134: 6725.191576 | AC134: 3586.4 | AD134: 458.9 | AE134: 0.1279556101 | AF134: 6620.023989 | AG134: 881.4 | AH134: 0.2457617667 | AI134: 6622.96013 | AJ134: 6821.015 | AK134: 6785.777257 | BD134: 629800
A135: 103 | B135: =IF(A135>$A$8,"",OFFSET(InputPriceData!B$15,$A135+$A$11,0,1,1)) -> 2022-07-14 | C135: =IF(A135>$A$8,"",OFFSET(InputPriceData!G$15,CalculationsAndCharts!$A135+$A$11,IF($C$5,8,0),1,1)) -> 735800 | D135: =IF(A135>$A$8,"",OFFSET(InputPriceData!C$15,CalculationsAndCharts!$A135+$A$11,IF($C$5,8,0),1,1)) -> 6623 | E135: =IF(A135>$A$8,"",OFFSET(InputPriceData!D$15,CalculationsAndCharts!$A135+$A$11,IF($C$5,8,0),1,1)) -> 6659.3 | F135: =IF(A135>$A$8,"",OFFSET(InputPriceData!E$15,CalculationsAndCharts!$A135+$A$11,IF($C$5,8,0),1,1)) -> 6611.7 | G135: =IF(A135>$A$8,"",OFFSET(InputPriceData!F$15,CalculationsAndCharts!$A135+$A$11,IF($C$5,8,0),1,1)) -> 6650.6 | H135: 47.6 | I135: 1656.8 | J135: 59.5 | K135: 0.03591260261 | L135: 6622.717238 | M135: 356.6 | N135: 0.2152341864 | O135: 6629.959904 | P135: 6598.425 | Q135: 6669.597454 | S135: 2799.9 | T135: 583.4 | U135: 0.2083645844 | V135: 6624.816592 | W135: 847.6 | X135: 0.3027250973 | Y135: 6629.996476 | Z135: 6721.203333 | AA135: 6733.439271 | AC135: 3618.1 | AD135: 532.1 | AE135: 0.1470661397 | AF135: 6622.14043 | AG135: 881.4 | AH135: 0.2436085238 | AI135: 6628.616773 | AJ135: 6832.4875 | AK135: 6795.017117 | BC135: 735800
A136: 104 | B136: =IF(A136>$A$8,"",OFFSET(InputPriceData!B$15,$A136+$A$11,0,1,1)) -> 2022-07-13 | C136: =IF(A136>$A$8,"",OFFSET(InputPriceData!G$15,CalculationsAndCharts!$A136+$A$11,IF($C$5,8,0),1,1)) -> 673200 | D136: =IF(A136>$A$8,"",OFFSET(InputPriceData!C$15,CalculationsAndCharts!$A136+$A$11,IF($C$5,8,0),1,1)) -> 6595.1 | E136: =IF(A136>$A$8,"",OFFSET(InputPriceData!D$15,CalculationsAndCharts!$A136+$A$11,IF($C$5,8,0),1,1)) -> 6621.6 | F136: =IF(A136>$A$8,"",OFFSET(InputPriceData!E$15,CalculationsAndCharts!$A136+$A$11,IF($C$5,8,0),1,1)) -> 6584.1 | G136: =IF(A136>$A$8,"",OFFSET(InputPriceData!F$15,CalculationsAndCharts!$A136+$A$11,IF($C$5,8,0),1,1)) -> 6621.6 | H136: 37.5 | I136: 1696.9 | J136: 20.6 | K136: 0.01213978431 | L136: 6621.678595 | M136: 356.6 | N136: 0.2101479168 | O136: 6624.299038 | P136: 6595.45 | Q136: 6671.597186 | S136: 2786.1 | T136: 589.6 | U136: 0.2116219805 | V136: 6618.030199 | W136: 847.6 | X136: 0.3042245433 | Y136: 6621.051361 | Z136: 6740.65 | AA136: 6739.152324 | AC136: 3657 | AD136: 490.9 | AE136: 0.1342357123 | AF136: 6617.233321 | AG136: 881.4 | AH136: 0.2410172272 | AI136: 6621.536707 | AJ136: 6845.79 | AK136: 6802.423123 | BC136: 673200
A137: 105 | B137: =IF(A137>$A$8,"",OFFSET(InputPriceData!B$15,$A137+$A$11,0,1,1)) -> 2022-07-12 | C137: =IF(A137>$A$8,"",OFFSET(InputPriceData!G$15,CalculationsAndCharts!$A137+$A$11,IF($C$5,8,0),1,1)) -> 618600 | D137: =IF(A137>$A$8,"",OFFSET(InputPriceData!C$15,CalculationsAndCharts!$A137+$A$11,IF($C$5,8,0),1,1)) -> 6612.4 | E137: =IF(A137>$A$8,"",OFFSET(InputPriceData!D$15,CalculationsAndCharts!$A137+$A$11,IF($C$5,8,0),1,1)) -> 6649.7 | F137: =IF(A137>$A$8,"",OFFSET(InputPriceData!E$15,CalculationsAndCharts!$A137+$A$11,IF($C$5,8,0),1,1)) -> 6601.9 | G137: =IF(A137>$A$8,"",OFFSET(InputPriceData!F$15,CalculationsAndCharts!$A137+$A$11,IF($C$5,8,0),1,1)) -> 6606.3 | H137: 47.8 | I137: 1755.7 | J137: 79.7 | K137: 0.04539499915 | L137: 6621.679561 | M137: 356.6 | N137: 0.2031098707 | O137: 6625.017144 | P137: 6594.42 | Q137: 6676.860047 | S137: 2825.8 | T137: 680.3 | U137: 0.2407459834 | V137: 6617.071967 | W137: 881.4 | X137: 0.311911671 | Y137: 6620.811471 | Z137: 6760.303333 | AA137: 6747.259381 | AC137: 3656 | AD137: 486.7 | AE137: 0.1331236324 | AF137: 6616.556273 | AG137: 881.4 | AH137: 0.241083151 | AI137: 6621.516608 | AJ137: 6858.0625 | AK137: 6811.696103 | BC137: 618600
A138: 106 | B138: =IF(A138>$A$8,"",OFFSET(InputPriceData!B$15,$A138+$A$11,0,1,1)) -> 2022-07-11 | C138: =IF(A138>$A$8,"",OFFSET(InputPriceData!G$15,CalculationsAndCharts!$A138+$A$11,IF($C$5,8,0),1,1)) -> 551900 | D138: =IF(A138>$A$8,"",OFFSET(InputPriceData!C$15,CalculationsAndCharts!$A138+$A$11,IF($C$5,8,0),1,1)) -> 6664.7 | E138: =IF(A138>$A$8,"",OFFSET(InputPriceData!D$15,CalculationsAndCharts!$A138+$A$11,IF($C$5,8,0),1,1)) -> 6674.4 | F138: =IF(A138>$A$8,"",OFFSET(InputPriceData!E$15,CalculationsAndCharts!$A138+$A$11,IF($C$5,8,0),1,1)) -> 6602.2 | G138: =IF(A138>$A$8,"",OFFSET(InputPriceData!F$15,CalculationsAndCharts!$A138+$A$11,IF($C$5,8,0),1,1)) -> 6602.2 | H138: 75.8 | I138: 2073.8 | J138: 329.8 | K138: 0.1590317292 | L138: 6622.410916 | M138: 435.1 | N138: 0.2098080818 | O138: 6629.787734 | P138: 6598.405 | Q138: 6684.287421 | S138: 2881.9 | T138: 580.5 | U138: 0.2014296124 | V138: 6620.487567 | W138: 881.4 | X138: 0.3058398973 | Y138: 6627.389547 | Z138: 6782.98 | AA138: 6756.980717 | AC138: 3682.6 | AD138: 472.9 | AE138: 0.128414707 | AF138: 6618.131298 | AG138: 881.4 | AH138: 0.2393417694 | AI138: 6626.350428 | AJ138: 6870.23 | AK138: 6822.229237 | BD138: 551900
A139: 107 | B139: =IF(A139>$A$8,"",OFFSET(InputPriceData!B$15,$A139+$A$11,0,1,1)) -> 2022-07-08 | C139: =IF(A139>$A$8,"",OFFSET(InputPriceData!G$15,CalculationsAndCharts!$A139+$A$11,IF($C$5,8,0),1,1)) -> 586400 | D139: =IF(A139>$A$8,"",OFFSET(InputPriceData!C$15,CalculationsAndCharts!$A139+$A$11,IF($C$5,8,0),1,1)) -> 6671 | E139: =IF(A139>$A$8,"",OFFSET(InputPriceData!D$15,CalculationsAndCharts!$A139+$A$11,IF($C$5,8,0),1,1)) -> 6715 | F139: =IF(A139>$A$8,"",OFFSET(InputPriceData!E$15,CalculationsAndCharts!$A139+$A$11,IF($C$5,8,0),1,1)) -> 6671 | G139: =IF(A139>$A$8,"",OFFSET(InputPriceData!F$15,CalculationsAndCharts!$A139+$A$11,IF($C$5,8,0),1,1)) -> 6678 | H139: 67 | I139: 2090.8 | J139: 341.7 | K139: 0.1634302659 | L139: 6626.232911 | M139: 599.2 | N139: 0.2865888655 | O139: 6637.112701 | P139: 6614.895 | Q139: 6692.928202 | S139: 2896.9 | T139: 427.9 | U139: 0.1477096206 | V139: 6625.100382 | W139: 881.4 | X139: 0.3042562739 | Y139: 6638.487805 | Z139: 6802.33 | AA139: 6767.655249 | AC139: 3740.9 | AD139: 263 | AE139: 0.07030393756 | AF139: 6620.47853 | AG139: 881.4 | AH139: 0.2356117512 | AI139: 6633.949381 | AJ139: 6882.0525 | AK139: 6833.512787 | BC139: 586400
A140: 108 | B140: =IF(A140>$A$8,"",OFFSET(InputPriceData!B$15,$A140+$A$11,0,1,1)) -> 2022-07-07 | C140: =IF(A140>$A$8,"",OFFSET(InputPriceData!G$15,CalculationsAndCharts!$A140+$A$11,IF($C$5,8,0),1,1)) -> 700500 | D140: =IF(A140>$A$8,"",OFFSET(InputPriceData!C$15,CalculationsAndCharts!$A140+$A$11,IF($C$5,8,0),1,1)) -> 6607.6 | E140: =IF(A140>$A$8,"",OFFSET(InputPriceData!D$15,CalculationsAndCharts!$A140+$A$11,IF($C$5,8,0),1,1)) -> 6648 | F140: =IF(A140>$A$8,"",OFFSET(InputPriceData!E$15,CalculationsAndCharts!$A140+$A$11,IF($C$5,8,0),1,1)) -> 6594.5 | G140: =IF(A140>$A$8,"",OFFSET(InputPriceData!F$15,CalculationsAndCharts!$A140+$A$11,IF($C$5,8,0),1,1)) -> 6648 | H140: 53.5 | I140: 2125.2 | J140: 473.1 | K140: 0.2226143422 | L140: 6616.119816 | M140: 704.5 | N140: 0.3314982119 | O140: 6620.687608 | P140: 6631.98 | Q140: 6694.499592 | S140: 2905.4 | T140: 507.2 | U140: 0.1745714876 | V140: 6615.932401 | W140: 881.4 | X140: 0.3033661458 | Y140: 6621.208694 | Z140: 6816.593333 | AA140: 6773.83837 | AC140: 3808.4 | AD140: 416.7 | AE140: 0.1094160277 | AF140: 6616.128737 | AG140: 881.4 | AH140: 0.2314357736 | AI140: 6620.371407 | AJ140: 6888.6275 | AK140: 6841.487802 | BC140: 700500
A141: 109 | B141: =IF(A141>$A$8,"",OFFSET(InputPriceData!B$15,$A141+$A$11,0,1,1)) -> 2022-07-06 | C141: =IF(A141>$A$8,"",OFFSET(InputPriceData!G$15,CalculationsAndCharts!$A141+$A$11,IF($C$5,8,0),1,1)) -> 752400 | D141: =IF(A141>$A$8,"",OFFSET(InputPriceData!C$15,CalculationsAndCharts!$A141+$A$11,IF($C$5,8,0),1,1)) -> 6606.6 | E141: =IF(A141>$A$8,"",OFFSET(InputPriceData!D$15,CalculationsAndCharts!$A141+$A$11,IF($C$5,8,0),1,1)) -> 6651.6 | F141: =IF(A141>$A$8,"",OFFSET(InputPriceData!E$15,CalculationsAndCharts!$A141+$A$11,IF($C$5,8,0),1,1)) -> 6587.9 | G141: =IF(A141>$A$8,"",OFFSET(InputPriceData!F$15,CalculationsAndCharts!$A141+$A$11,IF($C$5,8,0),1,1)) -> 6594.5 | H141: 63.7 | I141: 2138.1 | J141: 501.2 | K141: 0.2344137318 | L141: 6606.990517 | M141: 755.1 | N141: 0.3531640241 | O141: 6607.143875 | P141: 6655.635 | Q141: 6699.394286 | S141: 2941.7 | T141: 534.3 | U141: 0.1816296699 | V141: 6609.150362 | W141: 881.4 | X141: 0.2996226672 | Y141: 6609.541769 | Z141: 6833.5 | AA141: 6782.516878 | AC141: 3827.8 | AD141: 456.7 | AE141: 0.1193113538 | AF141: 6612.213074 | AG141: 881.4 | AH141: 0.2302628141 | AI141: 6612.05168 | AJ141: 6899.045 | AK141: 6851.410253 | BD141: 752400
A142: 110 | B142: =IF(A142>$A$8,"",OFFSET(InputPriceData!B$15,$A142+$A$11,0,1,1)) -> 2022-07-05 | C142: =IF(A142>$A$8,"",OFFSET(InputPriceData!G$15,CalculationsAndCharts!$A142+$A$11,IF($C$5,8,0),1,1)) -> 532900 | D142: =IF(A142>$A$8,"",OFFSET(InputPriceData!C$15,CalculationsAndCharts!$A142+$A$11,IF($C$5,8,0),1,1)) -> 6618.7 | E142: =IF(A142>$A$8,"",OFFSET(InputPriceData!D$15,CalculationsAndCharts!$A142+$A$11,IF($C$5,8,0),1,1)) -> 6657 | F142: =IF(A142>$A$8,"",OFFSET(InputPriceData!E$15,CalculationsAndCharts!$A142+$A$11,IF($C$5,8,0),1,1)) -> 6596.8 | G142: =IF(A142>$A$8,"",OFFSET(InputPriceData!F$15,CalculationsAndCharts!$A142+$A$11,IF($C$5,8,0),1,1)) -> 6629.3 | H142: 60.2 | I142: 2201.2 | J142: 577 | K142: 0.2621297474 | L142: 6610.81497 | M142: 802 | N142: 0.36434672 | O142: 6614.047267 | P142: 6680.695 | Q142: 6710.435789 | S142: 2929.8 | T142: 519.6 | U142: 0.1773499898 | V142: 6612.401873 | W142: 881.4 | X142: 0.3008396478 | Y142: 6615.976665 | Z142: 6851.31 | AA142: 6795.48356 | AC142: 3945.3 | AD142: 491.4 | AE142: 0.1245532659 | AF142: 6614.612754 | AG142: 881.4 | AH142: 0.2234050643 | AI142: 6617.302172 | AJ142: 6910.4625 | AK142: 6864.585138 | BC142: 532900
A143: 111 | B143: =IF(A143>$A$8,"",OFFSET(InputPriceData!B$15,$A143+$A$11,0,1,1)) -> 2022-07-04 | C143: =IF(A143>$A$8,"",OFFSET(InputPriceData!G$15,CalculationsAndCharts!$A143+$A$11,IF($C$5,8,0),1,1)) -> 574600 | D143: =IF(A143>$A$8,"",OFFSET(InputPriceData!C$15,CalculationsAndCharts!$A143+$A$11,IF($C$5,8,0),1,1)) -> 6545 | E143: =IF(A143>$A$8,"",OFFSET(InputPriceData!D$15,CalculationsAndCharts!$A143+$A$11,IF($C$5,8,0),1,1)) -> 6659 | F143: =IF(A143>$A$8,"",OFFSET(InputPriceData!E$15,CalculationsAndCharts!$A143+$A$11,IF($C$5,8,0),1,1)) -> 6544.5 | G143: =IF(A143>$A$8,"",OFFSET(InputPriceData!F$15,CalculationsAndCharts!$A143+$A$11,IF($C$5,8,0),1,1)) -> 6612.6 | H143: 119.1 | I143: 2184.6 | J143: 626.2 | K143: 0.2866428637 | L143: 6604.24813 | M143: 824.3 | N143: 0.3773230797 | O143: 6605.304634 | P143: 6709.545 | Q143: 6718.976399 | S143: 2929.8 | T143: 533 | U143: 0.1819236808 | V143: 6608.758911 | W143: 881.4 | X143: 0.3008396478 | Y143: 6610.243806 | Z143: 6868.63 | AA143: 6806.944495 | AC143: 3998.4 | AD143: 593 | AE143: 0.1483093237 | AF143: 6612.523141 | AG143: 881.4 | AH143: 0.2204381753 | AI143: 6613.850726 | AJ143: 6922.7475 | AK143: 6876.651043 | BC143: 574600
A144: 112 | B144: =IF(A144>$A$8,"",OFFSET(InputPriceData!B$15,$A144+$A$11,0,1,1)) -> 2022-07-01 | C144: =IF(A144>$A$8,"",OFFSET(InputPriceData!G$15,CalculationsAndCharts!$A144+$A$11,IF($C$5,8,0),1,1)) -> 633400 | D144: =IF(A144>$A$8,"",OFFSET(InputPriceData!C$15,CalculationsAndCharts!$A144+$A$11,IF($C$5,8,0),1,1)) -> 6567.3 | E144: =IF(A144>$A$8,"",OFFSET(InputPriceData!D$15,CalculationsAndCharts!$A144+$A$11,IF($C$5,8,0),1,1)) -> 6623.9 | F144: =IF(A144>$A$8,"",OFFSET(InputPriceData!E$15,CalculationsAndCharts!$A144+$A$11,IF($C$5,8,0),1,1)) -> 6539.9 | G144: =IF(A144>$A$8,"",OFFSET(InputPriceData!F$15,CalculationsAndCharts!$A144+$A$11,IF($C$5,8,0),1,1)) -> 6539.9 | H144: 84 | I144: 2144.2 | J144: 636 | K144: 0.2966141218 | L144: 6600.892162 | M144: 847.6 | N144: 0.395298946 | O144: 6600.883866 | P144: 6740.855 | Q144: 6730.173914 | S144: 2900.8 | T144: 524.6 | U144: 0.180846663 | V144: 6607.90473 | W144: 881.4 | X144: 0.3038472146 | Y144: 6609.229966 | Z144: 6886.396667 | AA144: 6820.347563 | AC144: 4082.6 | AD144: 824.8 | AE144: 0.2020281193 | AF144: 6612.509757 | AG144: 927.8 | AH144: 0.2272571401 | AI144: 6614.204397 | AJ144: 6937.5725 | AK144: 6890.192122 | BD144: 633400
A145: 113 | B145: =IF(A145>$A$8,"",OFFSET(InputPriceData!B$15,$A145+$A$11,0,1,1)) -> 2022-06-30 | C145: =IF(A145>$A$8,"",OFFSET(InputPriceData!G$15,CalculationsAndCharts!$A145+$A$11,IF($C$5,8,0),1,1)) -> 880800 | D145: =IF(A145>$A$8,"",OFFSET(InputPriceData!C$15,CalculationsAndCharts!$A145+$A$11,IF($C$5,8,0),1,1)) -> 6685.1 | E145: =IF(A145>$A$8,"",OFFSET(InputPriceData!D$15,CalculationsAndCharts!$A145+$A$11,IF($C$5,8,0),1,1)) -> 6685.1 | F145: =IF(A145>$A$8,"",OFFSET(InputPriceData!E$15,CalculationsAndCharts!$A145+$A$11,IF($C$5,8,0),1,1)) -> 6568.1 | G145: =IF(A145>$A$8,"",OFFSET(InputPriceData!F$15,CalculationsAndCharts!$A145+$A$11,IF($C$5,8,0),1,1)) -> 6568.1 | H145: 132.1 | I145: 2143.7 | J145: 665.9 | K145: 0.3106311517 | L145: 6626.612235 | M145: 847.6 | N145: 0.3953911461 | O145: 6640.749611 | P145: 6772.655 | Q145: 6750.202747 | S145: 2961.9 | T145: 614.6 | U145: 0.2075019413 | V145: 6622.918316 | W145: 881.4 | X145: 0.2975792566 | Y145: 6639.490159 | Z145: 6903.883333 | AA145: 6839.688775 | AC145: 4063 | AD145: 736.6 | AE145: 0.1812946099 | AF145: 6630.892877 | AG145: 962.1 | AH145: 0.2367954713 | AI145: 6636.056691 | AJ145: 6958.1925 | AK145: 6908.15582 | BD145: 880800
A146: 114 | B146: =IF(A146>$A$8,"",OFFSET(InputPriceData!B$15,$A146+$A$11,0,1,1)) -> 2022-06-29 | C146: =IF(A146>$A$8,"",OFFSET(InputPriceData!G$15,CalculationsAndCharts!$A146+$A$11,IF($C$5,8,0),1,1)) -> 789100 | D146: =IF(A146>$A$8,"",OFFSET(InputPriceData!C$15,CalculationsAndCharts!$A146+$A$11,IF($C$5,8,0),1,1)) -> 6748.1 | E146: =IF(A146>$A$8,"",OFFSET(InputPriceData!D$15,CalculationsAndCharts!$A146+$A$11,IF($C$5,8,0),1,1)) -> 6750.3 | F146: =IF(A146>$A$8,"",OFFSET(InputPriceData!E$15,CalculationsAndCharts!$A146+$A$11,IF($C$5,8,0),1,1)) -> 6666.4 | G146: =IF(A146>$A$8,"",OFFSET(InputPriceData!F$15,CalculationsAndCharts!$A146+$A$11,IF($C$5,8,0),1,1)) -> 6700.2 | H146: 97.2 | I146: 2045.4 | J146: 511 | K146: 0.2498288843 | L146: 6652.97798 | M146: 847.6 | N146: 0.4143932727 | O146: 6688.259687 | P146: 6805.95 | Q146: 6769.371458 | S146: 2916.3 | T146: 412.3 | U146: 0.1413777732 | V146: 6637.271546 | W146: 881.4 | X146: 0.3022322806 | Y146: 6669.734468 | Z146: 6924.37 | AA146: 6858.419035 | AC146: 3997.8 | AD146: 616 | AE146: 0.1540847466 | AF146: 6644.797769 | AG146: 962.1 | AH146: 0.2406573615 | AI146: 6657.141258 | AJ146: 6976.6075 | AK146: 6925.59458 | BD146: 789100
A147: 115 | B147: =IF(A147>$A$8,"",OFFSET(InputPriceData!B$15,$A147+$A$11,0,1,1)) -> 2022-06-28 | C147: =IF(A147>$A$8,"",OFFSET(InputPriceData!G$15,CalculationsAndCharts!$A147+$A$11,IF($C$5,8,0),1,1)) -> 754500 | D147: =IF(A147>$A$8,"",OFFSET(InputPriceData!C$15,CalculationsAndCharts!$A147+$A$11,IF($C$5,8,0),1,1)) -> 6712.2 | E147: =IF(A147>$A$8,"",OFFSET(InputPriceData!D$15,CalculationsAndCharts!$A147+$A$11,IF($C$5,8,0),1,1)) -> 6763.6 | F147: =IF(A147>$A$8,"",OFFSET(InputPriceData!E$15,CalculationsAndCharts!$A147+$A$11,IF($C$5,8,0),1,1)) -> 6709 | G147: =IF(A147>$A$8,"",OFFSET(InputPriceData!F$15,CalculationsAndCharts!$A147+$A$11,IF($C$5,8,0),1,1)) -> 6763.6 | H147: 57.6 | I147: 2025.4 | J147: 523 | K147: 0.2582205984 | L147: 6637.251669 | M147: 881.4 | N147: 0.4351732991 | O147: 6679.810356 | P147: 6831.5 | Q147: 6776.652664 | S147: 2855.6 | T147: 329.4 | U147: 0.1153522902 | V147: 6626.909964 | W147: 881.4 | X147: 0.3086566746 | Y147: 6656.538576 | Z147: 6938.113333 | AA147: 6869.330693 | AC147: 3956.5 | AD147: 583.4 | AE147: 0.1474535574 | AF147: 6634.706169 | AG147: 962.1 | AH147: 0.243169468 | AI147: 6643.494713 | AJ147: 6992.0075 | AK147: 6937.153277 | BC147: 754500
A148: 116 | B148: =IF(A148>$A$8,"",OFFSET(InputPriceData!B$15,$A148+$A$11,0,1,1)) -> 2022-06-27 | C148: =IF(A148>$A$8,"",OFFSET(InputPriceData!G$15,CalculationsAndCharts!$A148+$A$11,IF($C$5,8,0),1,1)) -> 897200 | D148: =IF(A148>$A$8,"",OFFSET(InputPriceData!C$15,CalculationsAndCharts!$A148+$A$11,IF($C$5,8,0),1,1)) -> 6603.6 | E148: =IF(A148>$A$8,"",OFFSET(InputPriceData!D$15,CalculationsAndCharts!$A148+$A$11,IF($C$5,8,0),1,1)) -> 6716.1 | F148: =IF(A148>$A$8,"",OFFSET(InputPriceData!E$15,CalculationsAndCharts!$A148+$A$11,IF($C$5,8,0),1,1)) -> 6603.6 | G148: =IF(A148>$A$8,"",OFFSET(InputPriceData!F$15,CalculationsAndCharts!$A148+$A$11,IF($C$5,8,0),1,1)) -> 6706 | H148: 137.4 | I148: 2071.7 | J148: 476.7 | K148: 0.2301008833 | L148: 6593.26859 | M148: 881.4 | N148: 0.4254477 | O148: 6615.254243 | P148: 6857.65 | Q148: 6778.026628 | S148: 2872.4 | T148: 369.1 | U148: 0.1284988163 | V148: 6609.086475 | W148: 881.4 | X148: 0.3068514135 | Y148: 6608.740005 | Z148: 6949.093333 | AA148: 6876.622464 | AC148: 4032.3 | AD148: 729 | AE148: 0.1807901198 | AF148: 6612.413126 | AG148: 1016.2 | AH148: 0.252014979 | AI148: 6604.904914 | AJ148: 7006.5925 | AK148: 6946.053445 | BC148: 897200
A149: 117 | B149: =IF(A149>$A$8,"",OFFSET(InputPriceData!B$15,$A149+$A$11,0,1,1)) -> 2022-06-24 | C149: =IF(A149>$A$8,"",OFFSET(InputPriceData!G$15,CalculationsAndCharts!$A149+$A$11,IF($C$5,8,0),1,1)) -> 829300 | D149: =IF(A149>$A$8,"",OFFSET(InputPriceData!C$15,CalculationsAndCharts!$A149+$A$11,IF($C$5,8,0),1,1)) -> 6517.7 | E149: =IF(A149>$A$8,"",OFFSET(InputPriceData!D$15,CalculationsAndCharts!$A149+$A$11,IF($C$5,8,0),1,1)) -> 6585.1 | F149: =IF(A149>$A$8,"",OFFSET(InputPriceData!E$15,CalculationsAndCharts!$A149+$A$11,IF($C$5,8,0),1,1)) -> 6501.6 | G149: =IF(A149>$A$8,"",OFFSET(InputPriceData!F$15,CalculationsAndCharts!$A149+$A$11,IF($C$5,8,0),1,1)) -> 6578.7 | H149: 83.5 | I149: 2025.1 | J149: 527.2 | K149: 0.2603328231 | L149: 6559.576388 | M149: 881.4 | N149: 0.435237766 | O149: 6548.058318 | P149: 6881.485 | Q149: 6785.608379 | S149: 2869.1 | T149: 362.3 | U149: 0.1262765327 | V149: 6594.797024 | W149: 881.4 | X149: 0.3072043498 | Y149: 6565.683773 | Z149: 6961.396667 | AA149: 6888.389531 | AC149: 3973 | AD149: 778.2 | AE149: 0.1958721369 | AF149: 6591.759589 | AG149: 1028 | AH149: 0.2587465391 | AI149: 6570.843435 | AJ149: 7024.8175 | AK149: 6958.363878 | BC149: 829300
A150: 118 | B150: =IF(A150>$A$8,"",OFFSET(InputPriceData!B$15,$A150+$A$11,0,1,1)) -> 2022-06-23 | C150: =IF(A150>$A$8,"",OFFSET(InputPriceData!G$15,CalculationsAndCharts!$A150+$A$11,IF($C$5,8,0),1,1)) -> 906100 | D150: =IF(A150>$A$8,"",OFFSET(InputPriceData!C$15,CalculationsAndCharts!$A150+$A$11,IF($C$5,8,0),1,1)) -> 6495.1 | E150: =IF(A150>$A$8,"",OFFSET(InputPriceData!D$15,CalculationsAndCharts!$A150+$A$11,IF($C$5,8,0),1,1)) -> 6551.8 | F150: =IF(A150>$A$8,"",OFFSET(InputPriceData!E$15,CalculationsAndCharts!$A150+$A$11,IF($C$5,8,0),1,1)) -> 6495 | G150: =IF(A150>$A$8,"",OFFSET(InputPriceData!F$15,CalculationsAndCharts!$A150+$A$11,IF($C$5,8,0),1,1)) -> 6528.4 | H150: 56.8 | I150: 2017.1 | J150: 626.8 | K150: 0.3107431461 | L150: 6552.845653 | M150: 881.4 | N150: 0.4369639582 | O150: 6524.444102 | P150: 6907.845 | Q150: 6807.388208 | S150: 2920.1 | T150: 536.3 | U150: 0.1836580939 | V150: 6597.123477 | W150: 881.4 | X150: 0.3018389781 | Y150: 6559.912025 | Z150: 6973.473333 | AA150: 6909.74743 | AC150: 3985.2 | AD150: 732.8 | AE150: 0.1838803573 | AF150: 6594.940687 | AG150: 1028 | AH150: 0.2579544314 | AI150: 6568.100973 | AJ150: 7044.2725 | AK150: 6977.83382 | BC150: 906100
A151: 119 | B151: =IF(A151>$A$8,"",OFFSET(InputPriceData!B$15,$A151+$A$11,0,1,1)) -> 2022-06-22 | C151: =IF(A151>$A$8,"",OFFSET(InputPriceData!G$15,CalculationsAndCharts!$A151+$A$11,IF($C$5,8,0),1,1)) -> 914900 | D151: =IF(A151>$A$8,"",OFFSET(InputPriceData!C$15,CalculationsAndCharts!$A151+$A$11,IF($C$5,8,0),1,1)) -> 6543.9 | E151: =IF(A151>$A$8,"",OFFSET(InputPriceData!D$15,CalculationsAndCharts!$A151+$A$11,IF($C$5,8,0),1,1)) -> 6557.8 | F151: =IF(A151>$A$8,"",OFFSET(InputPriceData!E$15,CalculationsAndCharts!$A151+$A$11,IF($C$5,8,0),1,1)) -> 6493.2 | G151: =IF(A151>$A$8,"",OFFSET(InputPriceData!F$15,CalculationsAndCharts!$A151+$A$11,IF($C$5,8,0),1,1)) -> 6508.5 | H151: 64.6 | I151: 2050.1 | J151: 620.3 | K151: 0.3025706063 | L151: 6563.866681 | M151: 881.4 | N151: 0.4299302473 | O151: 6521.373989 | P151: 6939.185 | Q151: 6836.755388 | S151: 2936.2 | T151: 542.7 | U151: 0.1848307336 | V151: 6612.584674 | W151: 881.4 | X151: 0.3001839112 | Y151: 6573.535756 | Z151: 6991.35 | AA151: 6936.047252 | AC151: 4013.1 | AD151: 809.5 | AE151: 0.2017143854 | AF151: 6609.933005 | AG151: 1028 | AH151: 0.2561610725 | AI151: 6581.902069 | AJ151: 7062.5925 | AK151: 7000.881709 | BD151: 914900
A152: 120 | B152: =IF(A152>$A$8,"",OFFSET(InputPriceData!B$15,$A152+$A$11,0,1,1)) -> 2022-06-21 | C152: =IF(A152>$A$8,"",OFFSET(InputPriceData!G$15,CalculationsAndCharts!$A152+$A$11,IF($C$5,8,0),1,1)) -> 884900 | D152: =IF(A152>$A$8,"",OFFSET(InputPriceData!C$15,CalculationsAndCharts!$A152+$A$11,IF($C$5,8,0),1,1)) -> 6448.7 | E152: =IF(A152>$A$8,"",OFFSET(InputPriceData!D$15,CalculationsAndCharts!$A152+$A$11,IF($C$5,8,0),1,1)) -> 6537.7 | F152: =IF(A152>$A$8,"",OFFSET(InputPriceData!E$15,CalculationsAndCharts!$A152+$A$11,IF($C$5,8,0),1,1)) -> 6448.7 | G152: =IF(A152>$A$8,"",OFFSET(InputPriceData!F$15,CalculationsAndCharts!$A152+$A$11,IF($C$5,8,0),1,1)) -> 6523.8 | H152: 104.3 | I152: 2037.3 | J152: 625.1 | K152: 0.3068276641 | L152: 6587.88679 | M152: 881.4 | N152: 0.4326314239 | O152: 6531.083182 | P152: 6970.2 | Q152: 6871.308587 | S152: 3052.8 | T152: 596.9 | U152: 0.1955254193 | V152: 6636.184737 | W152: 881.4 | X152: 0.2887185535 | Y152: 6601.432639 | Z152: 7009.44 | AA152: 6965.53327 | AC152: 4131 | AD152: 949.5 | AE152: 0.2298474946 | AF152: 6635.563551 | AG152: 1028 | AH152: 0.2488501573 | AI152: 6607.180059 | AJ152: 7082.83 | AK152: 7026.132053 | BC152: 884900
A153: 121 | B153: =IF(A153>$A$8,"",OFFSET(InputPriceData!B$15,$A153+$A$11,0,1,1)) -> 2022-06-20 | C153: =IF(A153>$A$8,"",OFFSET(InputPriceData!G$15,CalculationsAndCharts!$A153+$A$11,IF($C$5,8,0),1,1)) -> 857600 | D153: =IF(A153>$A$8,"",OFFSET(InputPriceData!C$15,CalculationsAndCharts!$A153+$A$11,IF($C$5,8,0),1,1)) -> 6470.7 | E153: =IF(A153>$A$8,"",OFFSET(InputPriceData!D$15,CalculationsAndCharts!$A153+$A$11,IF($C$5,8,0),1,1)) -> 6493.4 | F153: =IF(A153>$A$8,"",OFFSET(InputPriceData!E$15,CalculationsAndCharts!$A153+$A$11,IF($C$5,8,0),1,1)) -> 6407 | G153: =IF(A153>$A$8,"",OFFSET(InputPriceData!F$15,CalculationsAndCharts!$A153+$A$11,IF($C$5,8,0),1,1)) -> 6433.4 | H153: 86.4 | I153: 1993.2 | J153: 712.2 | K153: 0.3573148706 | L153: 6616.254338 | M153: 881.4 | N153: 0.4422034919 | O153: 6536.636773 | P153: 7001.455 | Q153: 6907.888438 | S153: 3061.8 | T153: 772.2 | U153: 0.2522045855 | V153: 6663.49955 | W153: 881.4 | X153: 0.2878698805 | Y153: 6632.944754 | Z153: 7029.336667 | AA153: 6995.997633 | AC153: 4164.5 | AD153: 1159.4 | AE153: 0.2784007684 | AF153: 6668.918727 | AG153: 1139.2 | AH153: 0.2735502461 | AI153: 6634.80323 | AJ153: 7106.5675 | AK153: 7051.892671 | BD153: 857600
A154: 122 | B154: =IF(A154>$A$8,"",OFFSET(InputPriceData!B$15,$A154+$A$11,0,1,1)) -> 2022-06-17 | C154: =IF(A154>$A$8,"",OFFSET(InputPriceData!G$15,CalculationsAndCharts!$A154+$A$11,IF($C$5,8,0),1,1)) -> 1732400 | D154: =IF(A154>$A$8,"",OFFSET(InputPriceData!C$15,CalculationsAndCharts!$A154+$A$11,IF($C$5,8,0),1,1)) -> 6552 | E154: =IF(A154>$A$8,"",OFFSET(InputPriceData!D$15,CalculationsAndCharts!$A154+$A$11,IF($C$5,8,0),1,1)) -> 6553.7 | F154: =IF(A154>$A$8,"",OFFSET(InputPriceData!E$15,CalculationsAndCharts!$A154+$A$11,IF($C$5,8,0),1,1)) -> 6410.4 | G154: =IF(A154>$A$8,"",OFFSET(InputPriceData!F$15,CalculationsAndCharts!$A154+$A$11,IF($C$5,8,0),1,1)) -> 6474.8 | H154: 180.7 | I154: 1996.9 | J154: 589.7 | K154: 0.295307727 | L154: 6717.916211 | M154: 878 | N154: 0.4396815063 | O154: 6618.479634 | P154: 7037.065 | Q154: 6957.834589 | S154: 3178.7 | T154: 889.9 | U154: 0.2799572152 | V154: 6741.10388 | W154: 924.4 | X154: 0.2908107088 | Y154: 6713.608278 | Z154: 7055.076667 | AA154: 7034.79747 | AC154: 4122.2 | AD154: 1094.4 | AE154: 0.2654893018 | AF154: 6759.784393 | AG154: 1194.3 | AH154: 0.2897239338 | AI154: 6710.643166 | AJ154: 7135.5525 | AK154: 7083.610244 | BD154: 1732400
A155: 123 | B155: =IF(A155>$A$8,"",OFFSET(InputPriceData!B$15,$A155+$A$11,0,1,1)) -> 2022-06-16 | C155: =IF(A155>$A$8,"",OFFSET(InputPriceData!G$15,CalculationsAndCharts!$A155+$A$11,IF($C$5,8,0),1,1)) -> 948200 | D155: =IF(A155>$A$8,"",OFFSET(InputPriceData!C$15,CalculationsAndCharts!$A155+$A$11,IF($C$5,8,0),1,1)) -> 6616.6 | E155: =IF(A155>$A$8,"",OFFSET(InputPriceData!D$15,CalculationsAndCharts!$A155+$A$11,IF($C$5,8,0),1,1)) -> 6671.6 | F155: =IF(A155>$A$8,"",OFFSET(InputPriceData!E$15,CalculationsAndCharts!$A155+$A$11,IF($C$5,8,0),1,1)) -> 6583.9 | G155: =IF(A155>$A$8,"",OFFSET(InputPriceData!F$15,CalculationsAndCharts!$A155+$A$11,IF($C$5,8,0),1,1)) -> 6591.1 | H155: 87.7 | I155: 1961.3 | J155: 591.6 | K155: 0.3016366696 | L155: 6819.796278 | M155: 722.3 | N155: 0.3682761434 | O155: 6731.224935 | P155: 7066.55 | Q155: 7008.680336 | S155: 3062.4 | T155: 713.6 | U155: 0.2330198537 | V155: 6844.644522 | W155: 803 | X155: 0.2622126437 | Y155: 6811.534184 | Z155: 7084.74 | AA155: 7073.417985 | AC155: 4002.2 | AD155: 974.1 | AE155: 0.2433911349 | AF155: 6862.79216 | AG155: 1058.7 | AH155: 0.2645295088 | AI155: 6806.844366 | AJ155: 7162.9125 | AK155: 7114.831282 | BD155: 948200
A156: 124 | B156: =IF(A156>$A$8,"",OFFSET(InputPriceData!B$15,$A156+$A$11,0,1,1)) -> 2022-06-15 | C156: =IF(A156>$A$8,"",OFFSET(InputPriceData!G$15,CalculationsAndCharts!$A156+$A$11,IF($C$5,8,0),1,1)) -> 942000 | D156: =IF(A156>$A$8,"",OFFSET(InputPriceData!C$15,CalculationsAndCharts!$A156+$A$11,IF($C$5,8,0),1,1)) -> 6676.3 | E156: =IF(A156>$A$8,"",OFFSET(InputPriceData!D$15,CalculationsAndCharts!$A156+$A$11,IF($C$5,8,0),1,1)) -> 6680.5 | F156: =IF(A156>$A$8,"",OFFSET(InputPriceData!E$15,CalculationsAndCharts!$A156+$A$11,IF($C$5,8,0),1,1)) -> 6589.7 | G156: =IF(A156>$A$8,"",OFFSET(InputPriceData!F$15,CalculationsAndCharts!$A156+$A$11,IF($C$5,8,0),1,1)) -> 6601 | H156: 96.3 | I156: 1960.1 | J156: 511.5 | K156: 0.2609560737 | L156: 6918.574637 | M156: 722.3 | N156: 0.3685016071 | O156: 6812.913588 | P156: 7096.13 | Q156: 7052.63616 | S156: 3041.6 | T156: 715.2 | U156: 0.2351394003 | V156: 6921.675079 | W156: 803 | X156: 0.2640057864 | Y156: 6889.877395 | Z156: 7108.526667 | AA156: 7106.681294 | AC156: 3976 | AD156: 922.4 | AE156: 0.2319919517 | AF156: 6950.19196 | AG156: 1058.7 | AH156: 0.2662726358 | AI156: 6884.441975 | AJ156: 7187.265 | AK156: 7141.689296 | BD156: 942000
A157: 125 | B157: =IF(A157>$A$8,"",OFFSET(InputPriceData!B$15,$A157+$A$11,0,1,1)) -> 2022-06-14 | C157: =IF(A157>$A$8,"",OFFSET(InputPriceData!G$15,CalculationsAndCharts!$A157+$A$11,IF($C$5,8,0),1,1)) -> 1281900 | D157: =IF(A157>$A$8,"",OFFSET(InputPriceData!C$15,CalculationsAndCharts!$A157+$A$11,IF($C$5,8,0),1,1)) -> 6842.1 | E157: =IF(A157>$A$8,"",OFFSET(InputPriceData!D$15,CalculationsAndCharts!$A157+$A$11,IF($C$5,8,0),1,1)) -> 6842.1 | F157: =IF(A157>$A$8,"",OFFSET(InputPriceData!E$15,CalculationsAndCharts!$A157+$A$11,IF($C$5,8,0),1,1)) -> 6566.1 | G157: =IF(A157>$A$8,"",OFFSET(InputPriceData!F$15,CalculationsAndCharts!$A157+$A$11,IF($C$5,8,0),1,1)) -> 6686 | H157: 365.9 | I157: 1900.3 | J157: 407 | K157: 0.2141767089 | L157: 7030.710097 | M157: 722.3 | N157: 0.3800978793 | O157: 6936.572648 | P157: 7121.705 | Q157: 7100.176809 | S157: 3001.2 | T157: 661 | U157: 0.2202452352 | V157: 7020.259508 | W157: 803 | X157: 0.2675596428 | Y157: 6993.499546 | Z157: 7132.366667 | AA157: 7141.555866 | AC157: 3929.9 | AD157: 793 | AE157: 0.201786305 | AF157: 7055.672267 | AG157: 1058.7 | AH157: 0.2693961678 | AI157: 6987.304217 | AJ157: 7210.325 | AK157: 7169.416952 | BD157: 1281900
A158: 126 | B158: =IF(A158>$A$8,"",OFFSET(InputPriceData!B$15,$A158+$A$11,0,1,1)) -> 2022-06-10 | C158: =IF(A158>$A$8,"",OFFSET(InputPriceData!G$15,CalculationsAndCharts!$A158+$A$11,IF($C$5,8,0),1,1)) -> 747700 | D158: =IF(A158>$A$8,"",OFFSET(InputPriceData!C$15,CalculationsAndCharts!$A158+$A$11,IF($C$5,8,0),1,1)) -> 7004.8 | E158: =IF(A158>$A$8,"",OFFSET(InputPriceData!D$15,CalculationsAndCharts!$A158+$A$11,IF($C$5,8,0),1,1)) -> 7006.2 | F158: =IF(A158>$A$8,"",OFFSET(InputPriceData!E$15,CalculationsAndCharts!$A158+$A$11,IF($C$5,8,0),1,1)) -> 6926.9 | G158: =IF(A158>$A$8,"",OFFSET(InputPriceData!F$15,CalculationsAndCharts!$A158+$A$11,IF($C$5,8,0),1,1)) -> 6932 | H158: 92.8 | I158: 1608.8 | J158: 143.1 | K158: 0.08894828444 | L158: 7124.661084 | M158: 361.5 | N158: 0.224701641 | O158: 7090.213246 | P158: 7142.055 | Q158: 7143.774368 | S158: 2768.7 | T158: 503 | U158: 0.1816737097 | V158: 7114.672607 | W158: 496.3 | X158: 0.1792538014 | Y158: 7105.828787 | Z158: 7154.4 | AA158: 7172.973512 | AC158: 3599 | AD158: 522 | AE158: 0.145040289 | AF158: 7149.124435 | AG158: 697.9 | AH158: 0.1939149764 | AI158: 7098.404375 | AJ158: 7230.15 | AK158: 7194.207565 | BD158: 747700
A159: 127 | B159: =IF(A159>$A$8,"",OFFSET(InputPriceData!B$15,$A159+$A$11,0,1,1)) -> 2022-06-09 | C159: =IF(A159>$A$8,"",OFFSET(InputPriceData!G$15,CalculationsAndCharts!$A159+$A$11,IF($C$5,8,0),1,1)) -> 677300 | D159: =IF(A159>$A$8,"",OFFSET(InputPriceData!C$15,CalculationsAndCharts!$A159+$A$11,IF($C$5,8,0),1,1)) -> 7110.6 | E159: =IF(A159>$A$8,"",OFFSET(InputPriceData!D$15,CalculationsAndCharts!$A159+$A$11,IF($C$5,8,0),1,1)) -> 7111.5 | F159: =IF(A159>$A$8,"",OFFSET(InputPriceData!E$15,CalculationsAndCharts!$A159+$A$11,IF($C$5,8,0),1,1)) -> 7019.7 | G159: =IF(A159>$A$8,"",OFFSET(InputPriceData!F$15,CalculationsAndCharts!$A159+$A$11,IF($C$5,8,0),1,1)) -> 7019.7 | H159: 101.4 | I159: 1650.1 | J159: 78.7 | K159: 0.04769407915 | L159: 7143.471073 | M159: 341.5 | N159: 0.2069571541 | O159: 7136.067562 | P159: 7149.21 | Q159: 7166.066406 | S159: 2754 | T159: 337.2 | U159: 0.1224400871 | V159: 7155.227103 | W159: 504.8 | X159: 0.1832970225 | Y159: 7143.793593 | Z159: 7171.166667 | AA159: 7189.592375 | AC159: 3560.6 | AD159: 465.5 | AE159: 0.1307363927 | AF159: 7185.958675 | AG159: 694.6 | AH159: 0.195079481 | AI159: 7138.435264 | AJ159: 7243.2 | AK159: 7207.654107 | BD159: 677300
A160: 128 | B160: =IF(A160>$A$8,"",OFFSET(InputPriceData!B$15,$A160+$A$11,0,1,1)) -> 2022-06-08 | C160: =IF(A160>$A$8,"",OFFSET(InputPriceData!G$15,CalculationsAndCharts!$A160+$A$11,IF($C$5,8,0),1,1)) -> 764100 | D160: =IF(A160>$A$8,"",OFFSET(InputPriceData!C$15,CalculationsAndCharts!$A160+$A$11,IF($C$5,8,0),1,1)) -> 7133.1 | E160: =IF(A160>$A$8,"",OFFSET(InputPriceData!D$15,CalculationsAndCharts!$A160+$A$11,IF($C$5,8,0),1,1)) -> 7162.1 | F160: =IF(A160>$A$8,"",OFFSET(InputPriceData!E$15,CalculationsAndCharts!$A160+$A$11,IF($C$5,8,0),1,1)) -> 7113 | G160: =IF(A160>$A$8,"",OFFSET(InputPriceData!F$15,CalculationsAndCharts!$A160+$A$11,IF($C$5,8,0),1,1)) -> 7121.1 | H160: 66.4 | I160: 1683.2 | J160: 56.4 | K160: 0.03350760456 | L160: 7149.669866 | M160: 358.2 | N160: 0.2128089354 | O160: 7166.43553 | P160: 7145.275 | Q160: 7181.473396 | S160: 2748.3 | T160: 140.1 | U160: 0.05097696758 | V160: 7174.136297 | W160: 504.8 | X160: 0.1836771823 | Y160: 7171.644583 | Z160: 7182.406667 | AA160: 7201.309091 | AC160: 3512.8 | AD160: 356.9 | AE160: 0.1015998634 | AF160: 7210.963816 | AG160: 694.6 | AH160: 0.1977340014 | AI160: 7167.211787 | AJ160: 7254.8375 | AK160: 7217.292779 | BC160: 764100
A161: 129 | B161: =IF(A161>$A$8,"",OFFSET(InputPriceData!B$15,$A161+$A$11,0,1,1)) -> 2022-06-07 | C161: =IF(A161>$A$8,"",OFFSET(InputPriceData!G$15,CalculationsAndCharts!$A161+$A$11,IF($C$5,8,0),1,1)) -> 691400 | D161: =IF(A161>$A$8,"",OFFSET(InputPriceData!C$15,CalculationsAndCharts!$A161+$A$11,IF($C$5,8,0),1,1)) -> 7209 | E161: =IF(A161>$A$8,"",OFFSET(InputPriceData!D$15,CalculationsAndCharts!$A161+$A$11,IF($C$5,8,0),1,1)) -> 7209 | F161: =IF(A161>$A$8,"",OFFSET(InputPriceData!E$15,CalculationsAndCharts!$A161+$A$11,IF($C$5,8,0),1,1)) -> 7082.2 | G161: =IF(A161>$A$8,"",OFFSET(InputPriceData!F$15,CalculationsAndCharts!$A161+$A$11,IF($C$5,8,0),1,1)) -> 7095.7 | H161: 126.8 | I161: 1689.7 | J161: 44.5 | K161: 0.02633603598 | L161: 7150.660363 | M161: 358.2 | N161: 0.2119902941 | O161: 7178.69152 | P161: =IF($A161>I$30,NA(),AVERAGE(OFFSET($G161,0,0,$E$17,1))) -> 7142.455 | Q161: =IF($A161>I$30,NA(),IF($A161=I$30,$G161,$F$17*($G161-Q162)+Q162)) -> 7187.828491 | S161: =IF($A161>S$30,NA(),SUM(OFFSET($H161,0,0,$E$18,1))) -> 2766.6 | T161: =IF($A161>S$30,NA(),ABS($G161-OFFSET($G161,$E$18,0,1,1))) -> 222.3 | U161: =IF($A161>S$30,NA(),T161/S161) -> 0.08035133377 | V161: =IF($A161>S$30,NA(),IF($A161=S$30,$G161,U161*($G161-V162)+V162)) -> 7176.985152 | W161: =IF($A161>S$30,NA(),MAX(OFFSET($E161,0,0,$E$18,1))-MIN(OFFSET($F161,0,0,$E$18,1))) -> 504.8 | X161: =IF($A161>S$30,NA(),W161/S161) -> 0.182462228 | Y161: =IF($A161>S$30,NA(),IF($A161=S$30,$G161,X161*($G161-Y162)+Y162)) -> 7183.017396 | Z161: =IF($A161>S$30,NA(),AVERAGE(OFFSET($G161,0,0,$E$18,1))) -> 7187.076667 | AA161: =IF($A161>S$30,NA(),IF($A161=S$30,$G161,$F$18*($G161-AA162)+AA162)) -> 7206.840752 | AC161: =IF($A161>AC$30,NA(),SUM(OFFSET($H161,0,0,$E$19,1))) -> 3495.9 | AD161: =IF($A161>AC$30,NA(),ABS($G161-OFFSET($G161,$E$19,0,1,1))) -> 347.1 | AE161: =IF($A161>AC$30,NA(),AD161/AC161) -> 0.09928773706 | AF161: =IF($A161>AC$30,NA(),IF($A161=AC$30,$G161,AE161*($G161-AF162)+AF162)) -> 7221.126494 | AG161: =IF($A161>AC$30,NA(),MAX(OFFSET($E161,0,0,$E$19,1))-MIN(OFFSET($F161,0,0,$E$19,1))) -> 694.6 | AH161: =IF($A161>AC$30,NA(),AG161/AC161) -> 0.1986898939 | AI161: =IF($A161>AC$30,NA(),IF($A161=AC$30,$G161,AH161*($G161-AI162)+AI162)) -> 7178.576931 | AJ161: =IF($A161>AC$30,NA(),AVERAGE(OFFSET($G161,0,0,$E$19,1))) -> 7263.76 | AK161: =IF($A161>AC$30,NA(),IF($A161=AC$30,$G161,$F$19*($G161-AK162)+AK162)) -> 7222.225742 | BD161: 691400
A162: 130 | B162: =IF(A162>$A$8,"",OFFSET(InputPriceData!B$15,$A162+$A$11,0,1,1)) -> 2022-06-06 | C162: =IF(A162>$A$8,"",OFFSET(InputPriceData!G$15,CalculationsAndCharts!$A162+$A$11,IF($C$5,8,0),1,1)) -> 503000 | D162: =IF(A162>$A$8,"",OFFSET(InputPriceData!C$15,CalculationsAndCharts!$A162+$A$11,IF($C$5,8,0),1,1)) -> 7230 | E162: =IF(A162>$A$8,"",OFFSET(InputPriceData!D$15,CalculationsAndCharts!$A162+$A$11,IF($C$5,8,0),1,1)) -> 7231.3 | F162: =IF(A162>$A$8,"",OFFSET(InputPriceData!E$15,CalculationsAndCharts!$A162+$A$11,IF($C$5,8,0),1,1)) -> 7195.2 | G162: =IF(A162>$A$8,"",OFFSET(InputPriceData!F$15,CalculationsAndCharts!$A162+$A$11,IF($C$5,8,0),1,1)) -> 7206.3 | H162: =IF(A162>$H$30,NA(),MAX(E162-F162,ABS(E162-G163),ABS(F162-G163))) -> 43.6 | I162: =IF(A162>$I$30,NA(),SUM(OFFSET(H162,0,0,$E$17,1))) -> 1744.1 | J162: =IF(A162>$I$30,NA(),ABS(G162-OFFSET(G162,$E$17,0,1,1))) -> 85.6 | K162: =IF(A162>$I$30,NA(),J162/I162) -> 0.0490797546 | L162: =IF($A162>$I$30,NA(),IF($A162=$I$30,$G162,K162*($G162-L163)+L163)) -> 7152.146952 | M162: =IF(A162>$I$30,NA(),MAX(OFFSET(E162,0,0,$E$17,1))-MIN(OFFSET(F162,0,0,$E$17,1))) -> 358.2 | N162: =IF($A162>$I$30,NA(),M162/$I162) -> 0.205378132 | O162: =IF($A162>$I$30,NA(),IF($A162=$I$30,$G162,N162*($G162-O163)+O163)) -> 7201.01789 | P162: 7140.23 | Q162: 7197.526227 | S162: 2822.3 | T162: 267 | U162: 0.09460369202 | V162: 7184.08718 | W162: 504.8 | X162: 0.1788612125 | Y162: 7202.505335 | Z162: 7194.486667 | AA162: 7214.505632 | AC162: 3421.6 | AD162: 283.8 | AE162: 0.08294365209 | AF162: 7234.952566 | AG162: 694.6 | AH162: 0.2030044424 | AI162: 7199.126788 | AJ162: 7272.4375 | AK162: 7228.714242 | BD162: 503000
A163: 131 | B163: =IF(A163>$A$8,"",OFFSET(InputPriceData!B$15,$A163+$A$11,0,1,1)) -> 2022-06-03 | C163: =IF(A163>$A$8,"",OFFSET(InputPriceData!G$15,CalculationsAndCharts!$A163+$A$11,IF($C$5,8,0),1,1)) -> 639300 | D163: =IF(A163>$A$8,"",OFFSET(InputPriceData!C$15,CalculationsAndCharts!$A163+$A$11,IF($C$5,8,0),1,1)) -> 7204.8 | E163: =IF(A163>$A$8,"",OFFSET(InputPriceData!D$15,CalculationsAndCharts!$A163+$A$11,IF($C$5,8,0),1,1)) -> 7254.6 | F163: =IF(A163>$A$8,"",OFFSET(InputPriceData!E$15,CalculationsAndCharts!$A163+$A$11,IF($C$5,8,0),1,1)) -> 7204.5 | G163: =IF(A163>$A$8,"",OFFSET(InputPriceData!F$15,CalculationsAndCharts!$A163+$A$11,IF($C$5,8,0),1,1)) -> 7238.8 | H163: 78.7 | I163: 1813.8 | J163: 33.2 | K163: 0.01830411291 | L163: 7149.351956 | M163: 358.2 | N163: 0.1974859411 | O163: 7199.652675 | P163: 7135.95 | Q163: 7196.602672 | S163: 2916.5 | T163: 354 | U163: 0.1213783645 | V163: 7181.766191 | W163: 616 | X163: 0.2112120693 | Y163: 7201.678778 | Z163: 7203.386667 | AA163: 7215.071537 | AC163: 3468.4 | AD163: 289.1 | AE163: 0.08335255449 | AF163: 7237.544063 | AG163: 694.6 | AH163: 0.200265252 | AI163: 7197.299684 | AJ163: 7279.5325 | AK163: 7229.86369 | BC163: 639300
A164: 132 | B164: =IF(A164>$A$8,"",OFFSET(InputPriceData!B$15,$A164+$A$11,0,1,1)) -> 2022-06-02 | C164: =IF(A164>$A$8,"",OFFSET(InputPriceData!G$15,CalculationsAndCharts!$A164+$A$11,IF($C$5,8,0),1,1)) -> 740300 | D164: =IF(A164>$A$8,"",OFFSET(InputPriceData!C$15,CalculationsAndCharts!$A164+$A$11,IF($C$5,8,0),1,1)) -> 7221.5 | E164: =IF(A164>$A$8,"",OFFSET(InputPriceData!D$15,CalculationsAndCharts!$A164+$A$11,IF($C$5,8,0),1,1)) -> 7222.3 | F164: =IF(A164>$A$8,"",OFFSET(InputPriceData!E$15,CalculationsAndCharts!$A164+$A$11,IF($C$5,8,0),1,1)) -> 7150.5 | G164: =IF(A164>$A$8,"",OFFSET(InputPriceData!F$15,CalculationsAndCharts!$A164+$A$11,IF($C$5,8,0),1,1)) -> 7175.9 | H164: 83.5 | I164: 1938.4 | J164: 188.8 | K164: 0.09739991746 | L164: 7147.684162 | M164: 404.6 | N164: 0.2087288485 | O164: 7190.019141 | P164: 7134.29 | Q164: 7192.160847 | S164: 2881.9 | T164: 393.3 | U164: 0.1364724661 | V164: 7173.887179 | W164: 674.5 | X164: 0.2340469829 | Y164: 7191.738907 | Z164: 7215.186667 | AA164: 7213.435092 | AC164: 3453.8 | AD164: 337.8 | AE164: 0.09780531588 | AF164: 7237.429858 | AG164: 694.6 | AH164: 0.2011118189 | AI164: 7186.9074 | AJ164: 7286.76 | AK164: 7229.405418 | BD164: 740300
A165: 133 | B165: =IF(A165>$A$8,"",OFFSET(InputPriceData!B$15,$A165+$A$11,0,1,1)) -> 2022-06-01 | C165: =IF(A165>$A$8,"",OFFSET(InputPriceData!G$15,CalculationsAndCharts!$A165+$A$11,IF($C$5,8,0),1,1)) -> 905300 | D165: =IF(A165>$A$8,"",OFFSET(InputPriceData!C$15,CalculationsAndCharts!$A165+$A$11,IF($C$5,8,0),1,1)) -> 7210.5 | E165: =IF(A165>$A$8,"",OFFSET(InputPriceData!D$15,CalculationsAndCharts!$A165+$A$11,IF($C$5,8,0),1,1)) -> 7238.2 | F165: =IF(A165>$A$8,"",OFFSET(InputPriceData!E$15,CalculationsAndCharts!$A165+$A$11,IF($C$5,8,0),1,1)) -> 7204.4 | G165: =IF(A165>$A$8,"",OFFSET(InputPriceData!F$15,CalculationsAndCharts!$A165+$A$11,IF($C$5,8,0),1,1)) -> 7234 | H165: 33.8 | I165: 1919.3 | J165: 70.7 | K165: 0.03683634658 | L165: 7144.63938 | M165: 438.9 | N165: 0.2286771219 | O165: 7193.743619 | P165: 7143.73 | Q165: 7193.872516 | S165: 2859.1 | T165: 331.2 | U165: 0.1158406492 | V165: 7173.569072 | W165: 694.6 | X165: 0.2429435836 | Y165: 7196.578693 | Z165: 7228.296667 | AA165: 7216.023719 | AC165: 3413.3 | AD165: 259.8 | AE165: 0.07611402455 | AF165: 7244.1002 | AG165: 694.6 | AH165: 0.203498081 | AI165: 7189.678399 | AJ165: 7295.205 | AK165: 7232.149286 | BC165: 905300
A166: 134 | B166: =IF(A166>$A$8,"",OFFSET(InputPriceData!B$15,$A166+$A$11,0,1,1)) -> 2022-05-31 | C166: =IF(A166>$A$8,"",OFFSET(InputPriceData!G$15,CalculationsAndCharts!$A166+$A$11,IF($C$5,8,0),1,1)) -> 1235000 | D166: =IF(A166>$A$8,"",OFFSET(InputPriceData!C$15,CalculationsAndCharts!$A166+$A$11,IF($C$5,8,0),1,1)) -> 7284.9 | E166: =IF(A166>$A$8,"",OFFSET(InputPriceData!D$15,CalculationsAndCharts!$A166+$A$11,IF($C$5,8,0),1,1)) -> 7288.4 | F166: =IF(A166>$A$8,"",OFFSET(InputPriceData!E$15,CalculationsAndCharts!$A166+$A$11,IF($C$5,8,0),1,1)) -> 7211.2 | G166: =IF(A166>$A$8,"",OFFSET(InputPriceData!F$15,CalculationsAndCharts!$A166+$A$11,IF($C$5,8,0),1,1)) -> 7211.2 | H166: 77.2 | I166: 1952.4 | J166: 105 | K166: 0.05377996312 | L166: 7141.221769 | M166: 438.9 | N166: 0.2248002459 | O166: 7181.808652 | P166: 7147.265 | Q166: 7189.64857 | S166: 2886.8 | T166: 312.2 | U166: 0.1081474297 | V166: 7165.651542 | W166: 694.6 | X166: 0.2406124428 | Y166: 7184.569989 | Z166: 7239.336667 | AA166: 7214.783975 | AC166: 3416.8 | AD166: 288.4 | AE166: 0.08440646219 | AF166: 7244.932302 | AG166: 694.6 | AH166: 0.2032896277 | AI166: 7178.354683 | AJ166: 7301.7 | AK166: 7232.054377 | BD166: 1235000
A167: 135 | B167: =IF(A167>$A$8,"",OFFSET(InputPriceData!B$15,$A167+$A$11,0,1,1)) -> 2022-05-30 | C167: =IF(A167>$A$8,"",OFFSET(InputPriceData!G$15,CalculationsAndCharts!$A167+$A$11,IF($C$5,8,0),1,1)) -> 637000 | D167: =IF(A167>$A$8,"",OFFSET(InputPriceData!C$15,CalculationsAndCharts!$A167+$A$11,IF($C$5,8,0),1,1)) -> 7205.4 | E167: =IF(A167>$A$8,"",OFFSET(InputPriceData!D$15,CalculationsAndCharts!$A167+$A$11,IF($C$5,8,0),1,1)) -> 7286.6 | F167: =IF(A167>$A$8,"",OFFSET(InputPriceData!E$15,CalculationsAndCharts!$A167+$A$11,IF($C$5,8,0),1,1)) -> 7204.4 | G167: =IF(A167>$A$8,"",OFFSET(InputPriceData!F$15,CalculationsAndCharts!$A167+$A$11,IF($C$5,8,0),1,1)) -> 7286.6 | H167: 103.9 | I167: 1931.1 | J167: 60.4 | K167: 0.03127751023 | L167: 7137.244442 | M167: 438.9 | N167: 0.2272797887 | O167: 7173.285452 | P167: 7152.515 | Q167: 7187.379998 | S167: 2859.8 | T167: 192.4 | U167: 0.06727743199 | V167: 7160.128265 | W167: 694.6 | X167: 0.2428841178 | Y167: 7176.132252 | Z167: 7249.743333 | AA167: 7215.031146 | AC167: 3396.6 | AD167: 227.9 | AE167: 0.06709650827 | AF167: 7248.042005 | AG167: 694.6 | AH167: 0.2044986163 | AI167: 7169.973831 | AJ167: 7308.91 | AK167: 7233.123832 | BC167: 637000
A168: 136 | B168: =IF(A168>$A$8,"",OFFSET(InputPriceData!B$15,$A168+$A$11,0,1,1)) -> 2022-05-27 | C168: =IF(A168>$A$8,"",OFFSET(InputPriceData!G$15,CalculationsAndCharts!$A168+$A$11,IF($C$5,8,0),1,1)) -> 562100 | D168: =IF(A168>$A$8,"",OFFSET(InputPriceData!C$15,CalculationsAndCharts!$A168+$A$11,IF($C$5,8,0),1,1)) -> 7128.6 | E168: =IF(A168>$A$8,"",OFFSET(InputPriceData!D$15,CalculationsAndCharts!$A168+$A$11,IF($C$5,8,0),1,1)) -> 7196.7 | F168: =IF(A168>$A$8,"",OFFSET(InputPriceData!E$15,CalculationsAndCharts!$A168+$A$11,IF($C$5,8,0),1,1)) -> 7128.6 | G168: =IF(A168>$A$8,"",OFFSET(InputPriceData!F$15,CalculationsAndCharts!$A168+$A$11,IF($C$5,8,0),1,1)) -> 7182.7 | H168: 90.8 | I168: 1960.6 | J168: 252.3 | K168: 0.1286850964 | L168: 7132.422142 | M168: 493 | N168: 0.2514536366 | O168: 7139.956304 | P168: 7155.535 | Q168: 7176.935788 | S168: 2790.9 | T168: 271.3 | U168: 0.0972087857 | V168: 7151.005838 | W168: 694.6 | X168: 0.2488802895 | Y168: 7140.694003 | Z168: 7256.156667 | AA168: 7210.095363 | AC168: 3361.5 | AD168: 281.6 | AE168: 0.08377212554 | AF168: 7245.268828 | AG168: 694.6 | AH168: 0.2066339432 | AI168: 7139.992877 | AJ168: 7314.6075 | AK168: 7230.381465 | BC168: 562100
A169: 137 | B169: =IF(A169>$A$8,"",OFFSET(InputPriceData!B$15,$A169+$A$11,0,1,1)) -> 2022-05-26 | C169: =IF(A169>$A$8,"",OFFSET(InputPriceData!G$15,CalculationsAndCharts!$A169+$A$11,IF($C$5,8,0),1,1)) -> 598800 | D169: =IF(A169>$A$8,"",OFFSET(InputPriceData!C$15,CalculationsAndCharts!$A169+$A$11,IF($C$5,8,0),1,1)) -> 7165.7 | E169: =IF(A169>$A$8,"",OFFSET(InputPriceData!D$15,CalculationsAndCharts!$A169+$A$11,IF($C$5,8,0),1,1)) -> 7181.4 | F169: =IF(A169>$A$8,"",OFFSET(InputPriceData!E$15,CalculationsAndCharts!$A169+$A$11,IF($C$5,8,0),1,1)) -> 7105.9 | G169: =IF(A169>$A$8,"",OFFSET(InputPriceData!F$15,CalculationsAndCharts!$A169+$A$11,IF($C$5,8,0),1,1)) -> 7105.9 | H169: 75.5 | I169: 1947.9 | J169: 251 | K169: 0.1288567175 | L169: 7124.996571 | M169: 504.8 | N169: 0.2591508804 | O169: 7125.59773 | P169: 7168.15 | Q169: 7176.329028 | S169: 2754.5 | T169: 379.3 | U169: 0.1377019423 | V169: 7147.593143 | W169: 694.6 | X169: 0.2521691777 | Y169: 7126.775496 | Z169: 7265.2 | AA169: 7211.984698 | AC169: 3341.7 | AD169: 306.5 | AE169: 0.09171978334 | AF169: 7250.989592 | AG169: 694.6 | AH169: 0.2078582757 | AI169: 7128.869712 | AJ169: 7321.6475 | AK169: 7232.826668 | BD169: 598800
A170: 138 | B170: =IF(A170>$A$8,"",OFFSET(InputPriceData!B$15,$A170+$A$11,0,1,1)) -> 2022-05-25 | C170: =IF(A170>$A$8,"",OFFSET(InputPriceData!G$15,CalculationsAndCharts!$A170+$A$11,IF($C$5,8,0),1,1)) -> 649000 | D170: =IF(A170>$A$8,"",OFFSET(InputPriceData!C$15,CalculationsAndCharts!$A170+$A$11,IF($C$5,8,0),1,1)) -> 7218.6 | E170: =IF(A170>$A$8,"",OFFSET(InputPriceData!D$15,CalculationsAndCharts!$A170+$A$11,IF($C$5,8,0),1,1)) -> 7218.6 | F170: =IF(A170>$A$8,"",OFFSET(InputPriceData!E$15,CalculationsAndCharts!$A170+$A$11,IF($C$5,8,0),1,1)) -> 7134.6 | G170: =IF(A170>$A$8,"",OFFSET(InputPriceData!F$15,CalculationsAndCharts!$A170+$A$11,IF($C$5,8,0),1,1)) -> 7155.2 | H170: 89.8 | I170: 1968.1 | J170: 106 | K170: 0.05385905188 | L170: 7127.821274 | M170: 504.8 | N170: 0.256491032 | O170: 7132.488046 | P170: 7180.7 | Q170: 7183.74261 | S170: 2732.6 | T170: 322.8 | U170: 0.1181292542 | V170: 7154.251197 | W170: 694.6 | X170: 0.2541901486 | Y170: 7133.814731 | Z170: 7277.843333 | AA170: 7219.300884 | AC170: 3306.7 | AD170: 251 | AE170: 0.07590649288 | AF170: 7265.641002 | AG170: 694.6 | AH170: 0.2100583663 | AI170: 7134.896973 | AJ170: 7329.31 | AK170: 7239.335728 | BC170: 649000
A171: 139 | B171: =IF(A171>$A$8,"",OFFSET(InputPriceData!B$15,$A171+$A$11,0,1,1)) -> 2022-05-24 | C171: =IF(A171>$A$8,"",OFFSET(InputPriceData!G$15,CalculationsAndCharts!$A171+$A$11,IF($C$5,8,0),1,1)) -> 925300 | D171: =IF(A171>$A$8,"",OFFSET(InputPriceData!C$15,CalculationsAndCharts!$A171+$A$11,IF($C$5,8,0),1,1)) -> 7154.7 | E171: =IF(A171>$A$8,"",OFFSET(InputPriceData!D$15,CalculationsAndCharts!$A171+$A$11,IF($C$5,8,0),1,1)) -> 7165.8 | F171: =IF(A171>$A$8,"",OFFSET(InputPriceData!E$15,CalculationsAndCharts!$A171+$A$11,IF($C$5,8,0),1,1)) -> 7114 | G171: =IF(A171>$A$8,"",OFFSET(InputPriceData!F$15,CalculationsAndCharts!$A171+$A$11,IF($C$5,8,0),1,1)) -> 7128.8 | H171: 51.8 | I171: 1963 | J171: 189.2 | K171: 0.09638308711 | L171: 7126.262741 | M171: 504.8 | N171: 0.2571574121 | O171: 7124.653019 | P171: 7186 | Q171: 7186.747096 | S171: 2692.3 | T171: 314 | U171: 0.1166289047 | V171: 7154.124102 | W171: 694.6 | X171: 0.2579950228 | Y171: 7126.526111 | Z171: 7288.603333 | AA171: 7223.721635 | AC171: 3261.1 | AD171: 258.3 | AE171: 0.07920640275 | AF171: 7274.7128 | AG171: 694.6 | AH171: 0.212995615 | AI171: 7129.498067 | AJ171: 7335.585 | AK171: 7243.650381 | BD171: 925300
A172: 140 | B172: =IF(A172>$A$8,"",OFFSET(InputPriceData!B$15,$A172+$A$11,0,1,1)) -> 2022-05-23 | C172: =IF(A172>$A$8,"",OFFSET(InputPriceData!G$15,CalculationsAndCharts!$A172+$A$11,IF($C$5,8,0),1,1)) -> 559700 | D172: =IF(A172>$A$8,"",OFFSET(InputPriceData!C$15,CalculationsAndCharts!$A172+$A$11,IF($C$5,8,0),1,1)) -> 7160.6 | E172: =IF(A172>$A$8,"",OFFSET(InputPriceData!D$15,CalculationsAndCharts!$A172+$A$11,IF($C$5,8,0),1,1)) -> 7196 | F172: =IF(A172>$A$8,"",OFFSET(InputPriceData!E$15,CalculationsAndCharts!$A172+$A$11,IF($C$5,8,0),1,1)) -> 7135.8 | G172: =IF(A172>$A$8,"",OFFSET(InputPriceData!F$15,CalculationsAndCharts!$A172+$A$11,IF($C$5,8,0),1,1)) -> 7148.9 | H172: 60.2 | I172: 2093.7 | J172: 324.4 | K172: 0.1549410135 | L172: 7125.992108 | M172: 504.8 | N172: 0.2411042652 | O172: 7123.217416 | P172: 7195.46 | Q172: 7192.84679 | S172: 2693 | T172: 341.2 | U172: 0.1266988489 | V172: 7157.46757 | W172: 694.6 | X172: 0.2579279614 | Y172: 7125.735481 | Z172: 7299.07 | AA172: 7230.267955 | AC172: 3252.5 | AD172: 229 | AE172: 0.07040737894 | AF172: 7287.264177 | AG172: 694.6 | AH172: 0.2135588009 | AI172: 7129.686993 | AJ172: 7342.0425 | AK172: 7249.540144 | BC172: 559700
A173: 141 | B173: =IF(A173>$A$8,"",OFFSET(InputPriceData!B$15,$A173+$A$11,0,1,1)) -> 2022-05-20 | C173: =IF(A173>$A$8,"",OFFSET(InputPriceData!G$15,CalculationsAndCharts!$A173+$A$11,IF($C$5,8,0),1,1)) -> 698100 | D173: =IF(A173>$A$8,"",OFFSET(InputPriceData!C$15,CalculationsAndCharts!$A173+$A$11,IF($C$5,8,0),1,1)) -> 7081.2 | E173: =IF(A173>$A$8,"",OFFSET(InputPriceData!D$15,CalculationsAndCharts!$A173+$A$11,IF($C$5,8,0),1,1)) -> 7154.6 | F173: =IF(A173>$A$8,"",OFFSET(InputPriceData!E$15,CalculationsAndCharts!$A173+$A$11,IF($C$5,8,0),1,1)) -> 7081.2 | G173: =IF(A173>$A$8,"",OFFSET(InputPriceData!F$15,CalculationsAndCharts!$A173+$A$11,IF($C$5,8,0),1,1)) -> 7145.6 | H173: 90.1 | I173: 2171.3 | J173: 447.2 | K173: 0.2059595634 | L173: 7121.79196 | M173: 616 | N173: 0.2837010086 | O173: 7115.057955 | P173: 7211.68 | Q173: 7197.472768 | S173: 2723.2 | T173: 382.3 | U173: 0.1403863102 | V173: 7158.710556 | W173: 694.6 | X173: 0.2550675676 | Y173: 7117.684002 | Z173: 7310.443333 | AA173: 7235.879538 | AC173: 3249.4 | AD173: 195.5 | AE173: 0.06016495353 | AF173: 7297.743885 | AG173: 694.6 | AH173: 0.2137625408 | AI173: 7124.469684 | AJ173: 7347.7675 | AK173: 7254.701177 | BC173: =IF(G173>=G174,C173,NA()) -> 698100 | BD173: =IF(G173<G174,C173,NA()) -> 
A174: 142 | B174: =IF(A174>$A$8,"",OFFSET(InputPriceData!B$15,$A174+$A$11,0,1,1)) -> 2022-05-19 | C174: =IF(A174>$A$8,"",OFFSET(InputPriceData!G$15,CalculationsAndCharts!$A174+$A$11,IF($C$5,8,0),1,1)) -> 771500 | D174: =IF(A174>$A$8,"",OFFSET(InputPriceData!C$15,CalculationsAndCharts!$A174+$A$11,IF($C$5,8,0),1,1)) -> 7152.4 | E174: =IF(A174>$A$8,"",OFFSET(InputPriceData!D$15,CalculationsAndCharts!$A174+$A$11,IF($C$5,8,0),1,1)) -> 7152.4 | F174: =IF(A174>$A$8,"",OFFSET(InputPriceData!E$15,CalculationsAndCharts!$A174+$A$11,IF($C$5,8,0),1,1)) -> 7037.6 | G174: =IF(A174>$A$8,"",OFFSET(InputPriceData!F$15,CalculationsAndCharts!$A174+$A$11,IF($C$5,8,0),1,1)) -> 7064.5 | H174: 145.1 | I174: 2125.3 | J174: 504.7 | K174: 0.2374723568 | L174: 7115.61659 | M174: 674.5 | N174: 0.31736696 | O174: 7102.961318 | P174: 7234.04 | Q174: 7202.933059 | S174: 2697.2 | T174: 449.2 | U174: 0.1665430817 | V174: 7160.851683 | W174: 694.6 | X174: 0.2575263236 | Y174: 7108.125463 | Z174: 7323.186667 | AA174: 7242.105713 | AC174: 3258.1 | AD174: 214 | AE174: 0.06568245296 | AF174: 7307.483604 | AG174: 694.6 | AH174: 0.2131917375 | AI174: 7118.724766 | AJ174: 7352.655 | AK174: 7260.296109 | BD174: 771500
A175: 143 | B175: =IF(A175>$A$8,"",OFFSET(InputPriceData!B$15,$A175+$A$11,0,1,1)) -> 2022-05-18 | C175: =IF(A175>$A$8,"",OFFSET(InputPriceData!G$15,CalculationsAndCharts!$A175+$A$11,IF($C$5,8,0),1,1)) -> 658100 | D175: =IF(A175>$A$8,"",OFFSET(InputPriceData!C$15,CalculationsAndCharts!$A175+$A$11,IF($C$5,8,0),1,1)) -> 7143.8 | E175: =IF(A175>$A$8,"",OFFSET(InputPriceData!D$15,CalculationsAndCharts!$A175+$A$11,IF($C$5,8,0),1,1)) -> 7199 | F175: =IF(A175>$A$8,"",OFFSET(InputPriceData!E$15,CalculationsAndCharts!$A175+$A$11,IF($C$5,8,0),1,1)) -> 7143.8 | G175: =IF(A175>$A$8,"",OFFSET(InputPriceData!F$15,CalculationsAndCharts!$A175+$A$11,IF($C$5,8,0),1,1)) -> 7182.7 | H175: 86.5 | I175: 2040.9 | J175: 382.5 | K175: 0.1874173159 | L175: 7131.535721 | M175: 694.6 | N175: 0.3403400461 | O175: 7120.842596 | P175: 7259.275 | Q175: 7217.50496 | S175: 2595.1 | T175: 311.1 | U175: 0.1198797734 | V175: 7180.104875 | W175: 694.6 | X175: 0.2676582791 | Y175: 7123.256915 | Z175: 7338.16 | AA175: 7254.354383 | AC175: 3184.9 | AD175: 111.7 | AE175: 0.0350717448 | AF175: 7324.565333 | AG175: 694.6 | AH175: 0.2180916198 | AI175: 7133.417382 | AJ175: 7358.005 | AK175: 7270.336935 | BC175: 658100
A176: 144 | B176: =IF(A176>$A$8,"",OFFSET(InputPriceData!B$15,$A176+$A$11,0,1,1)) -> 2022-05-17 | C176: =IF(A176>$A$8,"",OFFSET(InputPriceData!G$15,CalculationsAndCharts!$A176+$A$11,IF($C$5,8,0),1,1)) -> 630900 | D176: =IF(A176>$A$8,"",OFFSET(InputPriceData!C$15,CalculationsAndCharts!$A176+$A$11,IF($C$5,8,0),1,1)) -> 7099 | E176: =IF(A176>$A$8,"",OFFSET(InputPriceData!D$15,CalculationsAndCharts!$A176+$A$11,IF($C$5,8,0),1,1)) -> 7129.5 | F176: =IF(A176>$A$8,"",OFFSET(InputPriceData!E$15,CalculationsAndCharts!$A176+$A$11,IF($C$5,8,0),1,1)) -> 7097.9 | G176: =IF(A176>$A$8,"",OFFSET(InputPriceData!F$15,CalculationsAndCharts!$A176+$A$11,IF($C$5,8,0),1,1)) -> 7112.5 | H176: 36.5 | I176: 2015.9 | J176: 410.9 | K176: 0.203829555 | L176: 7119.734988 | M176: 694.6 | N176: 0.3445607421 | O176: 7088.928348 | P176: 7278.4 | Q176: 7221.16864 | S176: 2545.9 | T176: 387.1 | U176: 0.1520483915 | V176: 7179.751398 | W176: 694.6 | X176: 0.272830826 | Y176: 7101.531492 | Z176: 7348.53 | AA176: 7259.296064 | AC176: 3146.9 | AD176: 138.3 | AE176: 0.04394801233 | AF176: 7329.721639 | AG176: 694.6 | AH176: 0.2207251581 | AI176: 7119.671365 | AJ176: 7360.7975 | AK176: 7274.831137 | BC176: 630900
A177: 145 | B177: =IF(A177>$A$8,"",OFFSET(InputPriceData!B$15,$A177+$A$11,0,1,1)) -> 2022-05-16 | C177: =IF(A177>$A$8,"",OFFSET(InputPriceData!G$15,CalculationsAndCharts!$A177+$A$11,IF($C$5,8,0),1,1)) -> 582400 | D177: =IF(A177>$A$8,"",OFFSET(InputPriceData!C$15,CalculationsAndCharts!$A177+$A$11,IF($C$5,8,0),1,1)) -> 7088.5 | E177: =IF(A177>$A$8,"",OFFSET(InputPriceData!D$15,CalculationsAndCharts!$A177+$A$11,IF($C$5,8,0),1,1)) -> 7149.5 | F177: =IF(A177>$A$8,"",OFFSET(InputPriceData!E$15,CalculationsAndCharts!$A177+$A$11,IF($C$5,8,0),1,1)) -> 7082.4 | G177: =IF(A177>$A$8,"",OFFSET(InputPriceData!F$15,CalculationsAndCharts!$A177+$A$11,IF($C$5,8,0),1,1)) -> 7093 | H177: 74.4 | I177: 2029.6 | J177: 386 | K177: 0.1901852582 | L177: 7121.587235 | M177: 694.6 | N177: 0.3422349231 | O177: 7076.536863 | P177: 7298.945 | Q177: 7232.607444 | S177: 2566.4 | T177: 421.5 | U177: 0.1642378429 | V177: 7191.810419 | W177: 694.6 | X177: 0.2706514963 | Y177: 7097.416153 | Z177: 7361.433333 | AA177: 7269.419931 | AC177: 3232 | AD177: 82.2 | AE177: 0.02543316832 | AF177: 7339.706932 | AG177: 694.6 | AH177: 0.2149133663 | AI177: 7121.702613 | AJ177: 7364.255 | AK177: 7283.155811 | BC177: 582400
A178: 146 | B178: =IF(A178>$A$8,"",OFFSET(InputPriceData!B$15,$A178+$A$11,0,1,1)) -> 2022-05-13 | C178: =IF(A178>$A$8,"",OFFSET(InputPriceData!G$15,CalculationsAndCharts!$A178+$A$11,IF($C$5,8,0),1,1)) -> 725200 | D178: =IF(A178>$A$8,"",OFFSET(InputPriceData!C$15,CalculationsAndCharts!$A178+$A$11,IF($C$5,8,0),1,1)) -> 6946.9 | E178: =IF(A178>$A$8,"",OFFSET(InputPriceData!D$15,CalculationsAndCharts!$A178+$A$11,IF($C$5,8,0),1,1)) -> 7075.1 | F178: =IF(A178>$A$8,"",OFFSET(InputPriceData!E$15,CalculationsAndCharts!$A178+$A$11,IF($C$5,8,0),1,1)) -> 6946.9 | G178: =IF(A178>$A$8,"",OFFSET(InputPriceData!F$15,CalculationsAndCharts!$A178+$A$11,IF($C$5,8,0),1,1)) -> 7075.1 | H178: 134.1 | I178: 1990.2 | J178: 378.9 | K178: 0.1903828761 | L178: 7128.300956 | M178: 694.6 | N178: 0.3490101497 | O178: 7067.971099 | P178: 7318.245 | Q178: 7247.302965 | S178: 2560.8 | T178: 389.2 | U178: 0.1519837551 | V178: 7211.227917 | W178: 694.6 | X178: 0.2712433614 | Y178: 7099.054929 | Z178: 7375.483333 | AA178: 7281.586822 | AC178: 3240.4 | AD178: 22.3 | AE178: 0.006881866436 | AF178: 7346.145217 | AG178: 694.6 | AH178: 0.2143562523 | AI178: 7129.559804 | AJ178: 7366.31 | AK178: 7292.907391 | BC178: 725200
A179: 147 | B179: =IF(A179>$A$8,"",OFFSET(InputPriceData!B$15,$A179+$A$11,0,1,1)) -> 2022-05-12 | C179: =IF(A179>$A$8,"",OFFSET(InputPriceData!G$15,CalculationsAndCharts!$A179+$A$11,IF($C$5,8,0),1,1)) -> 801700 | D179: =IF(A179>$A$8,"",OFFSET(InputPriceData!C$15,CalculationsAndCharts!$A179+$A$11,IF($C$5,8,0),1,1)) -> 7062.9 | E179: =IF(A179>$A$8,"",OFFSET(InputPriceData!D$15,CalculationsAndCharts!$A179+$A$11,IF($C$5,8,0),1,1)) -> 7063.4 | F179: =IF(A179>$A$8,"",OFFSET(InputPriceData!E$15,CalculationsAndCharts!$A179+$A$11,IF($C$5,8,0),1,1)) -> 6930.2 | G179: =IF(A179>$A$8,"",OFFSET(InputPriceData!F$15,CalculationsAndCharts!$A179+$A$11,IF($C$5,8,0),1,1)) -> 6941 | H179: 134.5 | I179: 1910.5 | J179: 544.2 | K179: 0.2848468987 | L179: 7140.811253 | M179: 694.6 | N179: 0.3635697461 | O179: 7064.149136 | P179: 7337.19 | Q179: 7265.429593 | S179: 2497.7 | T179: 471.4 | U179: 0.1887336349 | V179: 7235.625129 | W179: 694.6 | X179: 0.2780958482 | Y179: 7107.970958 | Z179: 7388.456667 | AA179: 7295.827293 | AC179: 3175 | AD179: 208.4 | AE179: 0.06563779528 | AF179: 7348.023439 | AG179: 694.6 | AH179: 0.2187716535 | AI179: 7144.418701 | AJ179: 7366.8675 | AK179: 7304.077 | BD179: 801700
A180: 148 | B180: =IF(A180>$A$8,"",OFFSET(InputPriceData!B$15,$A180+$A$11,0,1,1)) -> 2022-05-11 | C180: =IF(A180>$A$8,"",OFFSET(InputPriceData!G$15,CalculationsAndCharts!$A180+$A$11,IF($C$5,8,0),1,1)) -> 702400 | D180: =IF(A180>$A$8,"",OFFSET(InputPriceData!C$15,CalculationsAndCharts!$A180+$A$11,IF($C$5,8,0),1,1)) -> 7047.6 | E180: =IF(A180>$A$8,"",OFFSET(InputPriceData!D$15,CalculationsAndCharts!$A180+$A$11,IF($C$5,8,0),1,1)) -> 7064.7 | F180: =IF(A180>$A$8,"",OFFSET(InputPriceData!E$15,CalculationsAndCharts!$A180+$A$11,IF($C$5,8,0),1,1)) -> 6991.8 | G180: =IF(A180>$A$8,"",OFFSET(InputPriceData!F$15,CalculationsAndCharts!$A180+$A$11,IF($C$5,8,0),1,1)) -> 7064.7 | H180: 72.9 | I180: 1829.6 | J180: 413.3 | K180: 0.2258963708 | L180: 7220.396472 | M180: 685.3 | N180: 0.374562746 | O180: 7134.499814 | P180: 7364.4 | Q180: 7299.580076 | S180: 2403.7 | T180: 341.5 | U180: 0.142072638 | V180: 7304.166947 | W180: 685.3 | X180: 0.2851021342 | Y180: 7172.29242 | Z180: 7404.17 | AA180: 7320.298141 | AC180: 3126.3 | AD180: 1.1 | AE180: 0.0003518536289 | AF180: 7376.616335 | AG180: 685.3 | AH180: 0.2192048108 | AI180: 7201.383154 | AJ180: 7372.0775 | AK180: 7322.696334 | BC180: 702400
A181: 149 | B181: =IF(A181>$A$8,"",OFFSET(InputPriceData!B$15,$A181+$A$11,0,1,1)) -> 2022-05-10 | C181: =IF(A181>$A$8,"",OFFSET(InputPriceData!G$15,CalculationsAndCharts!$A181+$A$11,IF($C$5,8,0),1,1)) -> 939400 | D181: =IF(A181>$A$8,"",OFFSET(InputPriceData!C$15,CalculationsAndCharts!$A181+$A$11,IF($C$5,8,0),1,1)) -> 7080.9 | E181: =IF(A181>$A$8,"",OFFSET(InputPriceData!D$15,CalculationsAndCharts!$A181+$A$11,IF($C$5,8,0),1,1)) -> 7080.9 | F181: =IF(A181>$A$8,"",OFFSET(InputPriceData!E$15,CalculationsAndCharts!$A181+$A$11,IF($C$5,8,0),1,1)) -> 6939.5 | G181: =IF(A181>$A$8,"",OFFSET(InputPriceData!F$15,CalculationsAndCharts!$A181+$A$11,IF($C$5,8,0),1,1)) -> 7051.2 | H181: 181.2 | I181: 1806.2 | J181: 391.6 | K181: 0.2168087698 | L181: 7265.831303 | M181: 685.3 | N181: 0.3794153471 | O181: 7176.301626 | P181: 7385.065 | Q181: 7324.304295 | S181: 2375 | T181: 335.9 | U181: 0.1414315789 | V181: 7343.822637 | W181: 685.3 | X181: 0.2885473684 | Y181: 7215.200407 | Z181: 7415.553333 | AA181: 7337.925599 | AC181: 3153.6 | AD181: 79.6 | AE181: 0.02524099442 | AF181: 7376.726123 | AG181: 685.3 | AH181: 0.2173072045 | AI181: 7239.756347 | AJ181: 7372.05 | AK181: 7335.926915 | BD181: 939400
A182: 150 | B182: =IF(A182>$A$8,"",OFFSET(InputPriceData!B$15,$A182+$A$11,0,1,1)) -> 2022-05-09 | C182: =IF(A182>$A$8,"",OFFSET(InputPriceData!G$15,CalculationsAndCharts!$A182+$A$11,IF($C$5,8,0),1,1)) -> 692300 | D182: =IF(A182>$A$8,"",OFFSET(InputPriceData!C$15,CalculationsAndCharts!$A182+$A$11,IF($C$5,8,0),1,1)) -> 7181.5 | E182: =IF(A182>$A$8,"",OFFSET(InputPriceData!D$15,CalculationsAndCharts!$A182+$A$11,IF($C$5,8,0),1,1)) -> 7184.5 | F182: =IF(A182>$A$8,"",OFFSET(InputPriceData!E$15,CalculationsAndCharts!$A182+$A$11,IF($C$5,8,0),1,1)) -> 7092.3 | G182: =IF(A182>$A$8,"",OFFSET(InputPriceData!F$15,CalculationsAndCharts!$A182+$A$11,IF($C$5,8,0),1,1)) -> 7120.7 | H182: 113.3 | I182: 1677.5 | J182: 369.4 | K182: 0.2202086438 | L182: 7325.247123 | M182: 532.5 | N182: 0.3174366617 | O182: 7252.786721 | P182: 7404.645 | Q182: 7353.052115 | S182: 2237 | T182: 257.2 | U182: 0.1149754135 | V182: 7392.026228 | W182: 532.5 | X182: 0.2380420206 | Y182: 7281.714864 | Z182: 7426.75 | AA182: 7357.699778 | AC182: 3093.7 | AD182: 67.7 | AE182: 0.02188318195 | AF182: 7385.155492 | AG182: 585.1 | AH182: 0.1891262889 | AI182: 7292.107222 | AJ182: 7374.04 | AK182: 7350.528295 | BD182: 692300
A183: 151 | B183: =IF(A183>$A$8,"",OFFSET(InputPriceData!B$15,$A183+$A$11,0,1,1)) -> 2022-05-06 | C183: =IF(A183>$A$8,"",OFFSET(InputPriceData!G$15,CalculationsAndCharts!$A183+$A$11,IF($C$5,8,0),1,1)) -> 861000 | D183: =IF(A183>$A$8,"",OFFSET(InputPriceData!C$15,CalculationsAndCharts!$A183+$A$11,IF($C$5,8,0),1,1)) -> 7333.6 | E183: =IF(A183>$A$8,"",OFFSET(InputPriceData!D$15,CalculationsAndCharts!$A183+$A$11,IF($C$5,8,0),1,1)) -> 7334.8 | F183: =IF(A183>$A$8,"",OFFSET(InputPriceData!E$15,CalculationsAndCharts!$A183+$A$11,IF($C$5,8,0),1,1)) -> 7161.4 | G183: =IF(A183>$A$8,"",OFFSET(InputPriceData!F$15,CalculationsAndCharts!$A183+$A$11,IF($C$5,8,0),1,1)) -> 7205.6 | H183: 203.3 | I183: 1654.6 | J183: 322.3 | K183: 0.1947902816 | L183: 7383.010067 | M183: 463.4 | N183: 0.2800676901 | O183: 7314.215699 | P183: 7423.115 | Q183: 7377.510233 | S183: 2180.8 | T183: 135.5 | U183: 0.06213316214 | V183: 7427.274792 | W183: 463.4 | X183: 0.2124908291 | Y183: 7332.017249 | Z183: 7435.323333 | AA183: 7374.04459 | AC183: 3083.5 | AD183: 225.3 | AE183: 0.07306632074 | AF183: 7391.072093 | AG183: 655.9 | AH183: 0.2127128263 | AI183: 7332.085842 | AJ183: 7372.3475 | AK183: 7362.314362 | BD183: 861000
A184: 152 | B184: =IF(A184>$A$8,"",OFFSET(InputPriceData!B$15,$A184+$A$11,0,1,1)) -> 2022-05-05 | C184: =IF(A184>$A$8,"",OFFSET(InputPriceData!G$15,CalculationsAndCharts!$A184+$A$11,IF($C$5,8,0),1,1)) -> 808200 | D184: =IF(A184>$A$8,"",OFFSET(InputPriceData!C$15,CalculationsAndCharts!$A184+$A$11,IF($C$5,8,0),1,1)) -> 7320.7 | E184: =IF(A184>$A$8,"",OFFSET(InputPriceData!D$15,CalculationsAndCharts!$A184+$A$11,IF($C$5,8,0),1,1)) -> 7369.1 | F184: =IF(A184>$A$8,"",OFFSET(InputPriceData!E$15,CalculationsAndCharts!$A184+$A$11,IF($C$5,8,0),1,1)) -> 7313.5 | G184: =IF(A184>$A$8,"",OFFSET(InputPriceData!F$15,CalculationsAndCharts!$A184+$A$11,IF($C$5,8,0),1,1)) -> 7364.7 | H184: 64.4 | I184: 1515.4 | J184: 149 | K184: 0.09832387488 | L184: 7425.927777 | M184: 391.5 | N184: 0.258347631 | O184: 7356.469321 | P184: 7439.23 | Q184: 7395.606047 | S184: 2076.3 | T184: 86.2 | U184: 0.04151615855 | V184: 7441.960625 | W184: 391.5 | X184: 0.188556567 | Y184: 7366.127971 | Z184: 7439.84 | AA184: 7385.661458 | AC184: 2953.4 | AD184: 326.1 | AE184: 0.1104151148 | AF184: 7405.692086 | AG184: 655.9 | AH184: 0.222083023 | AI184: 7366.260362 | AJ184: 7366.715 | AK184: 7370.350995 | BC184: 808200
A185: 153 | B185: =IF(A185>$A$8,"",OFFSET(InputPriceData!B$15,$A185+$A$11,0,1,1)) -> 2022-05-04 | C185: =IF(A185>$A$8,"",OFFSET(InputPriceData!G$15,CalculationsAndCharts!$A185+$A$11,IF($C$5,8,0),1,1)) -> 726500 | D185: =IF(A185>$A$8,"",OFFSET(InputPriceData!C$15,CalculationsAndCharts!$A185+$A$11,IF($C$5,8,0),1,1)) -> 7332.7 | E185: =IF(A185>$A$8,"",OFFSET(InputPriceData!D$15,CalculationsAndCharts!$A185+$A$11,IF($C$5,8,0),1,1)) -> 7366.8 | F185: =IF(A185>$A$8,"",OFFSET(InputPriceData!E$15,CalculationsAndCharts!$A185+$A$11,IF($C$5,8,0),1,1)) -> 7299.9 | G185: =IF(A185>$A$8,"",OFFSET(InputPriceData!F$15,CalculationsAndCharts!$A185+$A$11,IF($C$5,8,0),1,1)) -> 7304.7 | H185: 66.9 | I185: 1494 | J185: 189.1 | K185: 0.1265729585 | L185: 7432.604401 | M185: 391.5 | N185: 0.2620481928 | O185: 7353.602241 | P185: 7446.68 | Q185: 7398.859315 | S185: 2083.8 | T185: 10.3 | U185: 0.004942892792 | V185: 7445.307123 | W185: 391.5 | X185: 0.1878779153 | Y185: 7366.459791 | Z185: 7436.966667 | AA185: 7387.107076 | AC185: 3012.2 | AD185: 193.9 | AE185: 0.06437155567 | AF185: 7410.780016 | AG185: 655.9 | AH185: 0.2177478255 | AI185: 7366.70582 | AJ185: 7358.5625 | AK185: 7370.64079 | BD185: 726500
A186: 154 | B186: =IF(A186>$A$8,"",OFFSET(InputPriceData!B$15,$A186+$A$11,0,1,1)) -> 2022-05-03 | C186: =IF(A186>$A$8,"",OFFSET(InputPriceData!G$15,CalculationsAndCharts!$A186+$A$11,IF($C$5,8,0),1,1)) -> 580700 | D186: =IF(A186>$A$8,"",OFFSET(InputPriceData!C$15,CalculationsAndCharts!$A186+$A$11,IF($C$5,8,0),1,1)) -> 7344.5 | E186: =IF(A186>$A$8,"",OFFSET(InputPriceData!D$15,CalculationsAndCharts!$A186+$A$11,IF($C$5,8,0),1,1)) -> 7355.2 | F186: =IF(A186>$A$8,"",OFFSET(InputPriceData!E$15,CalculationsAndCharts!$A186+$A$11,IF($C$5,8,0),1,1)) -> 7299.3 | G186: =IF(A186>$A$8,"",OFFSET(InputPriceData!F$15,CalculationsAndCharts!$A186+$A$11,IF($C$5,8,0),1,1)) -> 7316.2 | H186: 55.9 | I186: 1464.4 | J186: 183.4 | K186: 0.1252390057 | L186: 7451.139708 | M186: 391.5 | N186: 0.2673449877 | O186: 7370.967527 | P186: 7456.135 | Q186: 7408.770821 | S186: 2065.4 | T186: 65.4 | U186: 0.03166456861 | V186: 7446.005581 | W186: 391.5 | X186: 0.1895516607 | Y186: 7380.747422 | Z186: 7436.623333 | AA186: 7392.790323 | AC186: 3071.5 | AD186: 164.8 | AE186: 0.05365456617 | AF186: 7418.078357 | AG186: 655.9 | AH186: 0.2135438711 | AI186: 7383.965769 | AJ186: 7353.715 | AK186: 7374.022369 | BD186: 580700
A187: 155 | B187: =IF(A187>$A$8,"",OFFSET(InputPriceData!B$15,$A187+$A$11,0,1,1)) -> 2022-05-02 | C187: =IF(A187>$A$8,"",OFFSET(InputPriceData!G$15,CalculationsAndCharts!$A187+$A$11,IF($C$5,8,0),1,1)) -> 565000 | D187: =IF(A187>$A$8,"",OFFSET(InputPriceData!C$15,CalculationsAndCharts!$A187+$A$11,IF($C$5,8,0),1,1)) -> 7422 | E187: =IF(A187>$A$8,"",OFFSET(InputPriceData!D$15,CalculationsAndCharts!$A187+$A$11,IF($C$5,8,0),1,1)) -> 7423.2 | F187: =IF(A187>$A$8,"",OFFSET(InputPriceData!E$15,CalculationsAndCharts!$A187+$A$11,IF($C$5,8,0),1,1)) -> 7301.6 | G187: =IF(A187>$A$8,"",OFFSET(InputPriceData!F$15,CalculationsAndCharts!$A187+$A$11,IF($C$5,8,0),1,1)) -> 7347 | H187: 133.4 | I187: 1465.5 | J187: 167.5 | K187: 0.1142954623 | L187: 7470.458945 | M187: 391.5 | N187: 0.2671443193 | O187: 7390.952136 | P187: 7465.305 | Q187: 7418.515118 | S187: 2131.1 | T187: 171.8 | U187: 0.0806156445 | V187: 7450.250224 | W187: 420.9 | X187: 0.1975036366 | Y187: 7395.844092 | Z187: 7434.443333 | AA187: 7398.072414 | AC187: 3097 | AD187: 230.3 | AE187: 0.07436228608 | AF187: 7423.854513 | AG187: 655.9 | AH187: 0.211785599 | AI187: 7402.365988 | AJ187: 7349.595 | AK187: 7376.987619 | BD187: 565000
A188: 156 | B188: =IF(A188>$A$8,"",OFFSET(InputPriceData!B$15,$A188+$A$11,0,1,1)) -> 2022-04-29 | C188: =IF(A188>$A$8,"",OFFSET(InputPriceData!G$15,CalculationsAndCharts!$A188+$A$11,IF($C$5,8,0),1,1)) -> 748500 | D188: =IF(A188>$A$8,"",OFFSET(InputPriceData!C$15,CalculationsAndCharts!$A188+$A$11,IF($C$5,8,0),1,1)) -> 7360.7 | E188: =IF(A188>$A$8,"",OFFSET(InputPriceData!D$15,CalculationsAndCharts!$A188+$A$11,IF($C$5,8,0),1,1)) -> 7435 | F188: =IF(A188>$A$8,"",OFFSET(InputPriceData!E$15,CalculationsAndCharts!$A188+$A$11,IF($C$5,8,0),1,1)) -> 7360.5 | G188: =IF(A188>$A$8,"",OFFSET(InputPriceData!F$15,CalculationsAndCharts!$A188+$A$11,IF($C$5,8,0),1,1)) -> 7435 | H188: 78.1 | I188: 1400.9 | J188: 29.3 | K188: 0.02091512599 | L188: 7486.390665 | M188: 391.5 | N188: 0.2794632022 | O188: 7406.973795 | P188: 7473.68 | Q188: 7426.043026 | S188: 2080.5 | T188: 337.6 | U188: 0.1622686854 | V188: 7459.303655 | W188: 524.5 | X188: 0.2521028599 | Y188: 7407.865188 | Z188: 7428.716667 | AA188: 7401.59465 | AC188: 3043.2 | AD188: 338.5 | AE188: 0.1112315983 | AF188: 7430.028719 | AG188: 655.9 | AH188: 0.2155297056 | AI188: 7417.242294 | AJ188: 7343.8375 | AK188: 7378.525445 | BC188: 748500
A189: 157 | B189: =IF(A189>$A$8,"",OFFSET(InputPriceData!B$15,$A189+$A$11,0,1,1)) -> 2022-04-28 | C189: =IF(A189>$A$8,"",OFFSET(InputPriceData!G$15,CalculationsAndCharts!$A189+$A$11,IF($C$5,8,0),1,1)) -> 729400 | D189: =IF(A189>$A$8,"",OFFSET(InputPriceData!C$15,CalculationsAndCharts!$A189+$A$11,IF($C$5,8,0),1,1)) -> 7303 | E189: =IF(A189>$A$8,"",OFFSET(InputPriceData!D$15,CalculationsAndCharts!$A189+$A$11,IF($C$5,8,0),1,1)) -> 7356.9 | F189: =IF(A189>$A$8,"",OFFSET(InputPriceData!E$15,CalculationsAndCharts!$A189+$A$11,IF($C$5,8,0),1,1)) -> 7298.1 | G189: =IF(A189>$A$8,"",OFFSET(InputPriceData!F$15,CalculationsAndCharts!$A189+$A$11,IF($C$5,8,0),1,1)) -> 7356.9 | H189: 95.7 | I189: 1393.8 | J189: 55.5 | K189: 0.03981919931 | L189: 7487.488468 | M189: 391.5 | N189: 0.2808867843 | O189: 7396.103714 | P189: 7475.145 | Q189: 7425.100186 | S189: 2071.1 | T189: 207.5 | U189: 0.1001883057 | V189: 7464.011277 | W189: 544.1 | X189: 0.2627106369 | Y189: 7398.718524 | Z189: 7417.463333 | AA189: 7399.290832 | AC189: 3075.9 | AD189: 307.8 | AE189: 0.1000682727 | AF189: 7429.40655 | AG189: 655.9 | AH189: 0.2132384018 | AI189: 7412.363444 | AJ189: 7335.375 | AK189: 7375.629314 | BC189: 729400
A190: 158 | B190: =IF(A190>$A$8,"",OFFSET(InputPriceData!B$15,$A190+$A$11,0,1,1)) -> 2022-04-27 | C190: =IF(A190>$A$8,"",OFFSET(InputPriceData!G$15,CalculationsAndCharts!$A190+$A$11,IF($C$5,8,0),1,1)) -> 827000 | D190: =IF(A190>$A$8,"",OFFSET(InputPriceData!C$15,CalculationsAndCharts!$A190+$A$11,IF($C$5,8,0),1,1)) -> 7300.1 | E190: =IF(A190>$A$8,"",OFFSET(InputPriceData!D$15,CalculationsAndCharts!$A190+$A$11,IF($C$5,8,0),1,1)) -> 7302.2 | F190: =IF(A190>$A$8,"",OFFSET(InputPriceData!E$15,CalculationsAndCharts!$A190+$A$11,IF($C$5,8,0),1,1)) -> 7233.3 | G190: =IF(A190>$A$8,"",OFFSET(InputPriceData!F$15,CalculationsAndCharts!$A190+$A$11,IF($C$5,8,0),1,1)) -> 7261.2 | H190: 84.7 | I190: 1338.6 | J190: 145 | K190: 0.1083221276 | L190: 7492.90404 | M190: 391.5 | N190: 0.2924697445 | O190: 7411.416748 | P190: 7477.92 | Q190: 7432.279153 | S190: 2061.2 | T190: 197.6 | U190: 0.09586648554 | V190: 7475.937436 | W190: 555 | X190: 0.2692606249 | Y190: 7413.619283 | Z190: 7410.546667 | AA190: 7402.214338 | AC190: 3050.4 | AD190: 263.4 | AE190: 0.08634933124 | AF190: 7437.468946 | AG190: 655.9 | AH190: 0.2150209809 | AI190: 7427.39587 | AJ190: 7327.68 | AK190: 7376.589792 | BD190: 827000
A191: 159 | B191: =IF(A191>$A$8,"",OFFSET(InputPriceData!B$15,$A191+$A$11,0,1,1)) -> 2022-04-26 | C191: =IF(A191>$A$8,"",OFFSET(InputPriceData!G$15,CalculationsAndCharts!$A191+$A$11,IF($C$5,8,0),1,1)) -> 847100 | D191: =IF(A191>$A$8,"",OFFSET(InputPriceData!C$15,CalculationsAndCharts!$A191+$A$11,IF($C$5,8,0),1,1)) -> 7410 | E191: =IF(A191>$A$8,"",OFFSET(InputPriceData!D$15,CalculationsAndCharts!$A191+$A$11,IF($C$5,8,0),1,1)) -> 7413.3 | F191: =IF(A191>$A$8,"",OFFSET(InputPriceData!E$15,CalculationsAndCharts!$A191+$A$11,IF($C$5,8,0),1,1)) -> 7290.8 | G191: =IF(A191>$A$8,"",OFFSET(InputPriceData!F$15,CalculationsAndCharts!$A191+$A$11,IF($C$5,8,0),1,1)) -> 7318 | H191: 182.5 | I191: 1298.1 | J191: 69.1 | K191: 0.05323164625 | L191: 7521.051732 | M191: 334 | N191: 0.2572991295 | O191: 7473.511413 | P191: 7485.17 | Q191: 7450.287485 | S191: 2076.7 | T191: 187.2 | U191: 0.09014301536 | V191: 7498.706333 | W191: 573.6 | X191: 0.2762074445 | Y191: 7469.782277 | Z191: 7403.96 | AA191: 7411.939465 | AC191: 3036.4 | AD191: 327.4 | AE191: 0.107825056 | AF191: 7454.128164 | AG191: 655.9 | AH191: 0.2160123831 | AI191: 7472.920143 | AJ191: 7321.095 | AK191: 7382.507217 | BD191: 847100
A192: 160 | B192: =IF(A192>$A$8,"",OFFSET(InputPriceData!B$15,$A192+$A$11,0,1,1)) -> 2022-04-22 | C192: =IF(A192>$A$8,"",OFFSET(InputPriceData!G$15,CalculationsAndCharts!$A192+$A$11,IF($C$5,8,0),1,1)) -> 749700 | D192: =IF(A192>$A$8,"",OFFSET(InputPriceData!C$15,CalculationsAndCharts!$A192+$A$11,IF($C$5,8,0),1,1)) -> 7546.2 | E192: =IF(A192>$A$8,"",OFFSET(InputPriceData!D$15,CalculationsAndCharts!$A192+$A$11,IF($C$5,8,0),1,1)) -> 7546.2 | F192: =IF(A192>$A$8,"",OFFSET(InputPriceData!E$15,CalculationsAndCharts!$A192+$A$11,IF($C$5,8,0),1,1)) -> 7455 | G192: =IF(A192>$A$8,"",OFFSET(InputPriceData!F$15,CalculationsAndCharts!$A192+$A$11,IF($C$5,8,0),1,1)) -> 7473.3 | H192: 137.8 | I192: 1158.8 | J192: 95.4 | K192: 0.0823265447 | L192: 7532.468229 | M192: 268.6 | N192: 0.2317915085 | O192: 7527.386335 | P192: 7488.625 | Q192: 7464.212483 | S192: 2015.5 | T192: 420.3 | U192: 0.2085338626 | V192: 7516.609602 | W192: 585.1 | X192: 0.2903001737 | Y192: 7527.704115 | Z192: 7397.72 | AA192: 7418.418049 | AC192: 3100.3 | AD192: 267.6 | AE192: 0.08631422766 | AF192: 7470.580124 | AG192: 665.5 | AH192: 0.2146566461 | AI192: 7515.605345 | AJ192: 7312.91 | AK192: 7385.81528 | BD192: 749700
A193: 161 | B193: =IF(A193>$A$8,"",OFFSET(InputPriceData!B$15,$A193+$A$11,0,1,1)) -> 2022-04-21 | C193: =IF(A193>$A$8,"",OFFSET(InputPriceData!G$15,CalculationsAndCharts!$A193+$A$11,IF($C$5,8,0),1,1)) -> 602200 | D193: =IF(A193>$A$8,"",OFFSET(InputPriceData!C$15,CalculationsAndCharts!$A193+$A$11,IF($C$5,8,0),1,1)) -> 7563 | E193: =IF(A193>$A$8,"",OFFSET(InputPriceData!D$15,CalculationsAndCharts!$A193+$A$11,IF($C$5,8,0),1,1)) -> 7604.7 | F193: =IF(A193>$A$8,"",OFFSET(InputPriceData!E$15,CalculationsAndCharts!$A193+$A$11,IF($C$5,8,0),1,1)) -> 7560.6 | G193: =IF(A193>$A$8,"",OFFSET(InputPriceData!F$15,CalculationsAndCharts!$A193+$A$11,IF($C$5,8,0),1,1)) -> 7592.8 | H193: 44.1 | I193: 1078.1 | J193: 251.7 | K193: 0.2334662833 | L193: 7537.776344 | M193: 295 | N193: 0.2736295334 | O193: 7543.705802 | P193: 7483.855 | Q193: 7463.255903 | S193: 1980.8 | T193: 612.5 | U193: 0.3092184976 | V193: 7528.020726 | W193: 655.9 | X193: 0.3311288368 | Y193: 7549.957924 | Z193: 7383.71 | AA193: 7414.633086 | AC193: 3022.8 | AD193: 431.5 | AE193: 0.1427484452 | AF193: 7470.323182 | AG193: 665.5 | AH193: 0.2201601164 | AI193: 7527.168597 | AJ193: 7306.22 | AK193: 7381.328884 | BC193: 602200
A194: 162 | B194: =IF(A194>$A$8,"",OFFSET(InputPriceData!B$15,$A194+$A$11,0,1,1)) -> 2022-04-20 | C194: =IF(A194>$A$8,"",OFFSET(InputPriceData!G$15,CalculationsAndCharts!$A194+$A$11,IF($C$5,8,0),1,1)) -> 640300 | D194: =IF(A194>$A$8,"",OFFSET(InputPriceData!C$15,CalculationsAndCharts!$A194+$A$11,IF($C$5,8,0),1,1)) -> 7564.1 | E194: =IF(A194>$A$8,"",OFFSET(InputPriceData!D$15,CalculationsAndCharts!$A194+$A$11,IF($C$5,8,0),1,1)) -> 7624.8 | F194: =IF(A194>$A$8,"",OFFSET(InputPriceData!E$15,CalculationsAndCharts!$A194+$A$11,IF($C$5,8,0),1,1)) -> 7564.1 | G194: =IF(A194>$A$8,"",OFFSET(InputPriceData!F$15,CalculationsAndCharts!$A194+$A$11,IF($C$5,8,0),1,1)) -> 7569.2 | H194: 60.7 | I194: 1132.8 | J194: 290.7 | K194: 0.2566207627 | L194: 7521.017566 | M194: 312.7 | N194: 0.2760416667 | O194: 7525.211626 | P194: 7471.27 | Q194: 7449.619682 | S194: 2009.9 | T194: 530.6 | U194: 0.2639932335 | V194: 7499.023207 | W194: 655.9 | X194: 0.3263346435 | Y194: 7528.748687 | Z194: 7363.293333 | AA194: 7402.345713 | AC194: 3103.5 | AD194: 335.6 | AE194: 0.1081359755 | AF194: 7449.928497 | AG194: 665.5 | AH194: 0.214435315 | AI194: 7508.6399 | AJ194: 7295.4325 | AK194: 7370.484211 | BC194: 640300
A195: 163 | B195: =IF(A195>$A$8,"",OFFSET(InputPriceData!B$15,$A195+$A$11,0,1,1)) -> 2022-04-19 | C195: =IF(A195>$A$8,"",OFFSET(InputPriceData!G$15,CalculationsAndCharts!$A195+$A$11,IF($C$5,8,0),1,1)) -> 585900 | D195: =IF(A195>$A$8,"",OFFSET(InputPriceData!C$15,CalculationsAndCharts!$A195+$A$11,IF($C$5,8,0),1,1)) -> 7523.5 | E195: =IF(A195>$A$8,"",OFFSET(InputPriceData!D$15,CalculationsAndCharts!$A195+$A$11,IF($C$5,8,0),1,1)) -> 7584.9 | F195: =IF(A195>$A$8,"",OFFSET(InputPriceData!E$15,CalculationsAndCharts!$A195+$A$11,IF($C$5,8,0),1,1)) -> 7523.5 | G195: =IF(A195>$A$8,"",OFFSET(InputPriceData!F$15,CalculationsAndCharts!$A195+$A$11,IF($C$5,8,0),1,1)) -> 7565.2 | H195: 61.5 | I195: 1144 | J195: 270.8 | K195: 0.2367132867 | L195: 7504.384584 | M195: 306.4 | N195: 0.2678321678 | O195: 7508.439081 | P195: 7456.735 | Q195: 7437.03228 | S195: 2072.4 | T195: 454.4 | U195: 0.2192626906 | V195: 7473.851973 | W195: 616 | X195: 0.2972399151 | Y195: 7509.153402 | Z195: 7345.606667 | AA195: 7390.838521 | AC195: 3135.3 | AD195: 343.5 | AE195: 0.1095588939 | AF195: 7435.467167 | AG195: 625.6 | AH195: 0.1995343348 | AI195: 7492.108831 | AJ195: 7287.0425 | AK195: 7360.293658 | BC195: 585900
A196: 164 | B196: =IF(A196>$A$8,"",OFFSET(InputPriceData!B$15,$A196+$A$11,0,1,1)) -> 2022-04-14 | C196: =IF(A196>$A$8,"",OFFSET(InputPriceData!G$15,CalculationsAndCharts!$A196+$A$11,IF($C$5,8,0),1,1)) -> 683800 | D196: =IF(A196>$A$8,"",OFFSET(InputPriceData!C$15,CalculationsAndCharts!$A196+$A$11,IF($C$5,8,0),1,1)) -> 7489.4 | E196: =IF(A196>$A$8,"",OFFSET(InputPriceData!D$15,CalculationsAndCharts!$A196+$A$11,IF($C$5,8,0),1,1)) -> 7529.2 | F196: =IF(A196>$A$8,"",OFFSET(InputPriceData!E$15,CalculationsAndCharts!$A196+$A$11,IF($C$5,8,0),1,1)) -> 7485.6 | G196: =IF(A196>$A$8,"",OFFSET(InputPriceData!F$15,CalculationsAndCharts!$A196+$A$11,IF($C$5,8,0),1,1)) -> 7523.4 | H196: 50.2 | I196: 1131 | J196: 272.6 | K196: 0.241025641 | L196: 7485.524284 | M196: 327.5 | N196: 0.2895667551 | O196: 7487.675536 | P196: 7443.195 | Q196: 7423.540941 | S196: 2137.1 | T196: 372 | U196: 0.1740676618 | V196: 7448.197744 | W196: 604.5 | X196: 0.2828599504 | Y196: 7485.447892 | Z196: 7330.46 | AA196: 7378.813591 | AC196: 3168.1 | AD196: 227.2 | AE196: 0.07171490799 | AF196: 7419.504982 | AG196: 614.1 | AH196: 0.1938385783 | AI196: 7473.889189 | AJ196: 7278.455 | AK196: 7349.78564 | BC196: 683800
A197: 165 | B197: =IF(A197>$A$8,"",OFFSET(InputPriceData!B$15,$A197+$A$11,0,1,1)) -> 2022-04-13 | C197: =IF(A197>$A$8,"",OFFSET(InputPriceData!G$15,CalculationsAndCharts!$A197+$A$11,IF($C$5,8,0),1,1)) -> 646900 | D197: =IF(A197>$A$8,"",OFFSET(InputPriceData!C$15,CalculationsAndCharts!$A197+$A$11,IF($C$5,8,0),1,1)) -> 7461.5 | E197: =IF(A197>$A$8,"",OFFSET(InputPriceData!D$15,CalculationsAndCharts!$A197+$A$11,IF($C$5,8,0),1,1)) -> 7489 | F197: =IF(A197>$A$8,"",OFFSET(InputPriceData!E$15,CalculationsAndCharts!$A197+$A$11,IF($C$5,8,0),1,1)) -> 7459.9 | G197: =IF(A197>$A$8,"",OFFSET(InputPriceData!F$15,CalculationsAndCharts!$A197+$A$11,IF($C$5,8,0),1,1)) -> 7479 | H197: 35 | I197: 1202.4 | J197: 303.8 | K197: 0.252661344 | L197: 7473.496185 | M197: 369.5 | N197: 0.3073020625 | O197: 7473.114538 | P197: 7429.565 | Q197: 7413.029461 | S197: 2168.3 | T197: 362.3 | U197: 0.1670894249 | V197: 7432.348648 | W197: 604.5 | X197: 0.2787898354 | Y197: 7470.478527 | Z197: 7318.06 | AA197: 7368.842115 | AC197: 3192.4 | AD197: 194.1 | AE197: 0.06080065155 | AF197: 7411.478545 | AG197: 614.1 | AH197: 0.1923631124 | AI197: 7461.984494 | AJ197: 7272.775 | AK197: 7340.88234 | BC197: 646900
A198: 166 | B198: =IF(A198>$A$8,"",OFFSET(InputPriceData!B$15,$A198+$A$11,0,1,1)) -> 2022-04-12 | C198: =IF(A198>$A$8,"",OFFSET(InputPriceData!G$15,CalculationsAndCharts!$A198+$A$11,IF($C$5,8,0),1,1)) -> 579000 | D198: =IF(A198>$A$8,"",OFFSET(InputPriceData!C$15,CalculationsAndCharts!$A198+$A$11,IF($C$5,8,0),1,1)) -> 7474.6 | E198: =IF(A198>$A$8,"",OFFSET(InputPriceData!D$15,CalculationsAndCharts!$A198+$A$11,IF($C$5,8,0),1,1)) -> 7484 | F198: =IF(A198>$A$8,"",OFFSET(InputPriceData!E$15,CalculationsAndCharts!$A198+$A$11,IF($C$5,8,0),1,1)) -> 7430.8 | G198: =IF(A198>$A$8,"",OFFSET(InputPriceData!F$15,CalculationsAndCharts!$A198+$A$11,IF($C$5,8,0),1,1)) -> 7454 | H198: 54.4 | I198: 1250.2 | J198: 356.6 | K198: 0.2852343625 | L198: 7471.635447 | M198: 473.1 | N198: 0.3784194529 | O198: 7470.503566 | P198: 7414.375 | Q198: 7406.085194 | S198: 2212.9 | T198: 357.5 | U198: 0.1615527136 | V198: 7422.989963 | W198: 604.5 | X198: 0.2731709521 | Y198: 7467.18448 | Z198: 7305.983333 | AA198: 7361.245019 | AC198: 3241.3 | AD198: 247.1 | AE198: 0.07623484404 | AF198: 7407.10743 | AG198: 614.1 | AH198: 0.1894610187 | AI198: 7457.931738 | AJ198: 7267.9225 | AK198: 7333.799383 | BD198: 579000
A199: 167 | B199: =IF(A199>$A$8,"",OFFSET(InputPriceData!B$15,$A199+$A$11,0,1,1)) -> 2022-04-11 | C199: =IF(A199>$A$8,"",OFFSET(InputPriceData!G$15,CalculationsAndCharts!$A199+$A$11,IF($C$5,8,0),1,1)) -> 552400 | D199: =IF(A199>$A$8,"",OFFSET(InputPriceData!C$15,CalculationsAndCharts!$A199+$A$11,IF($C$5,8,0),1,1)) -> 7488.7 | E199: =IF(A199>$A$8,"",OFFSET(InputPriceData!D$15,CalculationsAndCharts!$A199+$A$11,IF($C$5,8,0),1,1)) -> 7524.9 | F199: =IF(A199>$A$8,"",OFFSET(InputPriceData!E$15,CalculationsAndCharts!$A199+$A$11,IF($C$5,8,0),1,1)) -> 7471.3 | G199: =IF(A199>$A$8,"",OFFSET(InputPriceData!F$15,CalculationsAndCharts!$A199+$A$11,IF($C$5,8,0),1,1)) -> 7485.2 | H199: 53.6 | I199: 1264.5 | J199: 335.8 | K199: 0.2655595097 | L199: 7478.673048 | M199: 492.7 | N199: 0.389640174 | O199: 7480.550969 | P199: 7396.545 | Q199: 7401.04153 | S199: 2269.3 | T199: 436.1 | U199: 0.1921737981 | V199: 7417.014924 | W199: 604.5 | X199: 0.2663817036 | Y199: 7472.139726 | Z199: 7294.066667 | AA199: 7354.848124 | AC199: 3240.3 | AD199: 241.3 | AE199: 0.07446841342 | AF199: 7403.237564 | AG199: 614.1 | AH199: 0.1895194889 | AI199: 7458.850769 | AJ199: 7261.745 | AK199: 7327.635249 | BC199: 552400
A200: 168 | B200: =IF(A200>$A$8,"",OFFSET(InputPriceData!B$15,$A200+$A$11,0,1,1)) -> 2022-04-08 | C200: =IF(A200>$A$8,"",OFFSET(InputPriceData!G$15,CalculationsAndCharts!$A200+$A$11,IF($C$5,8,0),1,1)) -> 610100 | D200: =IF(A200>$A$8,"",OFFSET(InputPriceData!C$15,CalculationsAndCharts!$A200+$A$11,IF($C$5,8,0),1,1)) -> 7456.2 | E200: =IF(A200>$A$8,"",OFFSET(InputPriceData!D$15,CalculationsAndCharts!$A200+$A$11,IF($C$5,8,0),1,1)) -> 7492.3 | F200: =IF(A200>$A$8,"",OFFSET(InputPriceData!E$15,CalculationsAndCharts!$A200+$A$11,IF($C$5,8,0),1,1)) -> 7453.8 | G200: =IF(A200>$A$8,"",OFFSET(InputPriceData!F$15,CalculationsAndCharts!$A200+$A$11,IF($C$5,8,0),1,1)) -> 7478 | H200: 49.5 | I200: 1296.7 | J200: 414.4 | K200: 0.3195804735 | L200: 7476.313028 | M200: 503.6 | N200: 0.3883704789 | O200: 7477.583131 | P200: 7379.755 | Q200: 7392.182744 | S200: 2285.9 | T200: 480.2 | U200: 0.2100704318 | V200: 7400.794374 | W200: 604.5 | X200: 0.2644472637 | Y200: 7467.397453 | Z200: 7279.53 | AA200: 7345.85834 | AC200: 3268.6 | AD200: 260.7 | AE200: 0.07975891819 | AF200: 7396.642854 | AG200: 614.1 | AH200: 0.1878786025 | AI200: 7452.689372 | AJ200: 7255.7125 | AK200: 7319.555005 | BC200: 610100
A201: 169 | B201: =IF(A201>$A$8,"",OFFSET(InputPriceData!B$15,$A201+$A$11,0,1,1)) -> 2022-04-07 | C201: =IF(A201>$A$8,"",OFFSET(InputPriceData!G$15,CalculationsAndCharts!$A201+$A$11,IF($C$5,8,0),1,1)) -> 644400 | D201: =IF(A201>$A$8,"",OFFSET(InputPriceData!C$15,CalculationsAndCharts!$A201+$A$11,IF($C$5,8,0),1,1)) -> 7482.3 | E201: =IF(A201>$A$8,"",OFFSET(InputPriceData!D$15,CalculationsAndCharts!$A201+$A$11,IF($C$5,8,0),1,1)) -> 7482.3 | F201: =IF(A201>$A$8,"",OFFSET(InputPriceData!E$15,CalculationsAndCharts!$A201+$A$11,IF($C$5,8,0),1,1)) -> 7437.6 | G201: =IF(A201>$A$8,"",OFFSET(InputPriceData!F$15,CalculationsAndCharts!$A201+$A$11,IF($C$5,8,0),1,1)) -> 7442.8 | H201: 52.5 | I201: 1347.4 | J201: 312 | K201: 0.2315570729 | L201: 7475.520688 | M201: 522.2 | N201: 0.387561229 | O201: 7477.318429 | P201: 7359.035 | Q201: 7383.149349 | S201: 2307.1 | T201: 452.2 | U201: 0.1960036409 | V201: 7380.262646 | W201: 604.5 | X201: 0.2620172511 | Y201: 7463.585606 | Z201: 7263.523333 | AA201: 7336.745122 | AC201: 3321.7 | AD201: 154.3 | AE201: 0.04645211789 | AF201: 7389.591486 | AG201: 614.1 | AH201: 0.1848752145 | AI201: 7446.833935 | AJ201: 7249.195 | AK201: 7311.429621 | BD201: 644400
A202: 170 | B202: =IF(A202>$A$8,"",OFFSET(InputPriceData!B$15,$A202+$A$11,0,1,1)) -> 2022-04-06 | C202: =IF(A202>$A$8,"",OFFSET(InputPriceData!G$15,CalculationsAndCharts!$A202+$A$11,IF($C$5,8,0),1,1)) -> 713800 | D202: =IF(A202>$A$8,"",OFFSET(InputPriceData!C$15,CalculationsAndCharts!$A202+$A$11,IF($C$5,8,0),1,1)) -> 7504 | E202: =IF(A202>$A$8,"",OFFSET(InputPriceData!D$15,CalculationsAndCharts!$A202+$A$11,IF($C$5,8,0),1,1)) -> 7504 | F202: =IF(A202>$A$8,"",OFFSET(InputPriceData!E$15,CalculationsAndCharts!$A202+$A$11,IF($C$5,8,0),1,1)) -> 7437.5 | G202: =IF(A202>$A$8,"",OFFSET(InputPriceData!F$15,CalculationsAndCharts!$A202+$A$11,IF($C$5,8,0),1,1)) -> 7490.1 | H202: 90.4 | I202: 1416.2 | J202: 437.1 | K202: 0.3086428471 | L202: 7485.380506 | M202: 533.7 | N202: 0.3768535518 | O202: 7499.162253 | P202: 7343.435 | Q202: 7376.870333 | S202: 2501 | T202: 284.4 | U202: 0.1137145142 | V202: 7365.016869 | W202: 614.1 | X202: 0.2455417833 | Y202: 7470.965436 | Z202: 7248.45 | AA202: 7329.430992 | AC202: 3345 | AD202: 221.8 | AE202: 0.06630792227 | AF202: 7386.999432 | AG202: 614.1 | AH202: 0.1835874439 | AI202: 7447.748856 | AJ202: 7245.3375 | AK202: 7304.692678 | BD202: 713800
A203: 171 | B203: =IF(A203>$A$8,"",OFFSET(InputPriceData!B$15,$A203+$A$11,0,1,1)) -> 2022-04-05 | C203: =IF(A203>$A$8,"",OFFSET(InputPriceData!G$15,CalculationsAndCharts!$A203+$A$11,IF($C$5,8,0),1,1)) -> 606200 | D203: =IF(A203>$A$8,"",OFFSET(InputPriceData!C$15,CalculationsAndCharts!$A203+$A$11,IF($C$5,8,0),1,1)) -> 7509.3 | E203: =IF(A203>$A$8,"",OFFSET(InputPriceData!D$15,CalculationsAndCharts!$A203+$A$11,IF($C$5,8,0),1,1)) -> 7573.4 | F203: =IF(A203>$A$8,"",OFFSET(InputPriceData!E$15,CalculationsAndCharts!$A203+$A$11,IF($C$5,8,0),1,1)) -> 7509.3 | G203: =IF(A203>$A$8,"",OFFSET(InputPriceData!F$15,CalculationsAndCharts!$A203+$A$11,IF($C$5,8,0),1,1)) -> 7527.9 | H203: 64.1 | I203: 1428.9 | J203: 547.6 | K203: 0.3832318567 | L203: 7483.27358 | M203: 604.5 | N203: 0.4230526979 | O203: 7504.642735 | P203: 7321.58 | Q203: 7364.95142 | S203: 2470.9 | T203: 366.6 | U203: 0.1483669918 | V203: 7348.968126 | W203: 614.1 | X203: 0.2485329232 | Y203: 7464.738007 | Z203: 7238.97 | AA203: 7318.350371 | AC203: 3339.9 | AD203: 341.2 | AE203: 0.1021587473 | AF203: 7379.677548 | AG203: 614.1 | AH203: 0.1838677805 | AI203: 7438.225315 | AJ203: 7239.7925 | AK203: 7295.18461 | BC203: 606200
A204: 172 | B204: =IF(A204>$A$8,"",OFFSET(InputPriceData!B$15,$A204+$A$11,0,1,1)) -> 2022-04-04 | C204: =IF(A204>$A$8,"",OFFSET(InputPriceData!G$15,CalculationsAndCharts!$A204+$A$11,IF($C$5,8,0),1,1)) -> 572300 | D204: =IF(A204>$A$8,"",OFFSET(InputPriceData!C$15,CalculationsAndCharts!$A204+$A$11,IF($C$5,8,0),1,1)) -> 7508 | E204: =IF(A204>$A$8,"",OFFSET(InputPriceData!D$15,CalculationsAndCharts!$A204+$A$11,IF($C$5,8,0),1,1)) -> 7536.8 | F204: =IF(A204>$A$8,"",OFFSET(InputPriceData!E$15,CalculationsAndCharts!$A204+$A$11,IF($C$5,8,0),1,1)) -> 7508 | G204: =IF(A204>$A$8,"",OFFSET(InputPriceData!F$15,CalculationsAndCharts!$A204+$A$11,IF($C$5,8,0),1,1)) -> 7513.7 | H204: 43 | I204: 1438 | J204: 475.1 | K204: 0.3303894298 | L204: 7455.544739 | M204: 587.7 | N204: 0.4086926287 | O204: 7487.589099 | P204: 7294.2 | Q204: 7347.798938 | S204: 2531.6 | T204: 280.1 | U204: 0.1106414915 | V204: 7317.795563 | W204: 597.3 | X204: 0.2359377469 | Y204: 7443.848423 | Z204: 7226.75 | AA204: 7303.898672 | AC204: 3368 | AD204: 402.9 | AE204: 0.1196258907 | AF204: 7362.812407 | AG204: 597.3 | AH204: 0.1773456057 | AI204: 7418.022356 | AJ204: 7231.2625 | AK204: 7283.250488 | BC204: 572300
A205: 173 | B205: =IF(A205>$A$8,"",OFFSET(InputPriceData!B$15,$A205+$A$11,0,1,1)) -> 2022-04-01 | C205: =IF(A205>$A$8,"",OFFSET(InputPriceData!G$15,CalculationsAndCharts!$A205+$A$11,IF($C$5,8,0),1,1)) -> 653800 | D205: =IF(A205>$A$8,"",OFFSET(InputPriceData!C$15,CalculationsAndCharts!$A205+$A$11,IF($C$5,8,0),1,1)) -> 7509.7 | E205: =IF(A205>$A$8,"",OFFSET(InputPriceData!D$15,CalculationsAndCharts!$A205+$A$11,IF($C$5,8,0),1,1)) -> 7514 | F205: =IF(A205>$A$8,"",OFFSET(InputPriceData!E$15,CalculationsAndCharts!$A205+$A$11,IF($C$5,8,0),1,1)) -> 7476.7 | G205: =IF(A205>$A$8,"",OFFSET(InputPriceData!F$15,CalculationsAndCharts!$A205+$A$11,IF($C$5,8,0),1,1)) -> 7493.8 | H205: 37.3 | I205: 1518.2 | J205: 383 | K205: 0.2522724279 | L205: 7426.850623 | M205: 587.7 | N205: 0.3871031485 | O205: 7469.542085 | P205: 7270.445 | Q205: 7330.335669 | S205: 2581.1 | T205: 272.1 | U205: 0.1054201697 | V205: 7293.423885 | W205: 597.3 | X205: 0.2314129635 | Y205: 7422.278683 | Z205: 7217.413333 | AA205: 7289.429615 | AC205: 3406.8 | AD205: 373.6 | AE205: 0.1096630269 | AF205: 7342.309688 | AG205: 597.3 | AH205: 0.175325819 | AI205: 7397.396429 | AJ205: 7221.19 | AK205: 7271.432564 | BD205: 653800
A206: 174 | B206: =IF(A206>$A$8,"",OFFSET(InputPriceData!B$15,$A206+$A$11,0,1,1)) -> 2022-03-31 | C206: =IF(A206>$A$8,"",OFFSET(InputPriceData!G$15,CalculationsAndCharts!$A206+$A$11,IF($C$5,8,0),1,1)) -> 825600 | D206: =IF(A206>$A$8,"",OFFSET(InputPriceData!C$15,CalculationsAndCharts!$A206+$A$11,IF($C$5,8,0),1,1)) -> 7549.4 | E206: =IF(A206>$A$8,"",OFFSET(InputPriceData!D$15,CalculationsAndCharts!$A206+$A$11,IF($C$5,8,0),1,1)) -> 7556.6 | F206: =IF(A206>$A$8,"",OFFSET(InputPriceData!E$15,CalculationsAndCharts!$A206+$A$11,IF($C$5,8,0),1,1)) -> 7499.6 | G206: =IF(A206>$A$8,"",OFFSET(InputPriceData!F$15,CalculationsAndCharts!$A206+$A$11,IF($C$5,8,0),1,1)) -> 7499.6 | H206: 57 | I206: 1607.1 | J206: 348.2 | K206: 0.2166635555 | L206: 7404.262875 | M206: 587.7 | N206: 0.3656897517 | O206: 7454.220885 | P206: 7251.295 | Q206: 7313.128897 | S206: 2638.1 | T206: 203.4 | U206: 0.07710094386 | V206: 7269.810918 | W206: 597.3 | X206: 0.2264129487 | Y206: 7400.744415 | Z206: 7208.343333 | AA206: 7275.335106 | AC206: 3443.8 | AD206: 421.6 | AE206: 0.1224229049 | AF206: 7323.650588 | AG206: 597.3 | AH206: 0.1734421279 | AI206: 7376.90102 | AJ206: 7211.85 | AK206: 7260.029106 | BD206: 825600
A207: 175 | B207: =IF(A207>$A$8,"",OFFSET(InputPriceData!B$15,$A207+$A$11,0,1,1)) -> 2022-03-30 | C207: =IF(A207>$A$8,"",OFFSET(InputPriceData!G$15,CalculationsAndCharts!$A207+$A$11,IF($C$5,8,0),1,1)) -> 713400 | D207: =IF(A207>$A$8,"",OFFSET(InputPriceData!C$15,CalculationsAndCharts!$A207+$A$11,IF($C$5,8,0),1,1)) -> 7468.3 | E207: =IF(A207>$A$8,"",OFFSET(InputPriceData!D$15,CalculationsAndCharts!$A207+$A$11,IF($C$5,8,0),1,1)) -> 7533.1 | F207: =IF(A207>$A$8,"",OFFSET(InputPriceData!E$15,CalculationsAndCharts!$A207+$A$11,IF($C$5,8,0),1,1)) -> 7468.3 | G207: =IF(A207>$A$8,"",OFFSET(InputPriceData!F$15,CalculationsAndCharts!$A207+$A$11,IF($C$5,8,0),1,1)) -> 7514.5 | H207: 68.8 | I207: 1631.5 | J207: 397.8 | K207: 0.2438247012 | L207: 7377.893515 | M207: 564.2 | N207: 0.3458167331 | O207: 7428.059118 | P207: 7233.885 | Q207: 7293.50036 | S207: 2655.6 | T207: 229.6 | U207: 0.08645880404 | V207: 7250.613851 | W207: 573.8 | X207: 0.2160716975 | Y207: 7371.811427 | Z207: 7201.563333 | AA207: 7259.868561 | AC207: 3436.1 | AD207: 426.8 | AE207: 0.1242105876 | AF207: 7299.105465 | AG207: 573.8 | AH207: 0.1669916475 | AI207: 7351.154278 | AJ207: 7201.31 | AK207: 7247.743419 | BC207: 713400
... 1075 more rows

Sheet Follow
A1: Stocks and Indexes I wish to follow
A3: To ease following a stock, enter a Yahoo Finance acceptable symbol in column "A" anywhere below cell "A9".
A4: Thereafter you may doubleclick the cell containing a symbol of interest to initiate data retrieval and charting for that symbol.
A6: =COUNTA(A10:A106) -> 95
A7: Symbol
A8: To | B8: Description | C8: Last Trade as of most recent check
A9: Follow | C9: Date | D9: Time | E9: Open | F9: High | G9: Low | H9: Close | I9: Volume | J9: Change | K9: Retrieved @
A10: A | B10: Agilent Technologies, Inc. (A) -NYSE (Daily) | C10: 2022-10-07 | D10: 16:03:00 | E10: 130.449997 | F10: 130.929993 | G10: 126.959999 | H10: 127.440002 | I10: 1154700 | J10: -4.739991 | K10: 2022-10-08T20:06:52.050
A11: AA | B11: Alcoa Corporation (AA) -NYSE (Daily) | C11: 2022-10-07 | D11: 16:00:00 | E11: 39.040001 | F11: 39.355 | G11: 37.880001 | H11: 39.009998 | I11: 6270400 | J11: -0.84 | K11: 2022-10-08T20:07:08.890
A12: AAL | B12: American Airlines Group Inc. (AAL) -NasdaqGS (Daily) | C12: 2022-10-07 | D12: 16:00:00 | E12: 12.5 | F12: 12.54 | G12: 11.95 | H12: 12.18 | I12: 37269800 | J12: -0.55 | K12: 2022-10-08T20:07:23.730
A13: AAPL | B13: Apple Inc. (AAPL) -NasdaqGS (Daily) | C13: 2022-10-07 | D13: 16:00:00 | E13: 142.539993 | F13: 143.100006 | G13: 139.449997 | H13: 140.089996 | I13: 85859100 | J13: -5.339997 | K13: 2022-10-08T20:07:45.780
A14: ADM | B14: Archer-Daniels-Midland Company (ADM) -NYSE (Daily) | C14: 2022-10-07 | D14: 16:00:00 | E14: 84.980003 | F14: 86.040001 | G14: 84.330002 | H14: 85.440002 | I14: 2396100 | J14: -0.309998 | K14: 2022-10-08T20:08:02.720
A15: ADBE | B15: Adobe Inc. (ADBE) -NasdaqGS (Daily) | C15: 2022-10-07 | D15: 16:00:00 | E15: 291.359985 | F15: 293.709991 | G15: 286.829987 | H15: 288.769989 | I15: 3495300 | J15: -9.640015 | K15: 2022-10-08T20:08:17.960
A16: ALGN | B16: Align Technology, Inc. (ALGN) -NasdaqGS (Daily) | C16: 2022-10-07 | D16: 16:00:00 | E16: 217.460007 | F16: 220.089996 | G16: 210.389999 | H16: 211.580002 | I16: 779500 | J16: -10.779999 | K16: 2022-10-08T20:08:33.830
A17: AMC | B17: AMC Entertainment Holdings, Inc. (AMC) -NYSE (Daily) | C17: 2022-10-07 | D17: 16:00:00 | E17: 7.1 | F17: 7.1 | G17: 6.4 | H17: 6.53 | I17: 23363000 | J17: -0.59 | K17: 2022-10-08T20:08:50.750
A18: AMD | B18: Advanced Micro Devices, Inc. (AMD) -NasdaqGS (Daily) | C18: 2022-10-07 | D18: 16:00:00 | E18: 64.010002 | F18: 64.029999 | G18: 58.220001 | H18: 58.439999 | I18: 163577800 | J18: -9.409999 | K18: 2022-10-08T20:09:06.770
A19: AR | B19: Antero Resources Corporation (AR) -NYSE (Daily) | C19: 2022-10-07 | D19: 16:01:00 | E19: 32.290001 | F19: 33.41 | G19: 31.85 | H19: 32.32 | I19: 4245800 | J19: -0.02 | K19: 2022-10-08T20:09:24.440
A20: BA | B20: The Boeing Company (BA) -NYSE (Daily) | C20: 2022-10-07 | D20: 16:00:00 | E20: 130.360001 | F20: 130.610001 | G20: 128.020004 | H20: 129.789993 | I20: 5092500 | J20: -2.410004 | K20: 2022-10-08T20:09:42.050
A21: BSX | B21: Boston Scientific Corporation (BSX) -NYSE (Daily) | C21: 2022-10-07 | D21: 16:00:00 | E21: 40.27 | F21: 40.43 | G21: 39.599998 | H21: 39.759998 | I21: 9640800 | J21: -0.890004 | K21: 2022-10-08T20:10:00.290
A22: CASY | B22: Casey's General Stores, Inc. (CASY) -NasdaqGS (Daily) | C22: 2022-10-07 | D22: 16:00:00 | E22: 202.550003 | F22: 203.470001 | G22: 199.199997 | H22: 200.179993 | I22: 250900 | J22: -3.11 | K22: 2022-10-08T20:10:21.540
A23: CAT | B23: Caterpillar Inc. (CAT) -NYSE (Daily) | C23: 2022-10-07 | D23: 16:00:00 | E23: 176.720001 | F23: 178.960007 | G23: 175.139999 | H23: 177.550003 | I23: 2757700 | J23: -1.259995 | K23: 2022-10-08T20:10:40.670
A24: COST | B24: Costco Wholesale Corporation (COST) -NasdaqGS (Daily) | C24: 2023-03-06 | D24: 16:00:00 | E24: 476.519989 | F24: 488.817413 | G24: 475.609985 | H24: 483.079987 | I24: 3005250 | J24: 7.819977 | K24: 2023-03-06T21:04:51.590
A25: CSCO | B25: Cisco Systems, Inc. (CSCO) -NasdaqGS (Daily) | C25: 2022-10-07 | D25: 16:00:00 | E25: 41.25 | F25: 41.25 | G25: 40.080002 | H25: 40.27 | I25: 19048500 | J25: -1.25 | K25: 2022-10-08T20:11:00.020
A26: CVS | B26: CVS Health Corporation (CVS) -NYSE (Daily) | C26: 2022-10-07 | D26: 16:00:00 | E26: 93.18 | F26: 94 | G26: 87.129997 | H26: 88.25 | I26: 19711900 | J26: -10.330002 | K26: 2022-10-08T20:11:20.560
A27: DELL | B27: Dell Technologies Inc. (DELL) -NYSE (Daily) | C27: 2022-10-07 | D27: 16:00:00 | E27: 36.049999 | F27: 36.490002 | G27: 34.540001 | H27: 34.599998 | I27: 5613900 | J27: -2.880002 | K27: 2022-10-08T20:11:39.920
A28: DG | B28: Dollar General Corporation (DG) -NYSE (Daily) | C28: 2022-10-07 | D28: 16:04:00 | E28: 240.110001 | F28: 240.610001 | G28: 238.149994 | H28: 239.5 | I28: 1595000 | J28: -2.169998 | K28: 2022-10-08T20:11:58.850
A29: DIS | B29: The Walt Disney Company (DIS) -NYSE (Daily) | C29: 2022-10-07 | D29: 16:03:00 | E29: 98.510002 | F29: 98.800003 | G29: 96.449997 | H29: 97.160004 | I29: 7045300 | J29: -2.879997 | K29: 2022-10-08T20:12:16.860
A30: DLTR | B30: Dollar Tree, Inc. (DLTR) -NasdaqGS (Daily) | C30: 2022-10-07 | D30: 16:00:00 | E30: 142.100006 | F30: 142.869995 | G30: 139.979996 | H30: 141.949997 | I30: 3123100 | J30: -0.180008 | K30: 2022-10-08T20:12:34.510
A31: F | B31: Ford Motor Company (F) -NYSE (Daily) | C31: 2022-10-07 | D31: 16:03:00 | E31: 12.18 | F31: 12.3 | G31: 12 | H31: 12.2 | I31: 56437700 | J31: -0.16 | K31: 2022-10-08T20:12:53.600
A32: FAS | B32: Direxion Daily Financial Bull 3X Shares (FAS) -NYSEArca (Daily) | C32: 2022-10-07 | D32: 16:00:00 | E32: 59.529999 | F32: 59.849998 | G32: 55.689999 | H32: 56.790001 | I32: 1488400 | J32: -4.290001 | K32: 2022-10-08T20:13:13.080
A33: GSK | B33: GSK plc (GSK) -NYSE (Daily) | C33: 2022-10-07 | D33: 16:00:00 | E33: 30.190001 | F33: 30.42 | G33: 30.040001 | H33: 30.110001 | I33: 5486300 | J33: 0.110001 | K33: 2022-10-08T20:13:33.450
A34: GDX | B34: VanEck Gold Miners ETF (GDX) -NYSEArca (Daily) | C34: 2022-10-07 | D34: 16:00:00 | E34: 25.15 | F34: 25.43 | G34: 24.389999 | H34: 24.389999 | I34: 29744700 | J34: -1.260001 | K34: 2022-10-08T20:13:51.950
A35: GILD | B35: Gilead Sciences, Inc. (GILD) -NasdaqGS (Daily) | C35: 2022-10-07 | D35: 16:00:00 | E35: 64.639999 | F35: 65.099998 | G35: 63.959999 | H35: 64.290001 | I35: 6722600 | J35: -0.659996 | K35: 2022-10-08T20:14:12.060
A36: GOOG | B36: Alphabet Inc. (GOOG) -NasdaqGS (Daily) | C36: 2022-10-07 | D36: 16:00:00 | E36: 100.650002 | F36: 101.419998 | G36: 99.209999 | H36: 99.57 | I36: 24232300 | J36: 99.57 | K36: 2022-10-08T20:14:29.790
A37: HD | B37: The Home Depot, Inc. (HD) -NYSE (Daily) | C37: 2022-10-07 | D37: 16:00:00 | E37: 287.529999 | F37: 288.630005 | G37: 282.420013 | H37: 284.320007 | I37: 2404900 | J37: -6.070008 | K37: 2022-10-08T20:14:54.380
A38: HSY | B38: The Hershey Company (HSY) -NYSE (Daily) | C38: 2022-10-07 | D38: 16:00:00 | E38: 220.690002 | F38: 221.559998 | G38: 219.169998 | H38: 220.520004 | I38: 947300 | J38: -0.12999 | K38: 2022-10-08T20:15:14.430
A39: HTLD | B39: Heartland Express, Inc. (HTLD) -NasdaqGS (Daily) | C39: 2022-10-07 | D39: 16:00:00 | E39: 14.5 | F39: 14.66 | G39: 14.26 | H39: 14.32 | I39: 596000 | J39: -0.4 | K39: 2022-10-08T20:15:33.020
A40: IBM | B40: International Business Machines Corporation (IBM) -NYSE (Daily) | C40: 2022-10-07 | D40: 16:00:00 | E40: 121.5 | F40: 121.800003 | G40: 118.07 | H40: 118.82 | I40: 4498200 | J40: -3.410003 | K40: 2022-10-08T20:15:53.020
A41: ILMN | B41: Illumina, Inc. (ILMN) -NasdaqGS (Daily) | C41: 2022-10-07 | D41: 16:00:00 | E41: 208.279999 | F41: 212.070007 | G41: 205.179993 | H41: 206.179993 | I41: 1618600 | J41: -6.540008 | K41: 2022-10-08T20:16:12.660
A42: INTC | B42: Intel Corporation (INTC) -NasdaqGS (Daily) | C42: 2022-12-30 | D42: 16:00:00 | E42: 25.9 | F42: 26.459999 | G42: 25.799999 | H42: 26.43 | I42: 30997900 | J42: 0.220001 | K42: 2023-01-02T10:34:01.670
A43: JNJ | B43: Johnson & Johnson (JNJ) -NYSE (Daily) | C43: 2022-10-07 | D43: 16:00:00 | E43: 161.770004 | F43: 162.220001 | G43: 159.169998 | H43: 160.199997 | I43: 6363000 | J43: -1.710007 | K43: 2022-10-08T20:16:52.840
A44: KO | B44: The Coca-Cola Company (KO) -NYSE (Daily) | C44: 2022-10-07 | D44: 16:00:00 | E44: 54.990002 | F44: 55.09 | G44: 54.25 | H44: 54.509998 | I44: 11477900 | J44: -0.520001 | K44: 2022-10-08T20:17:12.460
A45: LOW | B45: Lowe's Companies, Inc. (LOW) -NYSE (Daily) | C45: 2022-10-07 | D45: 16:04:00 | E45: 198.020004 | F45: 198.509995 | G45: 195.339996 | H45: 197.210007 | I45: 3466800 | J45: -2.769989 | K45: 2022-10-08T20:17:32.680
A46: LMT | B46: Lockheed Martin Corporation (LMT) -NYSE (Daily) | C46: 2022-10-07 | D46: 16:04:00 | E46: 398.559998 | F46: 404.670013 | G46: 396.01001 | H46: 403.959991 | I46: 1124000 | J46: 4.350006 | K46: 2022-10-08T20:17:52.340
A47: M | B47: Macy's, Inc. (M) -NYSE (Daily) | C47: 2022-10-07 | D47: 16:00:00 | E47: 17.110001 | F47: 17.51 | G47: 17.030001 | H47: 17.440001 | I47: 7775700 | J47: -0.09 | K47: 2022-10-08T20:18:13.160
A48: MCD | B48: McDonald's Corporation (MCD) -NYSE (Daily) | C48: 2022-10-07 | D48: 16:00:00 | E48: 233.960007 | F48: 234.600006 | G48: 232.080002 | H48: 233.190002 | I48: 2294300 | J48: -1.559998 | K48: 2022-10-08T20:18:33.430
A49: MDT | B49: Medtronic plc (MDT) -NYSE (Daily) | C49: 2022-10-07 | D49: 16:00:00 | E49: 83.910004 | F49: 84.040001 | G49: 82.010002 | H49: 82.419998 | I49: 4267900 | J49: -2 | K49: 2022-10-08T20:18:53.860
A50: META | B50: Meta Platforms, Inc. (META) -NasdaqGS (Daily) | C50: 2022-10-07 | D50: 16:00:00 | E50: 136.759995 | F50: 138.289993 | G50: 132.440002 | H50: 133.449997 | I50: 33179700 | J50: -5.62001 | K50: 2022-10-08T20:19:13.140
A51: MGM | B51: MGM Resorts International (MGM) -NYSE (Daily) | C51: 2022-10-07 | D51: 16:00:00 | E51: 32.830002 | F51: 33.139999 | G51: 32.34 | H51: 32.68 | I51: 4439700 | J51: -0.64 | K51: 2022-10-08T20:19:32.570
A52: MO | B52: Altria Group, Inc. (MO) -NYSE (Daily) | C52: 2022-10-07 | D52: 16:03:00 | E52: 42.93 | F52: 43.330002 | G52: 42.330002 | H52: 42.82 | I52: 10523300 | J52: -0.170002 | K52: 2022-10-08T20:19:53.160
A53: MRNA | B53: Moderna, Inc. (MRNA) -NasdaqGS (Daily) | C53: 2022-10-07 | D53: 16:00:00 | E53: 121.5 | F53: 123.360001 | G53: 118.459999 | H53: 119.32 | I53: 3149000 | J53: -5.830002 | K53: 2022-10-08T20:20:13.090
A54: MSFT | B54: Microsoft Corporation (MSFT) -NasdaqGS (Daily) | C54: 2022-10-07 | D54: 16:00:00 | E54: 240.899994 | F54: 241.320007 | G54: 233.169998 | H54: 234.240005 | I54: 37732400 | J54: -12.549988 | K54: 2022-10-08T20:20:33
A55: MU | B55: Micron Technology, Inc. (MU) -NasdaqGS (Daily) | C55: 2023-03-08 | D55: 13:53:00 | E55: 55.84 | F55: 56.490002 | G55: 55.349998 | H55: 56.48 | I55: 5740982 | J55: 0.919999 | K55: 2023-03-08T13:54:12.310
A56: NFLX | B56: Netflix, Inc. (NFLX) -NasdaqGS (Daily) | C56: 2022-10-07 | D56: 16:00:00 | E56: 235.770004 | F56: 237.330002 | G56: 224.279999 | H56: 224.75 | I56: 9784800 | J56: -15.270004 | K56: 2022-10-08T20:20:51.730
A57: NUGT | B57: Direxion Daily Gold Miners Index Bull 2X Shares (NUGT) -NYSEArca (Daily) | C57: 2022-10-07 | D57: 16:00:00 | E57: 27.469999 | F57: 28.09 | G57: 25.780001 | H57: 25.799999 | I57: 4333200 | J57: -2.790001 | K57: 2022-10-08T20:21:08.930
A58: NVS | B58: Novartis AG (NVS) -NYSE (Daily) | C58: 2022-10-07 | D58: 16:00:00 | E58: 76.160004 | F58: 76.230003 | G58: 75.360001 | H58: 75.650002 | I58: 1517700 | J58: -0.389999 | K58: 2022-10-08T20:21:29.870
A59: NVDA | B59: NVIDIA Corporation (NVDA) -NasdaqGS (Daily) | C59: 2022-10-07 | D59: 16:00:00 | E59: 125.050003 | F59: 126.699997 | G59: 120.220001 | H59: 120.760002 | I59: 67168900 | J59: -10.540001 | K59: 2022-10-08T20:21:50.590
A60: NWL | B60: Newell Brands Inc. (NWL) -NasdaqGS (Daily) | C60: 2022-10-07 | D60: 16:00:00 | E60: 14.18 | F60: 14.25 | G60: 13.89 | H60: 13.96 | I60: 2832700 | J60: -0.42 | K60: 2022-10-08T20:22:10.460
A61: PFE | B61: Pfizer Inc. (PFE) -NYSE (Daily) | C61: 2022-10-07 | D61: 16:03:00 | E61: 43.049999 | F61: 43.049999 | G61: 41.919998 | H61: 42.32 | I61: 20093100 | J61: -0.77 | K61: 2022-10-08T20:22:31.070
A62: PRU | B62: Prudential Financial, Inc. (PRU) -NYSE (Daily) | C62: 2022-10-07 | D62: 16:00:00 | E62: 92.190002 | F62: 92.580002 | G62: 90.370003 | H62: 91.080002 | I62: 1507400 | J62: -1.869995 | K62: 2022-10-08T20:22:51
A63: PSA | B63: Public Storage (PSA) -NYSE (Daily) | C63: 2023-03-08 | D63: 13:52:00 | E63: 301.850006 | F63: 305.119995 | G63: 300.910004 | H63: 302.279999 | I63: 329019 | J63: -0.070007 | K63: 2023-03-08T13:53:27.260
A64: PSEC | B64: Prospect Capital Corporation (PSEC) -NasdaqGS (Daily) | C64: 2022-10-07 | D64: 16:00:00 | E64: 6.62 | F64: 6.64 | G64: 6.51 | H64: 6.53 | I64: 1109800 | J64: -0.13 | K64: 2022-10-08T20:23:11.800
A65: RPM | B65: RPM International Inc. (RPM) -NYSE (Daily) | C65: 2022-10-07 | D65: 16:00:00 | E65: 94.110001 | F65: 94.110001 | G65: 90.900002 | H65: 91.050003 | I65: 955600 | J65: -3.869995 | K65: 2022-10-08T20:23:34.870
A66: RY | B66: Royal Bank of Canada (RY) -NYSE (Daily) | C66: 2023-03-15 | D66: 10:47:00 | E66: 94.379997 | F66: 95.080002 | G66: 93.660004 | H66: 93.701599 | I66: 292374 | J66: -3.4384 | K66: 2023-03-15T10:49:02.330
A67: SCHW | B67: The Charles Schwab Corporation (SCHW) -NYSE (Daily) | C67: 2022-10-07 | D67: 16:00:00 | E67: 75.5 | F67: 75.879997 | G67: 73.589996 | H67: 74.309998 | I67: 8063000 | J67: -1.68 | K67: 2022-10-08T20:24:17.220
A68: SPR | B68: Spirit AeroSystems Holdings, Inc. (SPR) -NYSE (Daily) | C68: 2022-10-07 | D68: 16:00:00 | E68: 24.26 | F68: 24.700001 | G68: 23.559999 | H68: 24.68 | I68: 1823200 | J68: -0.06 | K68: 2022-10-08T20:24:37.430
A69: SQ | B69: Block, Inc. (SQ) -NYSE (Daily) | C69: 2022-10-07 | D69: 16:00:00 | E69: 59.860001 | F69: 60.450001 | G69: 56.889999 | H69: 57.41 | I69: 11209700 | J69: -4.52 | K69: 2022-10-08T20:24:56.170
A70: SWKS | B70: Skyworks Solutions, Inc. (SWKS) -NasdaqGS (Daily) | C70: 2022-10-07 | D70: 16:00:00 | E70: 90.18 | F70: 90.400002 | G70: 86.949997 | H70: 87.199997 | I70: 2592400 | J70: -5.410004 | K70: 2022-10-08T20:25:16.990
A71: TOL | B71: Toll Brothers, Inc. (TOL) -NYSE (Daily) | C71: 2022-10-07 | D71: 16:00:00 | E71: 45.34 | F71: 45.66 | G71: 44.330002 | H71: 44.57 | I71: 1863400 | J71: -1.52 | K71: 2022-10-08T20:25:36.490
A72: TSLA | B72: Tesla, Inc. (TSLA) -NasdaqGS (Daily) | C72: 2022-10-07 | D72: 16:00:00 | E72: 233.940002 | F72: 234.570007 | G72: 222.020004 | H72: 223.070007 | I72: 83592300 | J72: -15.059998 | K72: 2022-10-08T20:25:55.990
A73: TSN | B73: Tyson Foods, Inc. (TSN) -NYSE (Daily) | C73: 2022-12-30 | D73: 16:00:00 | E73: 61.68 | F73: 62.25 | G73: 61.450001 | H73: 62.25 | I73: 2182900 | J73: 0.459999 | K73: 2023-01-02T09:34:07.600
A74: TXN | B74: Texas Instruments Incorporated (TXN) -NasdaqGS (Daily) | C74: 2022-10-07 | D74: 16:00:00 | E74: 164.020004 | F74: 165.059998 | G74: 158.610001 | H74: 159.279999 | I74: 8305200 | J74: -7.259994 | K74: 2022-10-08T20:26:16.920
A75: UNP | B75: Union Pacific Corporation (UNP) -NYSE (Daily) | C75: 2022-10-07 | D75: 16:00:00 | E75: 196.020004 | F75: 197.160004 | G75: 193.610001 | H75: 195.619995 | I75: 2874700 | J75: -2.590012 | K75: 2022-10-08T20:26:36.270
A76: VZ | B76: Verizon Communications Inc. (VZ) -NYSE (Daily) | C76: 2022-10-07 | D76: 16:00:00 | E76: 37.630001 | F76: 37.700001 | G76: 36.810001 | H76: 36.849998 | I76: 31822600 | J76: -0.990002 | K76: 2022-10-08T20:26:57.700
A77: WBA | B77: Walgreens Boots Alliance, Inc. (WBA) -NasdaqGS (Daily) | C77: 2022-10-07 | D77: 16:00:00 | E77: 32.029999 | F77: 32.07 | G77: 30.389999 | H77: 30.52 | I77: 11281000 | J77: -1.73 | K77: 2022-10-08T20:27:18.330
A78: WMT | B78: Walmart Inc. (WMT) -NYSE (Daily) | C78: 2022-10-07 | D78: 16:00:00 | E78: 131.309998 | F78: 131.649994 | G78: 128.070007 | H78: 128.559998 | I78: 5690500 | J78: -3.119995 | K78: 2022-10-08T20:27:38.680
A80: ^AEX | B80: AEX-Index (^AEX) -Amsterdam (Daily) | C80: 2022-10-07 | D80: 18:05:00 | E80: 655.869995 | F80: 660.320007 | G80: 646.809998 | H80: 647.109985 | I80: 68900 | J80: -14.27002 | K80: 2022-10-08T20:27:56.300
A81: ^AORD | B81: ALL ORDINARIES (^AORD) -ASX (Daily) | C81: 2023-03-03 | D81: 16:46:00 | E81: 7460 | F81: 7493.299805 | G81: 7460 | H81: 7484 | I81: 915646200 | J81: 24 | K81: 2023-03-05T16:26:16.030
A82: ^AXJO | B82: S&P/ASX 200 (^AXJO) -ASX (Daily) | C82: 2023-03-15 | D82: 16:44:00 | E82: 7008.899902 | F82: 7068.899902 | G82: 7008.899902 | H82: 7068.899902 | I82: 0 | J82: 60 | K82: 2023-03-15T11:43:59.040
A83: DIA | B83: SPDR Dow Jones Industrial Average ETF Trust (DIA) -NYSEArca (Daily) | C83: 2022-10-07 | D83: 16:00:00 | E83: 296.730011 | F83: 296.890015 | G83: 291.440002 | H83: 292.970001 | I83: 3026900 | J83: -6.26001 | K83: 2022-10-08T20:28:35.330
A84: ^DJI | B84: Dow Jones Industrial Average (^DJI) -DJI (Daily) | C84: 2022-10-07 | D84: 17:28:00 | E84: 29685.26953 | F84: 29685.26953 | G84: 29142.66016 | H84: 29296.78906 | I84: 367950000 | J84: -630.15039 | K84: 2022-10-08T20:28:54.910
A85: ^FTSE | B85: FTSE 100 (^FTSE) -FTSE Index (Daily) | C85: 2022-10-07 | D85: 16:35:00 | E85: 6997.299805 | F85: 7022.399902 | G85: 6960.399902 | H85: 6991.100098 | I85: 807923600 | J85: -6.199707 | K85: 2022-10-08T20:29:14.340
A86: ^GSPC | B86: S&P 500 (^GSPC) -SNP (Daily) | C86: 2023-02-10 | D86: 17:04:00 | E86: 4068.919922 | F86: 4094.360107 | G86: 4060.790039 | H86: 4090.459961 | I86: 3891520000 | J86: 8.959961 | K86: 2023-02-12T10:01:40.360
A87: ^HSI | B87: HANG SENG INDEX (^HSI) -HKSE (Daily) | C87: 2022-10-07 | D87: 16:08:00 | E87: 17851.61914 | F87: 17881.86914 | G87: 17717.73047 | H87: 17740.05078 | I87: 1129251000 | J87: -272.09961 | K87: 2022-10-08T20:29:52.450
A88: ^MID | B88: S&P MID CAP 400 INDEX (^MID) -NYSE (Daily) | C88: 2022-10-07 | D88: 16:04:00 | E88: 2325.449951 | F88: 2325.449951 | G88: 2255.810059 | H88: 2266.889893 | I88: 0 | J88: -58.560058 | K88: 2022-10-08T20:30:12.560
A89: ^NDX | B89: NASDAQ 100 (^NDX) -Nasdaq GIDS (Daily) | C89: 2022-10-07 | D89: 17:15:00 | E89: 11272.45996 | F89: 11293.65039 | G89: 10991.66016 | H89: 11039.46973 | I89: 4634190000 | J89: -446.030273 | K89: 2022-10-08T20:30:31.220
A90: ^NYA | B90: NYSE COMPOSITE (DJ) (^NYA) -NYSE (Daily) | C90: 2022-10-07 | D90: 16:20:00 | E90: 14087.37988 | F90: 14087.37988 | G90: 13727.79004 | H90: 13798.25977 | I90: 4449660000 | J90: -289.120117 | K90: 2022-10-08T20:30:51.020
A91: ^OEX | B91: S&P 100 INDEX (^OEX) -Chicago Options (Daily) | C91: 2022-10-07 | D91: 17:28:00 | E91: 1674.359985 | F91: 1674.359985 | G91: 1634.599976 | H91: 1642.890015 | I91: 4449660000 | J91: -51.380005 | K91: 2022-10-08T20:31:10.140
A92: RSP | B92: Invesco S&P 500 Equal Weight ETF (RSP) -NYSEArca (Daily) | C92: 2022-10-07 | D92: 16:00:00 | E92: 132.009995 | F92: 132.199997 | G92: 129.389999 | H92: 130.149994 | I92: 3197700 | J92: -3.160004 | K92: 2022-10-08T20:31:31.900
A93: ^RUT | B93: Russell 2000 (^RUT) -Chicago Options (Daily) | C93: 2022-10-07 | D93: 16:30:00 | E93: 1734.650024 | F93: 1734.920044 | G93: 1694.959961 | H93: 1702.150024 | I93: 4449660000 | J93: -50.359986 | K93: 2022-10-08T20:31:50.530
A94: ^VIX | B94: CBOE Volatility Index (^VIX) -Chicago Options (Daily) | C94: 2022-10-07 | D94: 16:15:00 | E94: 30.370001 | F94: 32.02 | G94: 29.879999 | H94: 31.360001 | I94: 0 | J94: 0.840001 | K94: 2022-10-08T20:32:09.750
A95: IWM | B95: iShares Russell 2000 ETF (IWM) -NYSEArca (Daily) | C95: 2022-10-07 | D95: 16:00:00 | E95: 171.929993 | F95: 172.470001 | G95: 167.919998 | H95: 168.610001 | I95: 26504500 | J95: -5.11 | K95: 2022-10-08T20:32:29.720
A96: QQQ | B96: Invesco QQQ Trust (QQQ) -NasdaqGM (Daily) | C96: 2022-10-07 | D96: 16:00:00 | E96: 275.019989 | F96: 275.149994 | G96: 267.73999 | H96: 269.100006 | I96: 71263400 | J96: -10.660004 | K96: 2022-10-08T20:32:50.270
A97: XLE | B97: Energy Select Sector SPDR Fund (XLE) -NYSEArca (Daily) | C97: 2022-10-07 | D97: 16:00:00 | E97: 82.610001 | F97: 83.540001 | G97: 81.209999 | H97: 81.800003 | I97: 28449900 | J97: -0.639999 | K97: 2022-10-08T20:33:10.770
A98: SOXL | B98: Direxion Daily Semiconductor Bull 3X Shares (SOXL) -NYSEArca (Daily) | C98: 2022-10-07 | D98: 16:00:00 | E98: 10.18 | F98: 10.28 | G98: 9 | H98: 9.21 | I98: 134291600 | J98: -1.98 | K98: 2022-10-08T20:33:31.210
A99: SPY | B99: SPDR S&P 500 ETF Trust (SPY) -NYSEArca (Daily) | C99: 2022-10-07 | D99: 16:00:00 | E99: 368.970001 | F99: 373.290009 | G99: 360.940002 | H99: 362.790009 | I99: 107680800 | J99: -10.410003 | K99: 2022-10-08T20:33:50.980
A101: ACAD | B101: ACADIA Pharmaceuticals Inc. (ACAD) -NasdaqGS (Daily) | C101: 2022-10-07 | D101: 16:00:00 | E101: 18.219999 | F101: 18.27 | G101: 16.030001 | H101: 16.290001 | I101: 2891100 | J101: -2.339998 | K101: 2022-10-08T20:34:10.690
A102: CLDX | B102: Celldex Therapeutics, Inc. (CLDX) -NasdaqCM (Daily) | C102: 2022-10-07 | D102: 16:00:00 | E102: 28.530001 | F102: 29.16 | G102: 28.01 | H102: 28.07 | I102: 426400 | J102: -0.91 | K102: 2022-10-08T20:34:27.670
A103: ICPT | B103: Intercept Pharmaceuticals, Inc. (ICPT) -NasdaqGS (Daily) | C103: 2022-10-07 | D103: 16:00:00 | E103: 13.97 | F103: 14.06 | G103: 13.64 | H103: 13.66 | I103: 691500 | J103: -0.28 | K103: 2022-10-08T20:34:46.490
A104: INO | B104: Inovio Pharmaceuticals, Inc. (INO) -NasdaqGS (Daily) | C104: 2022-10-07 | D104: 16:00:00 | E104: 1.69 | F104: 1.7 | G104: 1.6 | H104: 1.61 | I104: 4513100 | J104: -0.13 | K104: 2022-10-08T20:35:05.980
A105: LCI | B105: Lannett Company, Inc. (LCI) -NYSE (Daily) | C105: 2022-10-07 | D105: 16:00:00 | E105: 0.48 | F105: 0.493 | G105: 0.471 | H105: 0.471 | I105: 105400 | J105: -0.011 | K105: 2022-10-08T20:35:25.780
A106: PBYI | B106: Puma Biotechnology, Inc. (PBYI) -NasdaqGS (Daily) | C106: 2022-10-07 | D106: 16:00:00 | E106: 2.47 | F106: 2.5 | G106: 2.32 | H106: 2.37 | I106: 123700 | J106: -0.15 | K106: 2022-10-08T20:35:44.300
